Workbook

Sheet index
A2: 令和元年度度下水道事業比較経営診断表
B4: 都道府県名 | K4: 処理区域内人口別区分 | L4: 政令市等 | O4: 処理区域内人口 （人） | Q4: 1944569
B5: 団体名 | K5: 有収水量密度別区分 | L5: 政令市等 | O5: 有収水量密度 （千㎥/ｈa) | Q5: 8.4
B6: 事業名 | K6: 供用開始後年数別区分 | L6: 政令市等 | O6: 供用開始後年数 (年） | Q6: 59
A8: 項 目 | E8: 団 体 | G8: 類型平均 | H8: 全国平均 | I8: 類型内 順 位 | J8: 項 目 | M8: 団 体 | O8: 類型平均 | P8: 全国平均 | Q8: 類型内 順 位
E9: H30年度 | F9: R1年度 | H9: (公共) | M9: H30年度 | N9: R1年度 | P9: (公共)
A10: 事業の概要 | J10: 財政状態の健全性
A11: 事業別普及率 | D11: ％ | E11: 99.3 | F11: 99.3 | G11: － | H11: 79.2 | I11: － | J11: 総収支比率 | L11: ％ | M11: 106.9 | N11: 105.3 | O11: 108 | P11: 114.6 | Q11: 13/21
A12: 進捗率 | D12: ％ | E12: 104.5 | F12: 104.8 | G12: 102.5 | H12: 95.1 | I12: － | J12: 経常収支比率 | L12: ％ | M12: 107 | N12: 105.3 | O12: 108.2 | P12: 102.9 | Q12: 14/21
A13: 一般家庭用使用料 （1ヶ月20㎥あたり） | D13: 円／月 | E13: 1371 | F13: 1371 | G13: 2226 | H13: 2842 | I13: － | J13: 事業別資金不足比率 | L13: ％ | M13: 0 | N13: 0 | O13: 0 | P13: 14.4 | Q13: 1/21
A14: 処理区域内人口密度 | D14: 人／ha | E14: 79 | F14: 79 | G14: 100 | H14: 61 | I14: － | J14: 利子負担率 | L14: ％ | M14: 1.5 | N14: 1.4 | O14: 1.5 | P14: 1.6 | Q14: 4/21
A15: 施設の効率性 | J15: 自己資本構成比率 | L15: ％ | M15: 57.5 | N15: 57.7 | O15: 62.6 | P15: 60.9 | Q15: 11/21
A16: 施設利用率 | D16: ％ | E16: 68.2 | F16: 64.1 | G16: 59.8 | H16: 62.4 | I16: 10/21 | J16: 固定資産対長期資本比率 | L16: ％ | M16: 101.6 | N16: 101.6 | O16: 101.4 | P16: 101.4 | Q16: 12/21
A17: 有収率 | D17: ％ | E17: 70.6 | F17: 74.7 | G17: 79.8 | H17: 80.4 | I17: 15/21 | J17: 処理区域内人口１人あたりの 企業債（地方債）現在高 | L17: 千円／人 | M17: 122 | N17: 121 | O17: 180 | P17: 195 | Q17: 3/21
A18: 水洗化率 | D18: ％ | E18: 99.9 | F18: 99.9 | G18: 99 | H18: 95.4 | I18: 3/21
A19: 経営の効率性
A20: 使用料単価 | D20: 円／㎥ | E20: 93.83 | F20: 93.5 | G20: 131.9 | H20: 136.43 | I20: 21/21
A21: 汚水処理原価 | D21: 円／㎥ | E21: 96.22 | F21: 97.16 | G21: 118.97 | H21: 135.99 | I21: 2/21
A22: 汚水処理原価(分流式下水道 等に要する経費控除前） | D22: 円／㎥ | E22: 96.22 | F22: 97.16 | G22: 120.49 | H22: 161.15 | I22: 2/21
A23: 汚水処理原価 （維持管理費） | D23: 円／㎥ | E23: 55.14 | F23: 55.9 | G23: 59.5 | H23: 71.32 | I23: 10/21
A24: 汚水処理原価 （資本費） | D24: 円／㎥ | E24: 41.07 | F24: 41.26 | G24: 59.47 | H24: 64.66 | I24: 2/21
A25: 経費回収率 | D25: ％ | E25: 97.5 | F25: 96.2 | G25: 110.9 | H25: 100.3 | I25: 19/21
A26: 経費回収率(分流式下水道 等に要する経費控除前） | D26: ％ | E26: 97.5 | F26: 96.2 | G26: 109.5 | H26: 84.7 | I26: 15/21
A27: 経費回収率 （維持管理費） | D27: ％ | E27: 170.2 | F27: 167.3 | G27: 221.7 | H27: 191.3 | I27: 21/21
A28: 処理区域内人口1人あたり の管理運営費(汚水分） | D28: 円／人 | E28: 10165 | F28: 10234 | G28: 13679 | H28: 14587 | I28: 1/21
A29: 処理区域内人口1人あたり の維持管理費（汚水分） | D29: 円／人 | E29: 5826 | F29: 5888 | G29: 6841 | H29: 7651 | I29: 9/21
A30: 処理区域内人口1人あたり の資本費（汚水分） | D30: 円／人 | E30: 4339 | F30: 4346 | G30: 6838 | H30: 6936 | I30: 1/21
A31: 職員１人あたりの 処理区域内人口 | D31: 人／人 | E31: 3951 | F31: 4068 | G31: 4229 | H31: 4333 | I31: 13/21
A32: 職員給与費対営業収益比率 | D32: ％ | E32: 7.9 | F32: 8 | G32: 5.8 | H32: 6.1 | I32: 16/21
A34: 経 営 状 況
A35: 収 益 的 収 支 | J35: 資 本 的 収 支
A36: 項 目 | E36: H30年度 | F36: R1年度 | G36: 増減額 | H36: 増減率（％） | J36: 項 目 | M36: H30年度 | N36: R1年度 | O36: 増減額 | P36: 増減率（％）
A37: 収 入 | D37: 百万円 | E37: 50306 | F37: 49360 | G37: -946 | H37: -1.916531605 | J37: 収 入 | L37: 百万円 | M37: 17974 | N37: 19616 | O37: 1642 | P37: 8.370717781
B38: 下水道使用料 | D38: 百万円 | E38: 19232 | F38: 19151 | G38: -81 | H38: -0.4229544149 | K38: 企業債（非適：地方債） | L38: 百万円 | M38: 13024 | N38: 13875 | O38: 851 | P38: 6.133333333
B39: 繰入金 | D39: 百万円 | E39: 19393 | F39: 18724 | G39: -669 | H39: -3.572954497 | K39: 繰入金 | L39: 百万円 | M39: 574 | N39: 488 | O39: -86 | P39: -17.62295082
A40: 支 出 | D40: 百万円 | E40: 47063 | F40: 46871 | G40: -192 | H40: -0.4096349555 | J40: 支 出 | L40: 百万円 | M40: 34979 | N40: 36210 | O40: 1231 | P40: 3.399613366
B41: 支払利息 | D41: 百万円 | E41: 3665 | F41: 3216 | G41: -449 | H41: -13.96144279 | K41: 建設改良費 | L41: 百万円 | M41: 17849 | N41: 19989 | O41: 2140 | P41: 10.70588824
B42: 減価償却費 | D42: 百万円 | E42: 24566 | F42: 24657 | G42: 91 | H42: 0.3690635519 | K42: 元金償還金 | L42: 百万円 | M42: 17104 | N42: 16203 | O42: -901 | P42: -5.560698636
B43: 職員給与費 | D43: 百万円 | E43: 3016 | F43: 3009 | G43: -7 | H43: -0.2326354271 | J43: 収 支 差 引 | L43: 百万円 | M43: -17005 | N43: -16594 | O43: 411 | P43: -2.476798843
A44: 収 支 差 引 | D44: 百万円 | E44: 3244 | F44: 2489 | G44: -755 | H44: -30.33346726 | J44: 純 損 益 （非適：収支再差引） | L44: 百万円 | M44: 3244 | N44: 2489 | O44: -755 | P44: -30.33346726
A46: ※「類型内順位」については
A47: の場合であれば指標の数値の高い方から、
A48: の場合であれば指標の数値が低い方から数えた順位となる
F49: 団体 | G49: 類型平均 | H49: 全国平均
F50: =+IF(IF(G17<>0,F17/G17,0)>0.6,IF(IF(G17<>0,F17/G17)<1.5,IF(G17<>0,F17/G17),1.5),0.6) -> 0.9360902256 | G50: =+IF(IF(G17<>0,G17/G17,0)>0.6,IF(IF(G17<>0,G17/G17,0)<1.5,IF(G17<>0,G17/G17,0),1.5),0.6) -> 1 | H50: =+IF(IF(G17<>0,H17/G17,0)>0.6,IF(IF(G17<>0,H17/G17,0)<1.5,IF(G17<>0,H17/G17,0),1.5),0.6) -> 1.007518797
F51: =+IF(IF(G25<>0,F25/G25,0)>0.6,IF(IF(G25<>0,F25/G25,0)<1.5,IF(G25<>0,F25/G25,0),1.5),0.6) -> 0.8674481515 | G51: =+IF(IF(G25<>0,G25/G25,0)>0.6,IF(IF(G25<>0,G25/G25,0)<1.5,IF(G25<>0,G25/G25,0),1.5),0.6) -> 1 | H51: =+IF(IF(G25<>0,H25/G25,0)>0.6,IF(IF(G25<>0,H25/G25,0)<1.5,IF(G25<>0,H25/G25,0),1.5),0.6) -> 0.904418395
F52: =+IF(IF(G26<>0,F26/G26,0)>0.6,IF(IF(G26<>0,F26/G26,0)<1.5,IF(G26<>0,F26/G26,0),1.5),0.6) -> 0.8785388128 | G52: =+IF(IF(G26<>0,G26/G26,0)>0.6,IF(IF(G26<>0,G26/G26,0)<1.5,IF(G26<>0,G26/G26,0),1.5),0.6) -> 1 | H52: =+IF(IF(G26<>0,H26/G26,0)>0.6,IF(IF(G26<>0,H26/G26,0)<1.5,IF(G26<>0,H26/G26,0),1.5),0.6) -> 0.7735159817
F53: =+IF(IF(G22<>0,G22/F22,0)>0.6,IF(IF(G22<>0,G22/F22,0)<1.5,IF(G22<>0,G22/F22,0),1.5),0.6) -> 1.240119391 | G53: =+IF(IF(G22<>0,G22/G22,0)>0.6,IF(IF(G22<>0,G22/G22,0)<1.5,IF(G22<>0,G22/G22,0),1.5),0.6) -> 1 | H53: =+IF(IF(G22<>0,G22/H22,0)>0.6,IF(IF(G22<>0,G22/H22,0)<1.5,IF(G22<>0,G22/H22,0),1.5),0.6) -> 0.747688489
F54: =+IF(IF(G18<>0,F18/G18,0)>0.6,IF(IF(G18<>0,F18/G18,0)<1.5,IF(G18<>0,F18/G18,0),1.5),0.6) -> 1.009090909 | G54: =+IF(IF(G18<>0,G18/G18,0)>0.6,IF(IF(G18<>0,G18/G18,0)<1.5,IF(G18<>0,G18/G18,0),1.5),0.6) -> 1 | H54: =+IF(IF(G18<>0,H18/G18,0)>0.6,IF(IF(G18<>0,H18/G18,0)<1.5,IF(G18<>0,H18/G18,0),1.5),0.6) -> 0.9636363636

Sheet R1収支
A1: 決算年度 | B1: 業務コード | C1: 業種コード | D1: 事業コード | E1: 並び順 | F1: 事業区分 | G1: 団体コード | H1: 都道府県 | I1: 団体名 | J1: 収入 | K1: 料金収入 | L1: 繰入金 | M1: 支出 | N1: 支払利息 | O1: 減価償却費 | P1: 職員給与費 | Q1: 収支差引 | R1: 収入 | S1: 地方債 | T1: 繰入金 | U1: 支出 | V1: 建設改良費 | W1: 元金償還金 | X1: 収支差引 | Y1: 収支再差引
A2: 2019 | B2: 46 | C2: 17 | D2: 1 | E2: 1 | F2: 公共 | G2: 011002 | H2: 北海道 | I2: 札幌市 | J2: =IF(千円単!J2="","",ROUND(千円単!J2/1000,0)) -> 49360 | K2: =IF(千円単!K2="","",ROUND(千円単!K2/1000,0)) -> 19151 | L2: =IF(千円単!L2="","",ROUND(千円単!L2/1000,0)) -> 18724 | M2: =IF(千円単!M2="","",ROUND(千円単!M2/1000,0)) -> 46871 | N2: =IF(千円単!N2="","",ROUND(千円単!N2/1000,0)) -> 3216 | O2: =IF(千円単!O2="","",ROUND(千円単!O2/1000,0)) -> 24657 | P2: =IF(千円単!P2="","",ROUND(千円単!P2/1000,0)) -> 3009 | Q2: =IF(千円単!Q2="","",ROUND(千円単!Q2/1000,0)) -> 2489 | R2: =IF(千円単!R2="","",ROUND(千円単!R2/1000,0)) -> 19616 | S2: =IF(千円単!S2="","",ROUND(千円単!S2/1000,0)) -> 13875 | T2: =IF(千円単!T2="","",ROUND(千円単!T2/1000,0)) -> 488 | U2: =IF(千円単!U2="","",ROUND(千円単!U2/1000,0)) -> 36210 | V2: =IF(千円単!V2="","",ROUND(千円単!V2/1000,0)) -> 19989 | W2: =IF(千円単!W2="","",ROUND(千円単!W2/1000,0)) -> 16203 | X2: =IF(千円単!X2="","",ROUND(千円単!X2/1000,0)) -> -16594 | Y2: =IF(千円単!Y2="","",ROUND(千円単!Y2/1000,0)) -> 2489
A3: 2019 | B3: 46 | C3: 17 | D3: 1 | E3: 2 | F3: 公共 | G3: 012025 | H3: 北海道 | I3: 函館市 | J3: =IF(千円単!J3="","",ROUND(千円単!J3/1000,0)) -> 7436 | K3: =IF(千円単!K3="","",ROUND(千円単!K3/1000,0)) -> 4171 | L3: =IF(千円単!L3="","",ROUND(千円単!L3/1000,0)) -> 1064 | M3: =IF(千円単!M3="","",ROUND(千円単!M3/1000,0)) -> 6480 | N3: =IF(千円単!N3="","",ROUND(千円単!N3/1000,0)) -> 806 | O3: =IF(千円単!O3="","",ROUND(千円単!O3/1000,0)) -> 3489 | P3: =IF(千円単!P3="","",ROUND(千円単!P3/1000,0)) -> 373 | Q3: =IF(千円単!Q3="","",ROUND(千円単!Q3/1000,0)) -> 957 | R3: =IF(千円単!R3="","",ROUND(千円単!R3/1000,0)) -> 3874 | S3: =IF(千円単!S3="","",ROUND(千円単!S3/1000,0)) -> 2800 | T3: =IF(千円単!T3="","",ROUND(千円単!T3/1000,0)) -> 625 | U3: =IF(千円単!U3="","",ROUND(千円単!U3/1000,0)) -> 6346 | V3: =IF(千円単!V3="","",ROUND(千円単!V3/1000,0)) -> 2174 | W3: =IF(千円単!W3="","",ROUND(千円単!W3/1000,0)) -> 4164 | X3: =IF(千円単!X3="","",ROUND(千円単!X3/1000,0)) -> -2472 | Y3: =IF(千円単!Y3="","",ROUND(千円単!Y3/1000,0)) -> 957
A4: 2019 | B4: 46 | C4: 17 | D4: 1 | E4: 3 | F4: 公共 | G4: 012033 | H4: 北海道 | I4: 小樽市 | J4: =IF(千円単!J4="","",ROUND(千円単!J4/1000,0)) -> 3603 | K4: =IF(千円単!K4="","",ROUND(千円単!K4/1000,0)) -> 1871 | L4: =IF(千円単!L4="","",ROUND(千円単!L4/1000,0)) -> 828 | M4: =IF(千円単!M4="","",ROUND(千円単!M4/1000,0)) -> 3176 | N4: =IF(千円単!N4="","",ROUND(千円単!N4/1000,0)) -> 172 | O4: =IF(千円単!O4="","",ROUND(千円単!O4/1000,0)) -> 1810 | P4: =IF(千円単!P4="","",ROUND(千円単!P4/1000,0)) -> 103 | Q4: =IF(千円単!Q4="","",ROUND(千円単!Q4/1000,0)) -> 427 | R4: =IF(千円単!R4="","",ROUND(千円単!R4/1000,0)) -> 1485 | S4: =IF(千円単!S4="","",ROUND(千円単!S4/1000,0)) -> 521 | T4: =IF(千円単!T4="","",ROUND(千円単!T4/1000,0)) -> 377 | U4: =IF(千円単!U4="","",ROUND(千円単!U4/1000,0)) -> 2963 | V4: =IF(千円単!V4="","",ROUND(千円単!V4/1000,0)) -> 856 | W4: =IF(千円単!W4="","",ROUND(千円単!W4/1000,0)) -> 2106 | X4: =IF(千円単!X4="","",ROUND(千円単!X4/1000,0)) -> -1478 | Y4: =IF(千円単!Y4="","",ROUND(千円単!Y4/1000,0)) -> 427
A5: 2019 | B5: 46 | C5: 17 | D5: 1 | E5: 4 | F5: 公共 | G5: 012041 | H5: 北海道 | I5: 旭川市 | J5: =IF(千円単!J5="","",ROUND(千円単!J5/1000,0)) -> 8674 | K5: =IF(千円単!K5="","",ROUND(千円単!K5/1000,0)) -> 5256 | L5: =IF(千円単!L5="","",ROUND(千円単!L5/1000,0)) -> 947 | M5: =IF(千円単!M5="","",ROUND(千円単!M5/1000,0)) -> 7941 | N5: =IF(千円単!N5="","",ROUND(千円単!N5/1000,0)) -> 520 | O5: =IF(千円単!O5="","",ROUND(千円単!O5/1000,0)) -> 4671 | P5: =IF(千円単!P5="","",ROUND(千円単!P5/1000,0)) -> 368 | Q5: =IF(千円単!Q5="","",ROUND(千円単!Q5/1000,0)) -> 734 | R5: =IF(千円単!R5="","",ROUND(千円単!R5/1000,0)) -> 2174 | S5: =IF(千円単!S5="","",ROUND(千円単!S5/1000,0)) -> 1305 | T5: =IF(千円単!T5="","",ROUND(千円単!T5/1000,0)) -> 154 | U5: =IF(千円単!U5="","",ROUND(千円単!U5/1000,0)) -> 5772 | V5: =IF(千円単!V5="","",ROUND(千円単!V5/1000,0)) -> 1871 | W5: =IF(千円単!W5="","",ROUND(千円単!W5/1000,0)) -> 3901 | X5: =IF(千円単!X5="","",ROUND(千円単!X5/1000,0)) -> -3598 | Y5: =IF(千円単!Y5="","",ROUND(千円単!Y5/1000,0)) -> 734
A6: 2019 | B6: 46 | C6: 17 | D6: 1 | E6: 5 | F6: 公共 | G6: 012050 | H6: 北海道 | I6: 室蘭市 | J6: =IF(千円単!J6="","",ROUND(千円単!J6/1000,0)) -> 2992 | K6: =IF(千円単!K6="","",ROUND(千円単!K6/1000,0)) -> 1436 | L6: =IF(千円単!L6="","",ROUND(千円単!L6/1000,0)) -> 820 | M6: =IF(千円単!M6="","",ROUND(千円単!M6/1000,0)) -> 2604 | N6: =IF(千円単!N6="","",ROUND(千円単!N6/1000,0)) -> 216 | O6: =IF(千円単!O6="","",ROUND(千円単!O6/1000,0)) -> 1419 | P6: =IF(千円単!P6="","",ROUND(千円単!P6/1000,0)) -> 104 | Q6: =IF(千円単!Q6="","",ROUND(千円単!Q6/1000,0)) -> 389 | R6: =IF(千円単!R6="","",ROUND(千円単!R6/1000,0)) -> 632 | S6: =IF(千円単!S6="","",ROUND(千円単!S6/1000,0)) -> 302 | T6: =IF(千円単!T6="","",ROUND(千円単!T6/1000,0)) -> 96 | U6: =IF(千円単!U6="","",ROUND(千円単!U6/1000,0)) -> 1500 | V6: =IF(千円単!V6="","",ROUND(千円単!V6/1000,0)) -> 610 | W6: =IF(千円単!W6="","",ROUND(千円単!W6/1000,0)) -> 887 | X6: =IF(千円単!X6="","",ROUND(千円単!X6/1000,0)) -> -868 | Y6: =IF(千円単!Y6="","",ROUND(千円単!Y6/1000,0)) -> 389
A7: 2019 | B7: 46 | C7: 17 | D7: 1 | E7: 6 | F7: 公共 | G7: 012068 | H7: 北海道 | I7: 釧路市 | J7: =IF(千円単!J7="","",ROUND(千円単!J7/1000,0)) -> 6288 | K7: =IF(千円単!K7="","",ROUND(千円単!K7/1000,0)) -> 3487 | L7: =IF(千円単!L7="","",ROUND(千円単!L7/1000,0)) -> 779 | M7: =IF(千円単!M7="","",ROUND(千円単!M7/1000,0)) -> 5144 | N7: =IF(千円単!N7="","",ROUND(千円単!N7/1000,0)) -> 383 | O7: =IF(千円単!O7="","",ROUND(千円単!O7/1000,0)) -> 2940 | P7: =IF(千円単!P7="","",ROUND(千円単!P7/1000,0)) -> 237 | Q7: =IF(千円単!Q7="","",ROUND(千円単!Q7/1000,0)) -> 1143 | R7: =IF(千円単!R7="","",ROUND(千円単!R7/1000,0)) -> 2722 | S7: =IF(千円単!S7="","",ROUND(千円単!S7/1000,0)) -> 1675 | T7: =IF(千円単!T7="","",ROUND(千円単!T7/1000,0)) -> 389 | U7: =IF(千円単!U7="","",ROUND(千円単!U7/1000,0)) -> 4285 | V7: =IF(千円単!V7="","",ROUND(千円単!V7/1000,0)) -> 2041 | W7: =IF(千円単!W7="","",ROUND(千円単!W7/1000,0)) -> 2243 | X7: =IF(千円単!X7="","",ROUND(千円単!X7/1000,0)) -> -1562 | Y7: =IF(千円単!Y7="","",ROUND(千円単!Y7/1000,0)) -> 1143
A8: 2019 | B8: 46 | C8: 17 | D8: 1 | E8: 7 | F8: 公共 | G8: 012076 | H8: 北海道 | I8: 帯広市 | J8: =IF(千円単!J8="","",ROUND(千円単!J8/1000,0)) -> 4605 | K8: =IF(千円単!K8="","",ROUND(千円単!K8/1000,0)) -> 2659 | L8: =IF(千円単!L8="","",ROUND(千円単!L8/1000,0)) -> 869 | M8: =IF(千円単!M8="","",ROUND(千円単!M8/1000,0)) -> 3991 | N8: =IF(千円単!N8="","",ROUND(千円単!N8/1000,0)) -> 394 | O8: =IF(千円単!O8="","",ROUND(千円単!O8/1000,0)) -> 2250 | P8: =IF(千円単!P8="","",ROUND(千円単!P8/1000,0)) -> 97 | Q8: =IF(千円単!Q8="","",ROUND(千円単!Q8/1000,0)) -> 615 | R8: =IF(千円単!R8="","",ROUND(千円単!R8/1000,0)) -> 927 | S8: =IF(千円単!S8="","",ROUND(千円単!S8/1000,0)) -> 551 | T8: =IF(千円単!T8="","",ROUND(千円単!T8/1000,0)) -> 3 | U8: =IF(千円単!U8="","",ROUND(千円単!U8/1000,0)) -> 2785 | V8: =IF(千円単!V8="","",ROUND(千円単!V8/1000,0)) -> 811 | W8: =IF(千円単!W8="","",ROUND(千円単!W8/1000,0)) -> 1974 | X8: =IF(千円単!X8="","",ROUND(千円単!X8/1000,0)) -> -1859 | Y8: =IF(千円単!Y8="","",ROUND(千円単!Y8/1000,0)) -> 615
A9: 2019 | B9: 46 | C9: 17 | D9: 1 | E9: 8 | F9: 公共 | G9: 012084 | H9: 北海道 | I9: 北見市 | J9: =IF(千円単!J9="","",ROUND(千円単!J9/1000,0)) -> 4130 | K9: =IF(千円単!K9="","",ROUND(千円単!K9/1000,0)) -> 1709 | L9: =IF(千円単!L9="","",ROUND(千円単!L9/1000,0)) -> 1040 | M9: =IF(千円単!M9="","",ROUND(千円単!M9/1000,0)) -> 3793 | N9: =IF(千円単!N9="","",ROUND(千円単!N9/1000,0)) -> 433 | O9: =IF(千円単!O9="","",ROUND(千円単!O9/1000,0)) -> 2357 | P9: =IF(千円単!P9="","",ROUND(千円単!P9/1000,0)) -> 181 | Q9: =IF(千円単!Q9="","",ROUND(千円単!Q9/1000,0)) -> 336 | R9: =IF(千円単!R9="","",ROUND(千円単!R9/1000,0)) -> 2191 | S9: =IF(千円単!S9="","",ROUND(千円単!S9/1000,0)) -> 1270 | T9: =IF(千円単!T9="","",ROUND(千円単!T9/1000,0)) -> 444 | U9: =IF(千円単!U9="","",ROUND(千円単!U9/1000,0)) -> 3510 | V9: =IF(千円単!V9="","",ROUND(千円単!V9/1000,0)) -> 1333 | W9: =IF(千円単!W9="","",ROUND(千円単!W9/1000,0)) -> 2177 | X9: =IF(千円単!X9="","",ROUND(千円単!X9/1000,0)) -> -1320 | Y9: =IF(千円単!Y9="","",ROUND(千円単!Y9/1000,0)) -> 336
A10: 2019 | B10: 46 | C10: 17 | D10: 1 | E10: 9 | F10: 公共 | G10: 012106 | H10: 北海道 | I10: 岩見沢市 | J10: =IF(千円単!J10="","",ROUND(千円単!J10/1000,0)) -> 2577 | K10: =IF(千円単!K10="","",ROUND(千円単!K10/1000,0)) -> 1190 | L10: =IF(千円単!L10="","",ROUND(千円単!L10/1000,0)) -> 513 | M10: =IF(千円単!M10="","",ROUND(千円単!M10/1000,0)) -> 2310 | N10: =IF(千円単!N10="","",ROUND(千円単!N10/1000,0)) -> 182 | O10: =IF(千円単!O10="","",ROUND(千円単!O10/1000,0)) -> 1308 | P10: =IF(千円単!P10="","",ROUND(千円単!P10/1000,0)) -> 28 | Q10: =IF(千円単!Q10="","",ROUND(千円単!Q10/1000,0)) -> 266 | R10: =IF(千円単!R10="","",ROUND(千円単!R10/1000,0)) -> 1074 | S10: =IF(千円単!S10="","",ROUND(千円単!S10/1000,0)) -> 315 | T10: =IF(千円単!T10="","",ROUND(千円単!T10/1000,0)) -> 387 | U10: =IF(千円単!U10="","",ROUND(千円単!U10/1000,0)) -> 1799 | V10: =IF(千円単!V10="","",ROUND(千円単!V10/1000,0)) -> 710 | W10: =IF(千円単!W10="","",ROUND(千円単!W10/1000,0)) -> 1088 | X10: =IF(千円単!X10="","",ROUND(千円単!X10/1000,0)) -> -725 | Y10: =IF(千円単!Y10="","",ROUND(千円単!Y10/1000,0)) -> 266
A11: 2019 | B11: 46 | C11: 17 | D11: 1 | E11: 10 | F11: 公共 | G11: 012131 | H11: 北海道 | I11: 苫小牧市 | J11: =IF(千円単!J11="","",ROUND(千円単!J11/1000,0)) -> 5131 | K11: =IF(千円単!K11="","",ROUND(千円単!K11/1000,0)) -> 2332 | L11: =IF(千円単!L11="","",ROUND(千円単!L11/1000,0)) -> 1101 | M11: =IF(千円単!M11="","",ROUND(千円単!M11/1000,0)) -> 4572 | N11: =IF(千円単!N11="","",ROUND(千円単!N11/1000,0)) -> 514 | O11: =IF(千円単!O11="","",ROUND(千円単!O11/1000,0)) -> 2687 | P11: =IF(千円単!P11="","",ROUND(千円単!P11/1000,0)) -> 141 | Q11: =IF(千円単!Q11="","",ROUND(千円単!Q11/1000,0)) -> 559 | R11: =IF(千円単!R11="","",ROUND(千円単!R11/1000,0)) -> 1979 | S11: =IF(千円単!S11="","",ROUND(千円単!S11/1000,0)) -> 1307 | T11: =IF(千円単!T11="","",ROUND(千円単!T11/1000,0)) -> 212 | U11: =IF(千円単!U11="","",ROUND(千円単!U11/1000,0)) -> 3684 | V11: =IF(千円単!V11="","",ROUND(千円単!V11/1000,0)) -> 1807 | W11: =IF(千円単!W11="","",ROUND(千円単!W11/1000,0)) -> 1876 | X11: =IF(千円単!X11="","",ROUND(千円単!X11/1000,0)) -> -1705 | Y11: =IF(千円単!Y11="","",ROUND(千円単!Y11/1000,0)) -> 559
A12: 2019 | B12: 46 | C12: 17 | D12: 1 | E12: 11 | F12: 公共 | G12: 012149 | H12: 北海道 | I12: 稚内市 | J12: =IF(千円単!J12="","",ROUND(千円単!J12/1000,0)) -> 1105 | K12: =IF(千円単!K12="","",ROUND(千円単!K12/1000,0)) -> 457 | L12: =IF(千円単!L12="","",ROUND(千円単!L12/1000,0)) -> 385 | M12: =IF(千円単!M12="","",ROUND(千円単!M12/1000,0)) -> 1077 | N12: =IF(千円単!N12="","",ROUND(千円単!N12/1000,0)) -> 117 | O12: =IF(千円単!O12="","",ROUND(千円単!O12/1000,0)) -> 613 | P12: =IF(千円単!P12="","",ROUND(千円単!P12/1000,0)) -> 16 | Q12: =IF(千円単!Q12="","",ROUND(千円単!Q12/1000,0)) -> 28 | R12: =IF(千円単!R12="","",ROUND(千円単!R12/1000,0)) -> 604 | S12: =IF(千円単!S12="","",ROUND(千円単!S12/1000,0)) -> 319 | T12: =IF(千円単!T12="","",ROUND(千円単!T12/1000,0)) -> 105 | U12: =IF(千円単!U12="","",ROUND(千円単!U12/1000,0)) -> 1059 | V12: =IF(千円単!V12="","",ROUND(千円単!V12/1000,0)) -> 416 | W12: =IF(千円単!W12="","",ROUND(千円単!W12/1000,0)) -> 643 | X12: =IF(千円単!X12="","",ROUND(千円単!X12/1000,0)) -> -456 | Y12: =IF(千円単!Y12="","",ROUND(千円単!Y12/1000,0)) -> 28
A13: 2019 | B13: 46 | C13: 17 | D13: 1 | E13: 12 | F13: 公共 | G13: 012173 | H13: 北海道 | I13: 江別市 | J13: =IF(千円単!J13="","",ROUND(千円単!J13/1000,0)) -> 3449 | K13: =IF(千円単!K13="","",ROUND(千円単!K13/1000,0)) -> 1263 | L13: =IF(千円単!L13="","",ROUND(千円単!L13/1000,0)) -> 880 | M13: =IF(千円単!M13="","",ROUND(千円単!M13/1000,0)) -> 3307 | N13: =IF(千円単!N13="","",ROUND(千円単!N13/1000,0)) -> 199 | O13: =IF(千円単!O13="","",ROUND(千円単!O13/1000,0)) -> 2035 | P13: =IF(千円単!P13="","",ROUND(千円単!P13/1000,0)) -> 140 | Q13: =IF(千円単!Q13="","",ROUND(千円単!Q13/1000,0)) -> 142 | R13: =IF(千円単!R13="","",ROUND(千円単!R13/1000,0)) -> 1127 | S13: =IF(千円単!S13="","",ROUND(千円単!S13/1000,0)) -> 633 | T13: =IF(千円単!T13="","",ROUND(千円単!T13/1000,0)) -> 32 | U13: =IF(千円単!U13="","",ROUND(千円単!U13/1000,0)) -> 2113 | V13: =IF(千円単!V13="","",ROUND(千円単!V13/1000,0)) -> 1119 | W13: =IF(千円単!W13="","",ROUND(千円単!W13/1000,0)) -> 994 | X13: =IF(千円単!X13="","",ROUND(千円単!X13/1000,0)) -> -986 | Y13: =IF(千円単!Y13="","",ROUND(千円単!Y13/1000,0)) -> 142
A14: 2019 | B14: 46 | C14: 17 | D14: 1 | E14: 13 | F14: 公共 | G14: 012190 | H14: 北海道 | I14: 紋別市 | J14: =IF(千円単!J14="","",ROUND(千円単!J14/1000,0)) -> 1266 | K14: =IF(千円単!K14="","",ROUND(千円単!K14/1000,0)) -> 419 | L14: =IF(千円単!L14="","",ROUND(千円単!L14/1000,0)) -> 538 | M14: =IF(千円単!M14="","",ROUND(千円単!M14/1000,0)) -> 1037 | N14: =IF(千円単!N14="","",ROUND(千円単!N14/1000,0)) -> 107 | O14: =IF(千円単!O14="","",ROUND(千円単!O14/1000,0)) -> 630 | P14: =IF(千円単!P14="","",ROUND(千円単!P14/1000,0)) -> 29 | Q14: =IF(千円単!Q14="","",ROUND(千円単!Q14/1000,0)) -> 229 | R14: =IF(千円単!R14="","",ROUND(千円単!R14/1000,0)) -> 333 | S14: =IF(千円単!S14="","",ROUND(千円単!S14/1000,0)) -> 273 | T14: =IF(千円単!T14="","",ROUND(千円単!T14/1000,0)) -> 36 | U14: =IF(千円単!U14="","",ROUND(千円単!U14/1000,0)) -> 914 | V14: =IF(千円単!V14="","",ROUND(千円単!V14/1000,0)) -> 193 | W14: =IF(千円単!W14="","",ROUND(千円単!W14/1000,0)) -> 721 | X14: =IF(千円単!X14="","",ROUND(千円単!X14/1000,0)) -> -581 | Y14: =IF(千円単!Y14="","",ROUND(千円単!Y14/1000,0)) -> 229
A15: 2019 | B15: 46 | C15: 17 | D15: 1 | E15: 14 | F15: 公共 | G15: 012220 | H15: 北海道 | I15: 三笠市 | J15: =IF(千円単!J15="","",ROUND(千円単!J15/1000,0)) -> 577 | K15: =IF(千円単!K15="","",ROUND(千円単!K15/1000,0)) -> 190 | L15: =IF(千円単!L15="","",ROUND(千円単!L15/1000,0)) -> 221 | M15: =IF(千円単!M15="","",ROUND(千円単!M15/1000,0)) -> 545 | N15: =IF(千円単!N15="","",ROUND(千円単!N15/1000,0)) -> 56 | O15: =IF(千円単!O15="","",ROUND(千円単!O15/1000,0)) -> 380 | P15: =IF(千円単!P15="","",ROUND(千円単!P15/1000,0)) -> 17 | Q15: =IF(千円単!Q15="","",ROUND(千円単!Q15/1000,0)) -> 32 | R15: =IF(千円単!R15="","",ROUND(千円単!R15/1000,0)) -> 117 | S15: =IF(千円単!S15="","",ROUND(千円単!S15/1000,0)) -> 7 | T15: =IF(千円単!T15="","",ROUND(千円単!T15/1000,0)) -> 0 | U15: =IF(千円単!U15="","",ROUND(千円単!U15/1000,0)) -> 340 | V15: =IF(千円単!V15="","",ROUND(千円単!V15/1000,0)) -> 23 | W15: =IF(千円単!W15="","",ROUND(千円単!W15/1000,0)) -> 317 | X15: =IF(千円単!X15="","",ROUND(千円単!X15/1000,0)) -> -223 | Y15: =IF(千円単!Y15="","",ROUND(千円単!Y15/1000,0)) -> 32
A16: 2019 | B16: 46 | C16: 17 | D16: 1 | E16: 15 | F16: 公共 | G16: 012238 | H16: 北海道 | I16: 根室市 | J16: =IF(千円単!J16="","",ROUND(千円単!J16/1000,0)) -> 802 | K16: =IF(千円単!K16="","",ROUND(千円単!K16/1000,0)) -> 430 | L16: =IF(千円単!L16="","",ROUND(千円単!L16/1000,0)) -> 147 | M16: =IF(千円単!M16="","",ROUND(千円単!M16/1000,0)) -> 848 | N16: =IF(千円単!N16="","",ROUND(千円単!N16/1000,0)) -> 35 | O16: =IF(千円単!O16="","",ROUND(千円単!O16/1000,0)) -> 471 | P16: =IF(千円単!P16="","",ROUND(千円単!P16/1000,0)) -> 35 | Q16: =IF(千円単!Q16="","",ROUND(千円単!Q16/1000,0)) -> -47 | R16: =IF(千円単!R16="","",ROUND(千円単!R16/1000,0)) -> 140 | S16: =IF(千円単!S16="","",ROUND(千円単!S16/1000,0)) -> 72 | T16: =IF(千円単!T16="","",ROUND(千円単!T16/1000,0)) -> 15 | U16: =IF(千円単!U16="","",ROUND(千円単!U16/1000,0)) -> 361 | V16: =IF(千円単!V16="","",ROUND(千円単!V16/1000,0)) -> 158 | W16: =IF(千円単!W16="","",ROUND(千円単!W16/1000,0)) -> 201 | X16: =IF(千円単!X16="","",ROUND(千円単!X16/1000,0)) -> -222 | Y16: =IF(千円単!Y16="","",ROUND(千円単!Y16/1000,0)) -> -47
A17: 2019 | B17: 46 | C17: 17 | D17: 1 | E17: 16 | F17: 公共 | G17: 012246 | H17: 北海道 | I17: 千歳市 | J17: =IF(千円単!J17="","",ROUND(千円単!J17/1000,0)) -> 3294 | K17: =IF(千円単!K17="","",ROUND(千円単!K17/1000,0)) -> 1389 | L17: =IF(千円単!L17="","",ROUND(千円単!L17/1000,0)) -> 781 | M17: =IF(千円単!M17="","",ROUND(千円単!M17/1000,0)) -> 3037 | N17: =IF(千円単!N17="","",ROUND(千円単!N17/1000,0)) -> 178 | O17: =IF(千円単!O17="","",ROUND(千円単!O17/1000,0)) -> 1835 | P17: =IF(千円単!P17="","",ROUND(千円単!P17/1000,0)) -> 140 | Q17: =IF(千円単!Q17="","",ROUND(千円単!Q17/1000,0)) -> 257 | R17: =IF(千円単!R17="","",ROUND(千円単!R17/1000,0)) -> 449 | S17: =IF(千円単!S17="","",ROUND(千円単!S17/1000,0)) -> 206 | T17: =IF(千円単!T17="","",ROUND(千円単!T17/1000,0)) -> 29 | U17: =IF(千円単!U17="","",ROUND(千円単!U17/1000,0)) -> 1316 | V17: =IF(千円単!V17="","",ROUND(千円単!V17/1000,0)) -> 683 | W17: =IF(千円単!W17="","",ROUND(千円単!W17/1000,0)) -> 621 | X17: =IF(千円単!X17="","",ROUND(千円単!X17/1000,0)) -> -868 | Y17: =IF(千円単!Y17="","",ROUND(千円単!Y17/1000,0)) -> 257
A18: 2019 | B18: 46 | C18: 17 | D18: 1 | E18: 17 | F18: 公共 | G18: 012254 | H18: 北海道 | I18: 滝川市 | J18: =IF(千円単!J18="","",ROUND(千円単!J18/1000,0)) -> 1273 | K18: =IF(千円単!K18="","",ROUND(千円単!K18/1000,0)) -> 714 | L18: =IF(千円単!L18="","",ROUND(千円単!L18/1000,0)) -> 230 | M18: =IF(千円単!M18="","",ROUND(千円単!M18/1000,0)) -> 1221 | N18: =IF(千円単!N18="","",ROUND(千円単!N18/1000,0)) -> 101 | O18: =IF(千円単!O18="","",ROUND(千円単!O18/1000,0)) -> 798 | P18: =IF(千円単!P18="","",ROUND(千円単!P18/1000,0)) -> 8 | Q18: =IF(千円単!Q18="","",ROUND(千円単!Q18/1000,0)) -> 52 | R18: =IF(千円単!R18="","",ROUND(千円単!R18/1000,0)) -> 862 | S18: =IF(千円単!S18="","",ROUND(千円単!S18/1000,0)) -> 364 | T18: =IF(千円単!T18="","",ROUND(千円単!T18/1000,0)) -> 306 | U18: =IF(千円単!U18="","",ROUND(千円単!U18/1000,0)) -> 1295 | V18: =IF(千円単!V18="","",ROUND(千円単!V18/1000,0)) -> 614 | W18: =IF(千円単!W18="","",ROUND(千円単!W18/1000,0)) -> 681 | X18: =IF(千円単!X18="","",ROUND(千円単!X18/1000,0)) -> -433 | Y18: =IF(千円単!Y18="","",ROUND(千円単!Y18/1000,0)) -> 52
A19: 2019 | B19: 46 | C19: 17 | D19: 1 | E19: 18 | F19: 公共 | G19: 012262 | H19: 北海道 | I19: 砂川市 | J19: =IF(千円単!J19="","",ROUND(千円単!J19/1000,0)) -> 735 | K19: =IF(千円単!K19="","",ROUND(千円単!K19/1000,0)) -> 341 | L19: =IF(千円単!L19="","",ROUND(千円単!L19/1000,0)) -> 233 | M19: =IF(千円単!M19="","",ROUND(千円単!M19/1000,0)) -> 513 | N19: =IF(千円単!N19="","",ROUND(千円単!N19/1000,0)) -> 48 | O19: =IF(千円単!O19="","",ROUND(千円単!O19/1000,0)) -> 335 | P19: =IF(千円単!P19="","",ROUND(千円単!P19/1000,0)) -> 18 | Q19: =IF(千円単!Q19="","",ROUND(千円単!Q19/1000,0)) -> 222 | R19: =IF(千円単!R19="","",ROUND(千円単!R19/1000,0)) -> 180 | S19: =IF(千円単!S19="","",ROUND(千円単!S19/1000,0)) -> 136 | T19: =IF(千円単!T19="","",ROUND(千円単!T19/1000,0)) -> 0 | U19: =IF(千円単!U19="","",ROUND(千円単!U19/1000,0)) -> 533 | V19: =IF(千円単!V19="","",ROUND(千円単!V19/1000,0)) -> 121 | W19: =IF(千円単!W19="","",ROUND(千円単!W19/1000,0)) -> 411 | X19: =IF(千円単!X19="","",ROUND(千円単!X19/1000,0)) -> -352 | Y19: =IF(千円単!Y19="","",ROUND(千円単!Y19/1000,0)) -> 222
A20: 2019 | B20: 46 | C20: 17 | D20: 1 | E20: 19 | F20: 公共 | G20: 012301 | H20: 北海道 | I20: 登別市 | J20: =IF(千円単!J20="","",ROUND(千円単!J20/1000,0)) -> 1808 | K20: =IF(千円単!K20="","",ROUND(千円単!K20/1000,0)) -> 658 | L20: =IF(千円単!L20="","",ROUND(千円単!L20/1000,0)) -> 697 | M20: =IF(千円単!M20="","",ROUND(千円単!M20/1000,0)) -> 1662 | N20: =IF(千円単!N20="","",ROUND(千円単!N20/1000,0)) -> 284 | O20: =IF(千円単!O20="","",ROUND(千円単!O20/1000,0)) -> 981 | P20: =IF(千円単!P20="","",ROUND(千円単!P20/1000,0)) -> 56 | Q20: =IF(千円単!Q20="","",ROUND(千円単!Q20/1000,0)) -> 146 | R20: =IF(千円単!R20="","",ROUND(千円単!R20/1000,0)) -> 854 | S20: =IF(千円単!S20="","",ROUND(千円単!S20/1000,0)) -> 604 | T20: =IF(千円単!T20="","",ROUND(千円単!T20/1000,0)) -> 157 | U20: =IF(千円単!U20="","",ROUND(千円単!U20/1000,0)) -> 1547 | V20: =IF(千円単!V20="","",ROUND(千円単!V20/1000,0)) -> 324 | W20: =IF(千円単!W20="","",ROUND(千円単!W20/1000,0)) -> 1223 | X20: =IF(千円単!X20="","",ROUND(千円単!X20/1000,0)) -> -693 | Y20: =IF(千円単!Y20="","",ROUND(千円単!Y20/1000,0)) -> 146
A21: 2019 | B21: 46 | C21: 17 | D21: 1 | E21: 20 | F21: 公共 | G21: 012319 | H21: 北海道 | I21: 恵庭市 | J21: =IF(千円単!J21="","",ROUND(千円単!J21/1000,0)) -> 2596 | K21: =IF(千円単!K21="","",ROUND(千円単!K21/1000,0)) -> 1009 | L21: =IF(千円単!L21="","",ROUND(千円単!L21/1000,0)) -> 678 | M21: =IF(千円単!M21="","",ROUND(千円単!M21/1000,0)) -> 2494 | N21: =IF(千円単!N21="","",ROUND(千円単!N21/1000,0)) -> 170 | O21: =IF(千円単!O21="","",ROUND(千円単!O21/1000,0)) -> 1507 | P21: =IF(千円単!P21="","",ROUND(千円単!P21/1000,0)) -> 69 | Q21: =IF(千円単!Q21="","",ROUND(千円単!Q21/1000,0)) -> 102 | R21: =IF(千円単!R21="","",ROUND(千円単!R21/1000,0)) -> 1231 | S21: =IF(千円単!S21="","",ROUND(千円単!S21/1000,0)) -> 699 | T21: =IF(千円単!T21="","",ROUND(千円単!T21/1000,0)) -> 107 | U21: =IF(千円単!U21="","",ROUND(千円単!U21/1000,0)) -> 2129 | V21: =IF(千円単!V21="","",ROUND(千円単!V21/1000,0)) -> 1148 | W21: =IF(千円単!W21="","",ROUND(千円単!W21/1000,0)) -> 981 | X21: =IF(千円単!X21="","",ROUND(千円単!X21/1000,0)) -> -898 | Y21: =IF(千円単!Y21="","",ROUND(千円単!Y21/1000,0)) -> 102
A22: 2019 | B22: 46 | C22: 17 | D22: 1 | E22: 21 | F22: 公共 | G22: 012335 | H22: 北海道 | I22: 伊達市 | J22: =IF(千円単!J22="","",ROUND(千円単!J22/1000,0)) -> 1111 | K22: =IF(千円単!K22="","",ROUND(千円単!K22/1000,0)) -> 606 | L22: =IF(千円単!L22="","",ROUND(千円単!L22/1000,0)) -> 157 | M22: =IF(千円単!M22="","",ROUND(千円単!M22/1000,0)) -> 1111 | N22: =IF(千円単!N22="","",ROUND(千円単!N22/1000,0)) -> 92 | O22: =IF(千円単!O22="","",ROUND(千円単!O22/1000,0)) -> 641 | P22: =IF(千円単!P22="","",ROUND(千円単!P22/1000,0)) -> 58 | Q22: =IF(千円単!Q22="","",ROUND(千円単!Q22/1000,0)) -> 0 | R22: =IF(千円単!R22="","",ROUND(千円単!R22/1000,0)) -> 662 | S22: =IF(千円単!S22="","",ROUND(千円単!S22/1000,0)) -> 211 | T22: =IF(千円単!T22="","",ROUND(千円単!T22/1000,0)) -> 0 | U22: =IF(千円単!U22="","",ROUND(千円単!U22/1000,0)) -> 1041 | V22: =IF(千円単!V22="","",ROUND(千円単!V22/1000,0)) -> 400 | W22: =IF(千円単!W22="","",ROUND(千円単!W22/1000,0)) -> 640 | X22: =IF(千円単!X22="","",ROUND(千円単!X22/1000,0)) -> -379 | Y22: =IF(千円単!Y22="","",ROUND(千円単!Y22/1000,0)) -> 0
A23: 2019 | B23: 46 | C23: 17 | D23: 1 | E23: 22 | F23: 公共 | G23: 012343 | H23: 北海道 | I23: 北広島市 | J23: =IF(千円単!J23="","",ROUND(千円単!J23/1000,0)) -> 2276 | K23: =IF(千円単!K23="","",ROUND(千円単!K23/1000,0)) -> 791 | L23: =IF(千円単!L23="","",ROUND(千円単!L23/1000,0)) -> 453 | M23: =IF(千円単!M23="","",ROUND(千円単!M23/1000,0)) -> 2253 | N23: =IF(千円単!N23="","",ROUND(千円単!N23/1000,0)) -> 121 | O23: =IF(千円単!O23="","",ROUND(千円単!O23/1000,0)) -> 1463 | P23: =IF(千円単!P23="","",ROUND(千円単!P23/1000,0)) -> 79 | Q23: =IF(千円単!Q23="","",ROUND(千円単!Q23/1000,0)) -> 24 | R23: =IF(千円単!R23="","",ROUND(千円単!R23/1000,0)) -> 658 | S23: =IF(千円単!S23="","",ROUND(千円単!S23/1000,0)) -> 388 | T23: =IF(千円単!T23="","",ROUND(千円単!T23/1000,0)) -> 0 | U23: =IF(千円単!U23="","",ROUND(千円単!U23/1000,0)) -> 1248 | V23: =IF(千円単!V23="","",ROUND(千円単!V23/1000,0)) -> 551 | W23: =IF(千円単!W23="","",ROUND(千円単!W23/1000,0)) -> 695 | X23: =IF(千円単!X23="","",ROUND(千円単!X23/1000,0)) -> -590 | Y23: =IF(千円単!Y23="","",ROUND(千円単!Y23/1000,0)) -> 24
A24: 2019 | B24: 46 | C24: 17 | D24: 1 | E24: 23 | F24: 公共 | G24: 012351 | H24: 北海道 | I24: 石狩市 | J24: =IF(千円単!J24="","",ROUND(千円単!J24/1000,0)) -> 1369 | K24: =IF(千円単!K24="","",ROUND(千円単!K24/1000,0)) -> 588 | L24: =IF(千円単!L24="","",ROUND(千円単!L24/1000,0)) -> 455 | M24: =IF(千円単!M24="","",ROUND(千円単!M24/1000,0)) -> 1296 | N24: =IF(千円単!N24="","",ROUND(千円単!N24/1000,0)) -> 148 | O24: =IF(千円単!O24="","",ROUND(千円単!O24/1000,0)) -> 786 | P24: =IF(千円単!P24="","",ROUND(千円単!P24/1000,0)) -> 64 | Q24: =IF(千円単!Q24="","",ROUND(千円単!Q24/1000,0)) -> 74 | R24: =IF(千円単!R24="","",ROUND(千円単!R24/1000,0)) -> 597 | S24: =IF(千円単!S24="","",ROUND(千円単!S24/1000,0)) -> 444 | T24: =IF(千円単!T24="","",ROUND(千円単!T24/1000,0)) -> 44 | U24: =IF(千円単!U24="","",ROUND(千円単!U24/1000,0)) -> 1077 | V24: =IF(千円単!V24="","",ROUND(千円単!V24/1000,0)) -> 300 | W24: =IF(千円単!W24="","",ROUND(千円単!W24/1000,0)) -> 777 | X24: =IF(千円単!X24="","",ROUND(千円単!X24/1000,0)) -> -480 | Y24: =IF(千円単!Y24="","",ROUND(千円単!Y24/1000,0)) -> 74
A25: 2019 | B25: 46 | C25: 17 | D25: 1 | E25: 24 | F25: 公共 | G25: 012360 | H25: 北海道 | I25: 北斗市 | J25: =IF(千円単!J25="","",ROUND(千円単!J25/1000,0)) -> 972 | K25: =IF(千円単!K25="","",ROUND(千円単!K25/1000,0)) -> 584 | L25: =IF(千円単!L25="","",ROUND(千円単!L25/1000,0)) -> 93 | M25: =IF(千円単!M25="","",ROUND(千円単!M25/1000,0)) -> 905 | N25: =IF(千円単!N25="","",ROUND(千円単!N25/1000,0)) -> 108 | O25: =IF(千円単!O25="","",ROUND(千円単!O25/1000,0)) -> 562 | P25: =IF(千円単!P25="","",ROUND(千円単!P25/1000,0)) -> 35 | Q25: =IF(千円単!Q25="","",ROUND(千円単!Q25/1000,0)) -> 66 | R25: =IF(千円単!R25="","",ROUND(千円単!R25/1000,0)) -> 310 | S25: =IF(千円単!S25="","",ROUND(千円単!S25/1000,0)) -> 52 | T25: =IF(千円単!T25="","",ROUND(千円単!T25/1000,0)) -> 0 | U25: =IF(千円単!U25="","",ROUND(千円単!U25/1000,0)) -> 587 | V25: =IF(千円単!V25="","",ROUND(千円単!V25/1000,0)) -> 116 | W25: =IF(千円単!W25="","",ROUND(千円単!W25/1000,0)) -> 471 | X25: =IF(千円単!X25="","",ROUND(千円単!X25/1000,0)) -> -277 | Y25: =IF(千円単!Y25="","",ROUND(千円単!Y25/1000,0)) -> 66
A26: 2019 | B26: 46 | C26: 17 | D26: 1 | E26: 25 | F26: 公共 | G26: 013455 | H26: 北海道 | I26: 森町 | J26: =IF(千円単!J26="","",ROUND(千円単!J26/1000,0)) -> 470 | K26: =IF(千円単!K26="","",ROUND(千円単!K26/1000,0)) -> 84 | L26: =IF(千円単!L26="","",ROUND(千円単!L26/1000,0)) -> 240 | M26: =IF(千円単!M26="","",ROUND(千円単!M26/1000,0)) -> 460 | N26: =IF(千円単!N26="","",ROUND(千円単!N26/1000,0)) -> 64 | O26: =IF(千円単!O26="","",ROUND(千円単!O26/1000,0)) -> 272 | P26: =IF(千円単!P26="","",ROUND(千円単!P26/1000,0)) -> 17 | Q26: =IF(千円単!Q26="","",ROUND(千円単!Q26/1000,0)) -> 9 | R26: =IF(千円単!R26="","",ROUND(千円単!R26/1000,0)) -> 261 | S26: =IF(千円単!S26="","",ROUND(千円単!S26/1000,0)) -> 89 | T26: =IF(千円単!T26="","",ROUND(千円単!T26/1000,0)) -> 0 | U26: =IF(千円単!U26="","",ROUND(千円単!U26/1000,0)) -> 402 | V26: =IF(千円単!V26="","",ROUND(千円単!V26/1000,0)) -> 180 | W26: =IF(千円単!W26="","",ROUND(千円単!W26/1000,0)) -> 222 | X26: =IF(千円単!X26="","",ROUND(千円単!X26/1000,0)) -> -142 | Y26: =IF(千円単!Y26="","",ROUND(千円単!Y26/1000,0)) -> 9
A27: 2019 | B27: 46 | C27: 17 | D27: 1 | E27: 26 | F27: 公共 | G27: 014028 | H27: 北海道 | I27: 岩内町 | J27: =IF(千円単!J27="","",ROUND(千円単!J27/1000,0)) -> 506 | K27: =IF(千円単!K27="","",ROUND(千円単!K27/1000,0)) -> 69 | L27: =IF(千円単!L27="","",ROUND(千円単!L27/1000,0)) -> 228 | M27: =IF(千円単!M27="","",ROUND(千円単!M27/1000,0)) -> 506 | N27: =IF(千円単!N27="","",ROUND(千円単!N27/1000,0)) -> 55 | O27: =IF(千円単!O27="","",ROUND(千円単!O27/1000,0)) -> 334 | P27: =IF(千円単!P27="","",ROUND(千円単!P27/1000,0)) -> 16 | Q27: =IF(千円単!Q27="","",ROUND(千円単!Q27/1000,0)) -> 0 | R27: =IF(千円単!R27="","",ROUND(千円単!R27/1000,0)) -> 863 | S27: =IF(千円単!S27="","",ROUND(千円単!S27/1000,0)) -> 302 | T27: =IF(千円単!T27="","",ROUND(千円単!T27/1000,0)) -> 0 | U27: =IF(千円単!U27="","",ROUND(千円単!U27/1000,0)) -> 1032 | V27: =IF(千円単!V27="","",ROUND(千円単!V27/1000,0)) -> 665 | W27: =IF(千円単!W27="","",ROUND(千円単!W27/1000,0)) -> 368 | X27: =IF(千円単!X27="","",ROUND(千円単!X27/1000,0)) -> -169 | Y27: =IF(千円単!Y27="","",ROUND(千円単!Y27/1000,0)) -> 0
A28: 2019 | B28: 46 | C28: 17 | D28: 1 | E28: 27 | F28: 公共 | G28: 014290 | H28: 北海道 | I28: 栗山町 | J28: =IF(千円単!J28="","",ROUND(千円単!J28/1000,0)) -> 570 | K28: =IF(千円単!K28="","",ROUND(千円単!K28/1000,0)) -> 178 | L28: =IF(千円単!L28="","",ROUND(千円単!L28/1000,0)) -> 245 | M28: =IF(千円単!M28="","",ROUND(千円単!M28/1000,0)) -> 443 | N28: =IF(千円単!N28="","",ROUND(千円単!N28/1000,0)) -> 28 | O28: =IF(千円単!O28="","",ROUND(千円単!O28/1000,0)) -> 275 | P28: =IF(千円単!P28="","",ROUND(千円単!P28/1000,0)) -> 17 | Q28: =IF(千円単!Q28="","",ROUND(千円単!Q28/1000,0)) -> 127 | R28: =IF(千円単!R28="","",ROUND(千円単!R28/1000,0)) -> 175 | S28: =IF(千円単!S28="","",ROUND(千円単!S28/1000,0)) -> 82 | T28: =IF(千円単!T28="","",ROUND(千円単!T28/1000,0)) -> 54 | U28: =IF(千円単!U28="","",ROUND(千円単!U28/1000,0)) -> 449 | V28: =IF(千円単!V28="","",ROUND(千円単!V28/1000,0)) -> 81 | W28: =IF(千円単!W28="","",ROUND(千円単!W28/1000,0)) -> 368 | X28: =IF(千円単!X28="","",ROUND(千円単!X28/1000,0)) -> -273 | Y28: =IF(千円単!Y28="","",ROUND(千円単!Y28/1000,0)) -> 127
A29: 2019 | B29: 46 | C29: 17 | D29: 1 | E29: 28 | F29: 公共 | G29: 014532 | H29: 北海道 | I29: 東神楽町 | J29: =IF(千円単!J29="","",ROUND(千円単!J29/1000,0)) -> 196 | K29: =IF(千円単!K29="","",ROUND(千円単!K29/1000,0)) -> 113 | L29: =IF(千円単!L29="","",ROUND(千円単!L29/1000,0)) -> 21 | M29: =IF(千円単!M29="","",ROUND(千円単!M29/1000,0)) -> 252 | N29: =IF(千円単!N29="","",ROUND(千円単!N29/1000,0)) -> 16 | O29: =IF(千円単!O29="","",ROUND(千円単!O29/1000,0)) -> 127 | P29: =IF(千円単!P29="","",ROUND(千円単!P29/1000,0)) -> 14 | Q29: =IF(千円単!Q29="","",ROUND(千円単!Q29/1000,0)) -> -56 | R29: =IF(千円単!R29="","",ROUND(千円単!R29/1000,0)) -> 150 | S29: =IF(千円単!S29="","",ROUND(千円単!S29/1000,0)) -> 28 | T29: =IF(千円単!T29="","",ROUND(千円単!T29/1000,0)) -> 113 | U29: =IF(千円単!U29="","",ROUND(千円単!U29/1000,0)) -> 156 | V29: =IF(千円単!V29="","",ROUND(千円単!V29/1000,0)) -> 28 | W29: =IF(千円単!W29="","",ROUND(千円単!W29/1000,0)) -> 128 | X29: =IF(千円単!X29="","",ROUND(千円単!X29/1000,0)) -> -6 | Y29: =IF(千円単!Y29="","",ROUND(千円単!Y29/1000,0)) -> -56
A30: 2019 | B30: 46 | C30: 17 | D30: 1 | E30: 29 | F30: 公共 | G30: 015148 | H30: 北海道 | I30: 枝幸町 | J30: =IF(千円単!J30="","",ROUND(千円単!J30/1000,0)) -> 246 | K30: =IF(千円単!K30="","",ROUND(千円単!K30/1000,0)) -> 64 | L30: =IF(千円単!L30="","",ROUND(千円単!L30/1000,0)) -> 113 | M30: =IF(千円単!M30="","",ROUND(千円単!M30/1000,0)) -> 242 | N30: =IF(千円単!N30="","",ROUND(千円単!N30/1000,0)) -> 17 | O30: =IF(千円単!O30="","",ROUND(千円単!O30/1000,0)) -> 154 | P30: =IF(千円単!P30="","",ROUND(千円単!P30/1000,0)) -> 8 | Q30: =IF(千円単!Q30="","",ROUND(千円単!Q30/1000,0)) -> 5 | R30: =IF(千円単!R30="","",ROUND(千円単!R30/1000,0)) -> 96 | S30: =IF(千円単!S30="","",ROUND(千円単!S30/1000,0)) -> 22 | T30: =IF(千円単!T30="","",ROUND(千円単!T30/1000,0)) -> 22 | U30: =IF(千円単!U30="","",ROUND(千円単!U30/1000,0)) -> 182 | V30: =IF(千円単!V30="","",ROUND(千円単!V30/1000,0)) -> 64 | W30: =IF(千円単!W30="","",ROUND(千円単!W30/1000,0)) -> 118 | X30: =IF(千円単!X30="","",ROUND(千円単!X30/1000,0)) -> -86 | Y30: =IF(千円単!Y30="","",ROUND(千円単!Y30/1000,0)) -> 5
A31: 2019 | B31: 46 | C31: 17 | D31: 1 | E31: 30 | F31: 公共 | G31: 015555 | H31: 北海道 | I31: 遠軽町 | J31: =IF(千円単!J31="","",ROUND(千円単!J31/1000,0)) -> 819 | K31: =IF(千円単!K31="","",ROUND(千円単!K31/1000,0)) -> 228 | L31: =IF(千円単!L31="","",ROUND(千円単!L31/1000,0)) -> 379 | M31: =IF(千円単!M31="","",ROUND(千円単!M31/1000,0)) -> 713 | N31: =IF(千円単!N31="","",ROUND(千円単!N31/1000,0)) -> 62 | O31: =IF(千円単!O31="","",ROUND(千円単!O31/1000,0)) -> 409 | P31: =IF(千円単!P31="","",ROUND(千円単!P31/1000,0)) -> 40 | Q31: =IF(千円単!Q31="","",ROUND(千円単!Q31/1000,0)) -> 106 | R31: =IF(千円単!R31="","",ROUND(千円単!R31/1000,0)) -> 352 | S31: =IF(千円単!S31="","",ROUND(千円単!S31/1000,0)) -> 157 | T31: =IF(千円単!T31="","",ROUND(千円単!T31/1000,0)) -> 49 | U31: =IF(千円単!U31="","",ROUND(千円単!U31/1000,0)) -> 662 | V31: =IF(千円単!V31="","",ROUND(千円単!V31/1000,0)) -> 308 | W31: =IF(千円単!W31="","",ROUND(千円単!W31/1000,0)) -> 354 | X31: =IF(千円単!X31="","",ROUND(千円単!X31/1000,0)) -> -310 | Y31: =IF(千円単!Y31="","",ROUND(千円単!Y31/1000,0)) -> 106
A32: 2019 | B32: 46 | C32: 17 | D32: 1 | E32: 31 | F32: 公共 | G32: 015865 | H32: 北海道 | I32: むかわ町 | J32: =IF(千円単!J32="","",ROUND(千円単!J32/1000,0)) -> 325 | K32: =IF(千円単!K32="","",ROUND(千円単!K32/1000,0)) -> 54 | L32: =IF(千円単!L32="","",ROUND(千円単!L32/1000,0)) -> 125 | M32: =IF(千円単!M32="","",ROUND(千円単!M32/1000,0)) -> 321 | N32: =IF(千円単!N32="","",ROUND(千円単!N32/1000,0)) -> 23 | O32: =IF(千円単!O32="","",ROUND(千円単!O32/1000,0)) -> 118 | P32: =IF(千円単!P32="","",ROUND(千円単!P32/1000,0)) -> 8 | Q32: =IF(千円単!Q32="","",ROUND(千円単!Q32/1000,0)) -> 4 | R32: =IF(千円単!R32="","",ROUND(千円単!R32/1000,0)) -> 340 | S32: =IF(千円単!S32="","",ROUND(千円単!S32/1000,0)) -> 90 | T32: =IF(千円単!T32="","",ROUND(千円単!T32/1000,0)) -> 0 | U32: =IF(千円単!U32="","",ROUND(千円単!U32/1000,0)) -> 417 | V32: =IF(千円単!V32="","",ROUND(千円単!V32/1000,0)) -> 276 | W32: =IF(千円単!W32="","",ROUND(千円単!W32/1000,0)) -> 129 | X32: =IF(千円単!X32="","",ROUND(千円単!X32/1000,0)) -> -77 | Y32: =IF(千円単!Y32="","",ROUND(千円単!Y32/1000,0)) -> 4
A33: 2019 | B33: 46 | C33: 17 | D33: 1 | E33: 32 | F33: 公共 | G33: 016314 | H33: 北海道 | I33: 音更町 | J33: =IF(千円単!J33="","",ROUND(千円単!J33/1000,0)) -> 1115 | K33: =IF(千円単!K33="","",ROUND(千円単!K33/1000,0)) -> 579 | L33: =IF(千円単!L33="","",ROUND(千円単!L33/1000,0)) -> 264 | M33: =IF(千円単!M33="","",ROUND(千円単!M33/1000,0)) -> 931 | N33: =IF(千円単!N33="","",ROUND(千円単!N33/1000,0)) -> 114 | O33: =IF(千円単!O33="","",ROUND(千円単!O33/1000,0)) -> 565 | P33: =IF(千円単!P33="","",ROUND(千円単!P33/1000,0)) -> 5 | Q33: =IF(千円単!Q33="","",ROUND(千円単!Q33/1000,0)) -> 184 | R33: =IF(千円単!R33="","",ROUND(千円単!R33/1000,0)) -> 583 | S33: =IF(千円単!S33="","",ROUND(千円単!S33/1000,0)) -> 337 | T33: =IF(千円単!T33="","",ROUND(千円単!T33/1000,0)) -> 77 | U33: =IF(千円単!U33="","",ROUND(千円単!U33/1000,0)) -> 1124 | V33: =IF(千円単!V33="","",ROUND(千円単!V33/1000,0)) -> 433 | W33: =IF(千円単!W33="","",ROUND(千円単!W33/1000,0)) -> 691 | X33: =IF(千円単!X33="","",ROUND(千円単!X33/1000,0)) -> -541 | Y33: =IF(千円単!Y33="","",ROUND(千円単!Y33/1000,0)) -> 184
A34: 2019 | B34: 46 | C34: 17 | D34: 1 | E34: 33 | F34: 公共 | G34: 016365 | H34: 北海道 | I34: 清水町 | J34: =IF(千円単!J34="","",ROUND(千円単!J34/1000,0)) -> 237 | K34: =IF(千円単!K34="","",ROUND(千円単!K34/1000,0)) -> 88 | L34: =IF(千円単!L34="","",ROUND(千円単!L34/1000,0)) -> 89 | M34: =IF(千円単!M34="","",ROUND(千円単!M34/1000,0)) -> 208 | N34: =IF(千円単!N34="","",ROUND(千円単!N34/1000,0)) -> 5 | O34: =IF(千円単!O34="","",ROUND(千円単!O34/1000,0)) -> 124 | P34: =IF(千円単!P34="","",ROUND(千円単!P34/1000,0)) -> 14 | Q34: =IF(千円単!Q34="","",ROUND(千円単!Q34/1000,0)) -> 29 | R34: =IF(千円単!R34="","",ROUND(千円単!R34/1000,0)) -> 21 | S34: =IF(千円単!S34="","",ROUND(千円単!S34/1000,0)) -> 0 | T34: =IF(千円単!T34="","",ROUND(千円単!T34/1000,0)) -> 6 | U34: =IF(千円単!U34="","",ROUND(千円単!U34/1000,0)) -> 89 | V34: =IF(千円単!V34="","",ROUND(千円単!V34/1000,0)) -> 14 | W34: =IF(千円単!W34="","",ROUND(千円単!W34/1000,0)) -> 75 | X34: =IF(千円単!X34="","",ROUND(千円単!X34/1000,0)) -> -67 | Y34: =IF(千円単!Y34="","",ROUND(千円単!Y34/1000,0)) -> 29
A35: 2019 | B35: 46 | C35: 17 | D35: 1 | E35: 34 | F35: 公共 | G35: 016446 | H35: 北海道 | I35: 池田町 | J35: =IF(千円単!J35="","",ROUND(千円単!J35/1000,0)) -> 347 | K35: =IF(千円単!K35="","",ROUND(千円単!K35/1000,0)) -> 97 | L35: =IF(千円単!L35="","",ROUND(千円単!L35/1000,0)) -> 113 | M35: =IF(千円単!M35="","",ROUND(千円単!M35/1000,0)) -> 330 | N35: =IF(千円単!N35="","",ROUND(千円単!N35/1000,0)) -> 18 | O35: =IF(千円単!O35="","",ROUND(千円単!O35/1000,0)) -> 197 | P35: =IF(千円単!P35="","",ROUND(千円単!P35/1000,0)) -> 42 | Q35: =IF(千円単!Q35="","",ROUND(千円単!Q35/1000,0)) -> 18 | R35: =IF(千円単!R35="","",ROUND(千円単!R35/1000,0)) -> 129 | S35: =IF(千円単!S35="","",ROUND(千円単!S35/1000,0)) -> 47 | T35: =IF(千円単!T35="","",ROUND(千円単!T35/1000,0)) -> 6 | U35: =IF(千円単!U35="","",ROUND(千円単!U35/1000,0)) -> 216 | V35: =IF(千円単!V35="","",ROUND(千円単!V35/1000,0)) -> 51 | W35: =IF(千円単!W35="","",ROUND(千円単!W35/1000,0)) -> 165 | X35: =IF(千円単!X35="","",ROUND(千円単!X35/1000,0)) -> -87 | Y35: =IF(千円単!Y35="","",ROUND(千円単!Y35/1000,0)) -> 18
A36: 2019 | B36: 46 | C36: 17 | D36: 1 | E36: 35 | F36: 公共 | G36: 022021 | H36: 青森県 | I36: 弘前市 | J36: =IF(千円単!J36="","",ROUND(千円単!J36/1000,0)) -> 4774 | K36: =IF(千円単!K36="","",ROUND(千円単!K36/1000,0)) -> 2785 | L36: =IF(千円単!L36="","",ROUND(千円単!L36/1000,0)) -> 1239 | M36: =IF(千円単!M36="","",ROUND(千円単!M36/1000,0)) -> 4086 | N36: =IF(千円単!N36="","",ROUND(千円単!N36/1000,0)) -> 468 | O36: =IF(千円単!O36="","",ROUND(千円単!O36/1000,0)) -> 2092 | P36: =IF(千円単!P36="","",ROUND(千円単!P36/1000,0)) -> 193 | Q36: =IF(千円単!Q36="","",ROUND(千円単!Q36/1000,0)) -> 688 | R36: =IF(千円単!R36="","",ROUND(千円単!R36/1000,0)) -> 1444 | S36: =IF(千円単!S36="","",ROUND(千円単!S36/1000,0)) -> 1089 | T36: =IF(千円単!T36="","",ROUND(千円単!T36/1000,0)) -> 0 | U36: =IF(千円単!U36="","",ROUND(千円単!U36/1000,0)) -> 3403 | V36: =IF(千円単!V36="","",ROUND(千円単!V36/1000,0)) -> 289 | W36: =IF(千円単!W36="","",ROUND(千円単!W36/1000,0)) -> 3114 | X36: =IF(千円単!X36="","",ROUND(千円単!X36/1000,0)) -> -1960 | Y36: =IF(千円単!Y36="","",ROUND(千円単!Y36/1000,0)) -> 688
A37: 2019 | B37: 46 | C37: 17 | D37: 1 | E37: 36 | F37: 公共 | G37: 022047 | H37: 青森県 | I37: 黒石市 | J37: =IF(千円単!J37="","",ROUND(千円単!J37/1000,0)) -> 704 | K37: =IF(千円単!K37="","",ROUND(千円単!K37/1000,0)) -> 326 | L37: =IF(千円単!L37="","",ROUND(千円単!L37/1000,0)) -> 73 | M37: =IF(千円単!M37="","",ROUND(千円単!M37/1000,0)) -> 570 | N37: =IF(千円単!N37="","",ROUND(千円単!N37/1000,0)) -> 87 | O37: =IF(千円単!O37="","",ROUND(千円単!O37/1000,0)) -> 305 | P37: =IF(千円単!P37="","",ROUND(千円単!P37/1000,0)) -> 31 | Q37: =IF(千円単!Q37="","",ROUND(千円単!Q37/1000,0)) -> 134 | R37: =IF(千円単!R37="","",ROUND(千円単!R37/1000,0)) -> 638 | S37: =IF(千円単!S37="","",ROUND(千円単!S37/1000,0)) -> 333 | T37: =IF(千円単!T37="","",ROUND(千円単!T37/1000,0)) -> 280 | U37: =IF(千円単!U37="","",ROUND(千円単!U37/1000,0)) -> 743 | V37: =IF(千円単!V37="","",ROUND(千円単!V37/1000,0)) -> 105 | W37: =IF(千円単!W37="","",ROUND(千円単!W37/1000,0)) -> 638 | X37: =IF(千円単!X37="","",ROUND(千円単!X37/1000,0)) -> -105 | Y37: =IF(千円単!Y37="","",ROUND(千円単!Y37/1000,0)) -> 134
A38: 2019 | B38: 46 | C38: 17 | D38: 1 | E38: 37 | F38: 公共 | G38: 022055 | H38: 青森県 | I38: 五所川原市 | J38: =IF(千円単!J38="","",ROUND(千円単!J38/1000,0)) -> 644 | K38: =IF(千円単!K38="","",ROUND(千円単!K38/1000,0)) -> 359 | L38: =IF(千円単!L38="","",ROUND(千円単!L38/1000,0)) -> 83 | M38: =IF(千円単!M38="","",ROUND(千円単!M38/1000,0)) -> 756 | N38: =IF(千円単!N38="","",ROUND(千円単!N38/1000,0)) -> 79 | O38: =IF(千円単!O38="","",ROUND(千円単!O38/1000,0)) -> 429 | P38: =IF(千円単!P38="","",ROUND(千円単!P38/1000,0)) -> 24 | Q38: =IF(千円単!Q38="","",ROUND(千円単!Q38/1000,0)) -> -112 | R38: =IF(千円単!R38="","",ROUND(千円単!R38/1000,0)) -> 740 | S38: =IF(千円単!S38="","",ROUND(千円単!S38/1000,0)) -> 344 | T38: =IF(千円単!T38="","",ROUND(千円単!T38/1000,0)) -> 0 | U38: =IF(千円単!U38="","",ROUND(千円単!U38/1000,0)) -> 942 | V38: =IF(千円単!V38="","",ROUND(千円単!V38/1000,0)) -> 483 | W38: =IF(千円単!W38="","",ROUND(千円単!W38/1000,0)) -> 459 | X38: =IF(千円単!X38="","",ROUND(千円単!X38/1000,0)) -> -202 | Y38: =IF(千円単!Y38="","",ROUND(千円単!Y38/1000,0)) -> -112
A39: 2019 | B39: 46 | C39: 17 | D39: 1 | E39: 38 | F39: 公共 | G39: 022063 | H39: 青森県 | I39: 十和田市 | J39: =IF(千円単!J39="","",ROUND(千円単!J39/1000,0)) -> 1602 | K39: =IF(千円単!K39="","",ROUND(千円単!K39/1000,0)) -> 829 | L39: =IF(千円単!L39="","",ROUND(千円単!L39/1000,0)) -> 349 | M39: =IF(千円単!M39="","",ROUND(千円単!M39/1000,0)) -> 1536 | N39: =IF(千円単!N39="","",ROUND(千円単!N39/1000,0)) -> 205 | O39: =IF(千円単!O39="","",ROUND(千円単!O39/1000,0)) -> 909 | P39: =IF(千円単!P39="","",ROUND(千円単!P39/1000,0)) -> 70 | Q39: =IF(千円単!Q39="","",ROUND(千円単!Q39/1000,0)) -> 66 | R39: =IF(千円単!R39="","",ROUND(千円単!R39/1000,0)) -> 1248 | S39: =IF(千円単!S39="","",ROUND(千円単!S39/1000,0)) -> 788 | T39: =IF(千円単!T39="","",ROUND(千円単!T39/1000,0)) -> 137 | U39: =IF(千円単!U39="","",ROUND(千円単!U39/1000,0)) -> 1887 | V39: =IF(千円単!V39="","",ROUND(千円単!V39/1000,0)) -> 764 | W39: =IF(千円単!W39="","",ROUND(千円単!W39/1000,0)) -> 1122 | X39: =IF(千円単!X39="","",ROUND(千円単!X39/1000,0)) -> -639 | Y39: =IF(千円単!Y39="","",ROUND(千円単!Y39/1000,0)) -> 66
A40: 2019 | B40: 46 | C40: 17 | D40: 1 | E40: 39 | F40: 公共 | G40: 022101 | H40: 青森県 | I40: 平川市 | J40: =IF(千円単!J40="","",ROUND(千円単!J40/1000,0)) -> 663 | K40: =IF(千円単!K40="","",ROUND(千円単!K40/1000,0)) -> 300 | L40: =IF(千円単!L40="","",ROUND(千円単!L40/1000,0)) -> 243 | M40: =IF(千円単!M40="","",ROUND(千円単!M40/1000,0)) -> 568 | N40: =IF(千円単!N40="","",ROUND(千円単!N40/1000,0)) -> 79 | O40: =IF(千円単!O40="","",ROUND(千円単!O40/1000,0)) -> 330 | P40: =IF(千円単!P40="","",ROUND(千円単!P40/1000,0)) -> 19 | Q40: =IF(千円単!Q40="","",ROUND(千円単!Q40/1000,0)) -> 95 | R40: =IF(千円単!R40="","",ROUND(千円単!R40/1000,0)) -> 125 | S40: =IF(千円単!S40="","",ROUND(千円単!S40/1000,0)) -> 38 | T40: =IF(千円単!T40="","",ROUND(千円単!T40/1000,0)) -> 0 | U40: =IF(千円単!U40="","",ROUND(千円単!U40/1000,0)) -> 431 | V40: =IF(千円単!V40="","",ROUND(千円単!V40/1000,0)) -> 38 | W40: =IF(千円単!W40="","",ROUND(千円単!W40/1000,0)) -> 392 | X40: =IF(千円単!X40="","",ROUND(千円単!X40/1000,0)) -> -306 | Y40: =IF(千円単!Y40="","",ROUND(千円単!Y40/1000,0)) -> 95
A41: 2019 | B41: 46 | C41: 17 | D41: 1 | E41: 40 | F41: 公共 | G41: 023612 | H41: 青森県 | I41: 藤崎町 | J41: =IF(千円単!J41="","",ROUND(千円単!J41/1000,0)) -> 239 | K41: =IF(千円単!K41="","",ROUND(千円単!K41/1000,0)) -> 87 | L41: =IF(千円単!L41="","",ROUND(千円単!L41/1000,0)) -> 77 | M41: =IF(千円単!M41="","",ROUND(千円単!M41/1000,0)) -> 238 | N41: =IF(千円単!N41="","",ROUND(千円単!N41/1000,0)) -> 33 | O41: =IF(千円単!O41="","",ROUND(千円単!O41/1000,0)) -> 163 | P41: =IF(千円単!P41="","",ROUND(千円単!P41/1000,0)) -> 0 | Q41: =IF(千円単!Q41="","",ROUND(千円単!Q41/1000,0)) -> 1 | R41: =IF(千円単!R41="","",ROUND(千円単!R41/1000,0)) -> 356 | S41: =IF(千円単!S41="","",ROUND(千円単!S41/1000,0)) -> 187 | T41: =IF(千円単!T41="","",ROUND(千円単!T41/1000,0)) -> 0 | U41: =IF(千円単!U41="","",ROUND(千円単!U41/1000,0)) -> 451 | V41: =IF(千円単!V41="","",ROUND(千円単!V41/1000,0)) -> 236 | W41: =IF(千円単!W41="","",ROUND(千円単!W41/1000,0)) -> 215 | X41: =IF(千円単!X41="","",ROUND(千円単!X41/1000,0)) -> -95 | Y41: =IF(千円単!Y41="","",ROUND(千円単!Y41/1000,0)) -> 1
A42: 2019 | B42: 46 | C42: 17 | D42: 1 | E42: 41 | F42: 公共 | G42: 023671 | H42: 青森県 | I42: 田舎館村 | J42: =IF(千円単!J42="","",ROUND(千円単!J42/1000,0)) -> 287 | K42: =IF(千円単!K42="","",ROUND(千円単!K42/1000,0)) -> 106 | L42: =IF(千円単!L42="","",ROUND(千円単!L42/1000,0)) -> 79 | M42: =IF(千円単!M42="","",ROUND(千円単!M42/1000,0)) -> 221 | N42: =IF(千円単!N42="","",ROUND(千円単!N42/1000,0)) -> 40 | O42: =IF(千円単!O42="","",ROUND(千円単!O42/1000,0)) -> 127 | P42: =IF(千円単!P42="","",ROUND(千円単!P42/1000,0)) -> 6 | Q42: =IF(千円単!Q42="","",ROUND(千円単!Q42/1000,0)) -> 66 | R42: =IF(千円単!R42="","",ROUND(千円単!R42/1000,0)) -> 132 | S42: =IF(千円単!S42="","",ROUND(千円単!S42/1000,0)) -> 74 | T42: =IF(千円単!T42="","",ROUND(千円単!T42/1000,0)) -> 57 | U42: =IF(千円単!U42="","",ROUND(千円単!U42/1000,0)) -> 219 | V42: =IF(千円単!V42="","",ROUND(千円単!V42/1000,0)) -> 5 | W42: =IF(千円単!W42="","",ROUND(千円単!W42/1000,0)) -> 214 | X42: =IF(千円単!X42="","",ROUND(千円単!X42/1000,0)) -> -87 | Y42: =IF(千円単!Y42="","",ROUND(千円単!Y42/1000,0)) -> 66
A43: 2019 | B43: 46 | C43: 17 | D43: 1 | E43: 42 | F43: 公共 | G43: 023817 | H43: 青森県 | I43: 板柳町 | J43: =IF(千円単!J43="","",ROUND(千円単!J43/1000,0)) -> 298 | K43: =IF(千円単!K43="","",ROUND(千円単!K43/1000,0)) -> 81 | L43: =IF(千円単!L43="","",ROUND(千円単!L43/1000,0)) -> 74 | M43: =IF(千円単!M43="","",ROUND(千円単!M43/1000,0)) -> 263 | N43: =IF(千円単!N43="","",ROUND(千円単!N43/1000,0)) -> 53 | O43: =IF(千円単!O43="","",ROUND(千円単!O43/1000,0)) -> 157 | P43: =IF(千円単!P43="","",ROUND(千円単!P43/1000,0)) -> 8 | Q43: =IF(千円単!Q43="","",ROUND(千円単!Q43/1000,0)) -> 35 | R43: =IF(千円単!R43="","",ROUND(千円単!R43/1000,0)) -> 325 | S43: =IF(千円単!S43="","",ROUND(千円単!S43/1000,0)) -> 176 | T43: =IF(千円単!T43="","",ROUND(千円単!T43/1000,0)) -> 77 | U43: =IF(千円単!U43="","",ROUND(千円単!U43/1000,0)) -> 399 | V43: =IF(千円単!V43="","",ROUND(千円単!V43/1000,0)) -> 179 | W43: =IF(千円単!W43="","",ROUND(千円単!W43/1000,0)) -> 219 | X43: =IF(千円単!X43="","",ROUND(千円単!X43/1000,0)) -> -73 | Y43: =IF(千円単!Y43="","",ROUND(千円単!Y43/1000,0)) -> 35
A44: 2019 | B44: 46 | C44: 17 | D44: 1 | E44: 43 | F44: 公共 | G44: 023841 | H44: 青森県 | I44: 鶴田町 | J44: =IF(千円単!J44="","",ROUND(千円単!J44/1000,0)) -> 388 | K44: =IF(千円単!K44="","",ROUND(千円単!K44/1000,0)) -> 56 | L44: =IF(千円単!L44="","",ROUND(千円単!L44/1000,0)) -> 195 | M44: =IF(千円単!M44="","",ROUND(千円単!M44/1000,0)) -> 318 | N44: =IF(千円単!N44="","",ROUND(千円単!N44/1000,0)) -> 53 | O44: =IF(千円単!O44="","",ROUND(千円単!O44/1000,0)) -> 229 | P44: =IF(千円単!P44="","",ROUND(千円単!P44/1000,0)) -> 5 | Q44: =IF(千円単!Q44="","",ROUND(千円単!Q44/1000,0)) -> 70 | R44: =IF(千円単!R44="","",ROUND(千円単!R44/1000,0)) -> 7 | S44: =IF(千円単!S44="","",ROUND(千円単!S44/1000,0)) -> 0 | T44: =IF(千円単!T44="","",ROUND(千円単!T44/1000,0)) -> 5 | U44: =IF(千円単!U44="","",ROUND(千円単!U44/1000,0)) -> 211 | V44: =IF(千円単!V44="","",ROUND(千円単!V44/1000,0)) -> 2 | W44: =IF(千円単!W44="","",ROUND(千円単!W44/1000,0)) -> 210 | X44: =IF(千円単!X44="","",ROUND(千円単!X44/1000,0)) -> -205 | Y44: =IF(千円単!Y44="","",ROUND(千円単!Y44/1000,0)) -> 70
A45: 2019 | B45: 46 | C45: 17 | D45: 1 | E45: 44 | F45: 公共 | G45: 024112 | H45: 青森県 | I45: 六ケ所村 | J45: =IF(千円単!J45="","",ROUND(千円単!J45/1000,0)) -> 669 | K45: =IF(千円単!K45="","",ROUND(千円単!K45/1000,0)) -> 44 | L45: =IF(千円単!L45="","",ROUND(千円単!L45/1000,0)) -> 372 | M45: =IF(千円単!M45="","",ROUND(千円単!M45/1000,0)) -> 668 | N45: =IF(千円単!N45="","",ROUND(千円単!N45/1000,0)) -> 70 | O45: =IF(千円単!O45="","",ROUND(千円単!O45/1000,0)) -> 417 | P45: =IF(千円単!P45="","",ROUND(千円単!P45/1000,0)) -> 19 | Q45: =IF(千円単!Q45="","",ROUND(千円単!Q45/1000,0)) -> 1 | R45: =IF(千円単!R45="","",ROUND(千円単!R45/1000,0)) -> 252 | S45: =IF(千円単!S45="","",ROUND(千円単!S45/1000,0)) -> 127 | T45: =IF(千円単!T45="","",ROUND(千円単!T45/1000,0)) -> 0 | U45: =IF(千円単!U45="","",ROUND(千円単!U45/1000,0)) -> 412 | V45: =IF(千円単!V45="","",ROUND(千円単!V45/1000,0)) -> 227 | W45: =IF(千円単!W45="","",ROUND(千円単!W45/1000,0)) -> 184 | X45: =IF(千円単!X45="","",ROUND(千円単!X45/1000,0)) -> -159 | Y45: =IF(千円単!Y45="","",ROUND(千円単!Y45/1000,0)) -> 1
A46: 2019 | B46: 46 | C46: 17 | D46: 1 | E46: 45 | F46: 公共 | G46: 032018 | H46: 岩手県 | I46: 盛岡市 | J46: =IF(千円単!J46="","",ROUND(千円単!J46/1000,0)) -> 8086 | K46: =IF(千円単!K46="","",ROUND(千円単!K46/1000,0)) -> 4275 | L46: =IF(千円単!L46="","",ROUND(千円単!L46/1000,0)) -> 2723 | M46: =IF(千円単!M46="","",ROUND(千円単!M46/1000,0)) -> 7339 | N46: =IF(千円単!N46="","",ROUND(千円単!N46/1000,0)) -> 712 | O46: =IF(千円単!O46="","",ROUND(千円単!O46/1000,0)) -> 4057 | P46: =IF(千円単!P46="","",ROUND(千円単!P46/1000,0)) -> 324 | Q46: =IF(千円単!Q46="","",ROUND(千円単!Q46/1000,0)) -> 748 | R46: =IF(千円単!R46="","",ROUND(千円単!R46/1000,0)) -> 2354 | S46: =IF(千円単!S46="","",ROUND(千円単!S46/1000,0)) -> 975 | T46: =IF(千円単!T46="","",ROUND(千円単!T46/1000,0)) -> 499 | U46: =IF(千円単!U46="","",ROUND(千円単!U46/1000,0)) -> 5512 | V46: =IF(千円単!V46="","",ROUND(千円単!V46/1000,0)) -> 2135 | W46: =IF(千円単!W46="","",ROUND(千円単!W46/1000,0)) -> 3374 | X46: =IF(千円単!X46="","",ROUND(千円単!X46/1000,0)) -> -3158 | Y46: =IF(千円単!Y46="","",ROUND(千円単!Y46/1000,0)) -> 748
A47: 2019 | B47: 46 | C47: 17 | D47: 1 | E47: 46 | F47: 公共 | G47: 032026 | H47: 岩手県 | I47: 宮古市 | J47: =IF(千円単!J47="","",ROUND(千円単!J47/1000,0)) -> 1535 | K47: =IF(千円単!K47="","",ROUND(千円単!K47/1000,0)) -> 537 | L47: =IF(千円単!L47="","",ROUND(千円単!L47/1000,0)) -> 396 | M47: =IF(千円単!M47="","",ROUND(千円単!M47/1000,0)) -> 1326 | N47: =IF(千円単!N47="","",ROUND(千円単!N47/1000,0)) -> 134 | O47: =IF(千円単!O47="","",ROUND(千円単!O47/1000,0)) -> 695 | P47: =IF(千円単!P47="","",ROUND(千円単!P47/1000,0)) -> 51 | Q47: =IF(千円単!Q47="","",ROUND(千円単!Q47/1000,0)) -> 209 | R47: =IF(千円単!R47="","",ROUND(千円単!R47/1000,0)) -> 1475 | S47: =IF(千円単!S47="","",ROUND(千円単!S47/1000,0)) -> 285 | T47: =IF(千円単!T47="","",ROUND(千円単!T47/1000,0)) -> 1064 | U47: =IF(千円単!U47="","",ROUND(千円単!U47/1000,0)) -> 2113 | V47: =IF(千円単!V47="","",ROUND(千円単!V47/1000,0)) -> 1229 | W47: =IF(千円単!W47="","",ROUND(千円単!W47/1000,0)) -> 883 | X47: =IF(千円単!X47="","",ROUND(千円単!X47/1000,0)) -> -638 | Y47: =IF(千円単!Y47="","",ROUND(千円単!Y47/1000,0)) -> 209
A48: 2019 | B48: 46 | C48: 17 | D48: 1 | E48: 47 | F48: 公共 | G48: 032051 | H48: 岩手県 | I48: 花巻市 | J48: =IF(千円単!J48="","",ROUND(千円単!J48/1000,0)) -> 2209 | K48: =IF(千円単!K48="","",ROUND(千円単!K48/1000,0)) -> 718 | L48: =IF(千円単!L48="","",ROUND(千円単!L48/1000,0)) -> 1086 | M48: =IF(千円単!M48="","",ROUND(千円単!M48/1000,0)) -> 2151 | N48: =IF(千円単!N48="","",ROUND(千円単!N48/1000,0)) -> 354 | O48: =IF(千円単!O48="","",ROUND(千円単!O48/1000,0)) -> 1273 | P48: =IF(千円単!P48="","",ROUND(千円単!P48/1000,0)) -> 54 | Q48: =IF(千円単!Q48="","",ROUND(千円単!Q48/1000,0)) -> 58 | R48: =IF(千円単!R48="","",ROUND(千円単!R48/1000,0)) -> 1708 | S48: =IF(千円単!S48="","",ROUND(千円単!S48/1000,0)) -> 1084 | T48: =IF(千円単!T48="","",ROUND(千円単!T48/1000,0)) -> 0 | U48: =IF(千円単!U48="","",ROUND(千円単!U48/1000,0)) -> 2873 | V48: =IF(千円単!V48="","",ROUND(千円単!V48/1000,0)) -> 689 | W48: =IF(千円単!W48="","",ROUND(千円単!W48/1000,0)) -> 2184 | X48: =IF(千円単!X48="","",ROUND(千円単!X48/1000,0)) -> -1165 | Y48: =IF(千円単!Y48="","",ROUND(千円単!Y48/1000,0)) -> 58
A49: 2019 | B49: 46 | C49: 17 | D49: 1 | E49: 48 | F49: 公共 | G49: 032069 | H49: 岩手県 | I49: 北上市 | J49: =IF(千円単!J49="","",ROUND(千円単!J49/1000,0)) -> 2003 | K49: =IF(千円単!K49="","",ROUND(千円単!K49/1000,0)) -> 1216 | L49: =IF(千円単!L49="","",ROUND(千円単!L49/1000,0)) -> 484 | M49: =IF(千円単!M49="","",ROUND(千円単!M49/1000,0)) -> 2095 | N49: =IF(千円単!N49="","",ROUND(千円単!N49/1000,0)) -> 296 | O49: =IF(千円単!O49="","",ROUND(千円単!O49/1000,0)) -> 955 | P49: =IF(千円単!P49="","",ROUND(千円単!P49/1000,0)) -> 43 | Q49: =IF(千円単!Q49="","",ROUND(千円単!Q49/1000,0)) -> -92 | R49: =IF(千円単!R49="","",ROUND(千円単!R49/1000,0)) -> 1020 | S49: =IF(千円単!S49="","",ROUND(千円単!S49/1000,0)) -> 542 | T49: =IF(千円単!T49="","",ROUND(千円単!T49/1000,0)) -> 0 | U49: =IF(千円単!U49="","",ROUND(千円単!U49/1000,0)) -> 1769 | V49: =IF(千円単!V49="","",ROUND(千円単!V49/1000,0)) -> 281 | W49: =IF(千円単!W49="","",ROUND(千円単!W49/1000,0)) -> 1488 | X49: =IF(千円単!X49="","",ROUND(千円単!X49/1000,0)) -> -749 | Y49: =IF(千円単!Y49="","",ROUND(千円単!Y49/1000,0)) -> -92
A50: 2019 | B50: 46 | C50: 17 | D50: 1 | E50: 49 | F50: 公共 | G50: 032077 | H50: 岩手県 | I50: 久慈市 | J50: =IF(千円単!J50="","",ROUND(千円単!J50/1000,0)) -> 877 | K50: =IF(千円単!K50="","",ROUND(千円単!K50/1000,0)) -> 151 | L50: =IF(千円単!L50="","",ROUND(千円単!L50/1000,0)) -> 422 | M50: =IF(千円単!M50="","",ROUND(千円単!M50/1000,0)) -> 845 | N50: =IF(千円単!N50="","",ROUND(千円単!N50/1000,0)) -> 102 | O50: =IF(千円単!O50="","",ROUND(千円単!O50/1000,0)) -> 503 | P50: =IF(千円単!P50="","",ROUND(千円単!P50/1000,0)) -> 53 | Q50: =IF(千円単!Q50="","",ROUND(千円単!Q50/1000,0)) -> 33 | R50: =IF(千円単!R50="","",ROUND(千円単!R50/1000,0)) -> 875 | S50: =IF(千円単!S50="","",ROUND(千円単!S50/1000,0)) -> 335 | T50: =IF(千円単!T50="","",ROUND(千円単!T50/1000,0)) -> 0 | U50: =IF(千円単!U50="","",ROUND(千円単!U50/1000,0)) -> 830 | V50: =IF(千円単!V50="","",ROUND(千円単!V50/1000,0)) -> 475 | W50: =IF(千円単!W50="","",ROUND(千円単!W50/1000,0)) -> 356 | X50: =IF(千円単!X50="","",ROUND(千円単!X50/1000,0)) -> 45 | Y50: =IF(千円単!Y50="","",ROUND(千円単!Y50/1000,0)) -> 33
A51: 2019 | B51: 46 | C51: 17 | D51: 1 | E51: 50 | F51: 公共 | G51: 032085 | H51: 岩手県 | I51: 遠野市 | J51: =IF(千円単!J51="","",ROUND(千円単!J51/1000,0)) -> 543 | K51: =IF(千円単!K51="","",ROUND(千円単!K51/1000,0)) -> 125 | L51: =IF(千円単!L51="","",ROUND(千円単!L51/1000,0)) -> 282 | M51: =IF(千円単!M51="","",ROUND(千円単!M51/1000,0)) -> 528 | N51: =IF(千円単!N51="","",ROUND(千円単!N51/1000,0)) -> 86 | O51: =IF(千円単!O51="","",ROUND(千円単!O51/1000,0)) -> 302 | P51: =IF(千円単!P51="","",ROUND(千円単!P51/1000,0)) -> 23 | Q51: =IF(千円単!Q51="","",ROUND(千円単!Q51/1000,0)) -> 14 | R51: =IF(千円単!R51="","",ROUND(千円単!R51/1000,0)) -> 319 | S51: =IF(千円単!S51="","",ROUND(千円単!S51/1000,0)) -> 43 | T51: =IF(千円単!T51="","",ROUND(千円単!T51/1000,0)) -> 224 | U51: =IF(千円単!U51="","",ROUND(千円単!U51/1000,0)) -> 451 | V51: =IF(千円単!V51="","",ROUND(千円単!V51/1000,0)) -> 106 | W51: =IF(千円単!W51="","",ROUND(千円単!W51/1000,0)) -> 345 | X51: =IF(千円単!X51="","",ROUND(千円単!X51/1000,0)) -> -132 | Y51: =IF(千円単!Y51="","",ROUND(千円単!Y51/1000,0)) -> 14
A52: 2019 | B52: 46 | C52: 17 | D52: 1 | E52: 51 | F52: 公共 | G52: 032115 | H52: 岩手県 | I52: 釜石市 | J52: =IF(千円単!J52="","",ROUND(千円単!J52/1000,0)) -> 1171 | K52: =IF(千円単!K52="","",ROUND(千円単!K52/1000,0)) -> 398 | L52: =IF(千円単!L52="","",ROUND(千円単!L52/1000,0)) -> 327 | M52: =IF(千円単!M52="","",ROUND(千円単!M52/1000,0)) -> 1206 | N52: =IF(千円単!N52="","",ROUND(千円単!N52/1000,0)) -> 74 | O52: =IF(千円単!O52="","",ROUND(千円単!O52/1000,0)) -> 669 | P52: =IF(千円単!P52="","",ROUND(千円単!P52/1000,0)) -> 64 | Q52: =IF(千円単!Q52="","",ROUND(千円単!Q52/1000,0)) -> -35 | R52: =IF(千円単!R52="","",ROUND(千円単!R52/1000,0)) -> 2129 | S52: =IF(千円単!S52="","",ROUND(千円単!S52/1000,0)) -> 251 | T52: =IF(千円単!T52="","",ROUND(千円単!T52/1000,0)) -> 1614 | U52: =IF(千円単!U52="","",ROUND(千円単!U52/1000,0)) -> 2471 | V52: =IF(千円単!V52="","",ROUND(千円単!V52/1000,0)) -> 2208 | W52: =IF(千円単!W52="","",ROUND(千円単!W52/1000,0)) -> 262 | X52: =IF(千円単!X52="","",ROUND(千円単!X52/1000,0)) -> -342 | Y52: =IF(千円単!Y52="","",ROUND(千円単!Y52/1000,0)) -> -35
A53: 2019 | B53: 46 | C53: 17 | D53: 1 | E53: 52 | F53: 公共 | G53: 032166 | H53: 岩手県 | I53: 滝沢市 | J53: =IF(千円単!J53="","",ROUND(千円単!J53/1000,0)) -> 1111 | K53: =IF(千円単!K53="","",ROUND(千円単!K53/1000,0)) -> 497 | L53: =IF(千円単!L53="","",ROUND(千円単!L53/1000,0)) -> 288 | M53: =IF(千円単!M53="","",ROUND(千円単!M53/1000,0)) -> 950 | N53: =IF(千円単!N53="","",ROUND(千円単!N53/1000,0)) -> 98 | O53: =IF(千円単!O53="","",ROUND(千円単!O53/1000,0)) -> 567 | P53: =IF(千円単!P53="","",ROUND(千円単!P53/1000,0)) -> 25 | Q53: =IF(千円単!Q53="","",ROUND(千円単!Q53/1000,0)) -> 161 | R53: =IF(千円単!R53="","",ROUND(千円単!R53/1000,0)) -> 487 | S53: =IF(千円単!S53="","",ROUND(千円単!S53/1000,0)) -> 296 | T53: =IF(千円単!T53="","",ROUND(千円単!T53/1000,0)) -> 17 | U53: =IF(千円単!U53="","",ROUND(千円単!U53/1000,0)) -> 847 | V53: =IF(千円単!V53="","",ROUND(千円単!V53/1000,0)) -> 473 | W53: =IF(千円単!W53="","",ROUND(千円単!W53/1000,0)) -> 374 | X53: =IF(千円単!X53="","",ROUND(千円単!X53/1000,0)) -> -361 | Y53: =IF(千円単!Y53="","",ROUND(千円単!Y53/1000,0)) -> 161
A54: 2019 | B54: 46 | C54: 17 | D54: 1 | E54: 53 | F54: 公共 | G54: 033014 | H54: 岩手県 | I54: 雫石町 | J54: =IF(千円単!J54="","",ROUND(千円単!J54/1000,0)) -> 447 | K54: =IF(千円単!K54="","",ROUND(千円単!K54/1000,0)) -> 114 | L54: =IF(千円単!L54="","",ROUND(千円単!L54/1000,0)) -> 181 | M54: =IF(千円単!M54="","",ROUND(千円単!M54/1000,0)) -> 453 | N54: =IF(千円単!N54="","",ROUND(千円単!N54/1000,0)) -> 57 | O54: =IF(千円単!O54="","",ROUND(千円単!O54/1000,0)) -> 313 | P54: =IF(千円単!P54="","",ROUND(千円単!P54/1000,0)) -> 6 | Q54: =IF(千円単!Q54="","",ROUND(千円単!Q54/1000,0)) -> -6 | R54: =IF(千円単!R54="","",ROUND(千円単!R54/1000,0)) -> 401 | S54: =IF(千円単!S54="","",ROUND(千円単!S54/1000,0)) -> 280 | T54: =IF(千円単!T54="","",ROUND(千円単!T54/1000,0)) -> 0 | U54: =IF(千円単!U54="","",ROUND(千円単!U54/1000,0)) -> 587 | V54: =IF(千円単!V54="","",ROUND(千円単!V54/1000,0)) -> 232 | W54: =IF(千円単!W54="","",ROUND(千円単!W54/1000,0)) -> 354 | X54: =IF(千円単!X54="","",ROUND(千円単!X54/1000,0)) -> -186 | Y54: =IF(千円単!Y54="","",ROUND(千円単!Y54/1000,0)) -> -6
A55: 2019 | B55: 46 | C55: 17 | D55: 1 | E55: 54 | F55: 公共 | G55: 033031 | H55: 岩手県 | I55: 岩手町 | J55: =IF(千円単!J55="","",ROUND(千円単!J55/1000,0)) -> 251 | K55: =IF(千円単!K55="","",ROUND(千円単!K55/1000,0)) -> 43 | L55: =IF(千円単!L55="","",ROUND(千円単!L55/1000,0)) -> 130 | M55: =IF(千円単!M55="","",ROUND(千円単!M55/1000,0)) -> 246 | N55: =IF(千円単!N55="","",ROUND(千円単!N55/1000,0)) -> 36 | O55: =IF(千円単!O55="","",ROUND(千円単!O55/1000,0)) -> 147 | P55: =IF(千円単!P55="","",ROUND(千円単!P55/1000,0)) -> 19 | Q55: =IF(千円単!Q55="","",ROUND(千円単!Q55/1000,0)) -> 4 | R55: =IF(千円単!R55="","",ROUND(千円単!R55/1000,0)) -> 206 | S55: =IF(千円単!S55="","",ROUND(千円単!S55/1000,0)) -> 126 | T55: =IF(千円単!T55="","",ROUND(千円単!T55/1000,0)) -> 0 | U55: =IF(千円単!U55="","",ROUND(千円単!U55/1000,0)) -> 273 | V55: =IF(千円単!V55="","",ROUND(千円単!V55/1000,0)) -> 138 | W55: =IF(千円単!W55="","",ROUND(千円単!W55/1000,0)) -> 135 | X55: =IF(千円単!X55="","",ROUND(千円単!X55/1000,0)) -> -67 | Y55: =IF(千円単!Y55="","",ROUND(千円単!Y55/1000,0)) -> 4
A56: 2019 | B56: 46 | C56: 17 | D56: 1 | E56: 55 | F56: 公共 | G56: 033219 | H56: 岩手県 | I56: 紫波町 | J56: =IF(千円単!J56="","",ROUND(千円単!J56/1000,0)) -> 712 | K56: =IF(千円単!K56="","",ROUND(千円単!K56/1000,0)) -> 303 | L56: =IF(千円単!L56="","",ROUND(千円単!L56/1000,0)) -> 365 | M56: =IF(千円単!M56="","",ROUND(千円単!M56/1000,0)) -> 755 | N56: =IF(千円単!N56="","",ROUND(千円単!N56/1000,0)) -> 76 | O56: =IF(千円単!O56="","",ROUND(千円単!O56/1000,0)) -> 478 | P56: =IF(千円単!P56="","",ROUND(千円単!P56/1000,0)) -> 27 | Q56: =IF(千円単!Q56="","",ROUND(千円単!Q56/1000,0)) -> -42 | R56: =IF(千円単!R56="","",ROUND(千円単!R56/1000,0)) -> 155 | S56: =IF(千円単!S56="","",ROUND(千円単!S56/1000,0)) -> 99 | T56: =IF(千円単!T56="","",ROUND(千円単!T56/1000,0)) -> 7 | U56: =IF(千円単!U56="","",ROUND(千円単!U56/1000,0)) -> 478 | V56: =IF(千円単!V56="","",ROUND(千円単!V56/1000,0)) -> 203 | W56: =IF(千円単!W56="","",ROUND(千円単!W56/1000,0)) -> 275 | X56: =IF(千円単!X56="","",ROUND(千円単!X56/1000,0)) -> -323 | Y56: =IF(千円単!Y56="","",ROUND(千円単!Y56/1000,0)) -> -42
A57: 2019 | B57: 46 | C57: 17 | D57: 1 | E57: 56 | F57: 公共 | G57: 033227 | H57: 岩手県 | I57: 矢巾町 | J57: =IF(千円単!J57="","",ROUND(千円単!J57/1000,0)) -> 915 | K57: =IF(千円単!K57="","",ROUND(千円単!K57/1000,0)) -> 404 | L57: =IF(千円単!L57="","",ROUND(千円単!L57/1000,0)) -> 323 | M57: =IF(千円単!M57="","",ROUND(千円単!M57/1000,0)) -> 644 | N57: =IF(千円単!N57="","",ROUND(千円単!N57/1000,0)) -> 69 | O57: =IF(千円単!O57="","",ROUND(千円単!O57/1000,0)) -> 376 | P57: =IF(千円単!P57="","",ROUND(千円単!P57/1000,0)) -> 6 | Q57: =IF(千円単!Q57="","",ROUND(千円単!Q57/1000,0)) -> 271 | R57: =IF(千円単!R57="","",ROUND(千円単!R57/1000,0)) -> 206 | S57: =IF(千円単!S57="","",ROUND(千円単!S57/1000,0)) -> 80 | T57: =IF(千円単!T57="","",ROUND(千円単!T57/1000,0)) -> 41 | U57: =IF(千円単!U57="","",ROUND(千円単!U57/1000,0)) -> 443 | V57: =IF(千円単!V57="","",ROUND(千円単!V57/1000,0)) -> 223 | W57: =IF(千円単!W57="","",ROUND(千円単!W57/1000,0)) -> 220 | X57: =IF(千円単!X57="","",ROUND(千円単!X57/1000,0)) -> -237 | Y57: =IF(千円単!Y57="","",ROUND(千円単!Y57/1000,0)) -> 271
A58: 2019 | B58: 46 | C58: 17 | D58: 1 | E58: 57 | F58: 公共 | G58: 033812 | H58: 岩手県 | I58: 金ケ崎町 | J58: =IF(千円単!J58="","",ROUND(千円単!J58/1000,0)) -> 456 | K58: =IF(千円単!K58="","",ROUND(千円単!K58/1000,0)) -> 173 | L58: =IF(千円単!L58="","",ROUND(千円単!L58/1000,0)) -> 189 | M58: =IF(千円単!M58="","",ROUND(千円単!M58/1000,0)) -> 411 | N58: =IF(千円単!N58="","",ROUND(千円単!N58/1000,0)) -> 69 | O58: =IF(千円単!O58="","",ROUND(千円単!O58/1000,0)) -> 204 | P58: =IF(千円単!P58="","",ROUND(千円単!P58/1000,0)) -> 6 | Q58: =IF(千円単!Q58="","",ROUND(千円単!Q58/1000,0)) -> 45 | R58: =IF(千円単!R58="","",ROUND(千円単!R58/1000,0)) -> 209 | S58: =IF(千円単!S58="","",ROUND(千円単!S58/1000,0)) -> 156 | T58: =IF(千円単!T58="","",ROUND(千円単!T58/1000,0)) -> 30 | U58: =IF(千円単!U58="","",ROUND(千円単!U58/1000,0)) -> 390 | V58: =IF(千円単!V58="","",ROUND(千円単!V58/1000,0)) -> 37 | W58: =IF(千円単!W58="","",ROUND(千円単!W58/1000,0)) -> 353 | X58: =IF(千円単!X58="","",ROUND(千円単!X58/1000,0)) -> -180 | Y58: =IF(千円単!Y58="","",ROUND(千円単!Y58/1000,0)) -> 45
A59: 2019 | B59: 46 | C59: 17 | D59: 1 | E59: 58 | F59: 公共 | G59: 041009 | H59: 宮城県 | I59: 仙台市 | J59: =IF(千円単!J59="","",ROUND(千円単!J59/1000,0)) -> 34033 | K59: =IF(千円単!K59="","",ROUND(千円単!K59/1000,0)) -> 16144 | L59: =IF(千円単!L59="","",ROUND(千円単!L59/1000,0)) -> 6554 | M59: =IF(千円単!M59="","",ROUND(千円単!M59/1000,0)) -> 30711 | N59: =IF(千円単!N59="","",ROUND(千円単!N59/1000,0)) -> 2975 | O59: =IF(千円単!O59="","",ROUND(千円単!O59/1000,0)) -> 19203 | P59: =IF(千円単!P59="","",ROUND(千円単!P59/1000,0)) -> 1098 | Q59: =IF(千円単!Q59="","",ROUND(千円単!Q59/1000,0)) -> 3322 | R59: =IF(千円単!R59="","",ROUND(千円単!R59/1000,0)) -> 19955 | S59: =IF(千円単!S59="","",ROUND(千円単!S59/1000,0)) -> 13709 | T59: =IF(千円単!T59="","",ROUND(千円単!T59/1000,0)) -> 1586 | U59: =IF(千円単!U59="","",ROUND(千円単!U59/1000,0)) -> 33050 | V59: =IF(千円単!V59="","",ROUND(千円単!V59/1000,0)) -> 14532 | W59: =IF(千円単!W59="","",ROUND(千円単!W59/1000,0)) -> 18518 | X59: =IF(千円単!X59="","",ROUND(千円単!X59/1000,0)) -> -13096 | Y59: =IF(千円単!Y59="","",ROUND(千円単!Y59/1000,0)) -> 3322
A60: 2019 | B60: 46 | C60: 17 | D60: 1 | E60: 59 | F60: 公共 | G60: 042064 | H60: 宮城県 | I60: 白石市 | J60: =IF(千円単!J60="","",ROUND(千円単!J60/1000,0)) -> 831 | K60: =IF(千円単!K60="","",ROUND(千円単!K60/1000,0)) -> 555 | L60: =IF(千円単!L60="","",ROUND(千円単!L60/1000,0)) -> 50 | M60: =IF(千円単!M60="","",ROUND(千円単!M60/1000,0)) -> 769 | N60: =IF(千円単!N60="","",ROUND(千円単!N60/1000,0)) -> 98 | O60: =IF(千円単!O60="","",ROUND(千円単!O60/1000,0)) -> 474 | P60: =IF(千円単!P60="","",ROUND(千円単!P60/1000,0)) -> 19 | Q60: =IF(千円単!Q60="","",ROUND(千円単!Q60/1000,0)) -> 62 | R60: =IF(千円単!R60="","",ROUND(千円単!R60/1000,0)) -> 524 | S60: =IF(千円単!S60="","",ROUND(千円単!S60/1000,0)) -> 321 | T60: =IF(千円単!T60="","",ROUND(千円単!T60/1000,0)) -> 141 | U60: =IF(千円単!U60="","",ROUND(千円単!U60/1000,0)) -> 843 | V60: =IF(千円単!V60="","",ROUND(千円単!V60/1000,0)) -> 124 | W60: =IF(千円単!W60="","",ROUND(千円単!W60/1000,0)) -> 719 | X60: =IF(千円単!X60="","",ROUND(千円単!X60/1000,0)) -> -320 | Y60: =IF(千円単!Y60="","",ROUND(千円単!Y60/1000,0)) -> 62
A61: 2019 | B61: 46 | C61: 17 | D61: 1 | E61: 60 | F61: 公共 | G61: 042072 | H61: 宮城県 | I61: 名取市 | J61: =IF(千円単!J61="","",ROUND(千円単!J61/1000,0)) -> 2819 | K61: =IF(千円単!K61="","",ROUND(千円単!K61/1000,0)) -> 1297 | L61: =IF(千円単!L61="","",ROUND(千円単!L61/1000,0)) -> 760 | M61: =IF(千円単!M61="","",ROUND(千円単!M61/1000,0)) -> 2823 | N61: =IF(千円単!N61="","",ROUND(千円単!N61/1000,0)) -> 268 | O61: =IF(千円単!O61="","",ROUND(千円単!O61/1000,0)) -> 1555 | P61: =IF(千円単!P61="","",ROUND(千円単!P61/1000,0)) -> 54 | Q61: =IF(千円単!Q61="","",ROUND(千円単!Q61/1000,0)) -> -4 | R61: =IF(千円単!R61="","",ROUND(千円単!R61/1000,0)) -> 2284 | S61: =IF(千円単!S61="","",ROUND(千円単!S61/1000,0)) -> 789 | T61: =IF(千円単!T61="","",ROUND(千円単!T61/1000,0)) -> 0 | U61: =IF(千円単!U61="","",ROUND(千円単!U61/1000,0)) -> 3447 | V61: =IF(千円単!V61="","",ROUND(千円単!V61/1000,0)) -> 1790 | W61: =IF(千円単!W61="","",ROUND(千円単!W61/1000,0)) -> 1657 | X61: =IF(千円単!X61="","",ROUND(千円単!X61/1000,0)) -> -1163 | Y61: =IF(千円単!Y61="","",ROUND(千円単!Y61/1000,0)) -> -4
A62: 2019 | B62: 46 | C62: 17 | D62: 1 | E62: 61 | F62: 公共 | G62: 042111 | H62: 宮城県 | I62: 岩沼市 | J62: =IF(千円単!J62="","",ROUND(千円単!J62/1000,0)) -> 1827 | K62: =IF(千円単!K62="","",ROUND(千円単!K62/1000,0)) -> 684 | L62: =IF(千円単!L62="","",ROUND(千円単!L62/1000,0)) -> 216 | M62: =IF(千円単!M62="","",ROUND(千円単!M62/1000,0)) -> 1754 | N62: =IF(千円単!N62="","",ROUND(千円単!N62/1000,0)) -> 101 | O62: =IF(千円単!O62="","",ROUND(千円単!O62/1000,0)) -> 1179 | P62: =IF(千円単!P62="","",ROUND(千円単!P62/1000,0)) -> 43 | Q62: =IF(千円単!Q62="","",ROUND(千円単!Q62/1000,0)) -> 73 | R62: =IF(千円単!R62="","",ROUND(千円単!R62/1000,0)) -> 520 | S62: =IF(千円単!S62="","",ROUND(千円単!S62/1000,0)) -> 146 | T62: =IF(千円単!T62="","",ROUND(千円単!T62/1000,0)) -> 10 | U62: =IF(千円単!U62="","",ROUND(千円単!U62/1000,0)) -> 2333 | V62: =IF(千円単!V62="","",ROUND(千円単!V62/1000,0)) -> 1803 | W62: =IF(千円単!W62="","",ROUND(千円単!W62/1000,0)) -> 530 | X62: =IF(千円単!X62="","",ROUND(千円単!X62/1000,0)) -> -1813 | Y62: =IF(千円単!Y62="","",ROUND(千円単!Y62/1000,0)) -> 73
A63: 2019 | B63: 46 | C63: 17 | D63: 1 | E63: 62 | F63: 公共 | G63: 045012 | H63: 宮城県 | I63: 涌谷町 | J63: =IF(千円単!J63="","",ROUND(千円単!J63/1000,0)) -> 351 | K63: =IF(千円単!K63="","",ROUND(千円単!K63/1000,0)) -> 82 | L63: =IF(千円単!L63="","",ROUND(千円単!L63/1000,0)) -> 164 | M63: =IF(千円単!M63="","",ROUND(千円単!M63/1000,0)) -> 334 | N63: =IF(千円単!N63="","",ROUND(千円単!N63/1000,0)) -> 55 | O63: =IF(千円単!O63="","",ROUND(千円単!O63/1000,0)) -> 193 | P63: =IF(千円単!P63="","",ROUND(千円単!P63/1000,0)) -> 25 | Q63: =IF(千円単!Q63="","",ROUND(千円単!Q63/1000,0)) -> 16 | R63: =IF(千円単!R63="","",ROUND(千円単!R63/1000,0)) -> 188 | S63: =IF(千円単!S63="","",ROUND(千円単!S63/1000,0)) -> 75 | T63: =IF(千円単!T63="","",ROUND(千円単!T63/1000,0)) -> 0 | U63: =IF(千円単!U63="","",ROUND(千円単!U63/1000,0)) -> 291 | V63: =IF(千円単!V63="","",ROUND(千円単!V63/1000,0)) -> 52 | W63: =IF(千円単!W63="","",ROUND(千円単!W63/1000,0)) -> 239 | X63: =IF(千円単!X63="","",ROUND(千円単!X63/1000,0)) -> -103 | Y63: =IF(千円単!Y63="","",ROUND(千円単!Y63/1000,0)) -> 16
A64: 2019 | B64: 46 | C64: 17 | D64: 1 | E64: 63 | F64: 公共 | G64: 045055 | H64: 宮城県 | I64: 美里町 | J64: =IF(千円単!J64="","",ROUND(千円単!J64/1000,0)) -> 432 | K64: =IF(千円単!K64="","",ROUND(千円単!K64/1000,0)) -> 141 | L64: =IF(千円単!L64="","",ROUND(千円単!L64/1000,0)) -> 190 | M64: =IF(千円単!M64="","",ROUND(千円単!M64/1000,0)) -> 428 | N64: =IF(千円単!N64="","",ROUND(千円単!N64/1000,0)) -> 65 | O64: =IF(千円単!O64="","",ROUND(千円単!O64/1000,0)) -> 246 | P64: =IF(千円単!P64="","",ROUND(千円単!P64/1000,0)) -> 18 | Q64: =IF(千円単!Q64="","",ROUND(千円単!Q64/1000,0)) -> 4 | R64: =IF(千円単!R64="","",ROUND(千円単!R64/1000,0)) -> 628 | S64: =IF(千円単!S64="","",ROUND(千円単!S64/1000,0)) -> 363 | T64: =IF(千円単!T64="","",ROUND(千円単!T64/1000,0)) -> 0 | U64: =IF(千円単!U64="","",ROUND(千円単!U64/1000,0)) -> 769 | V64: =IF(千円単!V64="","",ROUND(千円単!V64/1000,0)) -> 425 | W64: =IF(千円単!W64="","",ROUND(千円単!W64/1000,0)) -> 344 | X64: =IF(千円単!X64="","",ROUND(千円単!X64/1000,0)) -> -141 | Y64: =IF(千円単!Y64="","",ROUND(千円単!Y64/1000,0)) -> 4
A65: 2019 | B65: 46 | C65: 17 | D65: 1 | E65: 64 | F65: 公共 | G65: 052019 | H65: 秋田県 | I65: 秋田市 | J65: =IF(千円単!J65="","",ROUND(千円単!J65/1000,0)) -> 10125 | K65: =IF(千円単!K65="","",ROUND(千円単!K65/1000,0)) -> 4900 | L65: =IF(千円単!L65="","",ROUND(千円単!L65/1000,0)) -> 3263 | M65: =IF(千円単!M65="","",ROUND(千円単!M65/1000,0)) -> 8922 | N65: =IF(千円単!N65="","",ROUND(千円単!N65/1000,0)) -> 912 | O65: =IF(千円単!O65="","",ROUND(千円単!O65/1000,0)) -> 5151 | P65: =IF(千円単!P65="","",ROUND(千円単!P65/1000,0)) -> 326 | Q65: =IF(千円単!Q65="","",ROUND(千円単!Q65/1000,0)) -> 1203 | R65: =IF(千円単!R65="","",ROUND(千円単!R65/1000,0)) -> 5479 | S65: =IF(千円単!S65="","",ROUND(千円単!S65/1000,0)) -> 3273 | T65: =IF(千円単!T65="","",ROUND(千円単!T65/1000,0)) -> 839 | U65: =IF(千円単!U65="","",ROUND(千円単!U65/1000,0)) -> 9625 | V65: =IF(千円単!V65="","",ROUND(千円単!V65/1000,0)) -> 4213 | W65: =IF(千円単!W65="","",ROUND(千円単!W65/1000,0)) -> 5411 | X65: =IF(千円単!X65="","",ROUND(千円単!X65/1000,0)) -> -4145 | Y65: =IF(千円単!Y65="","",ROUND(千円単!Y65/1000,0)) -> 1203
A66: 2019 | B66: 46 | C66: 17 | D66: 1 | E66: 65 | F66: 公共 | G66: 052027 | H66: 秋田県 | I66: 能代市 | J66: =IF(千円単!J66="","",ROUND(千円単!J66/1000,0)) -> 1455 | K66: =IF(千円単!K66="","",ROUND(千円単!K66/1000,0)) -> 405 | L66: =IF(千円単!L66="","",ROUND(千円単!L66/1000,0)) -> 668 | M66: =IF(千円単!M66="","",ROUND(千円単!M66/1000,0)) -> 1343 | N66: =IF(千円単!N66="","",ROUND(千円単!N66/1000,0)) -> 156 | O66: =IF(千円単!O66="","",ROUND(千円単!O66/1000,0)) -> 806 | P66: =IF(千円単!P66="","",ROUND(千円単!P66/1000,0)) -> 26 | Q66: =IF(千円単!Q66="","",ROUND(千円単!Q66/1000,0)) -> 113 | R66: =IF(千円単!R66="","",ROUND(千円単!R66/1000,0)) -> 2188 | S66: =IF(千円単!S66="","",ROUND(千円単!S66/1000,0)) -> 1314 | T66: =IF(千円単!T66="","",ROUND(千円単!T66/1000,0)) -> 66 | U66: =IF(千円単!U66="","",ROUND(千円単!U66/1000,0)) -> 2657 | V66: =IF(千円単!V66="","",ROUND(千円単!V66/1000,0)) -> 1860 | W66: =IF(千円単!W66="","",ROUND(千円単!W66/1000,0)) -> 797 | X66: =IF(千円単!X66="","",ROUND(千円単!X66/1000,0)) -> -469 | Y66: =IF(千円単!Y66="","",ROUND(千円単!Y66/1000,0)) -> 113
A67: 2019 | B67: 46 | C67: 17 | D67: 1 | E67: 66 | F67: 公共 | G67: 052035 | H67: 秋田県 | I67: 横手市 | J67: =IF(千円単!J67="","",ROUND(千円単!J67/1000,0)) -> 1628 | K67: =IF(千円単!K67="","",ROUND(千円単!K67/1000,0)) -> 634 | L67: =IF(千円単!L67="","",ROUND(千円単!L67/1000,0)) -> 720 | M67: =IF(千円単!M67="","",ROUND(千円単!M67/1000,0)) -> 1556 | N67: =IF(千円単!N67="","",ROUND(千円単!N67/1000,0)) -> 232 | O67: =IF(千円単!O67="","",ROUND(千円単!O67/1000,0)) -> 845 | P67: =IF(千円単!P67="","",ROUND(千円単!P67/1000,0)) -> 95 | Q67: =IF(千円単!Q67="","",ROUND(千円単!Q67/1000,0)) -> 72 | R67: =IF(千円単!R67="","",ROUND(千円単!R67/1000,0)) -> 1206 | S67: =IF(千円単!S67="","",ROUND(千円単!S67/1000,0)) -> 626 | T67: =IF(千円単!T67="","",ROUND(千円単!T67/1000,0)) -> 440 | U67: =IF(千円単!U67="","",ROUND(千円単!U67/1000,0)) -> 1741 | V67: =IF(千円単!V67="","",ROUND(千円単!V67/1000,0)) -> 355 | W67: =IF(千円単!W67="","",ROUND(千円単!W67/1000,0)) -> 1386 | X67: =IF(千円単!X67="","",ROUND(千円単!X67/1000,0)) -> -535 | Y67: =IF(千円単!Y67="","",ROUND(千円単!Y67/1000,0)) -> 72
A68: 2019 | B68: 46 | C68: 17 | D68: 1 | E68: 67 | F68: 公共 | G68: 052043 | H68: 秋田県 | I68: 大館市 | J68: =IF(千円単!J68="","",ROUND(千円単!J68/1000,0)) -> 1197 | K68: =IF(千円単!K68="","",ROUND(千円単!K68/1000,0)) -> 481 | L68: =IF(千円単!L68="","",ROUND(千円単!L68/1000,0)) -> 489 | M68: =IF(千円単!M68="","",ROUND(千円単!M68/1000,0)) -> 1212 | N68: =IF(千円単!N68="","",ROUND(千円単!N68/1000,0)) -> 190 | O68: =IF(千円単!O68="","",ROUND(千円単!O68/1000,0)) -> 646 | P68: =IF(千円単!P68="","",ROUND(千円単!P68/1000,0)) -> 57 | Q68: =IF(千円単!Q68="","",ROUND(千円単!Q68/1000,0)) -> -15 | R68: =IF(千円単!R68="","",ROUND(千円単!R68/1000,0)) -> 1068 | S68: =IF(千円単!S68="","",ROUND(千円単!S68/1000,0)) -> 716 | T68: =IF(千円単!T68="","",ROUND(千円単!T68/1000,0)) -> 163 | U68: =IF(千円単!U68="","",ROUND(千円単!U68/1000,0)) -> 1574 | V68: =IF(千円単!V68="","",ROUND(千円単!V68/1000,0)) -> 491 | W68: =IF(千円単!W68="","",ROUND(千円単!W68/1000,0)) -> 1083 | X68: =IF(千円単!X68="","",ROUND(千円単!X68/1000,0)) -> -507 | Y68: =IF(千円単!Y68="","",ROUND(千円単!Y68/1000,0)) -> -15
A69: 2019 | B69: 46 | C69: 17 | D69: 1 | E69: 68 | F69: 公共 | G69: 052060 | H69: 秋田県 | I69: 男鹿市 | J69: =IF(千円単!J69="","",ROUND(千円単!J69/1000,0)) -> 654 | K69: =IF(千円単!K69="","",ROUND(千円単!K69/1000,0)) -> 193 | L69: =IF(千円単!L69="","",ROUND(千円単!L69/1000,0)) -> 295 | M69: =IF(千円単!M69="","",ROUND(千円単!M69/1000,0)) -> 585 | N69: =IF(千円単!N69="","",ROUND(千円単!N69/1000,0)) -> 116 | O69: =IF(千円単!O69="","",ROUND(千円単!O69/1000,0)) -> 362 | P69: =IF(千円単!P69="","",ROUND(千円単!P69/1000,0)) -> 16 | Q69: =IF(千円単!Q69="","",ROUND(千円単!Q69/1000,0)) -> 68 | R69: =IF(千円単!R69="","",ROUND(千円単!R69/1000,0)) -> 591 | S69: =IF(千円単!S69="","",ROUND(千円単!S69/1000,0)) -> 380 | T69: =IF(千円単!T69="","",ROUND(千円単!T69/1000,0)) -> 98 | U69: =IF(千円単!U69="","",ROUND(千円単!U69/1000,0)) -> 892 | V69: =IF(千円単!V69="","",ROUND(千円単!V69/1000,0)) -> 262 | W69: =IF(千円単!W69="","",ROUND(千円単!W69/1000,0)) -> 630 | X69: =IF(千円単!X69="","",ROUND(千円単!X69/1000,0)) -> -300 | Y69: =IF(千円単!Y69="","",ROUND(千円単!Y69/1000,0)) -> 68
A70: 2019 | B70: 46 | C70: 17 | D70: 1 | E70: 69 | F70: 公共 | G70: 052116 | H70: 秋田県 | I70: 潟上市 | J70: =IF(千円単!J70="","",ROUND(千円単!J70/1000,0)) -> 568 | K70: =IF(千円単!K70="","",ROUND(千円単!K70/1000,0)) -> 266 | L70: =IF(千円単!L70="","",ROUND(千円単!L70/1000,0)) -> 112 | M70: =IF(千円単!M70="","",ROUND(千円単!M70/1000,0)) -> 570 | N70: =IF(千円単!N70="","",ROUND(千円単!N70/1000,0)) -> 56 | O70: =IF(千円単!O70="","",ROUND(千円単!O70/1000,0)) -> 345 | P70: =IF(千円単!P70="","",ROUND(千円単!P70/1000,0)) -> 25 | Q70: =IF(千円単!Q70="","",ROUND(千円単!Q70/1000,0)) -> -2 | R70: =IF(千円単!R70="","",ROUND(千円単!R70/1000,0)) -> 217 | S70: =IF(千円単!S70="","",ROUND(千円単!S70/1000,0)) -> 122 | T70: =IF(千円単!T70="","",ROUND(千円単!T70/1000,0)) -> 95 | U70: =IF(千円単!U70="","",ROUND(千円単!U70/1000,0)) -> 375 | V70: =IF(千円単!V70="","",ROUND(千円単!V70/1000,0)) -> 31 | W70: =IF(千円単!W70="","",ROUND(千円単!W70/1000,0)) -> 344 | X70: =IF(千円単!X70="","",ROUND(千円単!X70/1000,0)) -> -158 | Y70: =IF(千円単!Y70="","",ROUND(千円単!Y70/1000,0)) -> -2
A71: 2019 | B71: 46 | C71: 17 | D71: 1 | E71: 70 | F71: 公共 | G71: 052124 | H71: 秋田県 | I71: 大仙市 | J71: =IF(千円単!J71="","",ROUND(千円単!J71/1000,0)) -> 1264 | K71: =IF(千円単!K71="","",ROUND(千円単!K71/1000,0)) -> 322 | L71: =IF(千円単!L71="","",ROUND(千円単!L71/1000,0)) -> 569 | M71: =IF(千円単!M71="","",ROUND(千円単!M71/1000,0)) -> 1015 | N71: =IF(千円単!N71="","",ROUND(千円単!N71/1000,0)) -> 153 | O71: =IF(千円単!O71="","",ROUND(千円単!O71/1000,0)) -> 511 | P71: =IF(千円単!P71="","",ROUND(千円単!P71/1000,0)) -> 50 | Q71: =IF(千円単!Q71="","",ROUND(千円単!Q71/1000,0)) -> 249 | R71: =IF(千円単!R71="","",ROUND(千円単!R71/1000,0)) -> 745 | S71: =IF(千円単!S71="","",ROUND(千円単!S71/1000,0)) -> 377 | T71: =IF(千円単!T71="","",ROUND(千円単!T71/1000,0)) -> 220 | U71: =IF(千円単!U71="","",ROUND(千円単!U71/1000,0)) -> 1090 | V71: =IF(千円単!V71="","",ROUND(千円単!V71/1000,0)) -> 337 | W71: =IF(千円単!W71="","",ROUND(千円単!W71/1000,0)) -> 752 | X71: =IF(千円単!X71="","",ROUND(千円単!X71/1000,0)) -> -344 | Y71: =IF(千円単!Y71="","",ROUND(千円単!Y71/1000,0)) -> 249
A72: 2019 | B72: 46 | C72: 17 | D72: 1 | E72: 71 | F72: 公共 | G72: 062014 | H72: 山形県 | I72: 山形市 | J72: =IF(千円単!J72="","",ROUND(千円単!J72/1000,0)) -> 6944 | K72: =IF(千円単!K72="","",ROUND(千円単!K72/1000,0)) -> 3853 | L72: =IF(千円単!L72="","",ROUND(千円単!L72/1000,0)) -> 1419 | M72: =IF(千円単!M72="","",ROUND(千円単!M72/1000,0)) -> 6847 | N72: =IF(千円単!N72="","",ROUND(千円単!N72/1000,0)) -> 1197 | O72: =IF(千円単!O72="","",ROUND(千円単!O72/1000,0)) -> 4096 | P72: =IF(千円単!P72="","",ROUND(千円単!P72/1000,0)) -> 275 | Q72: =IF(千円単!Q72="","",ROUND(千円単!Q72/1000,0)) -> 97 | R72: =IF(千円単!R72="","",ROUND(千円単!R72/1000,0)) -> 6188 | S72: =IF(千円単!S72="","",ROUND(千円単!S72/1000,0)) -> 3733 | T72: =IF(千円単!T72="","",ROUND(千円単!T72/1000,0)) -> 1558 | U72: =IF(千円単!U72="","",ROUND(千円単!U72/1000,0)) -> 8339 | V72: =IF(千円単!V72="","",ROUND(千円単!V72/1000,0)) -> 2527 | W72: =IF(千円単!W72="","",ROUND(千円単!W72/1000,0)) -> 5812 | X72: =IF(千円単!X72="","",ROUND(千円単!X72/1000,0)) -> -2150 | Y72: =IF(千円単!Y72="","",ROUND(千円単!Y72/1000,0)) -> 97
A73: 2019 | B73: 46 | C73: 17 | D73: 1 | E73: 72 | F73: 公共 | G73: 062022 | H73: 山形県 | I73: 米沢市 | J73: =IF(千円単!J73="","",ROUND(千円単!J73/1000,0)) -> 2147 | K73: =IF(千円単!K73="","",ROUND(千円単!K73/1000,0)) -> 1079 | L73: =IF(千円単!L73="","",ROUND(千円単!L73/1000,0)) -> 510 | M73: =IF(千円単!M73="","",ROUND(千円単!M73/1000,0)) -> 2183 | N73: =IF(千円単!N73="","",ROUND(千円単!N73/1000,0)) -> 271 | O73: =IF(千円単!O73="","",ROUND(千円単!O73/1000,0)) -> 1181 | P73: =IF(千円単!P73="","",ROUND(千円単!P73/1000,0)) -> 132 | Q73: =IF(千円単!Q73="","",ROUND(千円単!Q73/1000,0)) -> -36 | R73: =IF(千円単!R73="","",ROUND(千円単!R73/1000,0)) -> 1429 | S73: =IF(千円単!S73="","",ROUND(千円単!S73/1000,0)) -> 781 | T73: =IF(千円単!T73="","",ROUND(千円単!T73/1000,0)) -> 151 | U73: =IF(千円単!U73="","",ROUND(千円単!U73/1000,0)) -> 2134 | V73: =IF(千円単!V73="","",ROUND(千円単!V73/1000,0)) -> 951 | W73: =IF(千円単!W73="","",ROUND(千円単!W73/1000,0)) -> 1183 | X73: =IF(千円単!X73="","",ROUND(千円単!X73/1000,0)) -> -706 | Y73: =IF(千円単!Y73="","",ROUND(千円単!Y73/1000,0)) -> -36
A74: 2019 | B74: 46 | C74: 17 | D74: 1 | E74: 73 | F74: 公共 | G74: 062031 | H74: 山形県 | I74: 鶴岡市 | J74: =IF(千円単!J74="","",ROUND(千円単!J74/1000,0)) -> 4325 | K74: =IF(千円単!K74="","",ROUND(千円単!K74/1000,0)) -> 2128 | L74: =IF(千円単!L74="","",ROUND(千円単!L74/1000,0)) -> 733 | M74: =IF(千円単!M74="","",ROUND(千円単!M74/1000,0)) -> 4271 | N74: =IF(千円単!N74="","",ROUND(千円単!N74/1000,0)) -> 498 | O74: =IF(千円単!O74="","",ROUND(千円単!O74/1000,0)) -> 2382 | P74: =IF(千円単!P74="","",ROUND(千円単!P74/1000,0)) -> 166 | Q74: =IF(千円単!Q74="","",ROUND(千円単!Q74/1000,0)) -> 55 | R74: =IF(千円単!R74="","",ROUND(千円単!R74/1000,0)) -> 3445 | S74: =IF(千円単!S74="","",ROUND(千円単!S74/1000,0)) -> 1428 | T74: =IF(千円単!T74="","",ROUND(千円単!T74/1000,0)) -> 937 | U74: =IF(千円単!U74="","",ROUND(千円単!U74/1000,0)) -> 4839 | V74: =IF(千円単!V74="","",ROUND(千円単!V74/1000,0)) -> 2374 | W74: =IF(千円単!W74="","",ROUND(千円単!W74/1000,0)) -> 2465 | X74: =IF(千円単!X74="","",ROUND(千円単!X74/1000,0)) -> -1394 | Y74: =IF(千円単!Y74="","",ROUND(千円単!Y74/1000,0)) -> 55
A75: 2019 | B75: 46 | C75: 17 | D75: 1 | E75: 74 | F75: 公共 | G75: 062049 | H75: 山形県 | I75: 酒田市 | J75: =IF(千円単!J75="","",ROUND(千円単!J75/1000,0)) -> 3621 | K75: =IF(千円単!K75="","",ROUND(千円単!K75/1000,0)) -> 1479 | L75: =IF(千円単!L75="","",ROUND(千円単!L75/1000,0)) -> 1745 | M75: =IF(千円単!M75="","",ROUND(千円単!M75/1000,0)) -> 3596 | N75: =IF(千円単!N75="","",ROUND(千円単!N75/1000,0)) -> 480 | O75: =IF(千円単!O75="","",ROUND(千円単!O75/1000,0)) -> 2119 | P75: =IF(千円単!P75="","",ROUND(千円単!P75/1000,0)) -> 94 | Q75: =IF(千円単!Q75="","",ROUND(千円単!Q75/1000,0)) -> 25 | R75: =IF(千円単!R75="","",ROUND(千円単!R75/1000,0)) -> 490 | S75: =IF(千円単!S75="","",ROUND(千円単!S75/1000,0)) -> 252 | T75: =IF(千円単!T75="","",ROUND(千円単!T75/1000,0)) -> 0 | U75: =IF(千円単!U75="","",ROUND(千円単!U75/1000,0)) -> 2339 | V75: =IF(千円単!V75="","",ROUND(千円単!V75/1000,0)) -> 455 | W75: =IF(千円単!W75="","",ROUND(千円単!W75/1000,0)) -> 1876 | X75: =IF(千円単!X75="","",ROUND(千円単!X75/1000,0)) -> -1849 | Y75: =IF(千円単!Y75="","",ROUND(千円単!Y75/1000,0)) -> 25
A76: 2019 | B76: 46 | C76: 17 | D76: 1 | E76: 75 | F76: 公共 | G76: 062103 | H76: 山形県 | I76: 天童市 | J76: =IF(千円単!J76="","",ROUND(千円単!J76/1000,0)) -> 1028 | K76: =IF(千円単!K76="","",ROUND(千円単!K76/1000,0)) -> 788 | L76: =IF(千円単!L76="","",ROUND(千円単!L76/1000,0)) -> 56 | M76: =IF(千円単!M76="","",ROUND(千円単!M76/1000,0)) -> 1026 | N76: =IF(千円単!N76="","",ROUND(千円単!N76/1000,0)) -> 138 | O76: =IF(千円単!O76="","",ROUND(千円単!O76/1000,0)) -> 566 | P76: =IF(千円単!P76="","",ROUND(千円単!P76/1000,0)) -> 17 | Q76: =IF(千円単!Q76="","",ROUND(千円単!Q76/1000,0)) -> 2 | R76: =IF(千円単!R76="","",ROUND(千円単!R76/1000,0)) -> 530 | S76: =IF(千円単!S76="","",ROUND(千円単!S76/1000,0)) -> 300 | T76: =IF(千円単!T76="","",ROUND(千円単!T76/1000,0)) -> 144 | U76: =IF(千円単!U76="","",ROUND(千円単!U76/1000,0)) -> 999 | V76: =IF(千円単!V76="","",ROUND(千円単!V76/1000,0)) -> 393 | W76: =IF(千円単!W76="","",ROUND(千円単!W76/1000,0)) -> 606 | X76: =IF(千円単!X76="","",ROUND(千円単!X76/1000,0)) -> -469 | Y76: =IF(千円単!Y76="","",ROUND(千円単!Y76/1000,0)) -> 2
A77: 2019 | B77: 46 | C77: 17 | D77: 1 | E77: 76 | F77: 公共 | G77: 062138 | H77: 山形県 | I77: 南陽市 | J77: =IF(千円単!J77="","",ROUND(千円単!J77/1000,0)) -> 998 | K77: =IF(千円単!K77="","",ROUND(千円単!K77/1000,0)) -> 346 | L77: =IF(千円単!L77="","",ROUND(千円単!L77/1000,0)) -> 445 | M77: =IF(千円単!M77="","",ROUND(千円単!M77/1000,0)) -> 990 | N77: =IF(千円単!N77="","",ROUND(千円単!N77/1000,0)) -> 134 | O77: =IF(千円単!O77="","",ROUND(千円単!O77/1000,0)) -> 554 | P77: =IF(千円単!P77="","",ROUND(千円単!P77/1000,0)) -> 35 | Q77: =IF(千円単!Q77="","",ROUND(千円単!Q77/1000,0)) -> 8 | R77: =IF(千円単!R77="","",ROUND(千円単!R77/1000,0)) -> 642 | S77: =IF(千円単!S77="","",ROUND(千円単!S77/1000,0)) -> 261 | T77: =IF(千円単!T77="","",ROUND(千円単!T77/1000,0)) -> 54 | U77: =IF(千円単!U77="","",ROUND(千円単!U77/1000,0)) -> 1050 | V77: =IF(千円単!V77="","",ROUND(千円単!V77/1000,0)) -> 355 | W77: =IF(千円単!W77="","",ROUND(千円単!W77/1000,0)) -> 695 | X77: =IF(千円単!X77="","",ROUND(千円単!X77/1000,0)) -> -409 | Y77: =IF(千円単!Y77="","",ROUND(千円単!Y77/1000,0)) -> 8
A78: 2019 | B78: 46 | C78: 17 | D78: 1 | E78: 77 | F78: 公共 | G78: 064289 | H78: 山形県 | I78: 庄内町 | J78: =IF(千円単!J78="","",ROUND(千円単!J78/1000,0)) -> 481 | K78: =IF(千円単!K78="","",ROUND(千円単!K78/1000,0)) -> 139 | L78: =IF(千円単!L78="","",ROUND(千円単!L78/1000,0)) -> 68 | M78: =IF(千円単!M78="","",ROUND(千円単!M78/1000,0)) -> 473 | N78: =IF(千円単!N78="","",ROUND(千円単!N78/1000,0)) -> 68 | O78: =IF(千円単!O78="","",ROUND(千円単!O78/1000,0)) -> 275 | P78: =IF(千円単!P78="","",ROUND(千円単!P78/1000,0)) -> 20 | Q78: =IF(千円単!Q78="","",ROUND(千円単!Q78/1000,0)) -> 8 | R78: =IF(千円単!R78="","",ROUND(千円単!R78/1000,0)) -> 307 | S78: =IF(千円単!S78="","",ROUND(千円単!S78/1000,0)) -> 20 | T78: =IF(千円単!T78="","",ROUND(千円単!T78/1000,0)) -> 284 | U78: =IF(千円単!U78="","",ROUND(千円単!U78/1000,0)) -> 305 | V78: =IF(千円単!V78="","",ROUND(千円単!V78/1000,0)) -> 20 | W78: =IF(千円単!W78="","",ROUND(千円単!W78/1000,0)) -> 285 | X78: =IF(千円単!X78="","",ROUND(千円単!X78/1000,0)) -> 2 | Y78: =IF(千円単!Y78="","",ROUND(千円単!Y78/1000,0)) -> 8
A79: 2019 | B79: 46 | C79: 17 | D79: 1 | E79: 78 | F79: 公共 | G79: 072010 | H79: 福島県 | I79: 福島市 | J79: =IF(千円単!J79="","",ROUND(千円単!J79/1000,0)) -> 7415 | K79: =IF(千円単!K79="","",ROUND(千円単!K79/1000,0)) -> 3188 | L79: =IF(千円単!L79="","",ROUND(千円単!L79/1000,0)) -> 2444 | M79: =IF(千円単!M79="","",ROUND(千円単!M79/1000,0)) -> 6710 | N79: =IF(千円単!N79="","",ROUND(千円単!N79/1000,0)) -> 925 | O79: =IF(千円単!O79="","",ROUND(千円単!O79/1000,0)) -> 3833 | P79: =IF(千円単!P79="","",ROUND(千円単!P79/1000,0)) -> 111 | Q79: =IF(千円単!Q79="","",ROUND(千円単!Q79/1000,0)) -> 705 | R79: =IF(千円単!R79="","",ROUND(千円単!R79/1000,0)) -> 2801 | S79: =IF(千円単!S79="","",ROUND(千円単!S79/1000,0)) -> 1326 | T79: =IF(千円単!T79="","",ROUND(千円単!T79/1000,0)) -> 0 | U79: =IF(千円単!U79="","",ROUND(千円単!U79/1000,0)) -> 5774 | V79: =IF(千円単!V79="","",ROUND(千円単!V79/1000,0)) -> 2162 | W79: =IF(千円単!W79="","",ROUND(千円単!W79/1000,0)) -> 3612 | X79: =IF(千円単!X79="","",ROUND(千円単!X79/1000,0)) -> -2973 | Y79: =IF(千円単!Y79="","",ROUND(千円単!Y79/1000,0)) -> 705
A80: 2019 | B80: 46 | C80: 17 | D80: 1 | E80: 79 | F80: 公共 | G80: 072036 | H80: 福島県 | I80: 郡山市 | J80: =IF(千円単!J80="","",ROUND(千円単!J80/1000,0)) -> 8039 | K80: =IF(千円単!K80="","",ROUND(千円単!K80/1000,0)) -> 3888 | L80: =IF(千円単!L80="","",ROUND(千円単!L80/1000,0)) -> 2845 | M80: =IF(千円単!M80="","",ROUND(千円単!M80/1000,0)) -> 7940 | N80: =IF(千円単!N80="","",ROUND(千円単!N80/1000,0)) -> 1041 | O80: =IF(千円単!O80="","",ROUND(千円単!O80/1000,0)) -> 3974 | P80: =IF(千円単!P80="","",ROUND(千円単!P80/1000,0)) -> 243 | Q80: =IF(千円単!Q80="","",ROUND(千円単!Q80/1000,0)) -> 99 | R80: =IF(千円単!R80="","",ROUND(千円単!R80/1000,0)) -> 8385 | S80: =IF(千円単!S80="","",ROUND(千円単!S80/1000,0)) -> 3809 | T80: =IF(千円単!T80="","",ROUND(千円単!T80/1000,0)) -> 0 | U80: =IF(千円単!U80="","",ROUND(千円単!U80/1000,0)) -> 10784 | V80: =IF(千円単!V80="","",ROUND(千円単!V80/1000,0)) -> 5490 | W80: =IF(千円単!W80="","",ROUND(千円単!W80/1000,0)) -> 5293 | X80: =IF(千円単!X80="","",ROUND(千円単!X80/1000,0)) -> -2399 | Y80: =IF(千円単!Y80="","",ROUND(千円単!Y80/1000,0)) -> 99
A81: 2019 | B81: 46 | C81: 17 | D81: 1 | E81: 80 | F81: 公共 | G81: 072044 | H81: 福島県 | I81: いわき市 | J81: =IF(千円単!J81="","",ROUND(千円単!J81/1000,0)) -> 8398 | K81: =IF(千円単!K81="","",ROUND(千円単!K81/1000,0)) -> 3446 | L81: =IF(千円単!L81="","",ROUND(千円単!L81/1000,0)) -> 2842 | M81: =IF(千円単!M81="","",ROUND(千円単!M81/1000,0)) -> 7900 | N81: =IF(千円単!N81="","",ROUND(千円単!N81/1000,0)) -> 916 | O81: =IF(千円単!O81="","",ROUND(千円単!O81/1000,0)) -> 4264 | P81: =IF(千円単!P81="","",ROUND(千円単!P81/1000,0)) -> 201 | Q81: =IF(千円単!Q81="","",ROUND(千円単!Q81/1000,0)) -> 498 | R81: =IF(千円単!R81="","",ROUND(千円単!R81/1000,0)) -> 4351 | S81: =IF(千円単!S81="","",ROUND(千円単!S81/1000,0)) -> 2415 | T81: =IF(千円単!T81="","",ROUND(千円単!T81/1000,0)) -> 1040 | U81: =IF(千円単!U81="","",ROUND(千円単!U81/1000,0)) -> 7132 | V81: =IF(千円単!V81="","",ROUND(千円単!V81/1000,0)) -> 3131 | W81: =IF(千円単!W81="","",ROUND(千円単!W81/1000,0)) -> 3993 | X81: =IF(千円単!X81="","",ROUND(千円単!X81/1000,0)) -> -2782 | Y81: =IF(千円単!Y81="","",ROUND(千円単!Y81/1000,0)) -> 498
A82: 2019 | B82: 46 | C82: 17 | D82: 1 | E82: 81 | F82: 公共 | G82: 072109 | H82: 福島県 | I82: 二本松市 | J82: =IF(千円単!J82="","",ROUND(千円単!J82/1000,0)) -> 534 | K82: =IF(千円単!K82="","",ROUND(千円単!K82/1000,0)) -> 145 | L82: =IF(千円単!L82="","",ROUND(千円単!L82/1000,0)) -> 287 | M82: =IF(千円単!M82="","",ROUND(千円単!M82/1000,0)) -> 534 | N82: =IF(千円単!N82="","",ROUND(千円単!N82/1000,0)) -> 71 | O82: =IF(千円単!O82="","",ROUND(千円単!O82/1000,0)) -> 236 | P82: =IF(千円単!P82="","",ROUND(千円単!P82/1000,0)) -> 27 | Q82: =IF(千円単!Q82="","",ROUND(千円単!Q82/1000,0)) -> 0 | R82: =IF(千円単!R82="","",ROUND(千円単!R82/1000,0)) -> 31 | S82: =IF(千円単!S82="","",ROUND(千円単!S82/1000,0)) -> 15 | T82: =IF(千円単!T82="","",ROUND(千円単!T82/1000,0)) -> 6 | U82: =IF(千円単!U82="","",ROUND(千円単!U82/1000,0)) -> 283 | V82: =IF(千円単!V82="","",ROUND(千円単!V82/1000,0)) -> 20 | W82: =IF(千円単!W82="","",ROUND(千円単!W82/1000,0)) -> 263 | X82: =IF(千円単!X82="","",ROUND(千円単!X82/1000,0)) -> -251 | Y82: =IF(千円単!Y82="","",ROUND(千円単!Y82/1000,0)) -> 0
A83: 2019 | B83: 46 | C83: 17 | D83: 1 | E83: 82 | F83: 公共 | G83: 072117 | H83: 福島県 | I83: 田村市 | J83: =IF(千円単!J83="","",ROUND(千円単!J83/1000,0)) -> 552 | K83: =IF(千円単!K83="","",ROUND(千円単!K83/1000,0)) -> 147 | L83: =IF(千円単!L83="","",ROUND(千円単!L83/1000,0)) -> 258 | M83: =IF(千円単!M83="","",ROUND(千円単!M83/1000,0)) -> 552 | N83: =IF(千円単!N83="","",ROUND(千円単!N83/1000,0)) -> 91 | O83: =IF(千円単!O83="","",ROUND(千円単!O83/1000,0)) -> 322 | P83: =IF(千円単!P83="","",ROUND(千円単!P83/1000,0)) -> 11 | Q83: =IF(千円単!Q83="","",ROUND(千円単!Q83/1000,0)) -> 0 | R83: =IF(千円単!R83="","",ROUND(千円単!R83/1000,0)) -> 318 | S83: =IF(千円単!S83="","",ROUND(千円単!S83/1000,0)) -> 72 | T83: =IF(千円単!T83="","",ROUND(千円単!T83/1000,0)) -> 0 | U83: =IF(千円単!U83="","",ROUND(千円単!U83/1000,0)) -> 479 | V83: =IF(千円単!V83="","",ROUND(千円単!V83/1000,0)) -> 161 | W83: =IF(千円単!W83="","",ROUND(千円単!W83/1000,0)) -> 318 | X83: =IF(千円単!X83="","",ROUND(千円単!X83/1000,0)) -> -161 | Y83: =IF(千円単!Y83="","",ROUND(千円単!Y83/1000,0)) -> 0
A84: 2019 | B84: 46 | C84: 17 | D84: 1 | E84: 83 | F84: 公共 | G84: 072125 | H84: 福島県 | I84: 南相馬市 | J84: =IF(千円単!J84="","",ROUND(千円単!J84/1000,0)) -> 1806 | K84: =IF(千円単!K84="","",ROUND(千円単!K84/1000,0)) -> 462 | L84: =IF(千円単!L84="","",ROUND(千円単!L84/1000,0)) -> 567 | M84: =IF(千円単!M84="","",ROUND(千円単!M84/1000,0)) -> 1675 | N84: =IF(千円単!N84="","",ROUND(千円単!N84/1000,0)) -> 167 | O84: =IF(千円単!O84="","",ROUND(千円単!O84/1000,0)) -> 893 | P84: =IF(千円単!P84="","",ROUND(千円単!P84/1000,0)) -> 48 | Q84: =IF(千円単!Q84="","",ROUND(千円単!Q84/1000,0)) -> 131 | R84: =IF(千円単!R84="","",ROUND(千円単!R84/1000,0)) -> 1070 | S84: =IF(千円単!S84="","",ROUND(千円単!S84/1000,0)) -> 687 | T84: =IF(千円単!T84="","",ROUND(千円単!T84/1000,0)) -> 0 | U84: =IF(千円単!U84="","",ROUND(千円単!U84/1000,0)) -> 1544 | V84: =IF(千円単!V84="","",ROUND(千円単!V84/1000,0)) -> 735 | W84: =IF(千円単!W84="","",ROUND(千円単!W84/1000,0)) -> 808 | X84: =IF(千円単!X84="","",ROUND(千円単!X84/1000,0)) -> -474 | Y84: =IF(千円単!Y84="","",ROUND(千円単!Y84/1000,0)) -> 131
A85: 2019 | B85: 46 | C85: 17 | D85: 1 | E85: 84 | F85: 公共 | G85: 072141 | H85: 福島県 | I85: 本宮市 | J85: =IF(千円単!J85="","",ROUND(千円単!J85/1000,0)) -> 794 | K85: =IF(千円単!K85="","",ROUND(千円単!K85/1000,0)) -> 240 | L85: =IF(千円単!L85="","",ROUND(千円単!L85/1000,0)) -> 305 | M85: =IF(千円単!M85="","",ROUND(千円単!M85/1000,0)) -> 742 | N85: =IF(千円単!N85="","",ROUND(千円単!N85/1000,0)) -> 63 | O85: =IF(千円単!O85="","",ROUND(千円単!O85/1000,0)) -> 423 | P85: =IF(千円単!P85="","",ROUND(千円単!P85/1000,0)) -> 14 | Q85: =IF(千円単!Q85="","",ROUND(千円単!Q85/1000,0)) -> 52 | R85: =IF(千円単!R85="","",ROUND(千円単!R85/1000,0)) -> 544 | S85: =IF(千円単!S85="","",ROUND(千円単!S85/1000,0)) -> 339 | T85: =IF(千円単!T85="","",ROUND(千円単!T85/1000,0)) -> 40 | U85: =IF(千円単!U85="","",ROUND(千円単!U85/1000,0)) -> 753 | V85: =IF(千円単!V85="","",ROUND(千円単!V85/1000,0)) -> 347 | W85: =IF(千円単!W85="","",ROUND(千円単!W85/1000,0)) -> 406 | X85: =IF(千円単!X85="","",ROUND(千円単!X85/1000,0)) -> -208 | Y85: =IF(千円単!Y85="","",ROUND(千円単!Y85/1000,0)) -> 52
A86: 2019 | B86: 46 | C86: 17 | D86: 1 | E86: 85 | F86: 公共 | G86: 075213 | H86: 福島県 | I86: 三春町 | J86: =IF(千円単!J86="","",ROUND(千円単!J86/1000,0)) -> 191 | K86: =IF(千円単!K86="","",ROUND(千円単!K86/1000,0)) -> 90 | L86: =IF(千円単!L86="","",ROUND(千円単!L86/1000,0)) -> 21 | M86: =IF(千円単!M86="","",ROUND(千円単!M86/1000,0)) -> 196 | N86: =IF(千円単!N86="","",ROUND(千円単!N86/1000,0)) -> 21 | O86: =IF(千円単!O86="","",ROUND(千円単!O86/1000,0)) -> 134 | P86: =IF(千円単!P86="","",ROUND(千円単!P86/1000,0)) -> 10 | Q86: =IF(千円単!Q86="","",ROUND(千円単!Q86/1000,0)) -> -5 | R86: =IF(千円単!R86="","",ROUND(千円単!R86/1000,0)) -> 99 | S86: =IF(千円単!S86="","",ROUND(千円単!S86/1000,0)) -> 0 | T86: =IF(千円単!T86="","",ROUND(千円単!T86/1000,0)) -> 0 | U86: =IF(千円単!U86="","",ROUND(千円単!U86/1000,0)) -> 125 | V86: =IF(千円単!V86="","",ROUND(千円単!V86/1000,0)) -> 4 | W86: =IF(千円単!W86="","",ROUND(千円単!W86/1000,0)) -> 121 | X86: =IF(千円単!X86="","",ROUND(千円単!X86/1000,0)) -> -26 | Y86: =IF(千円単!Y86="","",ROUND(千円単!Y86/1000,0)) -> -5
A87: 2019 | B87: 46 | C87: 17 | D87: 1 | E87: 86 | F87: 公共 | G87: 082015 | H87: 茨城県 | I87: 水戸市 | J87: =IF(千円単!J87="","",ROUND(千円単!J87/1000,0)) -> 8799 | K87: =IF(千円単!K87="","",ROUND(千円単!K87/1000,0)) -> 3234 | L87: =IF(千円単!L87="","",ROUND(千円単!L87/1000,0)) -> 3693 | M87: =IF(千円単!M87="","",ROUND(千円単!M87/1000,0)) -> 8494 | N87: =IF(千円単!N87="","",ROUND(千円単!N87/1000,0)) -> 1382 | O87: =IF(千円単!O87="","",ROUND(千円単!O87/1000,0)) -> 5397 | P87: =IF(千円単!P87="","",ROUND(千円単!P87/1000,0)) -> 193 | Q87: =IF(千円単!Q87="","",ROUND(千円単!Q87/1000,0)) -> 305 | R87: =IF(千円単!R87="","",ROUND(千円単!R87/1000,0)) -> 5762 | S87: =IF(千円単!S87="","",ROUND(千円単!S87/1000,0)) -> 2993 | T87: =IF(千円単!T87="","",ROUND(千円単!T87/1000,0)) -> 650 | U87: =IF(千円単!U87="","",ROUND(千円単!U87/1000,0)) -> 9845 | V87: =IF(千円単!V87="","",ROUND(千円単!V87/1000,0)) -> 4279 | W87: =IF(千円単!W87="","",ROUND(千円単!W87/1000,0)) -> 5563 | X87: =IF(千円単!X87="","",ROUND(千円単!X87/1000,0)) -> -4083 | Y87: =IF(千円単!Y87="","",ROUND(千円単!Y87/1000,0)) -> 305
A88: 2019 | B88: 46 | C88: 17 | D88: 1 | E88: 87 | F88: 公共 | G88: 082023 | H88: 茨城県 | I88: 日立市 | J88: =IF(千円単!J88="","",ROUND(千円単!J88/1000,0)) -> 3871 | K88: =IF(千円単!K88="","",ROUND(千円単!K88/1000,0)) -> 2529 | L88: =IF(千円単!L88="","",ROUND(千円単!L88/1000,0)) -> 93 | M88: =IF(千円単!M88="","",ROUND(千円単!M88/1000,0)) -> 3470 | N88: =IF(千円単!N88="","",ROUND(千円単!N88/1000,0)) -> 215 | O88: =IF(千円単!O88="","",ROUND(千円単!O88/1000,0)) -> 2071 | P88: =IF(千円単!P88="","",ROUND(千円単!P88/1000,0)) -> 98 | Q88: =IF(千円単!Q88="","",ROUND(千円単!Q88/1000,0)) -> 402 | R88: =IF(千円単!R88="","",ROUND(千円単!R88/1000,0)) -> 947 | S88: =IF(千円単!S88="","",ROUND(千円単!S88/1000,0)) -> 280 | T88: =IF(千円単!T88="","",ROUND(千円単!T88/1000,0)) -> 326 | U88: =IF(千円単!U88="","",ROUND(千円単!U88/1000,0)) -> 2151 | V88: =IF(千円単!V88="","",ROUND(千円単!V88/1000,0)) -> 844 | W88: =IF(千円単!W88="","",ROUND(千円単!W88/1000,0)) -> 1308 | X88: =IF(千円単!X88="","",ROUND(千円単!X88/1000,0)) -> -1204 | Y88: =IF(千円単!Y88="","",ROUND(千円単!Y88/1000,0)) -> 402
A89: 2019 | B89: 46 | C89: 17 | D89: 1 | E89: 88 | F89: 公共 | G89: 082121 | H89: 茨城県 | I89: 常陸太田市 | J89: =IF(千円単!J89="","",ROUND(千円単!J89/1000,0)) -> 964 | K89: =IF(千円単!K89="","",ROUND(千円単!K89/1000,0)) -> 233 | L89: =IF(千円単!L89="","",ROUND(千円単!L89/1000,0)) -> 468 | M89: =IF(千円単!M89="","",ROUND(千円単!M89/1000,0)) -> 725 | N89: =IF(千円単!N89="","",ROUND(千円単!N89/1000,0)) -> 78 | O89: =IF(千円単!O89="","",ROUND(千円単!O89/1000,0)) -> 428 | P89: =IF(千円単!P89="","",ROUND(千円単!P89/1000,0)) -> 34 | Q89: =IF(千円単!Q89="","",ROUND(千円単!Q89/1000,0)) -> 239 | R89: =IF(千円単!R89="","",ROUND(千円単!R89/1000,0)) -> 223 | S89: =IF(千円単!S89="","",ROUND(千円単!S89/1000,0)) -> 124 | T89: =IF(千円単!T89="","",ROUND(千円単!T89/1000,0)) -> 9 | U89: =IF(千円単!U89="","",ROUND(千円単!U89/1000,0)) -> 569 | V89: =IF(千円単!V89="","",ROUND(千円単!V89/1000,0)) -> 227 | W89: =IF(千円単!W89="","",ROUND(千円単!W89/1000,0)) -> 342 | X89: =IF(千円単!X89="","",ROUND(千円単!X89/1000,0)) -> -346 | Y89: =IF(千円単!Y89="","",ROUND(千円単!Y89/1000,0)) -> 239
A90: 2019 | B90: 46 | C90: 17 | D90: 1 | E90: 89 | F90: 公共 | G90: 082163 | H90: 茨城県 | I90: 笠間市 | J90: =IF(千円単!J90="","",ROUND(千円単!J90/1000,0)) -> 1807 | K90: =IF(千円単!K90="","",ROUND(千円単!K90/1000,0)) -> 585 | L90: =IF(千円単!L90="","",ROUND(千円単!L90/1000,0)) -> 649 | M90: =IF(千円単!M90="","",ROUND(千円単!M90/1000,0)) -> 1759 | N90: =IF(千円単!N90="","",ROUND(千円単!N90/1000,0)) -> 234 | O90: =IF(千円単!O90="","",ROUND(千円単!O90/1000,0)) -> 1020 | P90: =IF(千円単!P90="","",ROUND(千円単!P90/1000,0)) -> 62 | Q90: =IF(千円単!Q90="","",ROUND(千円単!Q90/1000,0)) -> 49 | R90: =IF(千円単!R90="","",ROUND(千円単!R90/1000,0)) -> 1294 | S90: =IF(千円単!S90="","",ROUND(千円単!S90/1000,0)) -> 801 | T90: =IF(千円単!T90="","",ROUND(千円単!T90/1000,0)) -> 248 | U90: =IF(千円単!U90="","",ROUND(千円単!U90/1000,0)) -> 1867 | V90: =IF(千円単!V90="","",ROUND(千円単!V90/1000,0)) -> 648 | W90: =IF(千円単!W90="","",ROUND(千円単!W90/1000,0)) -> 1219 | X90: =IF(千円単!X90="","",ROUND(千円単!X90/1000,0)) -> -573 | Y90: =IF(千円単!Y90="","",ROUND(千円単!Y90/1000,0)) -> 49
A91: 2019 | B91: 46 | C91: 17 | D91: 1 | E91: 90 | F91: 公共 | G91: 082228 | H91: 茨城県 | I91: 鹿嶋市 | J91: =IF(千円単!J91="","",ROUND(千円単!J91/1000,0)) -> 1404 | K91: =IF(千円単!K91="","",ROUND(千円単!K91/1000,0)) -> 521 | L91: =IF(千円単!L91="","",ROUND(千円単!L91/1000,0)) -> 422 | M91: =IF(千円単!M91="","",ROUND(千円単!M91/1000,0)) -> 1371 | N91: =IF(千円単!N91="","",ROUND(千円単!N91/1000,0)) -> 141 | O91: =IF(千円単!O91="","",ROUND(千円単!O91/1000,0)) -> 872 | P91: =IF(千円単!P91="","",ROUND(千円単!P91/1000,0)) -> 29 | Q91: =IF(千円単!Q91="","",ROUND(千円単!Q91/1000,0)) -> 33 | R91: =IF(千円単!R91="","",ROUND(千円単!R91/1000,0)) -> 784 | S91: =IF(千円単!S91="","",ROUND(千円単!S91/1000,0)) -> 458 | T91: =IF(千円単!T91="","",ROUND(千円単!T91/1000,0)) -> 0 | U91: =IF(千円単!U91="","",ROUND(千円単!U91/1000,0)) -> 1300 | V91: =IF(千円単!V91="","",ROUND(千円単!V91/1000,0)) -> 809 | W91: =IF(千円単!W91="","",ROUND(千円単!W91/1000,0)) -> 489 | X91: =IF(千円単!X91="","",ROUND(千円単!X91/1000,0)) -> -516 | Y91: =IF(千円単!Y91="","",ROUND(千円単!Y91/1000,0)) -> 33
A92: 2019 | B92: 46 | C92: 17 | D92: 1 | E92: 91 | F92: 公共 | G92: 082244 | H92: 茨城県 | I92: 守谷市 | J92: =IF(千円単!J92="","",ROUND(千円単!J92/1000,0)) -> 2315 | K92: =IF(千円単!K92="","",ROUND(千円単!K92/1000,0)) -> 1373 | L92: =IF(千円単!L92="","",ROUND(千円単!L92/1000,0)) -> 28 | M92: =IF(千円単!M92="","",ROUND(千円単!M92/1000,0)) -> 1994 | N92: =IF(千円単!N92="","",ROUND(千円単!N92/1000,0)) -> 65 | O92: =IF(千円単!O92="","",ROUND(千円単!O92/1000,0)) -> 1154 | P92: =IF(千円単!P92="","",ROUND(千円単!P92/1000,0)) -> 68 | Q92: =IF(千円単!Q92="","",ROUND(千円単!Q92/1000,0)) -> 322 | R92: =IF(千円単!R92="","",ROUND(千円単!R92/1000,0)) -> 267 | S92: =IF(千円単!S92="","",ROUND(千円単!S92/1000,0)) -> 0 | T92: =IF(千円単!T92="","",ROUND(千円単!T92/1000,0)) -> 19 | U92: =IF(千円単!U92="","",ROUND(千円単!U92/1000,0)) -> 476 | V92: =IF(千円単!V92="","",ROUND(千円単!V92/1000,0)) -> 129 | W92: =IF(千円単!W92="","",ROUND(千円単!W92/1000,0)) -> 278 | X92: =IF(千円単!X92="","",ROUND(千円単!X92/1000,0)) -> -209 | Y92: =IF(千円単!Y92="","",ROUND(千円単!Y92/1000,0)) -> 322
A93: 2019 | B93: 46 | C93: 17 | D93: 1 | E93: 92 | F93: 公共 | G93: 082252 | H93: 茨城県 | I93: 常陸大宮市 | J93: =IF(千円単!J93="","",ROUND(千円単!J93/1000,0)) -> 520 | K93: =IF(千円単!K93="","",ROUND(千円単!K93/1000,0)) -> 144 | L93: =IF(千円単!L93="","",ROUND(千円単!L93/1000,0)) -> 254 | M93: =IF(千円単!M93="","",ROUND(千円単!M93/1000,0)) -> 434 | N93: =IF(千円単!N93="","",ROUND(千円単!N93/1000,0)) -> 55 | O93: =IF(千円単!O93="","",ROUND(千円単!O93/1000,0)) -> 222 | P93: =IF(千円単!P93="","",ROUND(千円単!P93/1000,0)) -> 27 | Q93: =IF(千円単!Q93="","",ROUND(千円単!Q93/1000,0)) -> 86 | R93: =IF(千円単!R93="","",ROUND(千円単!R93/1000,0)) -> 456 | S93: =IF(千円単!S93="","",ROUND(千円単!S93/1000,0)) -> 291 | T93: =IF(千円単!T93="","",ROUND(千円単!T93/1000,0)) -> 9 | U93: =IF(千円単!U93="","",ROUND(千円単!U93/1000,0)) -> 662 | V93: =IF(千円単!V93="","",ROUND(千円単!V93/1000,0)) -> 471 | W93: =IF(千円単!W93="","",ROUND(千円単!W93/1000,0)) -> 191 | X93: =IF(千円単!X93="","",ROUND(千円単!X93/1000,0)) -> -206 | Y93: =IF(千円単!Y93="","",ROUND(千円単!Y93/1000,0)) -> 86
A94: 2019 | B94: 46 | C94: 17 | D94: 1 | E94: 93 | F94: 公共 | G94: 082295 | H94: 茨城県 | I94: 稲敷市 | J94: =IF(千円単!J94="","",ROUND(千円単!J94/1000,0)) -> 505 | K94: =IF(千円単!K94="","",ROUND(千円単!K94/1000,0)) -> 44 | L94: =IF(千円単!L94="","",ROUND(千円単!L94/1000,0)) -> 284 | M94: =IF(千円単!M94="","",ROUND(千円単!M94/1000,0)) -> 373 | N94: =IF(千円単!N94="","",ROUND(千円単!N94/1000,0)) -> 62 | O94: =IF(千円単!O94="","",ROUND(千円単!O94/1000,0)) -> 236 | P94: =IF(千円単!P94="","",ROUND(千円単!P94/1000,0)) -> 12 | Q94: =IF(千円単!Q94="","",ROUND(千円単!Q94/1000,0)) -> 132 | R94: =IF(千円単!R94="","",ROUND(千円単!R94/1000,0)) -> 53 | S94: =IF(千円単!S94="","",ROUND(千円単!S94/1000,0)) -> 8 | T94: =IF(千円単!T94="","",ROUND(千円単!T94/1000,0)) -> 45 | U94: =IF(千円単!U94="","",ROUND(千円単!U94/1000,0)) -> 236 | V94: =IF(千円単!V94="","",ROUND(千円単!V94/1000,0)) -> 27 | W94: =IF(千円単!W94="","",ROUND(千円単!W94/1000,0)) -> 206 | X94: =IF(千円単!X94="","",ROUND(千円単!X94/1000,0)) -> -183 | Y94: =IF(千円単!Y94="","",ROUND(千円単!Y94/1000,0)) -> 132
A95: 2019 | B95: 46 | C95: 17 | D95: 1 | E95: 94 | F95: 公共 | G95: 082309 | H95: 茨城県 | I95: かすみがうら市 | J95: =IF(千円単!J95="","",ROUND(千円単!J95/1000,0)) -> 767 | K95: =IF(千円単!K95="","",ROUND(千円単!K95/1000,0)) -> 274 | L95: =IF(千円単!L95="","",ROUND(千円単!L95/1000,0)) -> 327 | M95: =IF(千円単!M95="","",ROUND(千円単!M95/1000,0)) -> 599 | N95: =IF(千円単!N95="","",ROUND(千円単!N95/1000,0)) -> 59 | O95: =IF(千円単!O95="","",ROUND(千円単!O95/1000,0)) -> 239 | P95: =IF(千円単!P95="","",ROUND(千円単!P95/1000,0)) -> 52 | Q95: =IF(千円単!Q95="","",ROUND(千円単!Q95/1000,0)) -> 167 | R95: =IF(千円単!R95="","",ROUND(千円単!R95/1000,0)) -> 102 | S95: =IF(千円単!S95="","",ROUND(千円単!S95/1000,0)) -> 42 | T95: =IF(千円単!T95="","",ROUND(千円単!T95/1000,0)) -> 54 | U95: =IF(千円単!U95="","",ROUND(千円単!U95/1000,0)) -> 322 | V95: =IF(千円単!V95="","",ROUND(千円単!V95/1000,0)) -> 35 | W95: =IF(千円単!W95="","",ROUND(千円単!W95/1000,0)) -> 287 | X95: =IF(千円単!X95="","",ROUND(千円単!X95/1000,0)) -> -220 | Y95: =IF(千円単!Y95="","",ROUND(千円単!Y95/1000,0)) -> 167
A96: 2019 | B96: 46 | C96: 17 | D96: 1 | E96: 95 | F96: 公共 | G96: 083411 | H96: 茨城県 | I96: 東海村 | J96: =IF(千円単!J96="","",ROUND(千円単!J96/1000,0)) -> 756 | K96: =IF(千円単!K96="","",ROUND(千円単!K96/1000,0)) -> 321 | L96: =IF(千円単!L96="","",ROUND(千円単!L96/1000,0)) -> 173 | M96: =IF(千円単!M96="","",ROUND(千円単!M96/1000,0)) -> 744 | N96: =IF(千円単!N96="","",ROUND(千円単!N96/1000,0)) -> 73 | O96: =IF(千円単!O96="","",ROUND(千円単!O96/1000,0)) -> 450 | P96: =IF(千円単!P96="","",ROUND(千円単!P96/1000,0)) -> 24 | Q96: =IF(千円単!Q96="","",ROUND(千円単!Q96/1000,0)) -> 12 | R96: =IF(千円単!R96="","",ROUND(千円単!R96/1000,0)) -> 568 | S96: =IF(千円単!S96="","",ROUND(千円単!S96/1000,0)) -> 61 | T96: =IF(千円単!T96="","",ROUND(千円単!T96/1000,0)) -> 0 | U96: =IF(千円単!U96="","",ROUND(千円単!U96/1000,0)) -> 523 | V96: =IF(千円単!V96="","",ROUND(千円単!V96/1000,0)) -> 177 | W96: =IF(千円単!W96="","",ROUND(千円単!W96/1000,0)) -> 346 | X96: =IF(千円単!X96="","",ROUND(千円単!X96/1000,0)) -> 45 | Y96: =IF(千円単!Y96="","",ROUND(千円単!Y96/1000,0)) -> 12
A97: 2019 | B97: 46 | C97: 17 | D97: 1 | E97: 96 | F97: 公共 | G97: 089192 | H97: 茨城県 | I97: 取手地方広域下水道組合 | J97: =IF(千円単!J97="","",ROUND(千円単!J97/1000,0)) -> 3955 | K97: =IF(千円単!K97="","",ROUND(千円単!K97/1000,0)) -> 1098 | L97: =IF(千円単!L97="","",ROUND(千円単!L97/1000,0)) -> 1582 | M97: =IF(千円単!M97="","",ROUND(千円単!M97/1000,0)) -> 3797 | N97: =IF(千円単!N97="","",ROUND(千円単!N97/1000,0)) -> 400 | O97: =IF(千円単!O97="","",ROUND(千円単!O97/1000,0)) -> 2395 | P97: =IF(千円単!P97="","",ROUND(千円単!P97/1000,0)) -> 252 | Q97: =IF(千円単!Q97="","",ROUND(千円単!Q97/1000,0)) -> 158 | R97: =IF(千円単!R97="","",ROUND(千円単!R97/1000,0)) -> 1799 | S97: =IF(千円単!S97="","",ROUND(千円単!S97/1000,0)) -> 774 | T97: =IF(千円単!T97="","",ROUND(千円単!T97/1000,0)) -> 270 | U97: =IF(千円単!U97="","",ROUND(千円単!U97/1000,0)) -> 2941 | V97: =IF(千円単!V97="","",ROUND(千円単!V97/1000,0)) -> 1469 | W97: =IF(千円単!W97="","",ROUND(千円単!W97/1000,0)) -> 1470 | X97: =IF(千円単!X97="","",ROUND(千円単!X97/1000,0)) -> -1142 | Y97: =IF(千円単!Y97="","",ROUND(千円単!Y97/1000,0)) -> 158
A98: 2019 | B98: 46 | C98: 17 | D98: 1 | E98: 97 | F98: 公共 | G98: 089222 | H98: 茨城県 | I98: 日立・高萩広域下水道組合 | J98: =IF(千円単!J98="","",ROUND(千円単!J98/1000,0)) -> 2187 | K98: =IF(千円単!K98="","",ROUND(千円単!K98/1000,0)) -> 1165 | L98: =IF(千円単!L98="","",ROUND(千円単!L98/1000,0)) -> 464 | M98: =IF(千円単!M98="","",ROUND(千円単!M98/1000,0)) -> 2185 | N98: =IF(千円単!N98="","",ROUND(千円単!N98/1000,0)) -> 207 | O98: =IF(千円単!O98="","",ROUND(千円単!O98/1000,0)) -> 1324 | P98: =IF(千円単!P98="","",ROUND(千円単!P98/1000,0)) -> 186 | Q98: =IF(千円単!Q98="","",ROUND(千円単!Q98/1000,0)) -> 2 | R98: =IF(千円単!R98="","",ROUND(千円単!R98/1000,0)) -> 911 | S98: =IF(千円単!S98="","",ROUND(千円単!S98/1000,0)) -> 252 | T98: =IF(千円単!T98="","",ROUND(千円単!T98/1000,0)) -> 0 | U98: =IF(千円単!U98="","",ROUND(千円単!U98/1000,0)) -> 1827 | V98: =IF(千円単!V98="","",ROUND(千円単!V98/1000,0)) -> 666 | W98: =IF(千円単!W98="","",ROUND(千円単!W98/1000,0)) -> 1161 | X98: =IF(千円単!X98="","",ROUND(千円単!X98/1000,0)) -> -916 | Y98: =IF(千円単!Y98="","",ROUND(千円単!Y98/1000,0)) -> 2
A99: 2019 | B99: 46 | C99: 17 | D99: 1 | E99: 98 | F99: 公共 | G99: 092011 | H99: 栃木県 | I99: 宇都宮市 | J99: =IF(千円単!J99="","",ROUND(千円単!J99/1000,0)) -> 11500 | K99: =IF(千円単!K99="","",ROUND(千円単!K99/1000,0)) -> 6834 | L99: =IF(千円単!L99="","",ROUND(千円単!L99/1000,0)) -> 2254 | M99: =IF(千円単!M99="","",ROUND(千円単!M99/1000,0)) -> 11195 | N99: =IF(千円単!N99="","",ROUND(千円単!N99/1000,0)) -> 897 | O99: =IF(千円単!O99="","",ROUND(千円単!O99/1000,0)) -> 5968 | P99: =IF(千円単!P99="","",ROUND(千円単!P99/1000,0)) -> 409 | Q99: =IF(千円単!Q99="","",ROUND(千円単!Q99/1000,0)) -> 305 | R99: =IF(千円単!R99="","",ROUND(千円単!R99/1000,0)) -> 3057 | S99: =IF(千円単!S99="","",ROUND(千円単!S99/1000,0)) -> 1165 | T99: =IF(千円単!T99="","",ROUND(千円単!T99/1000,0)) -> 230 | U99: =IF(千円単!U99="","",ROUND(千円単!U99/1000,0)) -> 7504 | V99: =IF(千円単!V99="","",ROUND(千円単!V99/1000,0)) -> 2923 | W99: =IF(千円単!W99="","",ROUND(千円単!W99/1000,0)) -> 4582 | X99: =IF(千円単!X99="","",ROUND(千円単!X99/1000,0)) -> -4448 | Y99: =IF(千円単!Y99="","",ROUND(千円単!Y99/1000,0)) -> 305
A100: 2019 | B100: 46 | C100: 17 | D100: 1 | E100: 99 | F100: 公共 | G100: 092037 | H100: 栃木県 | I100: 栃木市 | J100: =IF(千円単!J100="","",ROUND(千円単!J100/1000,0)) -> 3463 | K100: =IF(千円単!K100="","",ROUND(千円単!K100/1000,0)) -> 1185 | L100: =IF(千円単!L100="","",ROUND(千円単!L100/1000,0)) -> 1707 | M100: =IF(千円単!M100="","",ROUND(千円単!M100/1000,0)) -> 3134 | N100: =IF(千円単!N100="","",ROUND(千円単!N100/1000,0)) -> 426 | O100: =IF(千円単!O100="","",ROUND(千円単!O100/1000,0)) -> 1656 | P100: =IF(千円単!P100="","",ROUND(千円単!P100/1000,0)) -> 138 | Q100: =IF(千円単!Q100="","",ROUND(千円単!Q100/1000,0)) -> 328 | R100: =IF(千円単!R100="","",ROUND(千円単!R100/1000,0)) -> 1519 | S100: =IF(千円単!S100="","",ROUND(千円単!S100/1000,0)) -> 697 | T100: =IF(千円単!T100="","",ROUND(千円単!T100/1000,0)) -> 420 | U100: =IF(千円単!U100="","",ROUND(千円単!U100/1000,0)) -> 2849 | V100: =IF(千円単!V100="","",ROUND(千円単!V100/1000,0)) -> 1193 | W100: =IF(千円単!W100="","",ROUND(千円単!W100/1000,0)) -> 1656 | X100: =IF(千円単!X100="","",ROUND(千円単!X100/1000,0)) -> -1330 | Y100: =IF(千円単!Y100="","",ROUND(千円単!Y100/1000,0)) -> 328
A101: 2019 | B101: 46 | C101: 17 | D101: 1 | E101: 100 | F101: 公共 | G101: 092088 | H101: 栃木県 | I101: 小山市 | J101: =IF(千円単!J101="","",ROUND(千円単!J101/1000,0)) -> 3826 | K101: =IF(千円単!K101="","",ROUND(千円単!K101/1000,0)) -> 1329 | L101: =IF(千円単!L101="","",ROUND(千円単!L101/1000,0)) -> 1403 | M101: =IF(千円単!M101="","",ROUND(千円単!M101/1000,0)) -> 3545 | N101: =IF(千円単!N101="","",ROUND(千円単!N101/1000,0)) -> 423 | O101: =IF(千円単!O101="","",ROUND(千円単!O101/1000,0)) -> 2197 | P101: =IF(千円単!P101="","",ROUND(千円単!P101/1000,0)) -> 75 | Q101: =IF(千円単!Q101="","",ROUND(千円単!Q101/1000,0)) -> 281 | R101: =IF(千円単!R101="","",ROUND(千円単!R101/1000,0)) -> 2327 | S101: =IF(千円単!S101="","",ROUND(千円単!S101/1000,0)) -> 1477 | T101: =IF(千円単!T101="","",ROUND(千円単!T101/1000,0)) -> 178 | U101: =IF(千円単!U101="","",ROUND(千円単!U101/1000,0)) -> 3781 | V101: =IF(千円単!V101="","",ROUND(千円単!V101/1000,0)) -> 1606 | W101: =IF(千円単!W101="","",ROUND(千円単!W101/1000,0)) -> 2174 | X101: =IF(千円単!X101="","",ROUND(千円単!X101/1000,0)) -> -1454 | Y101: =IF(千円単!Y101="","",ROUND(千円単!Y101/1000,0)) -> 281
A102: 2019 | B102: 46 | C102: 17 | D102: 1 | E102: 101 | F102: 公共 | G102: 092142 | H102: 栃木県 | I102: さくら市 | J102: =IF(千円単!J102="","",ROUND(千円単!J102/1000,0)) -> 831 | K102: =IF(千円単!K102="","",ROUND(千円単!K102/1000,0)) -> 196 | L102: =IF(千円単!L102="","",ROUND(千円単!L102/1000,0)) -> 423 | M102: =IF(千円単!M102="","",ROUND(千円単!M102/1000,0)) -> 666 | N102: =IF(千円単!N102="","",ROUND(千円単!N102/1000,0)) -> 81 | O102: =IF(千円単!O102="","",ROUND(千円単!O102/1000,0)) -> 395 | P102: =IF(千円単!P102="","",ROUND(千円単!P102/1000,0)) -> 30 | Q102: =IF(千円単!Q102="","",ROUND(千円単!Q102/1000,0)) -> 165 | R102: =IF(千円単!R102="","",ROUND(千円単!R102/1000,0)) -> 510 | S102: =IF(千円単!S102="","",ROUND(千円単!S102/1000,0)) -> 222 | T102: =IF(千円単!T102="","",ROUND(千円単!T102/1000,0)) -> 10 | U102: =IF(千円単!U102="","",ROUND(千円単!U102/1000,0)) -> 875 | V102: =IF(千円単!V102="","",ROUND(千円単!V102/1000,0)) -> 573 | W102: =IF(千円単!W102="","",ROUND(千円単!W102/1000,0)) -> 302 | X102: =IF(千円単!X102="","",ROUND(千円単!X102/1000,0)) -> -365 | Y102: =IF(千円単!Y102="","",ROUND(千円単!Y102/1000,0)) -> 165
A103: 2019 | B103: 46 | C103: 17 | D103: 1 | E103: 102 | F103: 公共 | G103: 092169 | H103: 栃木県 | I103: 下野市 | J103: =IF(千円単!J103="","",ROUND(千円単!J103/1000,0)) -> 1450 | K103: =IF(千円単!K103="","",ROUND(千円単!K103/1000,0)) -> 554 | L103: =IF(千円単!L103="","",ROUND(千円単!L103/1000,0)) -> 242 | M103: =IF(千円単!M103="","",ROUND(千円単!M103/1000,0)) -> 1165 | N103: =IF(千円単!N103="","",ROUND(千円単!N103/1000,0)) -> 92 | O103: =IF(千円単!O103="","",ROUND(千円単!O103/1000,0)) -> 701 | P103: =IF(千円単!P103="","",ROUND(千円単!P103/1000,0)) -> 23 | Q103: =IF(千円単!Q103="","",ROUND(千円単!Q103/1000,0)) -> 285 | R103: =IF(千円単!R103="","",ROUND(千円単!R103/1000,0)) -> 637 | S103: =IF(千円単!S103="","",ROUND(千円単!S103/1000,0)) -> 225 | T103: =IF(千円単!T103="","",ROUND(千円単!T103/1000,0)) -> 203 | U103: =IF(千円単!U103="","",ROUND(千円単!U103/1000,0)) -> 873 | V103: =IF(千円単!V103="","",ROUND(千円単!V103/1000,0)) -> 520 | W103: =IF(千円単!W103="","",ROUND(千円単!W103/1000,0)) -> 353 | X103: =IF(千円単!X103="","",ROUND(千円単!X103/1000,0)) -> -235 | Y103: =IF(千円単!Y103="","",ROUND(千円単!Y103/1000,0)) -> 285
A104: 2019 | B104: 46 | C104: 17 | D104: 1 | E104: 103 | F104: 公共 | G104: 093017 | H104: 栃木県 | I104: 上三川町 | J104: =IF(千円単!J104="","",ROUND(千円単!J104/1000,0)) -> 649 | K104: =IF(千円単!K104="","",ROUND(千円単!K104/1000,0)) -> 232 | L104: =IF(千円単!L104="","",ROUND(千円単!L104/1000,0)) -> 106 | M104: =IF(千円単!M104="","",ROUND(千円単!M104/1000,0)) -> 632 | N104: =IF(千円単!N104="","",ROUND(千円単!N104/1000,0)) -> 69 | O104: =IF(千円単!O104="","",ROUND(千円単!O104/1000,0)) -> 332 | P104: =IF(千円単!P104="","",ROUND(千円単!P104/1000,0)) -> 21 | Q104: =IF(千円単!Q104="","",ROUND(千円単!Q104/1000,0)) -> 17 | R104: =IF(千円単!R104="","",ROUND(千円単!R104/1000,0)) -> 534 | S104: =IF(千円単!S104="","",ROUND(千円単!S104/1000,0)) -> 148 | T104: =IF(千円単!T104="","",ROUND(千円単!T104/1000,0)) -> 249 | U104: =IF(千円単!U104="","",ROUND(千円単!U104/1000,0)) -> 568 | V104: =IF(千円単!V104="","",ROUND(千円単!V104/1000,0)) -> 277 | W104: =IF(千円単!W104="","",ROUND(千円単!W104/1000,0)) -> 291 | X104: =IF(千円単!X104="","",ROUND(千円単!X104/1000,0)) -> -33 | Y104: =IF(千円単!Y104="","",ROUND(千円単!Y104/1000,0)) -> 17
A105: 2019 | B105: 46 | C105: 17 | D105: 1 | E105: 104 | F105: 公共 | G105: 093866 | H105: 栃木県 | I105: 高根沢町 | J105: =IF(千円単!J105="","",ROUND(千円単!J105/1000,0)) -> 585 | K105: =IF(千円単!K105="","",ROUND(千円単!K105/1000,0)) -> 165 | L105: =IF(千円単!L105="","",ROUND(千円単!L105/1000,0)) -> 245 | M105: =IF(千円単!M105="","",ROUND(千円単!M105/1000,0)) -> 552 | N105: =IF(千円単!N105="","",ROUND(千円単!N105/1000,0)) -> 66 | O105: =IF(千円単!O105="","",ROUND(千円単!O105/1000,0)) -> 322 | P105: =IF(千円単!P105="","",ROUND(千円単!P105/1000,0)) -> 15 | Q105: =IF(千円単!Q105="","",ROUND(千円単!Q105/1000,0)) -> 33 | R105: =IF(千円単!R105="","",ROUND(千円単!R105/1000,0)) -> 286 | S105: =IF(千円単!S105="","",ROUND(千円単!S105/1000,0)) -> 88 | T105: =IF(千円単!T105="","",ROUND(千円単!T105/1000,0)) -> 0 | U105: =IF(千円単!U105="","",ROUND(千円単!U105/1000,0)) -> 448 | V105: =IF(千円単!V105="","",ROUND(千円単!V105/1000,0)) -> 229 | W105: =IF(千円単!W105="","",ROUND(千円単!W105/1000,0)) -> 218 | X105: =IF(千円単!X105="","",ROUND(千円単!X105/1000,0)) -> -162 | Y105: =IF(千円単!Y105="","",ROUND(千円単!Y105/1000,0)) -> 33
A106: 2019 | B106: 46 | C106: 17 | D106: 1 | E106: 105 | F106: 公共 | G106: 102016 | H106: 群馬県 | I106: 前橋市 | J106: =IF(千円単!J106="","",ROUND(千円単!J106/1000,0)) -> 6946 | K106: =IF(千円単!K106="","",ROUND(千円単!K106/1000,0)) -> 3031 | L106: =IF(千円単!L106="","",ROUND(千円単!L106/1000,0)) -> 2357 | M106: =IF(千円単!M106="","",ROUND(千円単!M106/1000,0)) -> 6508 | N106: =IF(千円単!N106="","",ROUND(千円単!N106/1000,0)) -> 704 | O106: =IF(千円単!O106="","",ROUND(千円単!O106/1000,0)) -> 3111 | P106: =IF(千円単!P106="","",ROUND(千円単!P106/1000,0)) -> 315 | Q106: =IF(千円単!Q106="","",ROUND(千円単!Q106/1000,0)) -> 437 | R106: =IF(千円単!R106="","",ROUND(千円単!R106/1000,0)) -> 3147 | S106: =IF(千円単!S106="","",ROUND(千円単!S106/1000,0)) -> 1759 | T106: =IF(千円単!T106="","",ROUND(千円単!T106/1000,0)) -> 462 | U106: =IF(千円単!U106="","",ROUND(千円単!U106/1000,0)) -> 5767 | V106: =IF(千円単!V106="","",ROUND(千円単!V106/1000,0)) -> 2673 | W106: =IF(千円単!W106="","",ROUND(千円単!W106/1000,0)) -> 3094 | X106: =IF(千円単!X106="","",ROUND(千円単!X106/1000,0)) -> -2620 | Y106: =IF(千円単!Y106="","",ROUND(千円単!Y106/1000,0)) -> 437
A107: 2019 | B107: 46 | C107: 17 | D107: 1 | E107: 106 | F107: 公共 | G107: 102024 | H107: 群馬県 | I107: 高崎市 | J107: =IF(千円単!J107="","",ROUND(千円単!J107/1000,0)) -> 8283 | K107: =IF(千円単!K107="","",ROUND(千円単!K107/1000,0)) -> 3781 | L107: =IF(千円単!L107="","",ROUND(千円単!L107/1000,0)) -> 3114 | M107: =IF(千円単!M107="","",ROUND(千円単!M107/1000,0)) -> 6705 | N107: =IF(千円単!N107="","",ROUND(千円単!N107/1000,0)) -> 776 | O107: =IF(千円単!O107="","",ROUND(千円単!O107/1000,0)) -> 3465 | P107: =IF(千円単!P107="","",ROUND(千円単!P107/1000,0)) -> 389 | Q107: =IF(千円単!Q107="","",ROUND(千円単!Q107/1000,0)) -> 1578 | R107: =IF(千円単!R107="","",ROUND(千円単!R107/1000,0)) -> 3604 | S107: =IF(千円単!S107="","",ROUND(千円単!S107/1000,0)) -> 1902 | T107: =IF(千円単!T107="","",ROUND(千円単!T107/1000,0)) -> 395 | U107: =IF(千円単!U107="","",ROUND(千円単!U107/1000,0)) -> 6769 | V107: =IF(千円単!V107="","",ROUND(千円単!V107/1000,0)) -> 3811 | W107: =IF(千円単!W107="","",ROUND(千円単!W107/1000,0)) -> 2957 | X107: =IF(千円単!X107="","",ROUND(千円単!X107/1000,0)) -> -3165 | Y107: =IF(千円単!Y107="","",ROUND(千円単!Y107/1000,0)) -> 1578
A108: 2019 | B108: 46 | C108: 17 | D108: 1 | E108: 107 | F108: 公共 | G108: 102059 | H108: 群馬県 | I108: 太田市 | J108: =IF(千円単!J108="","",ROUND(千円単!J108/1000,0)) -> 2855 | K108: =IF(千円単!K108="","",ROUND(千円単!K108/1000,0)) -> 820 | L108: =IF(千円単!L108="","",ROUND(千円単!L108/1000,0)) -> 1205 | M108: =IF(千円単!M108="","",ROUND(千円単!M108/1000,0)) -> 2881 | N108: =IF(千円単!N108="","",ROUND(千円単!N108/1000,0)) -> 372 | O108: =IF(千円単!O108="","",ROUND(千円単!O108/1000,0)) -> 1537 | P108: =IF(千円単!P108="","",ROUND(千円単!P108/1000,0)) -> 59 | Q108: =IF(千円単!Q108="","",ROUND(千円単!Q108/1000,0)) -> -26 | R108: =IF(千円単!R108="","",ROUND(千円単!R108/1000,0)) -> 2313 | S108: =IF(千円単!S108="","",ROUND(千円単!S108/1000,0)) -> 1504 | T108: =IF(千円単!T108="","",ROUND(千円単!T108/1000,0)) -> 257 | U108: =IF(千円単!U108="","",ROUND(千円単!U108/1000,0)) -> 3177 | V108: =IF(千円単!V108="","",ROUND(千円単!V108/1000,0)) -> 1733 | W108: =IF(千円単!W108="","",ROUND(千円単!W108/1000,0)) -> 1439 | X108: =IF(千円単!X108="","",ROUND(千円単!X108/1000,0)) -> -865 | Y108: =IF(千円単!Y108="","",ROUND(千円単!Y108/1000,0)) -> -26
A109: 2019 | B109: 46 | C109: 17 | D109: 1 | E109: 108 | F109: 公共 | G109: 102105 | H109: 群馬県 | I109: 富岡市 | J109: =IF(千円単!J109="","",ROUND(千円単!J109/1000,0)) -> 457 | K109: =IF(千円単!K109="","",ROUND(千円単!K109/1000,0)) -> 124 | L109: =IF(千円単!L109="","",ROUND(千円単!L109/1000,0)) -> 131 | M109: =IF(千円単!M109="","",ROUND(千円単!M109/1000,0)) -> 366 | N109: =IF(千円単!N109="","",ROUND(千円単!N109/1000,0)) -> 47 | O109: =IF(千円単!O109="","",ROUND(千円単!O109/1000,0)) -> 222 | P109: =IF(千円単!P109="","",ROUND(千円単!P109/1000,0)) -> 12 | Q109: =IF(千円単!Q109="","",ROUND(千円単!Q109/1000,0)) -> 91 | R109: =IF(千円単!R109="","",ROUND(千円単!R109/1000,0)) -> 312 | S109: =IF(千円単!S109="","",ROUND(千円単!S109/1000,0)) -> 56 | T109: =IF(千円単!T109="","",ROUND(千円単!T109/1000,0)) -> 187 | U109: =IF(千円単!U109="","",ROUND(千円単!U109/1000,0)) -> 433 | V109: =IF(千円単!V109="","",ROUND(千円単!V109/1000,0)) -> 175 | W109: =IF(千円単!W109="","",ROUND(千円単!W109/1000,0)) -> 258 | X109: =IF(千円単!X109="","",ROUND(千円単!X109/1000,0)) -> -121 | Y109: =IF(千円単!Y109="","",ROUND(千円単!Y109/1000,0)) -> 91
A110: 2019 | B110: 46 | C110: 17 | D110: 1 | E110: 109 | F110: 公共 | G110: 111007 | H110: 埼玉県 | I110: さいたま市 | J110: =IF(千円単!J110="","",ROUND(千円単!J110/1000,0)) -> 24517 | K110: =IF(千円単!K110="","",ROUND(千円単!K110/1000,0)) -> 16964 | L110: =IF(千円単!L110="","",ROUND(千円単!L110/1000,0)) -> 4429 | M110: =IF(千円単!M110="","",ROUND(千円単!M110/1000,0)) -> 23570 | N110: =IF(千円単!N110="","",ROUND(千円単!N110/1000,0)) -> 2743 | O110: =IF(千円単!O110="","",ROUND(千円単!O110/1000,0)) -> 12889 | P110: =IF(千円単!P110="","",ROUND(千円単!P110/1000,0)) -> 589 | Q110: =IF(千円単!Q110="","",ROUND(千円単!Q110/1000,0)) -> 947 | R110: =IF(千円単!R110="","",ROUND(千円単!R110/1000,0)) -> 13477 | S110: =IF(千円単!S110="","",ROUND(千円単!S110/1000,0)) -> 11480 | T110: =IF(千円単!T110="","",ROUND(千円単!T110/1000,0)) -> 358 | U110: =IF(千円単!U110="","",ROUND(千円単!U110/1000,0)) -> 24963 | V110: =IF(千円単!V110="","",ROUND(千円単!V110/1000,0)) -> 12883 | W110: =IF(千円単!W110="","",ROUND(千円単!W110/1000,0)) -> 12076 | X110: =IF(千円単!X110="","",ROUND(千円単!X110/1000,0)) -> -11486 | Y110: =IF(千円単!Y110="","",ROUND(千円単!Y110/1000,0)) -> 947
A111: 2019 | B111: 46 | C111: 17 | D111: 1 | E111: 110 | F111: 公共 | G111: 112011 | H111: 埼玉県 | I111: 川越市 | J111: =IF(千円単!J111="","",ROUND(千円単!J111/1000,0)) -> 6025 | K111: =IF(千円単!K111="","",ROUND(千円単!K111/1000,0)) -> 3204 | L111: =IF(千円単!L111="","",ROUND(千円単!L111/1000,0)) -> 1910 | M111: =IF(千円単!M111="","",ROUND(千円単!M111/1000,0)) -> 6010 | N111: =IF(千円単!N111="","",ROUND(千円単!N111/1000,0)) -> 322 | O111: =IF(千円単!O111="","",ROUND(千円単!O111/1000,0)) -> 2706 | P111: =IF(千円単!P111="","",ROUND(千円単!P111/1000,0)) -> 381 | Q111: =IF(千円単!Q111="","",ROUND(千円単!Q111/1000,0)) -> 15 | R111: =IF(千円単!R111="","",ROUND(千円単!R111/1000,0)) -> 650 | S111: =IF(千円単!S111="","",ROUND(千円単!S111/1000,0)) -> 339 | T111: =IF(千円単!T111="","",ROUND(千円単!T111/1000,0)) -> 260 | U111: =IF(千円単!U111="","",ROUND(千円単!U111/1000,0)) -> 2214 | V111: =IF(千円単!V111="","",ROUND(千円単!V111/1000,0)) -> 1020 | W111: =IF(千円単!W111="","",ROUND(千円単!W111/1000,0)) -> 1193 | X111: =IF(千円単!X111="","",ROUND(千円単!X111/1000,0)) -> -1564 | Y111: =IF(千円単!Y111="","",ROUND(千円単!Y111/1000,0)) -> 15
A112: 2019 | B112: 46 | C112: 17 | D112: 1 | E112: 111 | F112: 公共 | G112: 112020 | H112: 埼玉県 | I112: 熊谷市 | J112: =IF(千円単!J112="","",ROUND(千円単!J112/1000,0)) -> 3751 | K112: =IF(千円単!K112="","",ROUND(千円単!K112/1000,0)) -> 1284 | L112: =IF(千円単!L112="","",ROUND(千円単!L112/1000,0)) -> 1462 | M112: =IF(千円単!M112="","",ROUND(千円単!M112/1000,0)) -> 3498 | N112: =IF(千円単!N112="","",ROUND(千円単!N112/1000,0)) -> 276 | O112: =IF(千円単!O112="","",ROUND(千円単!O112/1000,0)) -> 2042 | P112: =IF(千円単!P112="","",ROUND(千円単!P112/1000,0)) -> 128 | Q112: =IF(千円単!Q112="","",ROUND(千円単!Q112/1000,0)) -> 253 | R112: =IF(千円単!R112="","",ROUND(千円単!R112/1000,0)) -> 833 | S112: =IF(千円単!S112="","",ROUND(千円単!S112/1000,0)) -> 518 | T112: =IF(千円単!T112="","",ROUND(千円単!T112/1000,0)) -> 55 | U112: =IF(千円単!U112="","",ROUND(千円単!U112/1000,0)) -> 2179 | V112: =IF(千円単!V112="","",ROUND(千円単!V112/1000,0)) -> 853 | W112: =IF(千円単!W112="","",ROUND(千円単!W112/1000,0)) -> 1326 | X112: =IF(千円単!X112="","",ROUND(千円単!X112/1000,0)) -> -1346 | Y112: =IF(千円単!Y112="","",ROUND(千円単!Y112/1000,0)) -> 253
A113: 2019 | B113: 46 | C113: 17 | D113: 1 | E113: 112 | F113: 公共 | G113: 112038 | H113: 埼玉県 | I113: 川口市 | J113: =IF(千円単!J113="","",ROUND(千円単!J113/1000,0)) -> 10926 | K113: =IF(千円単!K113="","",ROUND(千円単!K113/1000,0)) -> 5872 | L113: =IF(千円単!L113="","",ROUND(千円単!L113/1000,0)) -> 2013 | M113: =IF(千円単!M113="","",ROUND(千円単!M113/1000,0)) -> 10097 | N113: =IF(千円単!N113="","",ROUND(千円単!N113/1000,0)) -> 868 | O113: =IF(千円単!O113="","",ROUND(千円単!O113/1000,0)) -> 4746 | P113: =IF(千円単!P113="","",ROUND(千円単!P113/1000,0)) -> 536 | Q113: =IF(千円単!Q113="","",ROUND(千円単!Q113/1000,0)) -> 829 | R113: =IF(千円単!R113="","",ROUND(千円単!R113/1000,0)) -> 5394 | S113: =IF(千円単!S113="","",ROUND(千円単!S113/1000,0)) -> 2947 | T113: =IF(千円単!T113="","",ROUND(千円単!T113/1000,0)) -> 100 | U113: =IF(千円単!U113="","",ROUND(千円単!U113/1000,0)) -> 7741 | V113: =IF(千円単!V113="","",ROUND(千円単!V113/1000,0)) -> 4196 | W113: =IF(千円単!W113="","",ROUND(千円単!W113/1000,0)) -> 3545 | X113: =IF(千円単!X113="","",ROUND(千円単!X113/1000,0)) -> -2348 | Y113: =IF(千円単!Y113="","",ROUND(千円単!Y113/1000,0)) -> 829
A114: 2019 | B114: 46 | C114: 17 | D114: 1 | E114: 113 | F114: 公共 | G114: 112062 | H114: 埼玉県 | I114: 行田市 | J114: =IF(千円単!J114="","",ROUND(千円単!J114/1000,0)) -> 1978 | K114: =IF(千円単!K114="","",ROUND(千円単!K114/1000,0)) -> 542 | L114: =IF(千円単!L114="","",ROUND(千円単!L114/1000,0)) -> 871 | M114: =IF(千円単!M114="","",ROUND(千円単!M114/1000,0)) -> 1789 | N114: =IF(千円単!N114="","",ROUND(千円単!N114/1000,0)) -> 200 | O114: =IF(千円単!O114="","",ROUND(千円単!O114/1000,0)) -> 1032 | P114: =IF(千円単!P114="","",ROUND(千円単!P114/1000,0)) -> 42 | Q114: =IF(千円単!Q114="","",ROUND(千円単!Q114/1000,0)) -> 189 | R114: =IF(千円単!R114="","",ROUND(千円単!R114/1000,0)) -> 530 | S114: =IF(千円単!S114="","",ROUND(千円単!S114/1000,0)) -> 223 | T114: =IF(千円単!T114="","",ROUND(千円単!T114/1000,0)) -> 209 | U114: =IF(千円単!U114="","",ROUND(千円単!U114/1000,0)) -> 1250 | V114: =IF(千円単!V114="","",ROUND(千円単!V114/1000,0)) -> 369 | W114: =IF(千円単!W114="","",ROUND(千円単!W114/1000,0)) -> 879 | X114: =IF(千円単!X114="","",ROUND(千円単!X114/1000,0)) -> -721 | Y114: =IF(千円単!Y114="","",ROUND(千円単!Y114/1000,0)) -> 189
A115: 2019 | B115: 46 | C115: 17 | D115: 1 | E115: 114 | F115: 公共 | G115: 112071 | H115: 埼玉県 | I115: 秩父市 | J115: =IF(千円単!J115="","",ROUND(千円単!J115/1000,0)) -> 1088 | K115: =IF(千円単!K115="","",ROUND(千円単!K115/1000,0)) -> 339 | L115: =IF(千円単!L115="","",ROUND(千円単!L115/1000,0)) -> 508 | M115: =IF(千円単!M115="","",ROUND(千円単!M115/1000,0)) -> 962 | N115: =IF(千円単!N115="","",ROUND(千円単!N115/1000,0)) -> 88 | O115: =IF(千円単!O115="","",ROUND(千円単!O115/1000,0)) -> 451 | P115: =IF(千円単!P115="","",ROUND(千円単!P115/1000,0)) -> 87 | Q115: =IF(千円単!Q115="","",ROUND(千円単!Q115/1000,0)) -> 126 | R115: =IF(千円単!R115="","",ROUND(千円単!R115/1000,0)) -> 241 | S115: =IF(千円単!S115="","",ROUND(千円単!S115/1000,0)) -> 173 | T115: =IF(千円単!T115="","",ROUND(千円単!T115/1000,0)) -> 24 | U115: =IF(千円単!U115="","",ROUND(千円単!U115/1000,0)) -> 591 | V115: =IF(千円単!V115="","",ROUND(千円単!V115/1000,0)) -> 180 | W115: =IF(千円単!W115="","",ROUND(千円単!W115/1000,0)) -> 410 | X115: =IF(千円単!X115="","",ROUND(千円単!X115/1000,0)) -> -349 | Y115: =IF(千円単!Y115="","",ROUND(千円単!Y115/1000,0)) -> 126
A116: 2019 | B116: 46 | C116: 17 | D116: 1 | E116: 115 | F116: 公共 | G116: 112089 | H116: 埼玉県 | I116: 所沢市 | J116: =IF(千円単!J116="","",ROUND(千円単!J116/1000,0)) -> 5781 | K116: =IF(千円単!K116="","",ROUND(千円単!K116/1000,0)) -> 3223 | L116: =IF(千円単!L116="","",ROUND(千円単!L116/1000,0)) -> 1491 | M116: =IF(千円単!M116="","",ROUND(千円単!M116/1000,0)) -> 5488 | N116: =IF(千円単!N116="","",ROUND(千円単!N116/1000,0)) -> 338 | O116: =IF(千円単!O116="","",ROUND(千円単!O116/1000,0)) -> 3051 | P116: =IF(千円単!P116="","",ROUND(千円単!P116/1000,0)) -> 352 | Q116: =IF(千円単!Q116="","",ROUND(千円単!Q116/1000,0)) -> 293 | R116: =IF(千円単!R116="","",ROUND(千円単!R116/1000,0)) -> 1163 | S116: =IF(千円単!S116="","",ROUND(千円単!S116/1000,0)) -> 600 | T116: =IF(千円単!T116="","",ROUND(千円単!T116/1000,0)) -> 322 | U116: =IF(千円単!U116="","",ROUND(千円単!U116/1000,0)) -> 3500 | V116: =IF(千円単!V116="","",ROUND(千円単!V116/1000,0)) -> 2326 | W116: =IF(千円単!W116="","",ROUND(千円単!W116/1000,0)) -> 1170 | X116: =IF(千円単!X116="","",ROUND(千円単!X116/1000,0)) -> -2337 | Y116: =IF(千円単!Y116="","",ROUND(千円単!Y116/1000,0)) -> 293
A117: 2019 | B117: 46 | C117: 17 | D117: 1 | E117: 116 | F117: 公共 | G117: 112097 | H117: 埼玉県 | I117: 飯能市 | J117: =IF(千円単!J117="","",ROUND(千円単!J117/1000,0)) -> 1973 | K117: =IF(千円単!K117="","",ROUND(千円単!K117/1000,0)) -> 873 | L117: =IF(千円単!L117="","",ROUND(千円単!L117/1000,0)) -> 423 | M117: =IF(千円単!M117="","",ROUND(千円単!M117/1000,0)) -> 1820 | N117: =IF(千円単!N117="","",ROUND(千円単!N117/1000,0)) -> 155 | O117: =IF(千円単!O117="","",ROUND(千円単!O117/1000,0)) -> 1008 | P117: =IF(千円単!P117="","",ROUND(千円単!P117/1000,0)) -> 83 | Q117: =IF(千円単!Q117="","",ROUND(千円単!Q117/1000,0)) -> 154 | R117: =IF(千円単!R117="","",ROUND(千円単!R117/1000,0)) -> 1055 | S117: =IF(千円単!S117="","",ROUND(千円単!S117/1000,0)) -> 495 | T117: =IF(千円単!T117="","",ROUND(千円単!T117/1000,0)) -> 167 | U117: =IF(千円単!U117="","",ROUND(千円単!U117/1000,0)) -> 1563 | V117: =IF(千円単!V117="","",ROUND(千円単!V117/1000,0)) -> 950 | W117: =IF(千円単!W117="","",ROUND(千円単!W117/1000,0)) -> 613 | X117: =IF(千円単!X117="","",ROUND(千円単!X117/1000,0)) -> -508 | Y117: =IF(千円単!Y117="","",ROUND(千円単!Y117/1000,0)) -> 154
A118: 2019 | B118: 46 | C118: 17 | D118: 1 | E118: 117 | F118: 公共 | G118: 112101 | H118: 埼玉県 | I118: 加須市 | J118: =IF(千円単!J118="","",ROUND(千円単!J118/1000,0)) -> 1683 | K118: =IF(千円単!K118="","",ROUND(千円単!K118/1000,0)) -> 499 | L118: =IF(千円単!L118="","",ROUND(千円単!L118/1000,0)) -> 630 | M118: =IF(千円単!M118="","",ROUND(千円単!M118/1000,0)) -> 1610 | N118: =IF(千円単!N118="","",ROUND(千円単!N118/1000,0)) -> 189 | O118: =IF(千円単!O118="","",ROUND(千円単!O118/1000,0)) -> 1003 | P118: =IF(千円単!P118="","",ROUND(千円単!P118/1000,0)) -> 41 | Q118: =IF(千円単!Q118="","",ROUND(千円単!Q118/1000,0)) -> 73 | R118: =IF(千円単!R118="","",ROUND(千円単!R118/1000,0)) -> 711 | S118: =IF(千円単!S118="","",ROUND(千円単!S118/1000,0)) -> 342 | T118: =IF(千円単!T118="","",ROUND(千円単!T118/1000,0)) -> 150 | U118: =IF(千円単!U118="","",ROUND(千円単!U118/1000,0)) -> 1322 | V118: =IF(千円単!V118="","",ROUND(千円単!V118/1000,0)) -> 323 | W118: =IF(千円単!W118="","",ROUND(千円単!W118/1000,0)) -> 998 | X118: =IF(千円単!X118="","",ROUND(千円単!X118/1000,0)) -> -611 | Y118: =IF(千円単!Y118="","",ROUND(千円単!Y118/1000,0)) -> 73
A119: 2019 | B119: 46 | C119: 17 | D119: 1 | E119: 118 | F119: 公共 | G119: 112119 | H119: 埼玉県 | I119: 本庄市 | J119: =IF(千円単!J119="","",ROUND(千円単!J119/1000,0)) -> 1607 | K119: =IF(千円単!K119="","",ROUND(千円単!K119/1000,0)) -> 639 | L119: =IF(千円単!L119="","",ROUND(千円単!L119/1000,0)) -> 368 | M119: =IF(千円単!M119="","",ROUND(千円単!M119/1000,0)) -> 1536 | N119: =IF(千円単!N119="","",ROUND(千円単!N119/1000,0)) -> 118 | O119: =IF(千円単!O119="","",ROUND(千円単!O119/1000,0)) -> 874 | P119: =IF(千円単!P119="","",ROUND(千円単!P119/1000,0)) -> 48 | Q119: =IF(千円単!Q119="","",ROUND(千円単!Q119/1000,0)) -> 71 | R119: =IF(千円単!R119="","",ROUND(千円単!R119/1000,0)) -> 989 | S119: =IF(千円単!S119="","",ROUND(千円単!S119/1000,0)) -> 496 | T119: =IF(千円単!T119="","",ROUND(千円単!T119/1000,0)) -> 186 | U119: =IF(千円単!U119="","",ROUND(千円単!U119/1000,0)) -> 1211 | V119: =IF(千円単!V119="","",ROUND(千円単!V119/1000,0)) -> 711 | W119: =IF(千円単!W119="","",ROUND(千円単!W119/1000,0)) -> 500 | X119: =IF(千円単!X119="","",ROUND(千円単!X119/1000,0)) -> -222 | Y119: =IF(千円単!Y119="","",ROUND(千円単!Y119/1000,0)) -> 71
A120: 2019 | B120: 46 | C120: 17 | D120: 1 | E120: 119 | F120: 公共 | G120: 112127 | H120: 埼玉県 | I120: 東松山市 | J120: =IF(千円単!J120="","",ROUND(千円単!J120/1000,0)) -> 2217 | K120: =IF(千円単!K120="","",ROUND(千円単!K120/1000,0)) -> 901 | L120: =IF(千円単!L120="","",ROUND(千円単!L120/1000,0)) -> 424 | M120: =IF(千円単!M120="","",ROUND(千円単!M120/1000,0)) -> 2093 | N120: =IF(千円単!N120="","",ROUND(千円単!N120/1000,0)) -> 106 | O120: =IF(千円単!O120="","",ROUND(千円単!O120/1000,0)) -> 1171 | P120: =IF(千円単!P120="","",ROUND(千円単!P120/1000,0)) -> 97 | Q120: =IF(千円単!Q120="","",ROUND(千円単!Q120/1000,0)) -> 124 | R120: =IF(千円単!R120="","",ROUND(千円単!R120/1000,0)) -> 184 | S120: =IF(千円単!S120="","",ROUND(千円単!S120/1000,0)) -> 113 | T120: =IF(千円単!T120="","",ROUND(千円単!T120/1000,0)) -> 6 | U120: =IF(千円単!U120="","",ROUND(千円単!U120/1000,0)) -> 612 | V120: =IF(千円単!V120="","",ROUND(千円単!V120/1000,0)) -> 206 | W120: =IF(千円単!W120="","",ROUND(千円単!W120/1000,0)) -> 405 | X120: =IF(千円単!X120="","",ROUND(千円単!X120/1000,0)) -> -427 | Y120: =IF(千円単!Y120="","",ROUND(千円単!Y120/1000,0)) -> 124
A121: 2019 | B121: 46 | C121: 17 | D121: 1 | E121: 120 | F121: 公共 | G121: 112143 | H121: 埼玉県 | I121: 春日部市 | J121: =IF(千円単!J121="","",ROUND(千円単!J121/1000,0)) -> 4364 | K121: =IF(千円単!K121="","",ROUND(千円単!K121/1000,0)) -> 2450 | L121: =IF(千円単!L121="","",ROUND(千円単!L121/1000,0)) -> 1170 | M121: =IF(千円単!M121="","",ROUND(千円単!M121/1000,0)) -> 4052 | N121: =IF(千円単!N121="","",ROUND(千円単!N121/1000,0)) -> 570 | O121: =IF(千円単!O121="","",ROUND(千円単!O121/1000,0)) -> 2263 | P121: =IF(千円単!P121="","",ROUND(千円単!P121/1000,0)) -> 77 | Q121: =IF(千円単!Q121="","",ROUND(千円単!Q121/1000,0)) -> 311 | R121: =IF(千円単!R121="","",ROUND(千円単!R121/1000,0)) -> 2902 | S121: =IF(千円単!S121="","",ROUND(千円単!S121/1000,0)) -> 2097 | T121: =IF(千円単!T121="","",ROUND(千円単!T121/1000,0)) -> 254 | U121: =IF(千円単!U121="","",ROUND(千円単!U121/1000,0)) -> 4492 | V121: =IF(千円単!V121="","",ROUND(千円単!V121/1000,0)) -> 1396 | W121: =IF(千円単!W121="","",ROUND(千円単!W121/1000,0)) -> 3096 | X121: =IF(千円単!X121="","",ROUND(千円単!X121/1000,0)) -> -1590 | Y121: =IF(千円単!Y121="","",ROUND(千円単!Y121/1000,0)) -> 311
A122: 2019 | B122: 46 | C122: 17 | D122: 1 | E122: 121 | F122: 公共 | G122: 112151 | H122: 埼玉県 | I122: 狭山市 | J122: =IF(千円単!J122="","",ROUND(千円単!J122/1000,0)) -> 3356 | K122: =IF(千円単!K122="","",ROUND(千円単!K122/1000,0)) -> 1719 | L122: =IF(千円単!L122="","",ROUND(千円単!L122/1000,0)) -> 894 | M122: =IF(千円単!M122="","",ROUND(千円単!M122/1000,0)) -> 3025 | N122: =IF(千円単!N122="","",ROUND(千円単!N122/1000,0)) -> 257 | O122: =IF(千円単!O122="","",ROUND(千円単!O122/1000,0)) -> 1860 | P122: =IF(千円単!P122="","",ROUND(千円単!P122/1000,0)) -> 93 | Q122: =IF(千円単!Q122="","",ROUND(千円単!Q122/1000,0)) -> 331 | R122: =IF(千円単!R122="","",ROUND(千円単!R122/1000,0)) -> 586 | S122: =IF(千円単!S122="","",ROUND(千円単!S122/1000,0)) -> 289 | T122: =IF(千円単!T122="","",ROUND(千円単!T122/1000,0)) -> 106 | U122: =IF(千円単!U122="","",ROUND(千円単!U122/1000,0)) -> 1791 | V122: =IF(千円単!V122="","",ROUND(千円単!V122/1000,0)) -> 732 | W122: =IF(千円単!W122="","",ROUND(千円単!W122/1000,0)) -> 1058 | X122: =IF(千円単!X122="","",ROUND(千円単!X122/1000,0)) -> -1204 | Y122: =IF(千円単!Y122="","",ROUND(千円単!Y122/1000,0)) -> 331
A123: 2019 | B123: 46 | C123: 17 | D123: 1 | E123: 122 | F123: 公共 | G123: 112178 | H123: 埼玉県 | I123: 鴻巣市 | J123: =IF(千円単!J123="","",ROUND(千円単!J123/1000,0)) -> 2192 | K123: =IF(千円単!K123="","",ROUND(千円単!K123/1000,0)) -> 1027 | L123: =IF(千円単!L123="","",ROUND(千円単!L123/1000,0)) -> 595 | M123: =IF(千円単!M123="","",ROUND(千円単!M123/1000,0)) -> 2092 | N123: =IF(千円単!N123="","",ROUND(千円単!N123/1000,0)) -> 216 | O123: =IF(千円単!O123="","",ROUND(千円単!O123/1000,0)) -> 1228 | P123: =IF(千円単!P123="","",ROUND(千円単!P123/1000,0)) -> 48 | Q123: =IF(千円単!Q123="","",ROUND(千円単!Q123/1000,0)) -> 100 | R123: =IF(千円単!R123="","",ROUND(千円単!R123/1000,0)) -> 1350 | S123: =IF(千円単!S123="","",ROUND(千円単!S123/1000,0)) -> 636 | T123: =IF(千円単!T123="","",ROUND(千円単!T123/1000,0)) -> 445 | U123: =IF(千円単!U123="","",ROUND(千円単!U123/1000,0)) -> 1976 | V123: =IF(千円単!V123="","",ROUND(千円単!V123/1000,0)) -> 894 | W123: =IF(千円単!W123="","",ROUND(千円単!W123/1000,0)) -> 1082 | X123: =IF(千円単!X123="","",ROUND(千円単!X123/1000,0)) -> -626 | Y123: =IF(千円単!Y123="","",ROUND(千円単!Y123/1000,0)) -> 100
A124: 2019 | B124: 46 | C124: 17 | D124: 1 | E124: 123 | F124: 公共 | G124: 112186 | H124: 埼玉県 | I124: 深谷市 | J124: =IF(千円単!J124="","",ROUND(千円単!J124/1000,0)) -> 2312 | K124: =IF(千円単!K124="","",ROUND(千円単!K124/1000,0)) -> 1221 | L124: =IF(千円単!L124="","",ROUND(千円単!L124/1000,0)) -> 488 | M124: =IF(千円単!M124="","",ROUND(千円単!M124/1000,0)) -> 2227 | N124: =IF(千円単!N124="","",ROUND(千円単!N124/1000,0)) -> 266 | O124: =IF(千円単!O124="","",ROUND(千円単!O124/1000,0)) -> 1298 | P124: =IF(千円単!P124="","",ROUND(千円単!P124/1000,0)) -> 56 | Q124: =IF(千円単!Q124="","",ROUND(千円単!Q124/1000,0)) -> 85 | R124: =IF(千円単!R124="","",ROUND(千円単!R124/1000,0)) -> 1744 | S124: =IF(千円単!S124="","",ROUND(千円単!S124/1000,0)) -> 1184 | T124: =IF(千円単!T124="","",ROUND(千円単!T124/1000,0)) -> 62 | U124: =IF(千円単!U124="","",ROUND(千円単!U124/1000,0)) -> 2780 | V124: =IF(千円単!V124="","",ROUND(千円単!V124/1000,0)) -> 1591 | W124: =IF(千円単!W124="","",ROUND(千円単!W124/1000,0)) -> 1188 | X124: =IF(千円単!X124="","",ROUND(千円単!X124/1000,0)) -> -1036 | Y124: =IF(千円単!Y124="","",ROUND(千円単!Y124/1000,0)) -> 85
A125: 2019 | B125: 46 | C125: 17 | D125: 1 | E125: 124 | F125: 公共 | G125: 112194 | H125: 埼玉県 | I125: 上尾市 | J125: =IF(千円単!J125="","",ROUND(千円単!J125/1000,0)) -> 3615 | K125: =IF(千円単!K125="","",ROUND(千円単!K125/1000,0)) -> 2141 | L125: =IF(千円単!L125="","",ROUND(千円単!L125/1000,0)) -> 470 | M125: =IF(千円単!M125="","",ROUND(千円単!M125/1000,0)) -> 3560 | N125: =IF(千円単!N125="","",ROUND(千円単!N125/1000,0)) -> 260 | O125: =IF(千円単!O125="","",ROUND(千円単!O125/1000,0)) -> 1980 | P125: =IF(千円単!P125="","",ROUND(千円単!P125/1000,0)) -> 71 | Q125: =IF(千円単!Q125="","",ROUND(千円単!Q125/1000,0)) -> 55 | R125: =IF(千円単!R125="","",ROUND(千円単!R125/1000,0)) -> 2283 | S125: =IF(千円単!S125="","",ROUND(千円単!S125/1000,0)) -> 1048 | T125: =IF(千円単!T125="","",ROUND(千円単!T125/1000,0)) -> 48 | U125: =IF(千円単!U125="","",ROUND(千円単!U125/1000,0)) -> 3205 | V125: =IF(千円単!V125="","",ROUND(千円単!V125/1000,0)) -> 2081 | W125: =IF(千円単!W125="","",ROUND(千円単!W125/1000,0)) -> 1120 | X125: =IF(千円単!X125="","",ROUND(千円単!X125/1000,0)) -> -922 | Y125: =IF(千円単!Y125="","",ROUND(千円単!Y125/1000,0)) -> 55
A126: 2019 | B126: 46 | C126: 17 | D126: 1 | E126: 125 | F126: 公共 | G126: 112241 | H126: 埼玉県 | I126: 戸田市 | J126: =IF(千円単!J126="","",ROUND(千円単!J126/1000,0)) -> 2674 | K126: =IF(千円単!K126="","",ROUND(千円単!K126/1000,0)) -> 1310 | L126: =IF(千円単!L126="","",ROUND(千円単!L126/1000,0)) -> 851 | M126: =IF(千円単!M126="","",ROUND(千円単!M126/1000,0)) -> 2445 | N126: =IF(千円単!N126="","",ROUND(千円単!N126/1000,0)) -> 145 | O126: =IF(千円単!O126="","",ROUND(千円単!O126/1000,0)) -> 1094 | P126: =IF(千円単!P126="","",ROUND(千円単!P126/1000,0)) -> 77 | Q126: =IF(千円単!Q126="","",ROUND(千円単!Q126/1000,0)) -> 229 | R126: =IF(千円単!R126="","",ROUND(千円単!R126/1000,0)) -> 1106 | S126: =IF(千円単!S126="","",ROUND(千円単!S126/1000,0)) -> 993 | T126: =IF(千円単!T126="","",ROUND(千円単!T126/1000,0)) -> 0 | U126: =IF(千円単!U126="","",ROUND(千円単!U126/1000,0)) -> 1776 | V126: =IF(千円単!V126="","",ROUND(千円単!V126/1000,0)) -> 1209 | W126: =IF(千円単!W126="","",ROUND(千円単!W126/1000,0)) -> 567 | X126: =IF(千円単!X126="","",ROUND(千円単!X126/1000,0)) -> -670 | Y126: =IF(千円単!Y126="","",ROUND(千円単!Y126/1000,0)) -> 229
A127: 2019 | B127: 46 | C127: 17 | D127: 1 | E127: 126 | F127: 公共 | G127: 112259 | H127: 埼玉県 | I127: 入間市 | J127: =IF(千円単!J127="","",ROUND(千円単!J127/1000,0)) -> 2338 | K127: =IF(千円単!K127="","",ROUND(千円単!K127/1000,0)) -> 1351 | L127: =IF(千円単!L127="","",ROUND(千円単!L127/1000,0)) -> 438 | M127: =IF(千円単!M127="","",ROUND(千円単!M127/1000,0)) -> 2158 | N127: =IF(千円単!N127="","",ROUND(千円単!N127/1000,0)) -> 153 | O127: =IF(千円単!O127="","",ROUND(千円単!O127/1000,0)) -> 1312 | P127: =IF(千円単!P127="","",ROUND(千円単!P127/1000,0)) -> 51 | Q127: =IF(千円単!Q127="","",ROUND(千円単!Q127/1000,0)) -> 180 | R127: =IF(千円単!R127="","",ROUND(千円単!R127/1000,0)) -> 259 | S127: =IF(千円単!S127="","",ROUND(千円単!S127/1000,0)) -> 177 | T127: =IF(千円単!T127="","",ROUND(千円単!T127/1000,0)) -> 62 | U127: =IF(千円単!U127="","",ROUND(千円単!U127/1000,0)) -> 1028 | V127: =IF(千円単!V127="","",ROUND(千円単!V127/1000,0)) -> 263 | W127: =IF(千円単!W127="","",ROUND(千円単!W127/1000,0)) -> 754 | X127: =IF(千円単!X127="","",ROUND(千円単!X127/1000,0)) -> -769 | Y127: =IF(千円単!Y127="","",ROUND(千円単!Y127/1000,0)) -> 180
A128: 2019 | B128: 46 | C128: 17 | D128: 1 | E128: 127 | F128: 公共 | G128: 112283 | H128: 埼玉県 | I128: 志木市 | J128: =IF(千円単!J128="","",ROUND(千円単!J128/1000,0)) -> 1855 | K128: =IF(千円単!K128="","",ROUND(千円単!K128/1000,0)) -> 814 | L128: =IF(千円単!L128="","",ROUND(千円単!L128/1000,0)) -> 382 | M128: =IF(千円単!M128="","",ROUND(千円単!M128/1000,0)) -> 1759 | N128: =IF(千円単!N128="","",ROUND(千円単!N128/1000,0)) -> 107 | O128: =IF(千円単!O128="","",ROUND(千円単!O128/1000,0)) -> 871 | P128: =IF(千円単!P128="","",ROUND(千円単!P128/1000,0)) -> 66 | Q128: =IF(千円単!Q128="","",ROUND(千円単!Q128/1000,0)) -> 96 | R128: =IF(千円単!R128="","",ROUND(千円単!R128/1000,0)) -> 553 | S128: =IF(千円単!S128="","",ROUND(千円単!S128/1000,0)) -> 210 | T128: =IF(千円単!T128="","",ROUND(千円単!T128/1000,0)) -> 218 | U128: =IF(千円単!U128="","",ROUND(千円単!U128/1000,0)) -> 913 | V128: =IF(千円単!V128="","",ROUND(千円単!V128/1000,0)) -> 328 | W128: =IF(千円単!W128="","",ROUND(千円単!W128/1000,0)) -> 562 | X128: =IF(千円単!X128="","",ROUND(千円単!X128/1000,0)) -> -360 | Y128: =IF(千円単!Y128="","",ROUND(千円単!Y128/1000,0)) -> 96
A129: 2019 | B129: 46 | C129: 17 | D129: 1 | E129: 128 | F129: 公共 | G129: 112291 | H129: 埼玉県 | I129: 和光市 | J129: =IF(千円単!J129="","",ROUND(千円単!J129/1000,0)) -> 1137 | K129: =IF(千円単!K129="","",ROUND(千円単!K129/1000,0)) -> 614 | L129: =IF(千円単!L129="","",ROUND(千円単!L129/1000,0)) -> 352 | M129: =IF(千円単!M129="","",ROUND(千円単!M129/1000,0)) -> 996 | N129: =IF(千円単!N129="","",ROUND(千円単!N129/1000,0)) -> 66 | O129: =IF(千円単!O129="","",ROUND(千円単!O129/1000,0)) -> 471 | P129: =IF(千円単!P129="","",ROUND(千円単!P129/1000,0)) -> 38 | Q129: =IF(千円単!Q129="","",ROUND(千円単!Q129/1000,0)) -> 141 | R129: =IF(千円単!R129="","",ROUND(千円単!R129/1000,0)) -> 151 | S129: =IF(千円単!S129="","",ROUND(千円単!S129/1000,0)) -> 110 | T129: =IF(千円単!T129="","",ROUND(千円単!T129/1000,0)) -> 16 | U129: =IF(千円単!U129="","",ROUND(千円単!U129/1000,0)) -> 563 | V129: =IF(千円単!V129="","",ROUND(千円単!V129/1000,0)) -> 178 | W129: =IF(千円単!W129="","",ROUND(千円単!W129/1000,0)) -> 385 | X129: =IF(千円単!X129="","",ROUND(千円単!X129/1000,0)) -> -413 | Y129: =IF(千円単!Y129="","",ROUND(千円単!Y129/1000,0)) -> 141
A130: 2019 | B130: 46 | C130: 17 | D130: 1 | E130: 129 | F130: 公共 | G130: 112313 | H130: 埼玉県 | I130: 桶川市 | J130: =IF(千円単!J130="","",ROUND(千円単!J130/1000,0)) -> 1590 | K130: =IF(千円単!K130="","",ROUND(千円単!K130/1000,0)) -> 590 | L130: =IF(千円単!L130="","",ROUND(千円単!L130/1000,0)) -> 164 | M130: =IF(千円単!M130="","",ROUND(千円単!M130/1000,0)) -> 1565 | N130: =IF(千円単!N130="","",ROUND(千円単!N130/1000,0)) -> 117 | O130: =IF(千円単!O130="","",ROUND(千円単!O130/1000,0)) -> 980 | P130: =IF(千円単!P130="","",ROUND(千円単!P130/1000,0)) -> 52 | Q130: =IF(千円単!Q130="","",ROUND(千円単!Q130/1000,0)) -> 25 | R130: =IF(千円単!R130="","",ROUND(千円単!R130/1000,0)) -> 595 | S130: =IF(千円単!S130="","",ROUND(千円単!S130/1000,0)) -> 170 | T130: =IF(千円単!T130="","",ROUND(千円単!T130/1000,0)) -> 361 | U130: =IF(千円単!U130="","",ROUND(千円単!U130/1000,0)) -> 786 | V130: =IF(千円単!V130="","",ROUND(千円単!V130/1000,0)) -> 277 | W130: =IF(千円単!W130="","",ROUND(千円単!W130/1000,0)) -> 508 | X130: =IF(千円単!X130="","",ROUND(千円単!X130/1000,0)) -> -190 | Y130: =IF(千円単!Y130="","",ROUND(千円単!Y130/1000,0)) -> 25
A131: 2019 | B131: 46 | C131: 17 | D131: 1 | E131: 130 | F131: 公共 | G131: 112321 | H131: 埼玉県 | I131: 久喜市 | J131: =IF(千円単!J131="","",ROUND(千円単!J131/1000,0)) -> 3761 | K131: =IF(千円単!K131="","",ROUND(千円単!K131/1000,0)) -> 1299 | L131: =IF(千円単!L131="","",ROUND(千円単!L131/1000,0)) -> 1384 | M131: =IF(千円単!M131="","",ROUND(千円単!M131/1000,0)) -> 3629 | N131: =IF(千円単!N131="","",ROUND(千円単!N131/1000,0)) -> 267 | O131: =IF(千円単!O131="","",ROUND(千円単!O131/1000,0)) -> 1763 | P131: =IF(千円単!P131="","",ROUND(千円単!P131/1000,0)) -> 100 | Q131: =IF(千円単!Q131="","",ROUND(千円単!Q131/1000,0)) -> 132 | R131: =IF(千円単!R131="","",ROUND(千円単!R131/1000,0)) -> 1470 | S131: =IF(千円単!S131="","",ROUND(千円単!S131/1000,0)) -> 1153 | T131: =IF(千円単!T131="","",ROUND(千円単!T131/1000,0)) -> 62 | U131: =IF(千円単!U131="","",ROUND(千円単!U131/1000,0)) -> 2434 | V131: =IF(千円単!V131="","",ROUND(千円単!V131/1000,0)) -> 961 | W131: =IF(千円単!W131="","",ROUND(千円単!W131/1000,0)) -> 1472 | X131: =IF(千円単!X131="","",ROUND(千円単!X131/1000,0)) -> -964 | Y131: =IF(千円単!Y131="","",ROUND(千円単!Y131/1000,0)) -> 132
A132: 2019 | B132: 46 | C132: 17 | D132: 1 | E132: 131 | F132: 公共 | G132: 112330 | H132: 埼玉県 | I132: 北本市 | J132: =IF(千円単!J132="","",ROUND(千円単!J132/1000,0)) -> 974 | K132: =IF(千円単!K132="","",ROUND(千円単!K132/1000,0)) -> 501 | L132: =IF(千円単!L132="","",ROUND(千円単!L132/1000,0)) -> 269 | M132: =IF(千円単!M132="","",ROUND(千円単!M132/1000,0)) -> 986 | N132: =IF(千円単!N132="","",ROUND(千円単!N132/1000,0)) -> 73 | O132: =IF(千円単!O132="","",ROUND(千円単!O132/1000,0)) -> 495 | P132: =IF(千円単!P132="","",ROUND(千円単!P132/1000,0)) -> 51 | Q132: =IF(千円単!Q132="","",ROUND(千円単!Q132/1000,0)) -> -12 | R132: =IF(千円単!R132="","",ROUND(千円単!R132/1000,0)) -> 340 | S132: =IF(千円単!S132="","",ROUND(千円単!S132/1000,0)) -> 147 | T132: =IF(千円単!T132="","",ROUND(千円単!T132/1000,0)) -> 161 | U132: =IF(千円単!U132="","",ROUND(千円単!U132/1000,0)) -> 640 | V132: =IF(千円単!V132="","",ROUND(千円単!V132/1000,0)) -> 192 | W132: =IF(千円単!W132="","",ROUND(千円単!W132/1000,0)) -> 448 | X132: =IF(千円単!X132="","",ROUND(千円単!X132/1000,0)) -> -301 | Y132: =IF(千円単!Y132="","",ROUND(千円単!Y132/1000,0)) -> -12
A133: 2019 | B133: 46 | C133: 17 | D133: 1 | E133: 132 | F133: 公共 | G133: 112356 | H133: 埼玉県 | I133: 富士見市 | J133: =IF(千円単!J133="","",ROUND(千円単!J133/1000,0)) -> 1419 | K133: =IF(千円単!K133="","",ROUND(千円単!K133/1000,0)) -> 881 | L133: =IF(千円単!L133="","",ROUND(千円単!L133/1000,0)) -> 255 | M133: =IF(千円単!M133="","",ROUND(千円単!M133/1000,0)) -> 1289 | N133: =IF(千円単!N133="","",ROUND(千円単!N133/1000,0)) -> 117 | O133: =IF(千円単!O133="","",ROUND(千円単!O133/1000,0)) -> 662 | P133: =IF(千円単!P133="","",ROUND(千円単!P133/1000,0)) -> 28 | Q133: =IF(千円単!Q133="","",ROUND(千円単!Q133/1000,0)) -> 130 | R133: =IF(千円単!R133="","",ROUND(千円単!R133/1000,0)) -> 358 | S133: =IF(千円単!S133="","",ROUND(千円単!S133/1000,0)) -> 222 | T133: =IF(千円単!T133="","",ROUND(千円単!T133/1000,0)) -> 28 | U133: =IF(千円単!U133="","",ROUND(千円単!U133/1000,0)) -> 937 | V133: =IF(千円単!V133="","",ROUND(千円単!V133/1000,0)) -> 368 | W133: =IF(千円単!W133="","",ROUND(千円単!W133/1000,0)) -> 569 | X133: =IF(千円単!X133="","",ROUND(千円単!X133/1000,0)) -> -579 | Y133: =IF(千円単!Y133="","",ROUND(千円単!Y133/1000,0)) -> 130
A134: 2019 | B134: 46 | C134: 17 | D134: 1 | E134: 133 | F134: 公共 | G134: 112381 | H134: 埼玉県 | I134: 蓮田市 | J134: =IF(千円単!J134="","",ROUND(千円単!J134/1000,0)) -> 967 | K134: =IF(千円単!K134="","",ROUND(千円単!K134/1000,0)) -> 483 | L134: =IF(千円単!L134="","",ROUND(千円単!L134/1000,0)) -> 252 | M134: =IF(千円単!M134="","",ROUND(千円単!M134/1000,0)) -> 916 | N134: =IF(千円単!N134="","",ROUND(千円単!N134/1000,0)) -> 104 | O134: =IF(千円単!O134="","",ROUND(千円単!O134/1000,0)) -> 510 | P134: =IF(千円単!P134="","",ROUND(千円単!P134/1000,0)) -> 25 | Q134: =IF(千円単!Q134="","",ROUND(千円単!Q134/1000,0)) -> 51 | R134: =IF(千円単!R134="","",ROUND(千円単!R134/1000,0)) -> 512 | S134: =IF(千円単!S134="","",ROUND(千円単!S134/1000,0)) -> 259 | T134: =IF(千円単!T134="","",ROUND(千円単!T134/1000,0)) -> 246 | U134: =IF(千円単!U134="","",ROUND(千円単!U134/1000,0)) -> 657 | V134: =IF(千円単!V134="","",ROUND(千円単!V134/1000,0)) -> 130 | W134: =IF(千円単!W134="","",ROUND(千円単!W134/1000,0)) -> 527 | X134: =IF(千円単!X134="","",ROUND(千円単!X134/1000,0)) -> -145 | Y134: =IF(千円単!Y134="","",ROUND(千円単!Y134/1000,0)) -> 51
A135: 2019 | B135: 46 | C135: 17 | D135: 1 | E135: 134 | F135: 公共 | G135: 112402 | H135: 埼玉県 | I135: 幸手市 | J135: =IF(千円単!J135="","",ROUND(千円単!J135/1000,0)) -> 679 | K135: =IF(千円単!K135="","",ROUND(千円単!K135/1000,0)) -> 171 | L135: =IF(千円単!L135="","",ROUND(千円単!L135/1000,0)) -> 191 | M135: =IF(千円単!M135="","",ROUND(千円単!M135/1000,0)) -> 670 | N135: =IF(千円単!N135="","",ROUND(千円単!N135/1000,0)) -> 71 | O135: =IF(千円単!O135="","",ROUND(千円単!O135/1000,0)) -> 389 | P135: =IF(千円単!P135="","",ROUND(千円単!P135/1000,0)) -> 33 | Q135: =IF(千円単!Q135="","",ROUND(千円単!Q135/1000,0)) -> 9 | R135: =IF(千円単!R135="","",ROUND(千円単!R135/1000,0)) -> 709 | S135: =IF(千円単!S135="","",ROUND(千円単!S135/1000,0)) -> 256 | T135: =IF(千円単!T135="","",ROUND(千円単!T135/1000,0)) -> 245 | U135: =IF(千円単!U135="","",ROUND(千円単!U135/1000,0)) -> 789 | V135: =IF(千円単!V135="","",ROUND(千円単!V135/1000,0)) -> 517 | W135: =IF(千円単!W135="","",ROUND(千円単!W135/1000,0)) -> 272 | X135: =IF(千円単!X135="","",ROUND(千円単!X135/1000,0)) -> -81 | Y135: =IF(千円単!Y135="","",ROUND(千円単!Y135/1000,0)) -> 9
A136: 2019 | B136: 46 | C136: 17 | D136: 1 | E136: 135 | F136: 公共 | G136: 112429 | H136: 埼玉県 | I136: 日高市 | J136: =IF(千円単!J136="","",ROUND(千円単!J136/1000,0)) -> 970 | K136: =IF(千円単!K136="","",ROUND(千円単!K136/1000,0)) -> 625 | L136: =IF(千円単!L136="","",ROUND(千円単!L136/1000,0)) -> 106 | M136: =IF(千円単!M136="","",ROUND(千円単!M136/1000,0)) -> 932 | N136: =IF(千円単!N136="","",ROUND(千円単!N136/1000,0)) -> 84 | O136: =IF(千円単!O136="","",ROUND(千円単!O136/1000,0)) -> 474 | P136: =IF(千円単!P136="","",ROUND(千円単!P136/1000,0)) -> 70 | Q136: =IF(千円単!Q136="","",ROUND(千円単!Q136/1000,0)) -> 38 | R136: =IF(千円単!R136="","",ROUND(千円単!R136/1000,0)) -> 344 | S136: =IF(千円単!S136="","",ROUND(千円単!S136/1000,0)) -> 293 | T136: =IF(千円単!T136="","",ROUND(千円単!T136/1000,0)) -> 34 | U136: =IF(千円単!U136="","",ROUND(千円単!U136/1000,0)) -> 749 | V136: =IF(千円単!V136="","",ROUND(千円単!V136/1000,0)) -> 226 | W136: =IF(千円単!W136="","",ROUND(千円単!W136/1000,0)) -> 524 | X136: =IF(千円単!X136="","",ROUND(千円単!X136/1000,0)) -> -406 | Y136: =IF(千円単!Y136="","",ROUND(千円単!Y136/1000,0)) -> 38
A137: 2019 | B137: 46 | C137: 17 | D137: 1 | E137: 136 | F137: 公共 | G137: 112437 | H137: 埼玉県 | I137: 吉川市 | J137: =IF(千円単!J137="","",ROUND(千円単!J137/1000,0)) -> 1437 | K137: =IF(千円単!K137="","",ROUND(千円単!K137/1000,0)) -> 588 | L137: =IF(千円単!L137="","",ROUND(千円単!L137/1000,0)) -> 196 | M137: =IF(千円単!M137="","",ROUND(千円単!M137/1000,0)) -> 1333 | N137: =IF(千円単!N137="","",ROUND(千円単!N137/1000,0)) -> 92 | O137: =IF(千円単!O137="","",ROUND(千円単!O137/1000,0)) -> 820 | P137: =IF(千円単!P137="","",ROUND(千円単!P137/1000,0)) -> 35 | Q137: =IF(千円単!Q137="","",ROUND(千円単!Q137/1000,0)) -> 103 | R137: =IF(千円単!R137="","",ROUND(千円単!R137/1000,0)) -> 620 | S137: =IF(千円単!S137="","",ROUND(千円単!S137/1000,0)) -> 363 | T137: =IF(千円単!T137="","",ROUND(千円単!T137/1000,0)) -> 101 | U137: =IF(千円単!U137="","",ROUND(千円単!U137/1000,0)) -> 879 | V137: =IF(千円単!V137="","",ROUND(千円単!V137/1000,0)) -> 466 | W137: =IF(千円単!W137="","",ROUND(千円単!W137/1000,0)) -> 414 | X137: =IF(千円単!X137="","",ROUND(千円単!X137/1000,0)) -> -259 | Y137: =IF(千円単!Y137="","",ROUND(千円単!Y137/1000,0)) -> 103
A138: 2019 | B138: 46 | C138: 17 | D138: 1 | E138: 137 | F138: 公共 | G138: 112453 | H138: 埼玉県 | I138: ふじみ野市 | J138: =IF(千円単!J138="","",ROUND(千円単!J138/1000,0)) -> 1638 | K138: =IF(千円単!K138="","",ROUND(千円単!K138/1000,0)) -> 986 | L138: =IF(千円単!L138="","",ROUND(千円単!L138/1000,0)) -> 254 | M138: =IF(千円単!M138="","",ROUND(千円単!M138/1000,0)) -> 1452 | N138: =IF(千円単!N138="","",ROUND(千円単!N138/1000,0)) -> 51 | O138: =IF(千円単!O138="","",ROUND(千円単!O138/1000,0)) -> 703 | P138: =IF(千円単!P138="","",ROUND(千円単!P138/1000,0)) -> 57 | Q138: =IF(千円単!Q138="","",ROUND(千円単!Q138/1000,0)) -> 186 | R138: =IF(千円単!R138="","",ROUND(千円単!R138/1000,0)) -> 257 | S138: =IF(千円単!S138="","",ROUND(千円単!S138/1000,0)) -> 187 | T138: =IF(千円単!T138="","",ROUND(千円単!T138/1000,0)) -> 13 | U138: =IF(千円単!U138="","",ROUND(千円単!U138/1000,0)) -> 502 | V138: =IF(千円単!V138="","",ROUND(千円単!V138/1000,0)) -> 252 | W138: =IF(千円単!W138="","",ROUND(千円単!W138/1000,0)) -> 250 | X138: =IF(千円単!X138="","",ROUND(千円単!X138/1000,0)) -> -245 | Y138: =IF(千円単!Y138="","",ROUND(千円単!Y138/1000,0)) -> 186
A139: 2019 | B139: 46 | C139: 17 | D139: 1 | E139: 138 | F139: 公共 | G139: 113247 | H139: 埼玉県 | I139: 三芳町 | J139: =IF(千円単!J139="","",ROUND(千円単!J139/1000,0)) -> 631 | K139: =IF(千円単!K139="","",ROUND(千円単!K139/1000,0)) -> 433 | L139: =IF(千円単!L139="","",ROUND(千円単!L139/1000,0)) -> 44 | M139: =IF(千円単!M139="","",ROUND(千円単!M139/1000,0)) -> 493 | N139: =IF(千円単!N139="","",ROUND(千円単!N139/1000,0)) -> 16 | O139: =IF(千円単!O139="","",ROUND(千円単!O139/1000,0)) -> 235 | P139: =IF(千円単!P139="","",ROUND(千円単!P139/1000,0)) -> 14 | Q139: =IF(千円単!Q139="","",ROUND(千円単!Q139/1000,0)) -> 138 | R139: =IF(千円単!R139="","",ROUND(千円単!R139/1000,0)) -> 56 | S139: =IF(千円単!S139="","",ROUND(千円単!S139/1000,0)) -> 43 | T139: =IF(千円単!T139="","",ROUND(千円単!T139/1000,0)) -> 12 | U139: =IF(千円単!U139="","",ROUND(千円単!U139/1000,0)) -> 126 | V139: =IF(千円単!V139="","",ROUND(千円単!V139/1000,0)) -> 60 | W139: =IF(千円単!W139="","",ROUND(千円単!W139/1000,0)) -> 66 | X139: =IF(千円単!X139="","",ROUND(千円単!X139/1000,0)) -> -70 | Y139: =IF(千円単!Y139="","",ROUND(千円単!Y139/1000,0)) -> 138
A140: 2019 | B140: 46 | C140: 17 | D140: 1 | E140: 139 | F140: 公共 | G140: 113859 | H140: 埼玉県 | I140: 上里町 | J140: =IF(千円単!J140="","",ROUND(千円単!J140/1000,0)) -> 201 | K140: =IF(千円単!K140="","",ROUND(千円単!K140/1000,0)) -> 57 | L140: =IF(千円単!L140="","",ROUND(千円単!L140/1000,0)) -> 98 | M140: =IF(千円単!M140="","",ROUND(千円単!M140/1000,0)) -> 200 | N140: =IF(千円単!N140="","",ROUND(千円単!N140/1000,0)) -> 39 | O140: =IF(千円単!O140="","",ROUND(千円単!O140/1000,0)) -> 111 | P140: =IF(千円単!P140="","",ROUND(千円単!P140/1000,0)) -> 16 | Q140: =IF(千円単!Q140="","",ROUND(千円単!Q140/1000,0)) -> 1 | R140: =IF(千円単!R140="","",ROUND(千円単!R140/1000,0)) -> 98 | S140: =IF(千円単!S140="","",ROUND(千円単!S140/1000,0)) -> 54 | T140: =IF(千円単!T140="","",ROUND(千円単!T140/1000,0)) -> 16 | U140: =IF(千円単!U140="","",ROUND(千円単!U140/1000,0)) -> 173 | V140: =IF(千円単!V140="","",ROUND(千円単!V140/1000,0)) -> 80 | W140: =IF(千円単!W140="","",ROUND(千円単!W140/1000,0)) -> 92 | X140: =IF(千円単!X140="","",ROUND(千円単!X140/1000,0)) -> -74 | Y140: =IF(千円単!Y140="","",ROUND(千円単!Y140/1000,0)) -> 1
A141: 2019 | B141: 46 | C141: 17 | D141: 1 | E141: 140 | F141: 公共 | G141: 118907 | H141: 埼玉県 | I141: 毛呂山・越生・鳩山公共下水道組合 | J141: =IF(千円単!J141="","",ROUND(千円単!J141/1000,0)) -> 1596 | K141: =IF(千円単!K141="","",ROUND(千円単!K141/1000,0)) -> 432 | L141: =IF(千円単!L141="","",ROUND(千円単!L141/1000,0)) -> 510 | M141: =IF(千円単!M141="","",ROUND(千円単!M141/1000,0)) -> 1515 | N141: =IF(千円単!N141="","",ROUND(千円単!N141/1000,0)) -> 100 | O141: =IF(千円単!O141="","",ROUND(千円単!O141/1000,0)) -> 896 | P141: =IF(千円単!P141="","",ROUND(千円単!P141/1000,0)) -> 109 | Q141: =IF(千円単!Q141="","",ROUND(千円単!Q141/1000,0)) -> 81 | R141: =IF(千円単!R141="","",ROUND(千円単!R141/1000,0)) -> 411 | S141: =IF(千円単!S141="","",ROUND(千円単!S141/1000,0)) -> 109 | T141: =IF(千円単!T141="","",ROUND(千円単!T141/1000,0)) -> 137 | U141: =IF(千円単!U141="","",ROUND(千円単!U141/1000,0)) -> 752 | V141: =IF(千円単!V141="","",ROUND(千円単!V141/1000,0)) -> 303 | W141: =IF(千円単!W141="","",ROUND(千円単!W141/1000,0)) -> 445 | X141: =IF(千円単!X141="","",ROUND(千円単!X141/1000,0)) -> -340 | Y141: =IF(千円単!Y141="","",ROUND(千円単!Y141/1000,0)) -> 81
A142: 2019 | B142: 46 | C142: 17 | D142: 1 | E142: 141 | F142: 公共 | G142: 121002 | H142: 千葉県 | I142: 千葉市 | J142: =IF(千円単!J142="","",ROUND(千円単!J142/1000,0)) -> 28062 | K142: =IF(千円単!K142="","",ROUND(千円単!K142/1000,0)) -> 13238 | L142: =IF(千円単!L142="","",ROUND(千円単!L142/1000,0)) -> 7467 | M142: =IF(千円単!M142="","",ROUND(千円単!M142/1000,0)) -> 26851 | N142: =IF(千円単!N142="","",ROUND(千円単!N142/1000,0)) -> 3461 | O142: =IF(千円単!O142="","",ROUND(千円単!O142/1000,0)) -> 15225 | P142: =IF(千円単!P142="","",ROUND(千円単!P142/1000,0)) -> 701 | Q142: =IF(千円単!Q142="","",ROUND(千円単!Q142/1000,0)) -> 1211 | R142: =IF(千円単!R142="","",ROUND(千円単!R142/1000,0)) -> 13825 | S142: =IF(千円単!S142="","",ROUND(千円単!S142/1000,0)) -> 10291 | T142: =IF(千円単!T142="","",ROUND(千円単!T142/1000,0)) -> 38 | U142: =IF(千円単!U142="","",ROUND(千円単!U142/1000,0)) -> 24569 | V142: =IF(千円単!V142="","",ROUND(千円単!V142/1000,0)) -> 9550 | W142: =IF(千円単!W142="","",ROUND(千円単!W142/1000,0)) -> 15014 | X142: =IF(千円単!X142="","",ROUND(千円単!X142/1000,0)) -> -10744 | Y142: =IF(千円単!Y142="","",ROUND(千円単!Y142/1000,0)) -> 1211
A143: 2019 | B143: 46 | C143: 17 | D143: 1 | E143: 142 | F143: 公共 | G143: 122033 | H143: 千葉県 | I143: 市川市 | J143: =IF(千円単!J143="","",ROUND(千円単!J143/1000,0)) -> 7851 | K143: =IF(千円単!K143="","",ROUND(千円単!K143/1000,0)) -> 4745 | L143: =IF(千円単!L143="","",ROUND(千円単!L143/1000,0)) -> 1065 | M143: =IF(千円単!M143="","",ROUND(千円単!M143/1000,0)) -> 7615 | N143: =IF(千円単!N143="","",ROUND(千円単!N143/1000,0)) -> 556 | O143: =IF(千円単!O143="","",ROUND(千円単!O143/1000,0)) -> 3833 | P143: =IF(千円単!P143="","",ROUND(千円単!P143/1000,0)) -> 310 | Q143: =IF(千円単!Q143="","",ROUND(千円単!Q143/1000,0)) -> 236 | R143: =IF(千円単!R143="","",ROUND(千円単!R143/1000,0)) -> 7182 | S143: =IF(千円単!S143="","",ROUND(千円単!S143/1000,0)) -> 4531 | T143: =IF(千円単!T143="","",ROUND(千円単!T143/1000,0)) -> 175 | U143: =IF(千円単!U143="","",ROUND(千円単!U143/1000,0)) -> 8810 | V143: =IF(千円単!V143="","",ROUND(千円単!V143/1000,0)) -> 6760 | W143: =IF(千円単!W143="","",ROUND(千円単!W143/1000,0)) -> 2046 | X143: =IF(千円単!X143="","",ROUND(千円単!X143/1000,0)) -> -1628 | Y143: =IF(千円単!Y143="","",ROUND(千円単!Y143/1000,0)) -> 236
A144: 2019 | B144: 46 | C144: 17 | D144: 1 | E144: 143 | F144: 公共 | G144: 122041 | H144: 千葉県 | I144: 船橋市 | J144: =IF(千円単!J144="","",ROUND(千円単!J144/1000,0)) -> 16734 | K144: =IF(千円単!K144="","",ROUND(千円単!K144/1000,0)) -> 6967 | L144: =IF(千円単!L144="","",ROUND(千円単!L144/1000,0)) -> 6224 | M144: =IF(千円単!M144="","",ROUND(千円単!M144/1000,0)) -> 16381 | N144: =IF(千円単!N144="","",ROUND(千円単!N144/1000,0)) -> 2105 | O144: =IF(千円単!O144="","",ROUND(千円単!O144/1000,0)) -> 9554 | P144: =IF(千円単!P144="","",ROUND(千円単!P144/1000,0)) -> 392 | Q144: =IF(千円単!Q144="","",ROUND(千円単!Q144/1000,0)) -> 353 | R144: =IF(千円単!R144="","",ROUND(千円単!R144/1000,0)) -> 12246 | S144: =IF(千円単!S144="","",ROUND(千円単!S144/1000,0)) -> 7237 | T144: =IF(千円単!T144="","",ROUND(千円単!T144/1000,0)) -> 536 | U144: =IF(千円単!U144="","",ROUND(千円単!U144/1000,0)) -> 19648 | V144: =IF(千円単!V144="","",ROUND(千円単!V144/1000,0)) -> 9442 | W144: =IF(千円単!W144="","",ROUND(千円単!W144/1000,0)) -> 10177 | X144: =IF(千円単!X144="","",ROUND(千円単!X144/1000,0)) -> -7402 | Y144: =IF(千円単!Y144="","",ROUND(千円単!Y144/1000,0)) -> 353
A145: 2019 | B145: 46 | C145: 17 | D145: 1 | E145: 144 | F145: 公共 | G145: 122076 | H145: 千葉県 | I145: 松戸市 | J145: =IF(千円単!J145="","",ROUND(千円単!J145/1000,0)) -> 11493 | K145: =IF(千円単!K145="","",ROUND(千円単!K145/1000,0)) -> 6237 | L145: =IF(千円単!L145="","",ROUND(千円単!L145/1000,0)) -> 1664 | M145: =IF(千円単!M145="","",ROUND(千円単!M145/1000,0)) -> 11002 | N145: =IF(千円単!N145="","",ROUND(千円単!N145/1000,0)) -> 1007 | O145: =IF(千円単!O145="","",ROUND(千円単!O145/1000,0)) -> 6147 | P145: =IF(千円単!P145="","",ROUND(千円単!P145/1000,0)) -> 258 | Q145: =IF(千円単!Q145="","",ROUND(千円単!Q145/1000,0)) -> 491 | R145: =IF(千円単!R145="","",ROUND(千円単!R145/1000,0)) -> 4801 | S145: =IF(千円単!S145="","",ROUND(千円単!S145/1000,0)) -> 2154 | T145: =IF(千円単!T145="","",ROUND(千円単!T145/1000,0)) -> 136 | U145: =IF(千円単!U145="","",ROUND(千円単!U145/1000,0)) -> 7716 | V145: =IF(千円単!V145="","",ROUND(千円単!V145/1000,0)) -> 3592 | W145: =IF(千円単!W145="","",ROUND(千円単!W145/1000,0)) -> 4124 | X145: =IF(千円単!X145="","",ROUND(千円単!X145/1000,0)) -> -2916 | Y145: =IF(千円単!Y145="","",ROUND(千円単!Y145/1000,0)) -> 491
A146: 2019 | B146: 46 | C146: 17 | D146: 1 | E146: 145 | F146: 公共 | G146: 122106 | H146: 千葉県 | I146: 茂原市 | J146: =IF(千円単!J146="","",ROUND(千円単!J146/1000,0)) -> 1332 | K146: =IF(千円単!K146="","",ROUND(千円単!K146/1000,0)) -> 640 | L146: =IF(千円単!L146="","",ROUND(千円単!L146/1000,0)) -> 212 | M146: =IF(千円単!M146="","",ROUND(千円単!M146/1000,0)) -> 1281 | N146: =IF(千円単!N146="","",ROUND(千円単!N146/1000,0)) -> 69 | O146: =IF(千円単!O146="","",ROUND(千円単!O146/1000,0)) -> 790 | P146: =IF(千円単!P146="","",ROUND(千円単!P146/1000,0)) -> 86 | Q146: =IF(千円単!Q146="","",ROUND(千円単!Q146/1000,0)) -> 51 | R146: =IF(千円単!R146="","",ROUND(千円単!R146/1000,0)) -> 607 | S146: =IF(千円単!S146="","",ROUND(千円単!S146/1000,0)) -> 245 | T146: =IF(千円単!T146="","",ROUND(千円単!T146/1000,0)) -> 114 | U146: =IF(千円単!U146="","",ROUND(千円単!U146/1000,0)) -> 1059 | V146: =IF(千円単!V146="","",ROUND(千円単!V146/1000,0)) -> 585 | W146: =IF(千円単!W146="","",ROUND(千円単!W146/1000,0)) -> 472 | X146: =IF(千円単!X146="","",ROUND(千円単!X146/1000,0)) -> -451 | Y146: =IF(千円単!Y146="","",ROUND(千円単!Y146/1000,0)) -> 51
A147: 2019 | B147: 46 | C147: 17 | D147: 1 | E147: 146 | F147: 公共 | G147: 122114 | H147: 千葉県 | I147: 成田市 | J147: =IF(千円単!J147="","",ROUND(千円単!J147/1000,0)) -> 3402 | K147: =IF(千円単!K147="","",ROUND(千円単!K147/1000,0)) -> 1215 | L147: =IF(千円単!L147="","",ROUND(千円単!L147/1000,0)) -> 267 | M147: =IF(千円単!M147="","",ROUND(千円単!M147/1000,0)) -> 3284 | N147: =IF(千円単!N147="","",ROUND(千円単!N147/1000,0)) -> 96 | O147: =IF(千円単!O147="","",ROUND(千円単!O147/1000,0)) -> 2237 | P147: =IF(千円単!P147="","",ROUND(千円単!P147/1000,0)) -> 84 | Q147: =IF(千円単!Q147="","",ROUND(千円単!Q147/1000,0)) -> 119 | R147: =IF(千円単!R147="","",ROUND(千円単!R147/1000,0)) -> 659 | S147: =IF(千円単!S147="","",ROUND(千円単!S147/1000,0)) -> 286 | T147: =IF(千円単!T147="","",ROUND(千円単!T147/1000,0)) -> 0 | U147: =IF(千円単!U147="","",ROUND(千円単!U147/1000,0)) -> 1061 | V147: =IF(千円単!V147="","",ROUND(千円単!V147/1000,0)) -> 605 | W147: =IF(千円単!W147="","",ROUND(千円単!W147/1000,0)) -> 455 | X147: =IF(千円単!X147="","",ROUND(千円単!X147/1000,0)) -> -402 | Y147: =IF(千円単!Y147="","",ROUND(千円単!Y147/1000,0)) -> 119
A148: 2019 | B148: 46 | C148: 17 | D148: 1 | E148: 147 | F148: 公共 | G148: 122122 | H148: 千葉県 | I148: 佐倉市 | J148: =IF(千円単!J148="","",ROUND(千円単!J148/1000,0)) -> 3820 | K148: =IF(千円単!K148="","",ROUND(千円単!K148/1000,0)) -> 2382 | L148: =IF(千円単!L148="","",ROUND(千円単!L148/1000,0)) -> 258 | M148: =IF(千円単!M148="","",ROUND(千円単!M148/1000,0)) -> 3207 | N148: =IF(千円単!N148="","",ROUND(千円単!N148/1000,0)) -> 60 | O148: =IF(千円単!O148="","",ROUND(千円単!O148/1000,0)) -> 1625 | P148: =IF(千円単!P148="","",ROUND(千円単!P148/1000,0)) -> 170 | Q148: =IF(千円単!Q148="","",ROUND(千円単!Q148/1000,0)) -> 613 | R148: =IF(千円単!R148="","",ROUND(千円単!R148/1000,0)) -> 326 | S148: =IF(千円単!S148="","",ROUND(千円単!S148/1000,0)) -> 51 | T148: =IF(千円単!T148="","",ROUND(千円単!T148/1000,0)) -> 0 | U148: =IF(千円単!U148="","",ROUND(千円単!U148/1000,0)) -> 1145 | V148: =IF(千円単!V148="","",ROUND(千円単!V148/1000,0)) -> 897 | W148: =IF(千円単!W148="","",ROUND(千円単!W148/1000,0)) -> 248 | X148: =IF(千円単!X148="","",ROUND(千円単!X148/1000,0)) -> -819 | Y148: =IF(千円単!Y148="","",ROUND(千円単!Y148/1000,0)) -> 613
A149: 2019 | B149: 46 | C149: 17 | D149: 1 | E149: 148 | F149: 公共 | G149: 122165 | H149: 千葉県 | I149: 習志野市 | J149: =IF(千円単!J149="","",ROUND(千円単!J149/1000,0)) -> 6313 | K149: =IF(千円単!K149="","",ROUND(千円単!K149/1000,0)) -> 2683 | L149: =IF(千円単!L149="","",ROUND(千円単!L149/1000,0)) -> 1420 | M149: =IF(千円単!M149="","",ROUND(千円単!M149/1000,0)) -> 5939 | N149: =IF(千円単!N149="","",ROUND(千円単!N149/1000,0)) -> 470 | O149: =IF(千円単!O149="","",ROUND(千円単!O149/1000,0)) -> 3413 | P149: =IF(千円単!P149="","",ROUND(千円単!P149/1000,0)) -> 248 | Q149: =IF(千円単!Q149="","",ROUND(千円単!Q149/1000,0)) -> 374 | R149: =IF(千円単!R149="","",ROUND(千円単!R149/1000,0)) -> 1585 | S149: =IF(千円単!S149="","",ROUND(千円単!S149/1000,0)) -> 857 | T149: =IF(千円単!T149="","",ROUND(千円単!T149/1000,0)) -> 65 | U149: =IF(千円単!U149="","",ROUND(千円単!U149/1000,0)) -> 2987 | V149: =IF(千円単!V149="","",ROUND(千円単!V149/1000,0)) -> 821 | W149: =IF(千円単!W149="","",ROUND(千円単!W149/1000,0)) -> 2165 | X149: =IF(千円単!X149="","",ROUND(千円単!X149/1000,0)) -> -1402 | Y149: =IF(千円単!Y149="","",ROUND(千円単!Y149/1000,0)) -> 374
A150: 2019 | B150: 46 | C150: 17 | D150: 1 | E150: 149 | F150: 公共 | G150: 122173 | H150: 千葉県 | I150: 柏市 | J150: =IF(千円単!J150="","",ROUND(千円単!J150/1000,0)) -> 9279 | K150: =IF(千円単!K150="","",ROUND(千円単!K150/1000,0)) -> 5509 | L150: =IF(千円単!L150="","",ROUND(千円単!L150/1000,0)) -> 1223 | M150: =IF(千円単!M150="","",ROUND(千円単!M150/1000,0)) -> 8856 | N150: =IF(千円単!N150="","",ROUND(千円単!N150/1000,0)) -> 710 | O150: =IF(千円単!O150="","",ROUND(千円単!O150/1000,0)) -> 4700 | P150: =IF(千円単!P150="","",ROUND(千円単!P150/1000,0)) -> 216 | Q150: =IF(千円単!Q150="","",ROUND(千円単!Q150/1000,0)) -> 423 | R150: =IF(千円単!R150="","",ROUND(千円単!R150/1000,0)) -> 3748 | S150: =IF(千円単!S150="","",ROUND(千円単!S150/1000,0)) -> 1253 | T150: =IF(千円単!T150="","",ROUND(千円単!T150/1000,0)) -> 1 | U150: =IF(千円単!U150="","",ROUND(千円単!U150/1000,0)) -> 5472 | V150: =IF(千円単!V150="","",ROUND(千円単!V150/1000,0)) -> 2389 | W150: =IF(千円単!W150="","",ROUND(千円単!W150/1000,0)) -> 3079 | X150: =IF(千円単!X150="","",ROUND(千円単!X150/1000,0)) -> -1724 | Y150: =IF(千円単!Y150="","",ROUND(千円単!Y150/1000,0)) -> 423
A151: 2019 | B151: 46 | C151: 17 | D151: 1 | E151: 150 | F151: 公共 | G151: 122190 | H151: 千葉県 | I151: 市原市 | J151: =IF(千円単!J151="","",ROUND(千円単!J151/1000,0)) -> 5734 | K151: =IF(千円単!K151="","",ROUND(千円単!K151/1000,0)) -> 2094 | L151: =IF(千円単!L151="","",ROUND(千円単!L151/1000,0)) -> 841 | M151: =IF(千円単!M151="","",ROUND(千円単!M151/1000,0)) -> 5734 | N151: =IF(千円単!N151="","",ROUND(千円単!N151/1000,0)) -> 341 | O151: =IF(千円単!O151="","",ROUND(千円単!O151/1000,0)) -> 3938 | P151: =IF(千円単!P151="","",ROUND(千円単!P151/1000,0)) -> 187 | Q151: =IF(千円単!Q151="","",ROUND(千円単!Q151/1000,0)) -> 0 | R151: =IF(千円単!R151="","",ROUND(千円単!R151/1000,0)) -> 2652 | S151: =IF(千円単!S151="","",ROUND(千円単!S151/1000,0)) -> 1188 | T151: =IF(千円単!T151="","",ROUND(千円単!T151/1000,0)) -> 198 | U151: =IF(千円単!U151="","",ROUND(千円単!U151/1000,0)) -> 3846 | V151: =IF(千円単!V151="","",ROUND(千円単!V151/1000,0)) -> 2003 | W151: =IF(千円単!W151="","",ROUND(千円単!W151/1000,0)) -> 1840 | X151: =IF(千円単!X151="","",ROUND(千円単!X151/1000,0)) -> -1194 | Y151: =IF(千円単!Y151="","",ROUND(千円単!Y151/1000,0)) -> 0
A152: 2019 | B152: 46 | C152: 17 | D152: 1 | E152: 151 | F152: 公共 | G152: 122203 | H152: 千葉県 | I152: 流山市 | J152: =IF(千円単!J152="","",ROUND(千円単!J152/1000,0)) -> 3299 | K152: =IF(千円単!K152="","",ROUND(千円単!K152/1000,0)) -> 1955 | L152: =IF(千円単!L152="","",ROUND(千円単!L152/1000,0)) -> 501 | M152: =IF(千円単!M152="","",ROUND(千円単!M152/1000,0)) -> 3015 | N152: =IF(千円単!N152="","",ROUND(千円単!N152/1000,0)) -> 322 | O152: =IF(千円単!O152="","",ROUND(千円単!O152/1000,0)) -> 1494 | P152: =IF(千円単!P152="","",ROUND(千円単!P152/1000,0)) -> 96 | Q152: =IF(千円単!Q152="","",ROUND(千円単!Q152/1000,0)) -> 285 | R152: =IF(千円単!R152="","",ROUND(千円単!R152/1000,0)) -> 2674 | S152: =IF(千円単!S152="","",ROUND(千円単!S152/1000,0)) -> 778 | T152: =IF(千円単!T152="","",ROUND(千円単!T152/1000,0)) -> 100 | U152: =IF(千円単!U152="","",ROUND(千円単!U152/1000,0)) -> 3192 | V152: =IF(千円単!V152="","",ROUND(千円単!V152/1000,0)) -> 2106 | W152: =IF(千円単!W152="","",ROUND(千円単!W152/1000,0)) -> 1086 | X152: =IF(千円単!X152="","",ROUND(千円単!X152/1000,0)) -> -518 | Y152: =IF(千円単!Y152="","",ROUND(千円単!Y152/1000,0)) -> 285
A153: 2019 | B153: 46 | C153: 17 | D153: 1 | E153: 152 | F153: 公共 | G153: 122211 | H153: 千葉県 | I153: 八千代市 | J153: =IF(千円単!J153="","",ROUND(千円単!J153/1000,0)) -> 3297 | K153: =IF(千円単!K153="","",ROUND(千円単!K153/1000,0)) -> 2176 | L153: =IF(千円単!L153="","",ROUND(千円単!L153/1000,0)) -> 423 | M153: =IF(千円単!M153="","",ROUND(千円単!M153/1000,0)) -> 3135 | N153: =IF(千円単!N153="","",ROUND(千円単!N153/1000,0)) -> 152 | O153: =IF(千円単!O153="","",ROUND(千円単!O153/1000,0)) -> 1473 | P153: =IF(千円単!P153="","",ROUND(千円単!P153/1000,0)) -> 128 | Q153: =IF(千円単!Q153="","",ROUND(千円単!Q153/1000,0)) -> 162 | R153: =IF(千円単!R153="","",ROUND(千円単!R153/1000,0)) -> 1532 | S153: =IF(千円単!S153="","",ROUND(千円単!S153/1000,0)) -> 594 | T153: =IF(千円単!T153="","",ROUND(千円単!T153/1000,0)) -> 311 | U153: =IF(千円単!U153="","",ROUND(千円単!U153/1000,0)) -> 2382 | V153: =IF(千円単!V153="","",ROUND(千円単!V153/1000,0)) -> 1711 | W153: =IF(千円単!W153="","",ROUND(千円単!W153/1000,0)) -> 584 | X153: =IF(千円単!X153="","",ROUND(千円単!X153/1000,0)) -> -850 | Y153: =IF(千円単!Y153="","",ROUND(千円単!Y153/1000,0)) -> 162
A154: 2019 | B154: 46 | C154: 17 | D154: 1 | E154: 153 | F154: 公共 | G154: 122289 | H154: 千葉県 | I154: 四街道市 | J154: =IF(千円単!J154="","",ROUND(千円単!J154/1000,0)) -> 1860 | K154: =IF(千円単!K154="","",ROUND(千円単!K154/1000,0)) -> 884 | L154: =IF(千円単!L154="","",ROUND(千円単!L154/1000,0)) -> 209 | M154: =IF(千円単!M154="","",ROUND(千円単!M154/1000,0)) -> 1858 | N154: =IF(千円単!N154="","",ROUND(千円単!N154/1000,0)) -> 89 | O154: =IF(千円単!O154="","",ROUND(千円単!O154/1000,0)) -> 1107 | P154: =IF(千円単!P154="","",ROUND(千円単!P154/1000,0)) -> 59 | Q154: =IF(千円単!Q154="","",ROUND(千円単!Q154/1000,0)) -> 3 | R154: =IF(千円単!R154="","",ROUND(千円単!R154/1000,0)) -> 177 | S154: =IF(千円単!S154="","",ROUND(千円単!S154/1000,0)) -> 65 | T154: =IF(千円単!T154="","",ROUND(千円単!T154/1000,0)) -> 55 | U154: =IF(千円単!U154="","",ROUND(千円単!U154/1000,0)) -> 533 | V154: =IF(千円単!V154="","",ROUND(千円単!V154/1000,0)) -> 161 | W154: =IF(千円単!W154="","",ROUND(千円単!W154/1000,0)) -> 372 | X154: =IF(千円単!X154="","",ROUND(千円単!X154/1000,0)) -> -356 | Y154: =IF(千円単!Y154="","",ROUND(千円単!Y154/1000,0)) -> 3
A155: 2019 | B155: 46 | C155: 17 | D155: 1 | E155: 154 | F155: 公共 | G155: 122335 | H155: 千葉県 | I155: 富里市 | J155: =IF(千円単!J155="","",ROUND(千円単!J155/1000,0)) -> 968 | K155: =IF(千円単!K155="","",ROUND(千円単!K155/1000,0)) -> 344 | L155: =IF(千円単!L155="","",ROUND(千円単!L155/1000,0)) -> 237 | M155: =IF(千円単!M155="","",ROUND(千円単!M155/1000,0)) -> 854 | N155: =IF(千円単!N155="","",ROUND(千円単!N155/1000,0)) -> 47 | O155: =IF(千円単!O155="","",ROUND(千円単!O155/1000,0)) -> 504 | P155: =IF(千円単!P155="","",ROUND(千円単!P155/1000,0)) -> 42 | Q155: =IF(千円単!Q155="","",ROUND(千円単!Q155/1000,0)) -> 114 | R155: =IF(千円単!R155="","",ROUND(千円単!R155/1000,0)) -> 98 | S155: =IF(千円単!S155="","",ROUND(千円単!S155/1000,0)) -> 22 | T155: =IF(千円単!T155="","",ROUND(千円単!T155/1000,0)) -> 46 | U155: =IF(千円単!U155="","",ROUND(千円単!U155/1000,0)) -> 308 | V155: =IF(千円単!V155="","",ROUND(千円単!V155/1000,0)) -> 88 | W155: =IF(千円単!W155="","",ROUND(千円単!W155/1000,0)) -> 220 | X155: =IF(千円単!X155="","",ROUND(千円単!X155/1000,0)) -> -210 | Y155: =IF(千円単!Y155="","",ROUND(千円単!Y155/1000,0)) -> 114
A156: 2019 | B156: 46 | C156: 17 | D156: 1 | E156: 155 | F156: 公共 | G156: 123226 | H156: 千葉県 | I156: 酒々井町 | J156: =IF(千円単!J156="","",ROUND(千円単!J156/1000,0)) -> 250 | K156: =IF(千円単!K156="","",ROUND(千円単!K156/1000,0)) -> 218 | L156: =IF(千円単!L156="","",ROUND(千円単!L156/1000,0)) -> 0 | M156: =IF(千円単!M156="","",ROUND(千円単!M156/1000,0)) -> 291 | N156: =IF(千円単!N156="","",ROUND(千円単!N156/1000,0)) -> 14 | O156: =IF(千円単!O156="","",ROUND(千円単!O156/1000,0)) -> 167 | P156: =IF(千円単!P156="","",ROUND(千円単!P156/1000,0)) -> 4 | Q156: =IF(千円単!Q156="","",ROUND(千円単!Q156/1000,0)) -> -42 | R156: =IF(千円単!R156="","",ROUND(千円単!R156/1000,0)) -> 66 | S156: =IF(千円単!S156="","",ROUND(千円単!S156/1000,0)) -> 14 | T156: =IF(千円単!T156="","",ROUND(千円単!T156/1000,0)) -> 34 | U156: =IF(千円単!U156="","",ROUND(千円単!U156/1000,0)) -> 145 | V156: =IF(千円単!V156="","",ROUND(千円単!V156/1000,0)) -> 75 | W156: =IF(千円単!W156="","",ROUND(千円単!W156/1000,0)) -> 70 | X156: =IF(千円単!X156="","",ROUND(千円単!X156/1000,0)) -> -79 | Y156: =IF(千円単!Y156="","",ROUND(千円単!Y156/1000,0)) -> -42
A157: 2019 | B157: 46 | C157: 17 | D157: 1 | E157: 156 | F157: 公共 | G157: 130001 | H157: 東京都 | I157: 東京都 | J157: =IF(千円単!J157="","",ROUND(千円単!J157/1000,0)) -> 344586 | K157: =IF(千円単!K157="","",ROUND(千円単!K157/1000,0)) -> 158360 | L157: =IF(千円単!L157="","",ROUND(千円単!L157/1000,0)) -> 120780 | M157: =IF(千円単!M157="","",ROUND(千円単!M157/1000,0)) -> 317512 | N157: =IF(千円単!N157="","",ROUND(千円単!N157/1000,0)) -> 17649 | O157: =IF(千円単!O157="","",ROUND(千円単!O157/1000,0)) -> 172703 | P157: =IF(千円単!P157="","",ROUND(千円単!P157/1000,0)) -> 13263 | Q157: =IF(千円単!Q157="","",ROUND(千円単!Q157/1000,0)) -> 27074 | R157: =IF(千円単!R157="","",ROUND(千円単!R157/1000,0)) -> 168050 | S157: =IF(千円単!S157="","",ROUND(千円単!S157/1000,0)) -> 74039 | T157: =IF(千円単!T157="","",ROUND(千円単!T157/1000,0)) -> 0 | U157: =IF(千円単!U157="","",ROUND(千円単!U157/1000,0)) -> 335609 | V157: =IF(千円単!V157="","",ROUND(千円単!V157/1000,0)) -> 207417 | W157: =IF(千円単!W157="","",ROUND(千円単!W157/1000,0)) -> 128193 | X157: =IF(千円単!X157="","",ROUND(千円単!X157/1000,0)) -> -167559 | Y157: =IF(千円単!Y157="","",ROUND(千円単!Y157/1000,0)) -> 27074
A158: 2019 | B158: 46 | C158: 17 | D158: 1 | E158: 157 | F158: 公共 | G158: 132110 | H158: 東京都 | I158: 小平市 | J158: =IF(千円単!J158="","",ROUND(千円単!J158/1000,0)) -> 4239 | K158: =IF(千円単!K158="","",ROUND(千円単!K158/1000,0)) -> 2017 | L158: =IF(千円単!L158="","",ROUND(千円単!L158/1000,0)) -> 844 | M158: =IF(千円単!M158="","",ROUND(千円単!M158/1000,0)) -> 3790 | N158: =IF(千円単!N158="","",ROUND(千円単!N158/1000,0)) -> 120 | O158: =IF(千円単!O158="","",ROUND(千円単!O158/1000,0)) -> 2089 | P158: =IF(千円単!P158="","",ROUND(千円単!P158/1000,0)) -> 90 | Q158: =IF(千円単!Q158="","",ROUND(千円単!Q158/1000,0)) -> 449 | R158: =IF(千円単!R158="","",ROUND(千円単!R158/1000,0)) -> 985 | S158: =IF(千円単!S158="","",ROUND(千円単!S158/1000,0)) -> 712 | T158: =IF(千円単!T158="","",ROUND(千円単!T158/1000,0)) -> 205 | U158: =IF(千円単!U158="","",ROUND(千円単!U158/1000,0)) -> 1895 | V158: =IF(千円単!V158="","",ROUND(千円単!V158/1000,0)) -> 1055 | W158: =IF(千円単!W158="","",ROUND(千円単!W158/1000,0)) -> 590 | X158: =IF(千円単!X158="","",ROUND(千円単!X158/1000,0)) -> -911 | Y158: =IF(千円単!Y158="","",ROUND(千円単!Y158/1000,0)) -> 449
A159: 2019 | B159: 46 | C159: 17 | D159: 1 | E159: 158 | F159: 公共 | G159: 132187 | H159: 東京都 | I159: 福生市 | J159: =IF(千円単!J159="","",ROUND(千円単!J159/1000,0)) -> 1498 | K159: =IF(千円単!K159="","",ROUND(千円単!K159/1000,0)) -> 947 | L159: =IF(千円単!L159="","",ROUND(千円単!L159/1000,0)) -> 208 | M159: =IF(千円単!M159="","",ROUND(千円単!M159/1000,0)) -> 1266 | N159: =IF(千円単!N159="","",ROUND(千円単!N159/1000,0)) -> 68 | O159: =IF(千円単!O159="","",ROUND(千円単!O159/1000,0)) -> 684 | P159: =IF(千円単!P159="","",ROUND(千円単!P159/1000,0)) -> 24 | Q159: =IF(千円単!Q159="","",ROUND(千円単!Q159/1000,0)) -> 232 | R159: =IF(千円単!R159="","",ROUND(千円単!R159/1000,0)) -> 381 | S159: =IF(千円単!S159="","",ROUND(千円単!S159/1000,0)) -> 210 | T159: =IF(千円単!T159="","",ROUND(千円単!T159/1000,0)) -> 0 | U159: =IF(千円単!U159="","",ROUND(千円単!U159/1000,0)) -> 983 | V159: =IF(千円単!V159="","",ROUND(千円単!V159/1000,0)) -> 355 | W159: =IF(千円単!W159="","",ROUND(千円単!W159/1000,0)) -> 346 | X159: =IF(千円単!X159="","",ROUND(千円単!X159/1000,0)) -> -603 | Y159: =IF(千円単!Y159="","",ROUND(千円単!Y159/1000,0)) -> 232
A160: 2019 | B160: 46 | C160: 17 | D160: 1 | E160: 159 | F160: 公共 | G160: 132217 | H160: 東京都 | I160: 清瀬市 | J160: =IF(千円単!J160="","",ROUND(千円単!J160/1000,0)) -> 1119 | K160: =IF(千円単!K160="","",ROUND(千円単!K160/1000,0)) -> 882 | L160: =IF(千円単!L160="","",ROUND(千円単!L160/1000,0)) -> 72 | M160: =IF(千円単!M160="","",ROUND(千円単!M160/1000,0)) -> 1016 | N160: =IF(千円単!N160="","",ROUND(千円単!N160/1000,0)) -> 49 | O160: =IF(千円単!O160="","",ROUND(千円単!O160/1000,0)) -> 441 | P160: =IF(千円単!P160="","",ROUND(千円単!P160/1000,0)) -> 42 | Q160: =IF(千円単!Q160="","",ROUND(千円単!Q160/1000,0)) -> 103 | R160: =IF(千円単!R160="","",ROUND(千円単!R160/1000,0)) -> 172 | S160: =IF(千円単!S160="","",ROUND(千円単!S160/1000,0)) -> 142 | T160: =IF(千円単!T160="","",ROUND(千円単!T160/1000,0)) -> 0 | U160: =IF(千円単!U160="","",ROUND(千円単!U160/1000,0)) -> 476 | V160: =IF(千円単!V160="","",ROUND(千円単!V160/1000,0)) -> 132 | W160: =IF(千円単!W160="","",ROUND(千円単!W160/1000,0)) -> 344 | X160: =IF(千円単!X160="","",ROUND(千円単!X160/1000,0)) -> -304 | Y160: =IF(千円単!Y160="","",ROUND(千円単!Y160/1000,0)) -> 103
A161: 2019 | B161: 46 | C161: 17 | D161: 1 | E161: 160 | F161: 公共 | G161: 132241 | H161: 東京都 | I161: 多摩市 | J161: =IF(千円単!J161="","",ROUND(千円単!J161/1000,0)) -> 3397 | K161: =IF(千円単!K161="","",ROUND(千円単!K161/1000,0)) -> 2123 | L161: =IF(千円単!L161="","",ROUND(千円単!L161/1000,0)) -> 229 | M161: =IF(千円単!M161="","",ROUND(千円単!M161/1000,0)) -> 2810 | N161: =IF(千円単!N161="","",ROUND(千円単!N161/1000,0)) -> 20 | O161: =IF(千円単!O161="","",ROUND(千円単!O161/1000,0)) -> 1470 | P161: =IF(千円単!P161="","",ROUND(千円単!P161/1000,0)) -> 96 | Q161: =IF(千円単!Q161="","",ROUND(千円単!Q161/1000,0)) -> 587 | R161: =IF(千円単!R161="","",ROUND(千円単!R161/1000,0)) -> 43 | S161: =IF(千円単!S161="","",ROUND(千円単!S161/1000,0)) -> 0 | T161: =IF(千円単!T161="","",ROUND(千円単!T161/1000,0)) -> 42 | U161: =IF(千円単!U161="","",ROUND(千円単!U161/1000,0)) -> 199 | V161: =IF(千円単!V161="","",ROUND(千円単!V161/1000,0)) -> 79 | W161: =IF(千円単!W161="","",ROUND(千円単!W161/1000,0)) -> 120 | X161: =IF(千円単!X161="","",ROUND(千円単!X161/1000,0)) -> -156 | Y161: =IF(千円単!Y161="","",ROUND(千円単!Y161/1000,0)) -> 587
A162: 2019 | B162: 46 | C162: 17 | D162: 1 | E162: 161 | F162: 公共 | G162: 132250 | H162: 東京都 | I162: 稲城市 | J162: =IF(千円単!J162="","",ROUND(千円単!J162/1000,0)) -> 1852 | K162: =IF(千円単!K162="","",ROUND(千円単!K162/1000,0)) -> 1040 | L162: =IF(千円単!L162="","",ROUND(千円単!L162/1000,0)) -> 105 | M162: =IF(千円単!M162="","",ROUND(千円単!M162/1000,0)) -> 1795 | N162: =IF(千円単!N162="","",ROUND(千円単!N162/1000,0)) -> 130 | O162: =IF(千円単!O162="","",ROUND(千円単!O162/1000,0)) -> 1073 | P162: =IF(千円単!P162="","",ROUND(千円単!P162/1000,0)) -> 68 | Q162: =IF(千円単!Q162="","",ROUND(千円単!Q162/1000,0)) -> 57 | R162: =IF(千円単!R162="","",ROUND(千円単!R162/1000,0)) -> 484 | S162: =IF(千円単!S162="","",ROUND(千円単!S162/1000,0)) -> 56 | T162: =IF(千円単!T162="","",ROUND(千円単!T162/1000,0)) -> 245 | U162: =IF(千円単!U162="","",ROUND(千円単!U162/1000,0)) -> 883 | V162: =IF(千円単!V162="","",ROUND(千円単!V162/1000,0)) -> 273 | W162: =IF(千円単!W162="","",ROUND(千円単!W162/1000,0)) -> 610 | X162: =IF(千円単!X162="","",ROUND(千円単!X162/1000,0)) -> -399 | Y162: =IF(千円単!Y162="","",ROUND(千円単!Y162/1000,0)) -> 57
A163: 2019 | B163: 46 | C163: 17 | D163: 1 | E163: 162 | F163: 公共 | G163: 132292 | H163: 東京都 | I163: 西東京市 | J163: =IF(千円単!J163="","",ROUND(千円単!J163/1000,0)) -> 3098 | K163: =IF(千円単!K163="","",ROUND(千円単!K163/1000,0)) -> 2019 | L163: =IF(千円単!L163="","",ROUND(千円単!L163/1000,0)) -> 63 | M163: =IF(千円単!M163="","",ROUND(千円単!M163/1000,0)) -> 2882 | N163: =IF(千円単!N163="","",ROUND(千円単!N163/1000,0)) -> 118 | O163: =IF(千円単!O163="","",ROUND(千円単!O163/1000,0)) -> 1505 | P163: =IF(千円単!P163="","",ROUND(千円単!P163/1000,0)) -> 68 | Q163: =IF(千円単!Q163="","",ROUND(千円単!Q163/1000,0)) -> 217 | R163: =IF(千円単!R163="","",ROUND(千円単!R163/1000,0)) -> 390 | S163: =IF(千円単!S163="","",ROUND(千円単!S163/1000,0)) -> 327 | T163: =IF(千円単!T163="","",ROUND(千円単!T163/1000,0)) -> 0 | U163: =IF(千円単!U163="","",ROUND(千円単!U163/1000,0)) -> 985 | V163: =IF(千円単!V163="","",ROUND(千円単!V163/1000,0)) -> 353 | W163: =IF(千円単!W163="","",ROUND(千円単!W163/1000,0)) -> 632 | X163: =IF(千円単!X163="","",ROUND(千円単!X163/1000,0)) -> -595 | Y163: =IF(千円単!Y163="","",ROUND(千円単!Y163/1000,0)) -> 217
A164: 2019 | B164: 46 | C164: 17 | D164: 1 | E164: 163 | F164: 公共 | G164: 141003 | H164: 神奈川県 | I164: 横浜市 | J164: =IF(千円単!J164="","",ROUND(千円単!J164/1000,0)) -> 128729 | K164: =IF(千円単!K164="","",ROUND(千円単!K164/1000,0)) -> 55432 | L164: =IF(千円単!L164="","",ROUND(千円単!L164/1000,0)) -> 41728 | M164: =IF(千円単!M164="","",ROUND(千円単!M164/1000,0)) -> 112332 | N164: =IF(千円単!N164="","",ROUND(千円単!N164/1000,0)) -> 7613 | O164: =IF(千円単!O164="","",ROUND(千円単!O164/1000,0)) -> 74678 | P164: =IF(千円単!P164="","",ROUND(千円単!P164/1000,0)) -> 5837 | Q164: =IF(千円単!Q164="","",ROUND(千円単!Q164/1000,0)) -> 16397 | R164: =IF(千円単!R164="","",ROUND(千円単!R164/1000,0)) -> 69205 | S164: =IF(千円単!S164="","",ROUND(千円単!S164/1000,0)) -> 55595 | T164: =IF(千円単!T164="","",ROUND(千円単!T164/1000,0)) -> 0 | U164: =IF(千円単!U164="","",ROUND(千円単!U164/1000,0)) -> 129561 | V164: =IF(千円単!V164="","",ROUND(千円単!V164/1000,0)) -> 44981 | W164: =IF(千円単!W164="","",ROUND(千円単!W164/1000,0)) -> 84579 | X164: =IF(千円単!X164="","",ROUND(千円単!X164/1000,0)) -> -60356 | Y164: =IF(千円単!Y164="","",ROUND(千円単!Y164/1000,0)) -> 16397
A165: 2019 | B165: 46 | C165: 17 | D165: 1 | E165: 164 | F165: 公共 | G165: 141305 | H165: 神奈川県 | I165: 川崎市 | J165: =IF(千円単!J165="","",ROUND(千円単!J165/1000,0)) -> 41636 | K165: =IF(千円単!K165="","",ROUND(千円単!K165/1000,0)) -> 22436 | L165: =IF(千円単!L165="","",ROUND(千円単!L165/1000,0)) -> 11765 | M165: =IF(千円単!M165="","",ROUND(千円単!M165/1000,0)) -> 37090 | N165: =IF(千円単!N165="","",ROUND(千円単!N165/1000,0)) -> 3592 | O165: =IF(千円単!O165="","",ROUND(千円単!O165/1000,0)) -> 22311 | P165: =IF(千円単!P165="","",ROUND(千円単!P165/1000,0)) -> 2631 | Q165: =IF(千円単!Q165="","",ROUND(千円単!Q165/1000,0)) -> 4545 | R165: =IF(千円単!R165="","",ROUND(千円単!R165/1000,0)) -> 31012 | S165: =IF(千円単!S165="","",ROUND(千円単!S165/1000,0)) -> 22095 | T165: =IF(千円単!T165="","",ROUND(千円単!T165/1000,0)) -> 618 | U165: =IF(千円単!U165="","",ROUND(千円単!U165/1000,0)) -> 49650 | V165: =IF(千円単!V165="","",ROUND(千円単!V165/1000,0)) -> 15495 | W165: =IF(千円単!W165="","",ROUND(千円単!W165/1000,0)) -> 32340 | X165: =IF(千円単!X165="","",ROUND(千円単!X165/1000,0)) -> -18638 | Y165: =IF(千円単!Y165="","",ROUND(千円単!Y165/1000,0)) -> 4545
A166: 2019 | B166: 46 | C166: 17 | D166: 1 | E166: 165 | F166: 公共 | G166: 141500 | H166: 神奈川県 | I166: 相模原市 | J166: =IF(千円単!J166="","",ROUND(千円単!J166/1000,0)) -> 15209 | K166: =IF(千円単!K166="","",ROUND(千円単!K166/1000,0)) -> 8658 | L166: =IF(千円単!L166="","",ROUND(千円単!L166/1000,0)) -> 4309 | M166: =IF(千円単!M166="","",ROUND(千円単!M166/1000,0)) -> 14132 | N166: =IF(千円単!N166="","",ROUND(千円単!N166/1000,0)) -> 1571 | O166: =IF(千円単!O166="","",ROUND(千円単!O166/1000,0)) -> 8261 | P166: =IF(千円単!P166="","",ROUND(千円単!P166/1000,0)) -> 399 | Q166: =IF(千円単!Q166="","",ROUND(千円単!Q166/1000,0)) -> 1078 | R166: =IF(千円単!R166="","",ROUND(千円単!R166/1000,0)) -> 7819 | S166: =IF(千円単!S166="","",ROUND(千円単!S166/1000,0)) -> 5152 | T166: =IF(千円単!T166="","",ROUND(千円単!T166/1000,0)) -> 253 | U166: =IF(千円単!U166="","",ROUND(千円単!U166/1000,0)) -> 15358 | V166: =IF(千円単!V166="","",ROUND(千円単!V166/1000,0)) -> 8154 | W166: =IF(千円単!W166="","",ROUND(千円単!W166/1000,0)) -> 7196 | X166: =IF(千円単!X166="","",ROUND(千円単!X166/1000,0)) -> -7539 | Y166: =IF(千円単!Y166="","",ROUND(千円単!Y166/1000,0)) -> 1078
A167: 2019 | B167: 46 | C167: 17 | D167: 1 | E167: 166 | F167: 公共 | G167: 142018 | H167: 神奈川県 | I167: 横須賀市 | J167: =IF(千円単!J167="","",ROUND(千円単!J167/1000,0)) -> 15031 | K167: =IF(千円単!K167="","",ROUND(千円単!K167/1000,0)) -> 6843 | L167: =IF(千円単!L167="","",ROUND(千円単!L167/1000,0)) -> 2485 | M167: =IF(千円単!M167="","",ROUND(千円単!M167/1000,0)) -> 14093 | N167: =IF(千円単!N167="","",ROUND(千円単!N167/1000,0)) -> 994 | O167: =IF(千円単!O167="","",ROUND(千円単!O167/1000,0)) -> 8377 | P167: =IF(千円単!P167="","",ROUND(千円単!P167/1000,0)) -> 900 | Q167: =IF(千円単!Q167="","",ROUND(千円単!Q167/1000,0)) -> 938 | R167: =IF(千円単!R167="","",ROUND(千円単!R167/1000,0)) -> 8329 | S167: =IF(千円単!S167="","",ROUND(千円単!S167/1000,0)) -> 4714 | T167: =IF(千円単!T167="","",ROUND(千円単!T167/1000,0)) -> 1243 | U167: =IF(千円単!U167="","",ROUND(千円単!U167/1000,0)) -> 12798 | V167: =IF(千円単!V167="","",ROUND(千円単!V167/1000,0)) -> 5040 | W167: =IF(千円単!W167="","",ROUND(千円単!W167/1000,0)) -> 7758 | X167: =IF(千円単!X167="","",ROUND(千円単!X167/1000,0)) -> -4469 | Y167: =IF(千円単!Y167="","",ROUND(千円単!Y167/1000,0)) -> 938
A168: 2019 | B168: 46 | C168: 17 | D168: 1 | E168: 167 | F168: 公共 | G168: 142034 | H168: 神奈川県 | I168: 平塚市 | J168: =IF(千円単!J168="","",ROUND(千円単!J168/1000,0)) -> 7515 | K168: =IF(千円単!K168="","",ROUND(千円単!K168/1000,0)) -> 3309 | L168: =IF(千円単!L168="","",ROUND(千円単!L168/1000,0)) -> 2162 | M168: =IF(千円単!M168="","",ROUND(千円単!M168/1000,0)) -> 7019 | N168: =IF(千円単!N168="","",ROUND(千円単!N168/1000,0)) -> 815 | O168: =IF(千円単!O168="","",ROUND(千円単!O168/1000,0)) -> 4235 | P168: =IF(千円単!P168="","",ROUND(千円単!P168/1000,0)) -> 154 | Q168: =IF(千円単!Q168="","",ROUND(千円単!Q168/1000,0)) -> 496 | R168: =IF(千円単!R168="","",ROUND(千円単!R168/1000,0)) -> 2797 | S168: =IF(千円単!S168="","",ROUND(千円単!S168/1000,0)) -> 1543 | T168: =IF(千円単!T168="","",ROUND(千円単!T168/1000,0)) -> 716 | U168: =IF(千円単!U168="","",ROUND(千円単!U168/1000,0)) -> 5384 | V168: =IF(千円単!V168="","",ROUND(千円単!V168/1000,0)) -> 1728 | W168: =IF(千円単!W168="","",ROUND(千円単!W168/1000,0)) -> 3656 | X168: =IF(千円単!X168="","",ROUND(千円単!X168/1000,0)) -> -2587 | Y168: =IF(千円単!Y168="","",ROUND(千円単!Y168/1000,0)) -> 496
A169: 2019 | B169: 46 | C169: 17 | D169: 1 | E169: 168 | F169: 公共 | G169: 142042 | H169: 神奈川県 | I169: 鎌倉市 | J169: =IF(千円単!J169="","",ROUND(千円単!J169/1000,0)) -> 7086 | K169: =IF(千円単!K169="","",ROUND(千円単!K169/1000,0)) -> 2349 | L169: =IF(千円単!L169="","",ROUND(千円単!L169/1000,0)) -> 2257 | M169: =IF(千円単!M169="","",ROUND(千円単!M169/1000,0)) -> 6345 | N169: =IF(千円単!N169="","",ROUND(千円単!N169/1000,0)) -> 656 | O169: =IF(千円単!O169="","",ROUND(千円単!O169/1000,0)) -> 3962 | P169: =IF(千円単!P169="","",ROUND(千円単!P169/1000,0)) -> 239 | Q169: =IF(千円単!Q169="","",ROUND(千円単!Q169/1000,0)) -> 741 | R169: =IF(千円単!R169="","",ROUND(千円単!R169/1000,0)) -> 1757 | S169: =IF(千円単!S169="","",ROUND(千円単!S169/1000,0)) -> 1311 | T169: =IF(千円単!T169="","",ROUND(千円単!T169/1000,0)) -> 284 | U169: =IF(千円単!U169="","",ROUND(千円単!U169/1000,0)) -> 3963 | V169: =IF(千円単!V169="","",ROUND(千円単!V169/1000,0)) -> 543 | W169: =IF(千円単!W169="","",ROUND(千円単!W169/1000,0)) -> 3417 | X169: =IF(千円単!X169="","",ROUND(千円単!X169/1000,0)) -> -2206 | Y169: =IF(千円単!Y169="","",ROUND(千円単!Y169/1000,0)) -> 741
A170: 2019 | B170: 46 | C170: 17 | D170: 1 | E170: 169 | F170: 公共 | G170: 142051 | H170: 神奈川県 | I170: 藤沢市 | J170: =IF(千円単!J170="","",ROUND(千円単!J170/1000,0)) -> 12052 | K170: =IF(千円単!K170="","",ROUND(千円単!K170/1000,0)) -> 5768 | L170: =IF(千円単!L170="","",ROUND(千円単!L170/1000,0)) -> 4038 | M170: =IF(千円単!M170="","",ROUND(千円単!M170/1000,0)) -> 11736 | N170: =IF(千円単!N170="","",ROUND(千円単!N170/1000,0)) -> 991 | O170: =IF(千円単!O170="","",ROUND(千円単!O170/1000,0)) -> 5377 | P170: =IF(千円単!P170="","",ROUND(千円単!P170/1000,0)) -> 499 | Q170: =IF(千円単!Q170="","",ROUND(千円単!Q170/1000,0)) -> 316 | R170: =IF(千円単!R170="","",ROUND(千円単!R170/1000,0)) -> 2535 | S170: =IF(千円単!S170="","",ROUND(千円単!S170/1000,0)) -> 1636 | T170: =IF(千円単!T170="","",ROUND(千円単!T170/1000,0)) -> 205 | U170: =IF(千円単!U170="","",ROUND(千円単!U170/1000,0)) -> 6635 | V170: =IF(千円単!V170="","",ROUND(千円単!V170/1000,0)) -> 2145 | W170: =IF(千円単!W170="","",ROUND(千円単!W170/1000,0)) -> 4489 | X170: =IF(千円単!X170="","",ROUND(千円単!X170/1000,0)) -> -4100 | Y170: =IF(千円単!Y170="","",ROUND(千円単!Y170/1000,0)) -> 316
A171: 2019 | B171: 46 | C171: 17 | D171: 1 | E171: 170 | F171: 公共 | G171: 142069 | H171: 神奈川県 | I171: 小田原市 | J171: =IF(千円単!J171="","",ROUND(千円単!J171/1000,0)) -> 6325 | K171: =IF(千円単!K171="","",ROUND(千円単!K171/1000,0)) -> 3345 | L171: =IF(千円単!L171="","",ROUND(千円単!L171/1000,0)) -> 1921 | M171: =IF(千円単!M171="","",ROUND(千円単!M171/1000,0)) -> 6067 | N171: =IF(千円単!N171="","",ROUND(千円単!N171/1000,0)) -> 753 | O171: =IF(千円単!O171="","",ROUND(千円単!O171/1000,0)) -> 3240 | P171: =IF(千円単!P171="","",ROUND(千円単!P171/1000,0)) -> 159 | Q171: =IF(千円単!Q171="","",ROUND(千円単!Q171/1000,0)) -> 258 | R171: =IF(千円単!R171="","",ROUND(千円単!R171/1000,0)) -> 3375 | S171: =IF(千円単!S171="","",ROUND(千円単!S171/1000,0)) -> 2354 | T171: =IF(千円単!T171="","",ROUND(千円単!T171/1000,0)) -> 0 | U171: =IF(千円単!U171="","",ROUND(千円単!U171/1000,0)) -> 5662 | V171: =IF(千円単!V171="","",ROUND(千円単!V171/1000,0)) -> 2256 | W171: =IF(千円単!W171="","",ROUND(千円単!W171/1000,0)) -> 3406 | X171: =IF(千円単!X171="","",ROUND(千円単!X171/1000,0)) -> -2287 | Y171: =IF(千円単!Y171="","",ROUND(千円単!Y171/1000,0)) -> 258
A172: 2019 | B172: 46 | C172: 17 | D172: 1 | E172: 171 | F172: 公共 | G172: 142077 | H172: 神奈川県 | I172: 茅ヶ崎市 | J172: =IF(千円単!J172="","",ROUND(千円単!J172/1000,0)) -> 5456 | K172: =IF(千円単!K172="","",ROUND(千円単!K172/1000,0)) -> 2654 | L172: =IF(千円単!L172="","",ROUND(千円単!L172/1000,0)) -> 1649 | M172: =IF(千円単!M172="","",ROUND(千円単!M172/1000,0)) -> 4982 | N172: =IF(千円単!N172="","",ROUND(千円単!N172/1000,0)) -> 567 | O172: =IF(千円単!O172="","",ROUND(千円単!O172/1000,0)) -> 2638 | P172: =IF(千円単!P172="","",ROUND(千円単!P172/1000,0)) -> 141 | Q172: =IF(千円単!Q172="","",ROUND(千円単!Q172/1000,0)) -> 474 | R172: =IF(千円単!R172="","",ROUND(千円単!R172/1000,0)) -> 1829 | S172: =IF(千円単!S172="","",ROUND(千円単!S172/1000,0)) -> 1191 | T172: =IF(千円単!T172="","",ROUND(千円単!T172/1000,0)) -> 422 | U172: =IF(千円単!U172="","",ROUND(千円単!U172/1000,0)) -> 3883 | V172: =IF(千円単!V172="","",ROUND(千円単!V172/1000,0)) -> 1428 | W172: =IF(千円単!W172="","",ROUND(千円単!W172/1000,0)) -> 2355 | X172: =IF(千円単!X172="","",ROUND(千円単!X172/1000,0)) -> -2053 | Y172: =IF(千円単!Y172="","",ROUND(千円単!Y172/1000,0)) -> 474
A173: 2019 | B173: 46 | C173: 17 | D173: 1 | E173: 172 | F173: 公共 | G173: 142085 | H173: 神奈川県 | I173: 逗子市 | J173: =IF(千円単!J173="","",ROUND(千円単!J173/1000,0)) -> 1869 | K173: =IF(千円単!K173="","",ROUND(千円単!K173/1000,0)) -> 639 | L173: =IF(千円単!L173="","",ROUND(千円単!L173/1000,0)) -> 273 | M173: =IF(千円単!M173="","",ROUND(千円単!M173/1000,0)) -> 2006 | N173: =IF(千円単!N173="","",ROUND(千円単!N173/1000,0)) -> 55 | O173: =IF(千円単!O173="","",ROUND(千円単!O173/1000,0)) -> 1325 | P173: =IF(千円単!P173="","",ROUND(千円単!P173/1000,0)) -> 45 | Q173: =IF(千円単!Q173="","",ROUND(千円単!Q173/1000,0)) -> -137 | R173: =IF(千円単!R173="","",ROUND(千円単!R173/1000,0)) -> 409 | S173: =IF(千円単!S173="","",ROUND(千円単!S173/1000,0)) -> 16 | T173: =IF(千円単!T173="","",ROUND(千円単!T173/1000,0)) -> 294 | U173: =IF(千円単!U173="","",ROUND(千円単!U173/1000,0)) -> 671 | V173: =IF(千円単!V173="","",ROUND(千円単!V173/1000,0)) -> 217 | W173: =IF(千円単!W173="","",ROUND(千円単!W173/1000,0)) -> 454 | X173: =IF(千円単!X173="","",ROUND(千円単!X173/1000,0)) -> -262 | Y173: =IF(千円単!Y173="","",ROUND(千円単!Y173/1000,0)) -> -137
A174: 2019 | B174: 46 | C174: 17 | D174: 1 | E174: 173 | F174: 公共 | G174: 142115 | H174: 神奈川県 | I174: 秦野市 | J174: =IF(千円単!J174="","",ROUND(千円単!J174/1000,0)) -> 5273 | K174: =IF(千円単!K174="","",ROUND(千円単!K174/1000,0)) -> 2083 | L174: =IF(千円単!L174="","",ROUND(千円単!L174/1000,0)) -> 1977 | M174: =IF(千円単!M174="","",ROUND(千円単!M174/1000,0)) -> 4406 | N174: =IF(千円単!N174="","",ROUND(千円単!N174/1000,0)) -> 562 | O174: =IF(千円単!O174="","",ROUND(千円単!O174/1000,0)) -> 2506 | P174: =IF(千円単!P174="","",ROUND(千円単!P174/1000,0)) -> 204 | Q174: =IF(千円単!Q174="","",ROUND(千円単!Q174/1000,0)) -> 867 | R174: =IF(千円単!R174="","",ROUND(千円単!R174/1000,0)) -> 1659 | S174: =IF(千円単!S174="","",ROUND(千円単!S174/1000,0)) -> 1075 | T174: =IF(千円単!T174="","",ROUND(千円単!T174/1000,0)) -> 80 | U174: =IF(千円単!U174="","",ROUND(千円単!U174/1000,0)) -> 3815 | V174: =IF(千円単!V174="","",ROUND(千円単!V174/1000,0)) -> 1718 | W174: =IF(千円単!W174="","",ROUND(千円単!W174/1000,0)) -> 2096 | X174: =IF(千円単!X174="","",ROUND(千円単!X174/1000,0)) -> -2157 | Y174: =IF(千円単!Y174="","",ROUND(千円単!Y174/1000,0)) -> 867
A175: 2019 | B175: 46 | C175: 17 | D175: 1 | E175: 174 | F175: 公共 | G175: 142140 | H175: 神奈川県 | I175: 伊勢原市 | J175: =IF(千円単!J175="","",ROUND(千円単!J175/1000,0)) -> 3309 | K175: =IF(千円単!K175="","",ROUND(千円単!K175/1000,0)) -> 1181 | L175: =IF(千円単!L175="","",ROUND(千円単!L175/1000,0)) -> 729 | M175: =IF(千円単!M175="","",ROUND(千円単!M175/1000,0)) -> 3161 | N175: =IF(千円単!N175="","",ROUND(千円単!N175/1000,0)) -> 276 | O175: =IF(千円単!O175="","",ROUND(千円単!O175/1000,0)) -> 1841 | P175: =IF(千円単!P175="","",ROUND(千円単!P175/1000,0)) -> 88 | Q175: =IF(千円単!Q175="","",ROUND(千円単!Q175/1000,0)) -> 147 | R175: =IF(千円単!R175="","",ROUND(千円単!R175/1000,0)) -> 2155 | S175: =IF(千円単!S175="","",ROUND(千円単!S175/1000,0)) -> 1315 | T175: =IF(千円単!T175="","",ROUND(千円単!T175/1000,0)) -> 167 | U175: =IF(千円単!U175="","",ROUND(千円単!U175/1000,0)) -> 2875 | V175: =IF(千円単!V175="","",ROUND(千円単!V175/1000,0)) -> 1603 | W175: =IF(千円単!W175="","",ROUND(千円単!W175/1000,0)) -> 1271 | X175: =IF(千円単!X175="","",ROUND(千円単!X175/1000,0)) -> -720 | Y175: =IF(千円単!Y175="","",ROUND(千円単!Y175/1000,0)) -> 147
A176: 2019 | B176: 46 | C176: 17 | D176: 1 | E176: 175 | F176: 公共 | G176: 142158 | H176: 神奈川県 | I176: 海老名市 | J176: =IF(千円単!J176="","",ROUND(千円単!J176/1000,0)) -> 2963 | K176: =IF(千円単!K176="","",ROUND(千円単!K176/1000,0)) -> 1781 | L176: =IF(千円単!L176="","",ROUND(千円単!L176/1000,0)) -> 166 | M176: =IF(千円単!M176="","",ROUND(千円単!M176/1000,0)) -> 2700 | N176: =IF(千円単!N176="","",ROUND(千円単!N176/1000,0)) -> 216 | O176: =IF(千円単!O176="","",ROUND(千円単!O176/1000,0)) -> 1560 | P176: =IF(千円単!P176="","",ROUND(千円単!P176/1000,0)) -> 77 | Q176: =IF(千円単!Q176="","",ROUND(千円単!Q176/1000,0)) -> 262 | R176: =IF(千円単!R176="","",ROUND(千円単!R176/1000,0)) -> 961 | S176: =IF(千円単!S176="","",ROUND(千円単!S176/1000,0)) -> 872 | T176: =IF(千円単!T176="","",ROUND(千円単!T176/1000,0)) -> 43 | U176: =IF(千円単!U176="","",ROUND(千円単!U176/1000,0)) -> 1874 | V176: =IF(千円単!V176="","",ROUND(千円単!V176/1000,0)) -> 661 | W176: =IF(千円単!W176="","",ROUND(千円単!W176/1000,0)) -> 1213 | X176: =IF(千円単!X176="","",ROUND(千円単!X176/1000,0)) -> -913 | Y176: =IF(千円単!Y176="","",ROUND(千円単!Y176/1000,0)) -> 262
A177: 2019 | B177: 46 | C177: 17 | D177: 1 | E177: 176 | F177: 公共 | G177: 142166 | H177: 神奈川県 | I177: 座間市 | J177: =IF(千円単!J177="","",ROUND(千円単!J177/1000,0)) -> 2674 | K177: =IF(千円単!K177="","",ROUND(千円単!K177/1000,0)) -> 1753 | L177: =IF(千円単!L177="","",ROUND(千円単!L177/1000,0)) -> 416 | M177: =IF(千円単!M177="","",ROUND(千円単!M177/1000,0)) -> 2360 | N177: =IF(千円単!N177="","",ROUND(千円単!N177/1000,0)) -> 300 | O177: =IF(千円単!O177="","",ROUND(千円単!O177/1000,0)) -> 1363 | P177: =IF(千円単!P177="","",ROUND(千円単!P177/1000,0)) -> 83 | Q177: =IF(千円単!Q177="","",ROUND(千円単!Q177/1000,0)) -> 315 | R177: =IF(千円単!R177="","",ROUND(千円単!R177/1000,0)) -> 618 | S177: =IF(千円単!S177="","",ROUND(千円単!S177/1000,0)) -> 512 | T177: =IF(千円単!T177="","",ROUND(千円単!T177/1000,0)) -> 91 | U177: =IF(千円単!U177="","",ROUND(千円単!U177/1000,0)) -> 1802 | V177: =IF(千円単!V177="","",ROUND(千円単!V177/1000,0)) -> 256 | W177: =IF(千円単!W177="","",ROUND(千円単!W177/1000,0)) -> 1546 | X177: =IF(千円単!X177="","",ROUND(千円単!X177/1000,0)) -> -1184 | Y177: =IF(千円単!Y177="","",ROUND(千円単!Y177/1000,0)) -> 315
A178: 2019 | B178: 46 | C178: 17 | D178: 1 | E178: 177 | F178: 公共 | G178: 142174 | H178: 神奈川県 | I178: 南足柄市 | J178: =IF(千円単!J178="","",ROUND(千円単!J178/1000,0)) -> 1045 | K178: =IF(千円単!K178="","",ROUND(千円単!K178/1000,0)) -> 605 | L178: =IF(千円単!L178="","",ROUND(千円単!L178/1000,0)) -> 180 | M178: =IF(千円単!M178="","",ROUND(千円単!M178/1000,0)) -> 957 | N178: =IF(千円単!N178="","",ROUND(千円単!N178/1000,0)) -> 121 | O178: =IF(千円単!O178="","",ROUND(千円単!O178/1000,0)) -> 563 | P178: =IF(千円単!P178="","",ROUND(千円単!P178/1000,0)) -> 18 | Q178: =IF(千円単!Q178="","",ROUND(千円単!Q178/1000,0)) -> 87 | R178: =IF(千円単!R178="","",ROUND(千円単!R178/1000,0)) -> 440 | S178: =IF(千円単!S178="","",ROUND(千円単!S178/1000,0)) -> 267 | T178: =IF(千円単!T178="","",ROUND(千円単!T178/1000,0)) -> 120 | U178: =IF(千円単!U178="","",ROUND(千円単!U178/1000,0)) -> 762 | V178: =IF(千円単!V178="","",ROUND(千円単!V178/1000,0)) -> 173 | W178: =IF(千円単!W178="","",ROUND(千円単!W178/1000,0)) -> 589 | X178: =IF(千円単!X178="","",ROUND(千円単!X178/1000,0)) -> -322 | Y178: =IF(千円単!Y178="","",ROUND(千円単!Y178/1000,0)) -> 87
A179: 2019 | B179: 46 | C179: 17 | D179: 1 | E179: 178 | F179: 公共 | G179: 143014 | H179: 神奈川県 | I179: 葉山町 | J179: =IF(千円単!J179="","",ROUND(千円単!J179/1000,0)) -> 1301 | K179: =IF(千円単!K179="","",ROUND(千円単!K179/1000,0)) -> 239 | L179: =IF(千円単!L179="","",ROUND(千円単!L179/1000,0)) -> 614 | M179: =IF(千円単!M179="","",ROUND(千円単!M179/1000,0)) -> 1234 | N179: =IF(千円単!N179="","",ROUND(千円単!N179/1000,0)) -> 132 | O179: =IF(千円単!O179="","",ROUND(千円単!O179/1000,0)) -> 825 | P179: =IF(千円単!P179="","",ROUND(千円単!P179/1000,0)) -> 42 | Q179: =IF(千円単!Q179="","",ROUND(千円単!Q179/1000,0)) -> 68 | R179: =IF(千円単!R179="","",ROUND(千円単!R179/1000,0)) -> 715 | S179: =IF(千円単!S179="","",ROUND(千円単!S179/1000,0)) -> 278 | T179: =IF(千円単!T179="","",ROUND(千円単!T179/1000,0)) -> 0 | U179: =IF(千円単!U179="","",ROUND(千円単!U179/1000,0)) -> 1065 | V179: =IF(千円単!V179="","",ROUND(千円単!V179/1000,0)) -> 528 | W179: =IF(千円単!W179="","",ROUND(千円単!W179/1000,0)) -> 536 | X179: =IF(千円単!X179="","",ROUND(千円単!X179/1000,0)) -> -350 | Y179: =IF(千円単!Y179="","",ROUND(千円単!Y179/1000,0)) -> 68
A180: 2019 | B180: 46 | C180: 17 | D180: 1 | E180: 179 | F180: 公共 | G180: 143219 | H180: 神奈川県 | I180: 寒川町 | J180: =IF(千円単!J180="","",ROUND(千円単!J180/1000,0)) -> 1259 | K180: =IF(千円単!K180="","",ROUND(千円単!K180/1000,0)) -> 542 | L180: =IF(千円単!L180="","",ROUND(千円単!L180/1000,0)) -> 395 | M180: =IF(千円単!M180="","",ROUND(千円単!M180/1000,0)) -> 1257 | N180: =IF(千円単!N180="","",ROUND(千円単!N180/1000,0)) -> 122 | O180: =IF(千円単!O180="","",ROUND(千円単!O180/1000,0)) -> 769 | P180: =IF(千円単!P180="","",ROUND(千円単!P180/1000,0)) -> 60 | Q180: =IF(千円単!Q180="","",ROUND(千円単!Q180/1000,0)) -> 2 | R180: =IF(千円単!R180="","",ROUND(千円単!R180/1000,0)) -> 416 | S180: =IF(千円単!S180="","",ROUND(千円単!S180/1000,0)) -> 281 | T180: =IF(千円単!T180="","",ROUND(千円単!T180/1000,0)) -> 59 | U180: =IF(千円単!U180="","",ROUND(千円単!U180/1000,0)) -> 903 | V180: =IF(千円単!V180="","",ROUND(千円単!V180/1000,0)) -> 377 | W180: =IF(千円単!W180="","",ROUND(千円単!W180/1000,0)) -> 526 | X180: =IF(千円単!X180="","",ROUND(千円単!X180/1000,0)) -> -487 | Y180: =IF(千円単!Y180="","",ROUND(千円単!Y180/1000,0)) -> 2
A181: 2019 | B181: 46 | C181: 17 | D181: 1 | E181: 180 | F181: 公共 | G181: 143669 | H181: 神奈川県 | I181: 開成町 | J181: =IF(千円単!J181="","",ROUND(千円単!J181/1000,0)) -> 480 | K181: =IF(千円単!K181="","",ROUND(千円単!K181/1000,0)) -> 230 | L181: =IF(千円単!L181="","",ROUND(千円単!L181/1000,0)) -> 136 | M181: =IF(千円単!M181="","",ROUND(千円単!M181/1000,0)) -> 458 | N181: =IF(千円単!N181="","",ROUND(千円単!N181/1000,0)) -> 44 | O181: =IF(千円単!O181="","",ROUND(千円単!O181/1000,0)) -> 237 | P181: =IF(千円単!P181="","",ROUND(千円単!P181/1000,0)) -> 5 | Q181: =IF(千円単!Q181="","",ROUND(千円単!Q181/1000,0)) -> 21 | R181: =IF(千円単!R181="","",ROUND(千円単!R181/1000,0)) -> 185 | S181: =IF(千円単!S181="","",ROUND(千円単!S181/1000,0)) -> 73 | T181: =IF(千円単!T181="","",ROUND(千円単!T181/1000,0)) -> 79 | U181: =IF(千円単!U181="","",ROUND(千円単!U181/1000,0)) -> 326 | V181: =IF(千円単!V181="","",ROUND(千円単!V181/1000,0)) -> 107 | W181: =IF(千円単!W181="","",ROUND(千円単!W181/1000,0)) -> 220 | X181: =IF(千円単!X181="","",ROUND(千円単!X181/1000,0)) -> -141 | Y181: =IF(千円単!Y181="","",ROUND(千円単!Y181/1000,0)) -> 21
A182: 2019 | B182: 46 | C182: 17 | D182: 1 | E182: 181 | F182: 公共 | G182: 143821 | H182: 神奈川県 | I182: 箱根町 | J182: =IF(千円単!J182="","",ROUND(千円単!J182/1000,0)) -> 1438 | K182: =IF(千円単!K182="","",ROUND(千円単!K182/1000,0)) -> 711 | L182: =IF(千円単!L182="","",ROUND(千円単!L182/1000,0)) -> 60 | M182: =IF(千円単!M182="","",ROUND(千円単!M182/1000,0)) -> 1446 | N182: =IF(千円単!N182="","",ROUND(千円単!N182/1000,0)) -> 74 | O182: =IF(千円単!O182="","",ROUND(千円単!O182/1000,0)) -> 928 | P182: =IF(千円単!P182="","",ROUND(千円単!P182/1000,0)) -> 55 | Q182: =IF(千円単!Q182="","",ROUND(千円単!Q182/1000,0)) -> -8 | R182: =IF(千円単!R182="","",ROUND(千円単!R182/1000,0)) -> 761 | S182: =IF(千円単!S182="","",ROUND(千円単!S182/1000,0)) -> 370 | T182: =IF(千円単!T182="","",ROUND(千円単!T182/1000,0)) -> 165 | U182: =IF(千円単!U182="","",ROUND(千円単!U182/1000,0)) -> 1036 | V182: =IF(千円単!V182="","",ROUND(千円単!V182/1000,0)) -> 635 | W182: =IF(千円単!W182="","",ROUND(千円単!W182/1000,0)) -> 402 | X182: =IF(千円単!X182="","",ROUND(千円単!X182/1000,0)) -> -275 | Y182: =IF(千円単!Y182="","",ROUND(千円単!Y182/1000,0)) -> -8
A183: 2019 | B183: 46 | C183: 17 | D183: 1 | E183: 182 | F183: 公共 | G183: 143847 | H183: 神奈川県 | I183: 湯河原町 | J183: =IF(千円単!J183="","",ROUND(千円単!J183/1000,0)) -> 879 | K183: =IF(千円単!K183="","",ROUND(千円単!K183/1000,0)) -> 452 | L183: =IF(千円単!L183="","",ROUND(千円単!L183/1000,0)) -> 90 | M183: =IF(千円単!M183="","",ROUND(千円単!M183/1000,0)) -> 936 | N183: =IF(千円単!N183="","",ROUND(千円単!N183/1000,0)) -> 55 | O183: =IF(千円単!O183="","",ROUND(千円単!O183/1000,0)) -> 587 | P183: =IF(千円単!P183="","",ROUND(千円単!P183/1000,0)) -> 51 | Q183: =IF(千円単!Q183="","",ROUND(千円単!Q183/1000,0)) -> -57 | R183: =IF(千円単!R183="","",ROUND(千円単!R183/1000,0)) -> 203 | S183: =IF(千円単!S183="","",ROUND(千円単!S183/1000,0)) -> 62 | T183: =IF(千円単!T183="","",ROUND(千円単!T183/1000,0)) -> 123 | U183: =IF(千円単!U183="","",ROUND(千円単!U183/1000,0)) -> 382 | V183: =IF(千円単!V183="","",ROUND(千円単!V183/1000,0)) -> 44 | W183: =IF(千円単!W183="","",ROUND(千円単!W183/1000,0)) -> 338 | X183: =IF(千円単!X183="","",ROUND(千円単!X183/1000,0)) -> -179 | Y183: =IF(千円単!Y183="","",ROUND(千円単!Y183/1000,0)) -> -57
A184: 2019 | B184: 46 | C184: 17 | D184: 1 | E184: 183 | F184: 公共 | G184: 151009 | H184: 新潟県 | I184: 新潟市 | J184: =IF(千円単!J184="","",ROUND(千円単!J184/1000,0)) -> 29986 | K184: =IF(千円単!K184="","",ROUND(千円単!K184/1000,0)) -> 11823 | L184: =IF(千円単!L184="","",ROUND(千円単!L184/1000,0)) -> 9919 | M184: =IF(千円単!M184="","",ROUND(千円単!M184/1000,0)) -> 30053 | N184: =IF(千円単!N184="","",ROUND(千円単!N184/1000,0)) -> 4899 | O184: =IF(千円単!O184="","",ROUND(千円単!O184/1000,0)) -> 17990 | P184: =IF(千円単!P184="","",ROUND(千円単!P184/1000,0)) -> 970 | Q184: =IF(千円単!Q184="","",ROUND(千円単!Q184/1000,0)) -> -67 | R184: =IF(千円単!R184="","",ROUND(千円単!R184/1000,0)) -> 24281 | S184: =IF(千円単!S184="","",ROUND(千円単!S184/1000,0)) -> 17082 | T184: =IF(千円単!T184="","",ROUND(千円単!T184/1000,0)) -> 2546 | U184: =IF(千円単!U184="","",ROUND(千円単!U184/1000,0)) -> 35856 | V184: =IF(千円単!V184="","",ROUND(千円単!V184/1000,0)) -> 15322 | W184: =IF(千円単!W184="","",ROUND(千円単!W184/1000,0)) -> 20533 | X184: =IF(千円単!X184="","",ROUND(千円単!X184/1000,0)) -> -11575 | Y184: =IF(千円単!Y184="","",ROUND(千円単!Y184/1000,0)) -> -67
A185: 2019 | B185: 46 | C185: 17 | D185: 1 | E185: 184 | F185: 公共 | G185: 152021 | H185: 新潟県 | I185: 長岡市 | J185: =IF(千円単!J185="","",ROUND(千円単!J185/1000,0)) -> 7685 | K185: =IF(千円単!K185="","",ROUND(千円単!K185/1000,0)) -> 3301 | L185: =IF(千円単!L185="","",ROUND(千円単!L185/1000,0)) -> 1920 | M185: =IF(千円単!M185="","",ROUND(千円単!M185/1000,0)) -> 7625 | N185: =IF(千円単!N185="","",ROUND(千円単!N185/1000,0)) -> 773 | O185: =IF(千円単!O185="","",ROUND(千円単!O185/1000,0)) -> 4820 | P185: =IF(千円単!P185="","",ROUND(千円単!P185/1000,0)) -> 140 | Q185: =IF(千円単!Q185="","",ROUND(千円単!Q185/1000,0)) -> 60 | R185: =IF(千円単!R185="","",ROUND(千円単!R185/1000,0)) -> 3333 | S185: =IF(千円単!S185="","",ROUND(千円単!S185/1000,0)) -> 1173 | T185: =IF(千円単!T185="","",ROUND(千円単!T185/1000,0)) -> 0 | U185: =IF(千円単!U185="","",ROUND(千円単!U185/1000,0)) -> 5849 | V185: =IF(千円単!V185="","",ROUND(千円単!V185/1000,0)) -> 2231 | W185: =IF(千円単!W185="","",ROUND(千円単!W185/1000,0)) -> 3618 | X185: =IF(千円単!X185="","",ROUND(千円単!X185/1000,0)) -> -2517 | Y185: =IF(千円単!Y185="","",ROUND(千円単!Y185/1000,0)) -> 60
A186: 2019 | B186: 46 | C186: 17 | D186: 1 | E186: 185 | F186: 公共 | G186: 152056 | H186: 新潟県 | I186: 柏崎市 | J186: =IF(千円単!J186="","",ROUND(千円単!J186/1000,0)) -> 3339 | K186: =IF(千円単!K186="","",ROUND(千円単!K186/1000,0)) -> 1016 | L186: =IF(千円単!L186="","",ROUND(千円単!L186/1000,0)) -> 1145 | M186: =IF(千円単!M186="","",ROUND(千円単!M186/1000,0)) -> 3217 | N186: =IF(千円単!N186="","",ROUND(千円単!N186/1000,0)) -> 293 | O186: =IF(千円単!O186="","",ROUND(千円単!O186/1000,0)) -> 2121 | P186: =IF(千円単!P186="","",ROUND(千円単!P186/1000,0)) -> 91 | Q186: =IF(千円単!Q186="","",ROUND(千円単!Q186/1000,0)) -> 122 | R186: =IF(千円単!R186="","",ROUND(千円単!R186/1000,0)) -> 1946 | S186: =IF(千円単!S186="","",ROUND(千円単!S186/1000,0)) -> 1186 | T186: =IF(千円単!T186="","",ROUND(千円単!T186/1000,0)) -> 421 | U186: =IF(千円単!U186="","",ROUND(千円単!U186/1000,0)) -> 2894 | V186: =IF(千円単!V186="","",ROUND(千円単!V186/1000,0)) -> 843 | W186: =IF(千円単!W186="","",ROUND(千円単!W186/1000,0)) -> 2052 | X186: =IF(千円単!X186="","",ROUND(千円単!X186/1000,0)) -> -949 | Y186: =IF(千円単!Y186="","",ROUND(千円単!Y186/1000,0)) -> 122
A187: 2019 | B187: 46 | C187: 17 | D187: 1 | E187: 186 | F187: 公共 | G187: 152064 | H187: 新潟県 | I187: 新発田市 | J187: =IF(千円単!J187="","",ROUND(千円単!J187/1000,0)) -> 1885 | K187: =IF(千円単!K187="","",ROUND(千円単!K187/1000,0)) -> 703 | L187: =IF(千円単!L187="","",ROUND(千円単!L187/1000,0)) -> 339 | M187: =IF(千円単!M187="","",ROUND(千円単!M187/1000,0)) -> 1875 | N187: =IF(千円単!N187="","",ROUND(千円単!N187/1000,0)) -> 372 | O187: =IF(千円単!O187="","",ROUND(千円単!O187/1000,0)) -> 1058 | P187: =IF(千円単!P187="","",ROUND(千円単!P187/1000,0)) -> 117 | Q187: =IF(千円単!Q187="","",ROUND(千円単!Q187/1000,0)) -> 10 | R187: =IF(千円単!R187="","",ROUND(千円単!R187/1000,0)) -> 3690 | S187: =IF(千円単!S187="","",ROUND(千円単!S187/1000,0)) -> 1912 | T187: =IF(千円単!T187="","",ROUND(千円単!T187/1000,0)) -> 637 | U187: =IF(千円単!U187="","",ROUND(千円単!U187/1000,0)) -> 3976 | V187: =IF(千円単!V187="","",ROUND(千円単!V187/1000,0)) -> 2912 | W187: =IF(千円単!W187="","",ROUND(千円単!W187/1000,0)) -> 1063 | X187: =IF(千円単!X187="","",ROUND(千円単!X187/1000,0)) -> -286 | Y187: =IF(千円単!Y187="","",ROUND(千円単!Y187/1000,0)) -> 10
A188: 2019 | B188: 46 | C188: 17 | D188: 1 | E188: 187 | F188: 公共 | G188: 152081 | H188: 新潟県 | I188: 小千谷市 | J188: =IF(千円単!J188="","",ROUND(千円単!J188/1000,0)) -> 1337 | K188: =IF(千円単!K188="","",ROUND(千円単!K188/1000,0)) -> 477 | L188: =IF(千円単!L188="","",ROUND(千円単!L188/1000,0)) -> 626 | M188: =IF(千円単!M188="","",ROUND(千円単!M188/1000,0)) -> 1000 | N188: =IF(千円単!N188="","",ROUND(千円単!N188/1000,0)) -> 154 | O188: =IF(千円単!O188="","",ROUND(千円単!O188/1000,0)) -> 573 | P188: =IF(千円単!P188="","",ROUND(千円単!P188/1000,0)) -> 47 | Q188: =IF(千円単!Q188="","",ROUND(千円単!Q188/1000,0)) -> 337 | R188: =IF(千円単!R188="","",ROUND(千円単!R188/1000,0)) -> 294 | S188: =IF(千円単!S188="","",ROUND(千円単!S188/1000,0)) -> 254 | T188: =IF(千円単!T188="","",ROUND(千円単!T188/1000,0)) -> 0 | U188: =IF(千円単!U188="","",ROUND(千円単!U188/1000,0)) -> 1038 | V188: =IF(千円単!V188="","",ROUND(千円単!V188/1000,0)) -> 174 | W188: =IF(千円単!W188="","",ROUND(千円単!W188/1000,0)) -> 863 | X188: =IF(千円単!X188="","",ROUND(千円単!X188/1000,0)) -> -744 | Y188: =IF(千円単!Y188="","",ROUND(千円単!Y188/1000,0)) -> 337
A189: 2019 | B189: 46 | C189: 17 | D189: 1 | E189: 188 | F189: 公共 | G189: 152111 | H189: 新潟県 | I189: 見附市 | J189: =IF(千円単!J189="","",ROUND(千円単!J189/1000,0)) -> 1705 | K189: =IF(千円単!K189="","",ROUND(千円単!K189/1000,0)) -> 576 | L189: =IF(千円単!L189="","",ROUND(千円単!L189/1000,0)) -> 605 | M189: =IF(千円単!M189="","",ROUND(千円単!M189/1000,0)) -> 1721 | N189: =IF(千円単!N189="","",ROUND(千円単!N189/1000,0)) -> 178 | O189: =IF(千円単!O189="","",ROUND(千円単!O189/1000,0)) -> 960 | P189: =IF(千円単!P189="","",ROUND(千円単!P189/1000,0)) -> 43 | Q189: =IF(千円単!Q189="","",ROUND(千円単!Q189/1000,0)) -> -17 | R189: =IF(千円単!R189="","",ROUND(千円単!R189/1000,0)) -> 1828 | S189: =IF(千円単!S189="","",ROUND(千円単!S189/1000,0)) -> 1018 | T189: =IF(千円単!T189="","",ROUND(千円単!T189/1000,0)) -> 205 | U189: =IF(千円単!U189="","",ROUND(千円単!U189/1000,0)) -> 2406 | V189: =IF(千円単!V189="","",ROUND(千円単!V189/1000,0)) -> 1472 | W189: =IF(千円単!W189="","",ROUND(千円単!W189/1000,0)) -> 934 | X189: =IF(千円単!X189="","",ROUND(千円単!X189/1000,0)) -> -579 | Y189: =IF(千円単!Y189="","",ROUND(千円単!Y189/1000,0)) -> -17
A190: 2019 | B190: 46 | C190: 17 | D190: 1 | E190: 189 | F190: 公共 | G190: 152161 | H190: 新潟県 | I190: 糸魚川市 | J190: =IF(千円単!J190="","",ROUND(千円単!J190/1000,0)) -> 1787 | K190: =IF(千円単!K190="","",ROUND(千円単!K190/1000,0)) -> 609 | L190: =IF(千円単!L190="","",ROUND(千円単!L190/1000,0)) -> 520 | M190: =IF(千円単!M190="","",ROUND(千円単!M190/1000,0)) -> 1787 | N190: =IF(千円単!N190="","",ROUND(千円単!N190/1000,0)) -> 207 | O190: =IF(千円単!O190="","",ROUND(千円単!O190/1000,0)) -> 1132 | P190: =IF(千円単!P190="","",ROUND(千円単!P190/1000,0)) -> 40 | Q190: =IF(千円単!Q190="","",ROUND(千円単!Q190/1000,0)) -> 0 | R190: =IF(千円単!R190="","",ROUND(千円単!R190/1000,0)) -> 1254 | S190: =IF(千円単!S190="","",ROUND(千円単!S190/1000,0)) -> 608 | T190: =IF(千円単!T190="","",ROUND(千円単!T190/1000,0)) -> 304 | U190: =IF(千円単!U190="","",ROUND(千円単!U190/1000,0)) -> 1759 | V190: =IF(千円単!V190="","",ROUND(千円単!V190/1000,0)) -> 704 | W190: =IF(千円単!W190="","",ROUND(千円単!W190/1000,0)) -> 1054 | X190: =IF(千円単!X190="","",ROUND(千円単!X190/1000,0)) -> -505 | Y190: =IF(千円単!Y190="","",ROUND(千円単!Y190/1000,0)) -> 0
A191: 2019 | B191: 46 | C191: 17 | D191: 1 | E191: 190 | F191: 公共 | G191: 152170 | H191: 新潟県 | I191: 妙高市 | J191: =IF(千円単!J191="","",ROUND(千円単!J191/1000,0)) -> 977 | K191: =IF(千円単!K191="","",ROUND(千円単!K191/1000,0)) -> 355 | L191: =IF(千円単!L191="","",ROUND(千円単!L191/1000,0)) -> 391 | M191: =IF(千円単!M191="","",ROUND(千円単!M191/1000,0)) -> 766 | N191: =IF(千円単!N191="","",ROUND(千円単!N191/1000,0)) -> 75 | O191: =IF(千円単!O191="","",ROUND(千円単!O191/1000,0)) -> 459 | P191: =IF(千円単!P191="","",ROUND(千円単!P191/1000,0)) -> 19 | Q191: =IF(千円単!Q191="","",ROUND(千円単!Q191/1000,0)) -> 210 | R191: =IF(千円単!R191="","",ROUND(千円単!R191/1000,0)) -> 251 | S191: =IF(千円単!S191="","",ROUND(千円単!S191/1000,0)) -> 97 | T191: =IF(千円単!T191="","",ROUND(千円単!T191/1000,0)) -> 122 | U191: =IF(千円単!U191="","",ROUND(千円単!U191/1000,0)) -> 638 | V191: =IF(千円単!V191="","",ROUND(千円単!V191/1000,0)) -> 161 | W191: =IF(千円単!W191="","",ROUND(千円単!W191/1000,0)) -> 441 | X191: =IF(千円単!X191="","",ROUND(千円単!X191/1000,0)) -> -386 | Y191: =IF(千円単!Y191="","",ROUND(千円単!Y191/1000,0)) -> 210
A192: 2019 | B192: 46 | C192: 17 | D192: 1 | E192: 191 | F192: 公共 | G192: 152234 | H192: 新潟県 | I192: 阿賀野市 | J192: =IF(千円単!J192="","",ROUND(千円単!J192/1000,0)) -> 1066 | K192: =IF(千円単!K192="","",ROUND(千円単!K192/1000,0)) -> 265 | L192: =IF(千円単!L192="","",ROUND(千円単!L192/1000,0)) -> 451 | M192: =IF(千円単!M192="","",ROUND(千円単!M192/1000,0)) -> 1101 | N192: =IF(千円単!N192="","",ROUND(千円単!N192/1000,0)) -> 158 | O192: =IF(千円単!O192="","",ROUND(千円単!O192/1000,0)) -> 695 | P192: =IF(千円単!P192="","",ROUND(千円単!P192/1000,0)) -> 30 | Q192: =IF(千円単!Q192="","",ROUND(千円単!Q192/1000,0)) -> -36 | R192: =IF(千円単!R192="","",ROUND(千円単!R192/1000,0)) -> 1184 | S192: =IF(千円単!S192="","",ROUND(千円単!S192/1000,0)) -> 532 | T192: =IF(千円単!T192="","",ROUND(千円単!T192/1000,0)) -> 177 | U192: =IF(千円単!U192="","",ROUND(千円単!U192/1000,0)) -> 1497 | V192: =IF(千円単!V192="","",ROUND(千円単!V192/1000,0)) -> 911 | W192: =IF(千円単!W192="","",ROUND(千円単!W192/1000,0)) -> 586 | X192: =IF(千円単!X192="","",ROUND(千円単!X192/1000,0)) -> -313 | Y192: =IF(千円単!Y192="","",ROUND(千円単!Y192/1000,0)) -> -36
A193: 2019 | B193: 46 | C193: 17 | D193: 1 | E193: 192 | F193: 公共 | G193: 152251 | H193: 新潟県 | I193: 魚沼市 | J193: =IF(千円単!J193="","",ROUND(千円単!J193/1000,0)) -> 1182 | K193: =IF(千円単!K193="","",ROUND(千円単!K193/1000,0)) -> 492 | L193: =IF(千円単!L193="","",ROUND(千円単!L193/1000,0)) -> 477 | M193: =IF(千円単!M193="","",ROUND(千円単!M193/1000,0)) -> 1004 | N193: =IF(千円単!N193="","",ROUND(千円単!N193/1000,0)) -> 122 | O193: =IF(千円単!O193="","",ROUND(千円単!O193/1000,0)) -> 571 | P193: =IF(千円単!P193="","",ROUND(千円単!P193/1000,0)) -> 23 | Q193: =IF(千円単!Q193="","",ROUND(千円単!Q193/1000,0)) -> 177 | R193: =IF(千円単!R193="","",ROUND(千円単!R193/1000,0)) -> 381 | S193: =IF(千円単!S193="","",ROUND(千円単!S193/1000,0)) -> 112 | T193: =IF(千円単!T193="","",ROUND(千円単!T193/1000,0)) -> 0 | U193: =IF(千円単!U193="","",ROUND(千円単!U193/1000,0)) -> 887 | V193: =IF(千円単!V193="","",ROUND(千円単!V193/1000,0)) -> 135 | W193: =IF(千円単!W193="","",ROUND(千円単!W193/1000,0)) -> 752 | X193: =IF(千円単!X193="","",ROUND(千円単!X193/1000,0)) -> -506 | Y193: =IF(千円単!Y193="","",ROUND(千円単!Y193/1000,0)) -> 177
A194: 2019 | B194: 46 | C194: 17 | D194: 1 | E194: 193 | F194: 公共 | G194: 152269 | H194: 新潟県 | I194: 南魚沼市 | J194: =IF(千円単!J194="","",ROUND(千円単!J194/1000,0)) -> 1432 | K194: =IF(千円単!K194="","",ROUND(千円単!K194/1000,0)) -> 422 | L194: =IF(千円単!L194="","",ROUND(千円単!L194/1000,0)) -> 445 | M194: =IF(千円単!M194="","",ROUND(千円単!M194/1000,0)) -> 1347 | N194: =IF(千円単!N194="","",ROUND(千円単!N194/1000,0)) -> 148 | O194: =IF(千円単!O194="","",ROUND(千円単!O194/1000,0)) -> 866 | P194: =IF(千円単!P194="","",ROUND(千円単!P194/1000,0)) -> 23 | Q194: =IF(千円単!Q194="","",ROUND(千円単!Q194/1000,0)) -> 85 | R194: =IF(千円単!R194="","",ROUND(千円単!R194/1000,0)) -> 1315 | S194: =IF(千円単!S194="","",ROUND(千円単!S194/1000,0)) -> 675 | T194: =IF(千円単!T194="","",ROUND(千円単!T194/1000,0)) -> 323 | U194: =IF(千円単!U194="","",ROUND(千円単!U194/1000,0)) -> 1552 | V194: =IF(千円単!V194="","",ROUND(千円単!V194/1000,0)) -> 389 | W194: =IF(千円単!W194="","",ROUND(千円単!W194/1000,0)) -> 1164 | X194: =IF(千円単!X194="","",ROUND(千円単!X194/1000,0)) -> -238 | Y194: =IF(千円単!Y194="","",ROUND(千円単!Y194/1000,0)) -> 85
A195: 2019 | B195: 46 | C195: 17 | D195: 1 | E195: 194 | F195: 公共 | G195: 152277 | H195: 新潟県 | I195: 胎内市 | J195: =IF(千円単!J195="","",ROUND(千円単!J195/1000,0)) -> 843 | K195: =IF(千円単!K195="","",ROUND(千円単!K195/1000,0)) -> 220 | L195: =IF(千円単!L195="","",ROUND(千円単!L195/1000,0)) -> 300 | M195: =IF(千円単!M195="","",ROUND(千円単!M195/1000,0)) -> 696 | N195: =IF(千円単!N195="","",ROUND(千円単!N195/1000,0)) -> 101 | O195: =IF(千円単!O195="","",ROUND(千円単!O195/1000,0)) -> 438 | P195: =IF(千円単!P195="","",ROUND(千円単!P195/1000,0)) -> 10 | Q195: =IF(千円単!Q195="","",ROUND(千円単!Q195/1000,0)) -> 147 | R195: =IF(千円単!R195="","",ROUND(千円単!R195/1000,0)) -> 371 | S195: =IF(千円単!S195="","",ROUND(千円単!S195/1000,0)) -> 354 | T195: =IF(千円単!T195="","",ROUND(千円単!T195/1000,0)) -> 15 | U195: =IF(千円単!U195="","",ROUND(千円単!U195/1000,0)) -> 702 | V195: =IF(千円単!V195="","",ROUND(千円単!V195/1000,0)) -> 47 | W195: =IF(千円単!W195="","",ROUND(千円単!W195/1000,0)) -> 655 | X195: =IF(千円単!X195="","",ROUND(千円単!X195/1000,0)) -> -332 | Y195: =IF(千円単!Y195="","",ROUND(千円単!Y195/1000,0)) -> 147
A196: 2019 | B196: 46 | C196: 17 | D196: 1 | E196: 195 | F196: 公共 | G196: 153079 | H196: 新潟県 | I196: 聖籠町 | J196: =IF(千円単!J196="","",ROUND(千円単!J196/1000,0)) -> 520 | K196: =IF(千円単!K196="","",ROUND(千円単!K196/1000,0)) -> 159 | L196: =IF(千円単!L196="","",ROUND(千円単!L196/1000,0)) -> 211 | M196: =IF(千円単!M196="","",ROUND(千円単!M196/1000,0)) -> 478 | N196: =IF(千円単!N196="","",ROUND(千円単!N196/1000,0)) -> 75 | O196: =IF(千円単!O196="","",ROUND(千円単!O196/1000,0)) -> 298 | P196: =IF(千円単!P196="","",ROUND(千円単!P196/1000,0)) -> 14 | Q196: =IF(千円単!Q196="","",ROUND(千円単!Q196/1000,0)) -> 42 | R196: =IF(千円単!R196="","",ROUND(千円単!R196/1000,0)) -> 84 | S196: =IF(千円単!S196="","",ROUND(千円単!S196/1000,0)) -> 81 | T196: =IF(千円単!T196="","",ROUND(千円単!T196/1000,0)) -> 0 | U196: =IF(千円単!U196="","",ROUND(千円単!U196/1000,0)) -> 282 | V196: =IF(千円単!V196="","",ROUND(千円単!V196/1000,0)) -> 28 | W196: =IF(千円単!W196="","",ROUND(千円単!W196/1000,0)) -> 254 | X196: =IF(千円単!X196="","",ROUND(千円単!X196/1000,0)) -> -198 | Y196: =IF(千円単!Y196="","",ROUND(千円単!Y196/1000,0)) -> 42
A197: 2019 | B197: 46 | C197: 17 | D197: 1 | E197: 196 | F197: 公共 | G197: 162019 | H197: 富山県 | I197: 富山市 | J197: =IF(千円単!J197="","",ROUND(千円単!J197/1000,0)) -> 13182 | K197: =IF(千円単!K197="","",ROUND(千円単!K197/1000,0)) -> 6158 | L197: =IF(千円単!L197="","",ROUND(千円単!L197/1000,0)) -> 4167 | M197: =IF(千円単!M197="","",ROUND(千円単!M197/1000,0)) -> 11229 | N197: =IF(千円単!N197="","",ROUND(千円単!N197/1000,0)) -> 1524 | O197: =IF(千円単!O197="","",ROUND(千円単!O197/1000,0)) -> 7106 | P197: =IF(千円単!P197="","",ROUND(千円単!P197/1000,0)) -> 242 | Q197: =IF(千円単!Q197="","",ROUND(千円単!Q197/1000,0)) -> 1953 | R197: =IF(千円単!R197="","",ROUND(千円単!R197/1000,0)) -> 6640 | S197: =IF(千円単!S197="","",ROUND(千円単!S197/1000,0)) -> 3156 | T197: =IF(千円単!T197="","",ROUND(千円単!T197/1000,0)) -> 1618 | U197: =IF(千円単!U197="","",ROUND(千円単!U197/1000,0)) -> 12710 | V197: =IF(千円単!V197="","",ROUND(千円単!V197/1000,0)) -> 4507 | W197: =IF(千円単!W197="","",ROUND(千円単!W197/1000,0)) -> 8198 | X197: =IF(千円単!X197="","",ROUND(千円単!X197/1000,0)) -> -6070 | Y197: =IF(千円単!Y197="","",ROUND(千円単!Y197/1000,0)) -> 1953
A198: 2019 | B198: 46 | C198: 17 | D198: 1 | E198: 197 | F198: 公共 | G198: 162027 | H198: 富山県 | I198: 高岡市 | J198: =IF(千円単!J198="","",ROUND(千円単!J198/1000,0)) -> 4370 | K198: =IF(千円単!K198="","",ROUND(千円単!K198/1000,0)) -> 2480 | L198: =IF(千円単!L198="","",ROUND(千円単!L198/1000,0)) -> 846 | M198: =IF(千円単!M198="","",ROUND(千円単!M198/1000,0)) -> 3837 | N198: =IF(千円単!N198="","",ROUND(千円単!N198/1000,0)) -> 478 | O198: =IF(千円単!O198="","",ROUND(千円単!O198/1000,0)) -> 2033 | P198: =IF(千円単!P198="","",ROUND(千円単!P198/1000,0)) -> 68 | Q198: =IF(千円単!Q198="","",ROUND(千円単!Q198/1000,0)) -> 533 | R198: =IF(千円単!R198="","",ROUND(千円単!R198/1000,0)) -> 2336 | S198: =IF(千円単!S198="","",ROUND(千円単!S198/1000,0)) -> 1479 | T198: =IF(千円単!T198="","",ROUND(千円単!T198/1000,0)) -> 283 | U198: =IF(千円単!U198="","",ROUND(千円単!U198/1000,0)) -> 4025 | V198: =IF(千円単!V198="","",ROUND(千円単!V198/1000,0)) -> 962 | W198: =IF(千円単!W198="","",ROUND(千円単!W198/1000,0)) -> 3058 | X198: =IF(千円単!X198="","",ROUND(千円単!X198/1000,0)) -> -1689 | Y198: =IF(千円単!Y198="","",ROUND(千円単!Y198/1000,0)) -> 533
A199: 2019 | B199: 46 | C199: 17 | D199: 1 | E199: 198 | F199: 公共 | G199: 162043 | H199: 富山県 | I199: 魚津市 | J199: =IF(千円単!J199="","",ROUND(千円単!J199/1000,0)) -> 1066 | K199: =IF(千円単!K199="","",ROUND(千円単!K199/1000,0)) -> 405 | L199: =IF(千円単!L199="","",ROUND(千円単!L199/1000,0)) -> 354 | M199: =IF(千円単!M199="","",ROUND(千円単!M199/1000,0)) -> 1057 | N199: =IF(千円単!N199="","",ROUND(千円単!N199/1000,0)) -> 130 | O199: =IF(千円単!O199="","",ROUND(千円単!O199/1000,0)) -> 744 | P199: =IF(千円単!P199="","",ROUND(千円単!P199/1000,0)) -> 15 | Q199: =IF(千円単!Q199="","",ROUND(千円単!Q199/1000,0)) -> 8 | R199: =IF(千円単!R199="","",ROUND(千円単!R199/1000,0)) -> 2041 | S199: =IF(千円単!S199="","",ROUND(千円単!S199/1000,0)) -> 1711 | T199: =IF(千円単!T199="","",ROUND(千円単!T199/1000,0)) -> 0 | U199: =IF(千円単!U199="","",ROUND(千円単!U199/1000,0)) -> 2477 | V199: =IF(千円単!V199="","",ROUND(千円単!V199/1000,0)) -> 183 | W199: =IF(千円単!W199="","",ROUND(千円単!W199/1000,0)) -> 2294 | X199: =IF(千円単!X199="","",ROUND(千円単!X199/1000,0)) -> -435 | Y199: =IF(千円単!Y199="","",ROUND(千円単!Y199/1000,0)) -> 8
A200: 2019 | B200: 46 | C200: 17 | D200: 1 | E200: 199 | F200: 公共 | G200: 162060 | H200: 富山県 | I200: 滑川市 | J200: =IF(千円単!J200="","",ROUND(千円単!J200/1000,0)) -> 806 | K200: =IF(千円単!K200="","",ROUND(千円単!K200/1000,0)) -> 224 | L200: =IF(千円単!L200="","",ROUND(千円単!L200/1000,0)) -> 375 | M200: =IF(千円単!M200="","",ROUND(千円単!M200/1000,0)) -> 684 | N200: =IF(千円単!N200="","",ROUND(千円単!N200/1000,0)) -> 108 | O200: =IF(千円単!O200="","",ROUND(千円単!O200/1000,0)) -> 463 | P200: =IF(千円単!P200="","",ROUND(千円単!P200/1000,0)) -> 18 | Q200: =IF(千円単!Q200="","",ROUND(千円単!Q200/1000,0)) -> 123 | R200: =IF(千円単!R200="","",ROUND(千円単!R200/1000,0)) -> 736 | S200: =IF(千円単!S200="","",ROUND(千円単!S200/1000,0)) -> 425 | T200: =IF(千円単!T200="","",ROUND(千円単!T200/1000,0)) -> 0 | U200: =IF(千円単!U200="","",ROUND(千円単!U200/1000,0)) -> 1124 | V200: =IF(千円単!V200="","",ROUND(千円単!V200/1000,0)) -> 488 | W200: =IF(千円単!W200="","",ROUND(千円単!W200/1000,0)) -> 635 | X200: =IF(千円単!X200="","",ROUND(千円単!X200/1000,0)) -> -387 | Y200: =IF(千円単!Y200="","",ROUND(千円単!Y200/1000,0)) -> 123
... 3418 more rows

Sheet 30収支
A1: 決算年度 | B1: 業務コード | C1: 業種コード | D1: 事業コード | E1: 並び順 | F1: 事業区分 | G1: 団体コード | H1: 都道府県 | I1: 団体名 | J1: 収入 | K1: 料金収入 | L1: 繰入金 | M1: 支出 | N1: 支払利息 | O1: 減価償却費 | P1: 職員給与費 | Q1: 収支差引 | R1: 収入 | S1: 地方債 | T1: 繰入金 | U1: 支出 | V1: 建設改良費 | W1: 元金償還金 | X1: 収支差引 | Y1: 収支再差引
A2: 2018 | B2: 46 | C2: 17 | D2: 1 | E2: 1 | F2: 公共 | G2: 011002 | H2: 北海道 | I2: 札幌市 | J2: 50306 | K2: 19232 | L2: 19393 | M2: 47063 | N2: 3665 | O2: 24566 | P2: 3016 | Q2: 3244 | R2: 17974 | S2: 13024 | T2: 574 | U2: 34979 | V2: 17849 | W2: 17104 | X2: -17005 | Y2: 3244
A3: 2018 | B3: 46 | C3: 17 | D3: 1 | E3: 2 | F3: 公共 | G3: 012025 | H3: 北海道 | I3: 函館市 | J3: 7382 | K3: 4162 | L3: 1074 | M3: 6527 | N3: 887 | O3: 3503 | P3: 376 | Q3: 855 | R3: 3456 | S3: 2452 | T3: 586 | U3: 5923 | V3: 1784 | W3: 4133 | X3: -2468 | Y3: 855
A4: 2018 | B4: 46 | C4: 17 | D4: 1 | E4: 3 | F4: 公共 | G4: 012033 | H4: 北海道 | I4: 小樽市 | J4: 3642 | K4: 1889 | L4: 865 | M4: 3132 | N4: 209 | O4: 1788 | P4: 69 | Q4: 510 | R4: 1681 | S4: 744 | T4: 387 | U4: 3134 | V4: 784 | W4: 2349 | X4: -1453 | Y4: 510
A5: 2018 | B5: 46 | C5: 17 | D5: 1 | E5: 4 | F5: 公共 | G5: 012041 | H5: 北海道 | I5: 旭川市 | J5: 8840 | K5: 5303 | L5: 1032 | M5: 8106 | N5: 605 | O5: 4714 | P5: 366 | Q5: 734 | R5: 2249 | S5: 1476 | T5: 234 | U5: 5718 | V5: 1473 | W5: 4245 | X5: -3470 | Y5: 734
A6: 2018 | B6: 46 | C6: 17 | D6: 1 | E6: 5 | F6: 公共 | G6: 012050 | H6: 北海道 | I6: 室蘭市 | J6: 3002 | K6: 1444 | L6: 835 | M6: 2743 | N6: 236 | O6: 1395 | P6: 94 | Q6: 259 | R6: 869 | S6: 436 | T6: 90 | U6: 1704 | V6: 849 | W6: 854 | X6: -835 | Y6: 259
A7: 2018 | B7: 46 | C7: 17 | D7: 1 | E7: 6 | F7: 公共 | G7: 012068 | H7: 北海道 | I7: 釧路市 | J7: 6502 | K7: 3510 | L7: 981 | M7: 5133 | N7: 436 | O7: 2927 | P7: 226 | Q7: 1369 | R7: 2328 | S7: 1369 | T7: 462 | U7: 3819 | V7: 1565 | W7: 2253 | X7: -1491 | Y7: 1369
A8: 2018 | B8: 46 | C8: 17 | D8: 1 | E8: 7 | F8: 公共 | G8: 012076 | H8: 北海道 | I8: 帯広市 | J8: 4682 | K8: 2658 | L8: 910 | M8: 4079 | N8: 448 | O8: 2270 | P8: 98 | Q8: 603 | R8: 1084 | S8: 674 | T8: 4 | U8: 2859 | V8: 824 | W8: 2035 | X8: -1776 | Y8: 603
A9: 2018 | B9: 46 | C9: 17 | D9: 1 | E9: 8 | F9: 公共 | G9: 012084 | H9: 北海道 | I9: 北見市 | J9: 4122 | K9: 1717 | L9: 1035 | M9: 3782 | N9: 479 | O9: 2324 | P9: 172 | Q9: 340 | R9: 3706 | S9: 2435 | T9: 353 | U9: 5011 | V9: 2068 | W9: 2943 | X9: -1305 | Y9: 340
A10: 2018 | B10: 46 | C10: 17 | D10: 1 | E10: 9 | F10: 公共 | G10: 012106 | H10: 北海道 | I10: 岩見沢市 | J10: 2547 | K10: 1200 | L10: 514 | M10: 2275 | N10: 220 | O10: 1249 | P10: 27 | Q10: 272 | R10: 1961 | S10: 631 | T10: 387 | U10: 2751 | V10: 1615 | W10: 1135 | X10: -789 | Y10: 272
A11: 2018 | B11: 46 | C11: 17 | D11: 1 | E11: 10 | F11: 公共 | G11: 012131 | H11: 北海道 | I11: 苫小牧市 | J11: 5141 | K11: 2323 | L11: 1106 | M11: 4516 | N11: 547 | O11: 2681 | P11: 153 | Q11: 625 | R11: 2735 | S11: 1770 | T11: 230 | U11: 4340 | V11: 2519 | W11: 1820 | X11: -1604 | Y11: 625
A12: 2018 | B12: 46 | C12: 17 | D12: 1 | E12: 11 | F12: 公共 | G12: 012149 | H12: 北海道 | I12: 稚内市 | J12: 1109 | K12: 462 | L12: 389 | M12: 1106 | N12: 131 | O12: 605 | P12: 16 | Q12: 2 | R12: 623 | S12: 322 | T12: 99 | U12: 1049 | V12: 397 | W12: 652 | X12: -427 | Y12: 2
A13: 2018 | B13: 46 | C13: 17 | D13: 1 | E13: 12 | F13: 公共 | G13: 012173 | H13: 北海道 | I13: 江別市 | J13: 3426 | K13: 1257 | L13: 900 | M13: 3271 | N13: 234 | O13: 2004 | P13: 133 | Q13: 155 | R13: 1025 | S13: 485 | T13: 42 | U13: 2271 | V13: 1047 | W13: 1026 | X13: -1246 | Y13: 155
A14: 2018 | B14: 46 | C14: 17 | D14: 1 | E14: 13 | F14: 公共 | G14: 012190 | H14: 北海道 | I14: 紋別市 | J14: 1276 | K14: 422 | L14: 539 | M14: 1061 | N14: 120 | O14: 639 | P14: 30 | Q14: 215 | R14: 386 | S14: 303 | T14: 36 | U14: 943 | V14: 236 | W14: 707 | X14: -557 | Y14: 215
A15: 2018 | B15: 46 | C15: 17 | D15: 1 | E15: 14 | F15: 公共 | G15: 012220 | H15: 北海道 | I15: 三笠市 | J15: 578 | K15: 189 | L15: 229 | M15: 545 | N15: 64 | O15: 366 | P15: 20 | Q15: 34 | R15: 451 | S15: 196 | T15: 0 | U15: 693 | V15: 357 | W15: 336 | X15: -242 | Y15: 34
A16: 2018 | B16: 46 | C16: 17 | D16: 1 | E16: 15 | F16: 公共 | G16: 012238 | H16: 北海道 | I16: 根室市 | J16: 711 | K16: 431 | L16: 106 | M16: 735 | N16: 40 | O16: 412 | P16: 28 | Q16: -24 | R16: 1134 | S16: 537 | T16: 16 | U16: 1352 | V16: 1149 | W16: 200 | X16: -218 | Y16: -24
A17: 2018 | B17: 46 | C17: 17 | D17: 1 | E17: 16 | F17: 公共 | G17: 012246 | H17: 北海道 | I17: 千歳市 | J17: 3317 | K17: 1362 | L17: 792 | M17: 3179 | N17: 195 | O17: 1875 | P17: 116 | Q17: 138 | R17: 410 | S17: 142 | T17: 42 | U17: 1414 | V17: 768 | W17: 641 | X17: -1004 | Y17: 138
A18: 2018 | B18: 46 | C18: 17 | D18: 1 | E18: 17 | F18: 公共 | G18: 012254 | H18: 北海道 | I18: 滝川市 | J18: 1266 | K18: 721 | L18: 228 | M18: 1189 | N18: 120 | O18: 785 | P18: 8 | Q18: 77 | R18: 771 | S18: 328 | T18: 230 | U18: 1256 | V18: 434 | W18: 822 | X18: -485 | Y18: 77
A19: 2018 | B19: 46 | C19: 17 | D19: 1 | E19: 18 | F19: 公共 | G19: 012301 | H19: 北海道 | I19: 登別市 | J19: 1869 | K19: 647 | L19: 713 | M19: 1752 | N19: 305 | O19: 968 | P19: 62 | Q19: 117 | R19: 1210 | S19: 867 | T19: 159 | U19: 1823 | V19: 602 | W19: 1220 | X19: -612 | Y19: 117
A20: 2018 | B20: 46 | C20: 17 | D20: 1 | E20: 19 | F20: 公共 | G20: 012319 | H20: 北海道 | I20: 恵庭市 | J20: 2739 | K20: 1031 | L20: 775 | M20: 2579 | N20: 185 | O20: 1528 | P20: 68 | Q20: 160 | R20: 1086 | S20: 672 | T20: 113 | U20: 2023 | V20: 972 | W20: 1051 | X20: -937 | Y20: 160
A21: 2018 | B21: 46 | C21: 17 | D21: 1 | E21: 20 | F21: 公共 | G21: 012335 | H21: 北海道 | I21: 伊達市 | J21: 1087 | K21: 608 | L21: 147 | M21: 1087 | N21: 104 | O21: 636 | P21: 50 | Q21: 0 | R21: 452 | S21: 152 | T21: 0 | U21: 861 | V21: 214 | W21: 645 | X21: -410 | Y21: 0
A22: 2018 | B22: 46 | C22: 17 | D22: 1 | E22: 21 | F22: 公共 | G22: 012351 | H22: 北海道 | I22: 石狩市 | J22: 1366 | K22: 581 | L22: 474 | M22: 1292 | N22: 164 | O22: 782 | P22: 50 | Q22: 74 | R22: 560 | S22: 428 | T22: 29 | U22: 1078 | V22: 294 | W22: 784 | X22: -518 | Y22: 74
A23: 2018 | B23: 46 | C23: 17 | D23: 1 | E23: 22 | F23: 公共 | G23: 013455 | H23: 北海道 | I23: 森町 | J23: 443 | K23: 84 | L23: 222 | M23: 442 | N23: 68 | O23: 258 | P23: 17 | Q23: 1 | R23: 154 | S23: 28 | T23: 0 | U23: 276 | V23: 61 | W23: 215 | X23: -122 | Y23: 1
A24: 2018 | B24: 46 | C24: 17 | D24: 1 | E24: 23 | F24: 公共 | G24: 014028 | H24: 北海道 | I24: 岩内町 | J24: 508 | K24: 67 | L24: 231 | M24: 508 | N24: 57 | O24: 332 | P24: 18 | Q24: 0 | R24: 610 | S24: 236 | T24: 0 | U24: 772 | V24: 419 | W24: 353 | X24: -161 | Y24: 0
A25: 2018 | B25: 46 | C25: 17 | D25: 1 | E25: 24 | F25: 公共 | G25: 014290 | H25: 北海道 | I25: 栗山町 | J25: 475 | K25: 179 | L25: 145 | M25: 468 | N25: 35 | O25: 275 | P25: 16 | Q25: 6 | R25: 245 | S25: 144 | T25: 62 | U25: 484 | V25: 72 | W25: 412 | X25: -239 | Y25: 6
A26: 2018 | B26: 46 | C26: 17 | D26: 1 | E26: 25 | F26: 公共 | G26: 015148 | H26: 北海道 | I26: 枝幸町 | J26: 244 | K26: 64 | L26: 111 | M26: 241 | N26: 22 | O26: 152 | P26: 8 | Q26: 4 | R26: 113 | S26: 27 | T26: 25 | U26: 199 | V26: 63 | W26: 135 | X26: -85 | Y26: 4
A27: 2018 | B27: 46 | C27: 17 | D27: 1 | E27: 26 | F27: 公共 | G27: 015555 | H27: 北海道 | I27: 遠軽町 | J27: 817 | K27: 226 | L27: 367 | M27: 731 | N27: 69 | O27: 407 | P27: 40 | Q27: 86 | R27: 407 | S27: 178 | T27: 51 | U27: 715 | V27: 360 | W27: 356 | X27: -308 | Y27: 86
A28: 2018 | B28: 46 | C28: 17 | D28: 1 | E28: 27 | F28: 公共 | G28: 015865 | H28: 北海道 | I28: むかわ町 | J28: 216 | K28: 50 | L28: 85 | M28: 238 | N28: 26 | O28: 128 | P28: 8 | Q28: -23 | R28: 197 | S28: 93 | T28: 0 | U28: 256 | V28: 121 | W28: 123 | X28: -58 | Y28: -23
A29: 2018 | B29: 46 | C29: 17 | D29: 1 | E29: 28 | F29: 公共 | G29: 016314 | H29: 北海道 | I29: 音更町 | J29: 1108 | K29: 578 | L29: 262 | M29: 918 | N29: 130 | O29: 565 | P29: 4 | Q29: 190 | R29: 423 | S29: 290 | T29: 77 | U29: 944 | V29: 227 | W29: 708 | X29: -521 | Y29: 190
A30: 2018 | B30: 46 | C30: 17 | D30: 1 | E30: 29 | F30: 公共 | G30: 016365 | H30: 北海道 | I30: 清水町 | J30: 200 | K30: 89 | L30: 51 | M30: 211 | N30: 7 | O30: 126 | P30: 14 | Q30: -12 | R30: 89 | S30: 0 | T30: 7 | U30: 108 | V30: 18 | W30: 90 | X30: -19 | Y30: -12
A31: 2018 | B31: 46 | C31: 17 | D31: 1 | E31: 30 | F31: 公共 | G31: 022021 | H31: 青森県 | I31: 弘前市 | J31: 4827 | K31: 2814 | L31: 1298 | M31: 4406 | N31: 532 | O31: 2124 | P31: 281 | Q31: 421 | R31: 1570 | S31: 1174 | T31: 0 | U31: 3463 | V31: 312 | W31: 3152 | X31: -1894 | Y31: 421
A32: 2018 | B32: 46 | C32: 17 | D32: 1 | E32: 31 | F32: 公共 | G32: 022047 | H32: 青森県 | I32: 黒石市 | J32: 741 | K32: 329 | L32: 92 | M32: 576 | N32: 100 | O32: 303 | P32: 16 | Q32: 165 | R32: 662 | S32: 356 | T32: 276 | U32: 746 | V32: 100 | W32: 647 | X32: -84 | Y32: 165
A33: 2018 | B33: 46 | C33: 17 | D33: 1 | E33: 32 | F33: 公共 | G33: 022055 | H33: 青森県 | I33: 五所川原市 | J33: 644 | K33: 364 | L33: 92 | M33: 753 | N33: 87 | O33: 410 | P33: 33 | Q33: -109 | R33: 911 | S33: 390 | T33: 0 | U33: 995 | V33: 528 | W33: 467 | X33: -84 | Y33: -109
A34: 2018 | B34: 46 | C34: 17 | D34: 1 | E34: 33 | F34: 公共 | G34: 022063 | H34: 青森県 | I34: 十和田市 | J34: 1593 | K34: 823 | L34: 371 | M34: 1501 | N34: 226 | O34: 883 | P34: 69 | Q34: 91 | R34: 1022 | S34: 707 | T34: 133 | U34: 1644 | V34: 533 | W34: 1111 | X34: -623 | Y34: 91
A35: 2018 | B35: 46 | C35: 17 | D35: 1 | E35: 34 | F35: 公共 | G35: 022101 | H35: 青森県 | I35: 平川市 | J35: 730 | K35: 300 | L35: 305 | M35: 592 | N35: 89 | O35: 332 | P35: 20 | Q35: 138 | R35: 129 | S35: 16 | T35: 0 | U35: 478 | V35: 33 | W35: 445 | X35: -349 | Y35: 138
A36: 2018 | B36: 46 | C36: 17 | D36: 1 | E36: 35 | F36: 公共 | G36: 023612 | H36: 青森県 | I36: 藤崎町 | J36: 245 | K36: 88 | L36: 81 | M36: 242 | N36: 38 | O36: 165 | P36: 0 | Q36: 3 | R36: 357 | S36: 188 | T36: 0 | U36: 448 | V36: 230 | W36: 219 | X36: -92 | Y36: 3
A37: 2018 | B37: 46 | C37: 17 | D37: 1 | E37: 36 | F37: 公共 | G37: 023671 | H37: 青森県 | I37: 田舎館村 | J37: 289 | K37: 106 | L37: 82 | M37: 229 | N37: 45 | O37: 127 | P37: 6 | Q37: 60 | R37: 136 | S37: 81 | T37: 54 | U37: 219 | V37: 3 | W37: 216 | X37: -83 | Y37: 60
A38: 2018 | B38: 46 | C38: 17 | D38: 1 | E38: 37 | F38: 公共 | G38: 023817 | H38: 青森県 | I38: 板柳町 | J38: 293 | K38: 81 | L38: 71 | M38: 268 | N38: 57 | O38: 156 | P38: 8 | Q38: 25 | R38: 249 | S38: 146 | T38: 70 | U38: 311 | V38: 105 | W38: 206 | X38: -62 | Y38: 25
A39: 2018 | B39: 46 | C39: 17 | D39: 1 | E39: 38 | F39: 公共 | G39: 023841 | H39: 青森県 | I39: 鶴田町 | J39: 383 | K39: 55 | L39: 195 | M39: 327 | N39: 57 | O39: 236 | P39: 3 | Q39: 56 | R39: 7 | S39: 0 | T39: 5 | U39: 202 | V39: 2 | W39: 200 | X39: -195 | Y39: 56
A40: 2018 | B40: 46 | C40: 17 | D40: 1 | E40: 39 | F40: 公共 | G40: 024112 | H40: 青森県 | I40: 六ケ所村 | J40: 642 | K40: 47 | L40: 343 | M40: 638 | N40: 73 | O40: 427 | P40: 20 | Q40: 3 | R40: 356 | S40: 100 | T40: 0 | U40: 505 | V40: 327 | W40: 177 | X40: -149 | Y40: 3
A41: 2018 | B41: 46 | C41: 17 | D41: 1 | E41: 40 | F41: 公共 | G41: 032018 | H41: 岩手県 | I41: 盛岡市 | J41: 8068 | K41: 4330 | L41: 2702 | M41: 7489 | N41: 805 | O41: 4015 | P41: 340 | Q41: 579 | R41: 2520 | S41: 1129 | T41: 514 | U41: 5818 | V41: 2254 | W41: 3562 | X41: -3298 | Y41: 579
A42: 2018 | B42: 46 | C42: 17 | D42: 1 | E42: 41 | F42: 公共 | G42: 032026 | H42: 岩手県 | I42: 宮古市 | J42: 1271 | K42: 547 | L42: 358 | M42: 1136 | N42: 148 | O42: 615 | P42: 51 | Q42: 134 | R42: 1389 | S42: 429 | T42: 683 | U42: 2050 | V42: 1131 | W42: 919 | X42: -661 | Y42: 134
A43: 2018 | B43: 46 | C43: 17 | D43: 1 | E43: 42 | F43: 公共 | G43: 032051 | H43: 岩手県 | I43: 花巻市 | J43: 2206 | K43: 711 | L43: 1102 | M43: 2161 | N43: 379 | O43: 1247 | P43: 45 | Q43: 45 | R43: 1764 | S43: 1157 | T43: 0 | U43: 2448 | V43: 748 | W43: 1699 | X43: -684 | Y43: 45
A44: 2018 | B44: 46 | C44: 17 | D44: 1 | E44: 43 | F44: 公共 | G44: 032069 | H44: 岩手県 | I44: 北上市 | J44: 2034 | K44: 1205 | L44: 599 | M44: 2008 | N44: 324 | O44: 958 | P44: 53 | Q44: 26 | R44: 1173 | S44: 709 | T44: 0 | U44: 1706 | V44: 222 | W44: 1484 | X44: -533 | Y44: 26
A45: 2018 | B45: 46 | C45: 17 | D45: 1 | E45: 44 | F45: 公共 | G45: 032115 | H45: 岩手県 | I45: 釜石市 | J45: 1134 | K45: 402 | L45: 298 | M45: 1128 | N45: 79 | O45: 661 | P45: 67 | Q45: 6 | R45: 3812 | S45: 76 | T45: 3564 | U45: 4945 | V45: 4694 | W45: 251 | X45: -1133 | Y45: 6
A46: 2018 | B46: 46 | C46: 17 | D46: 1 | E46: 45 | F46: 公共 | G46: 032166 | H46: 岩手県 | I46: 滝沢市 | J46: 1090 | K46: 486 | L46: 289 | M46: 970 | N46: 107 | O46: 560 | P46: 33 | Q46: 120 | R46: 356 | S46: 183 | T46: 18 | U46: 759 | V46: 387 | W46: 370 | X46: -403 | Y46: 120
A47: 2018 | B47: 46 | C47: 17 | D47: 1 | E47: 46 | F47: 公共 | G47: 033014 | H47: 岩手県 | I47: 雫石町 | J47: 451 | K47: 124 | L47: 180 | M47: 459 | N47: 65 | O47: 308 | P47: 6 | Q47: -8 | R47: 537 | S47: 322 | T47: 0 | U47: 697 | V47: 331 | W47: 365 | X47: -160 | Y47: -8
A48: 2018 | B48: 46 | C48: 17 | D48: 1 | E48: 47 | F48: 公共 | G48: 033031 | H48: 岩手県 | I48: 岩手町 | J48: 276 | K48: 43 | L48: 133 | M48: 274 | N48: 38 | O48: 153 | P48: 25 | Q48: 2 | R48: 115 | S48: 71 | T48: 0 | U48: 197 | V48: 70 | W48: 127 | X48: -82 | Y48: 2
A49: 2018 | B49: 46 | C49: 17 | D49: 1 | E49: 48 | F49: 公共 | G49: 033219 | H49: 岩手県 | I49: 紫波町 | J49: 746 | K49: 303 | L49: 401 | M49: 754 | N49: 84 | O49: 483 | P49: 26 | Q49: -8 | R49: 156 | S49: 87 | T49: 15 | U49: 475 | V49: 154 | W49: 321 | X49: -319 | Y49: -8
A50: 2018 | B50: 46 | C50: 17 | D50: 1 | E50: 49 | F50: 公共 | G50: 033227 | H50: 岩手県 | I50: 矢巾町 | J50: 719 | K50: 370 | L50: 155 | M50: 634 | N50: 73 | O50: 371 | P50: 6 | Q50: 86 | R50: 242 | S50: 122 | T50: 24 | U50: 506 | V50: 284 | W50: 222 | X50: -264 | Y50: 86
A51: 2018 | B51: 46 | C51: 17 | D51: 1 | E51: 50 | F51: 公共 | G51: 033812 | H51: 岩手県 | I51: 金ケ崎町 | J51: 448 | K51: 170 | L51: 191 | M51: 407 | N51: 77 | O51: 204 | P51: 6 | Q51: 41 | R51: 201 | S51: 156 | T51: 30 | U51: 359 | V51: 22 | W51: 337 | X51: -159 | Y51: 41
A52: 2018 | B52: 46 | C52: 17 | D52: 1 | E52: 51 | F52: 公共 | G52: 041009 | H52: 宮城県 | I52: 仙台市 | J52: 34593 | K52: 16190 | L52: 6716 | M52: 32213 | N52: 3348 | O52: 18992 | P52: 1191 | Q52: 2381 | R52: 21411 | S52: 12923 | T52: 3702 | U52: 34228 | V52: 16275 | W52: 17941 | X52: -12817 | Y52: 2381
A53: 2018 | B53: 46 | C53: 17 | D53: 1 | E53: 52 | F53: 公共 | G53: 042064 | H53: 宮城県 | I53: 白石市 | J53: 760 | K53: 480 | L53: 55 | M53: 770 | N53: 110 | O53: 471 | P53: 24 | Q53: -10 | R53: 573 | S53: 315 | T53: 236 | U53: 825 | V53: 55 | W53: 770 | X53: -252 | Y53: -10
A54: 2018 | B54: 46 | C54: 17 | D54: 1 | E54: 53 | F54: 公共 | G54: 042072 | H54: 宮城県 | I54: 名取市 | J54: 2739 | K54: 1290 | L54: 564 | M54: 2761 | N54: 307 | O54: 1555 | P54: 56 | Q54: -22 | R54: 3601 | S54: 1001 | T54: 0 | U54: 4623 | V54: 2487 | W54: 2133 | X54: -1022 | Y54: -22
A55: 2018 | B55: 46 | C55: 17 | D55: 1 | E55: 54 | F55: 公共 | G55: 045012 | H55: 宮城県 | I55: 涌谷町 | J55: 388 | K55: 82 | L55: 194 | M55: 352 | N55: 59 | O55: 191 | P55: 25 | Q55: 35 | R55: 197 | S55: 78 | T55: 0 | U55: 320 | V55: 87 | W55: 233 | X55: -123 | Y55: 35
A56: 2018 | B56: 46 | C56: 17 | D56: 1 | E56: 55 | F56: 公共 | G56: 045055 | H56: 宮城県 | I56: 美里町 | J56: 458 | K56: 136 | L56: 214 | M56: 449 | N56: 70 | O56: 241 | P56: 17 | Q56: 8 | R56: 696 | S56: 450 | T56: 0 | U56: 709 | V56: 385 | W56: 323 | X56: -13 | Y56: 8
A57: 2018 | B57: 46 | C57: 17 | D57: 1 | E57: 56 | F57: 公共 | G57: 052019 | H57: 秋田県 | I57: 秋田市 | J57: 10241 | K57: 4919 | L57: 3326 | M57: 9176 | N57: 1014 | O57: 5132 | P57: 421 | Q57: 1065 | R57: 5474 | S57: 3262 | T57: 872 | U57: 9677 | V57: 4142 | W57: 5535 | X57: -4202 | Y57: 1065
A58: 2018 | B58: 46 | C58: 17 | D58: 1 | E58: 57 | F58: 公共 | G58: 052027 | H58: 秋田県 | I58: 能代市 | J58: 1383 | K58: 408 | L58: 637 | M58: 1267 | N58: 166 | O58: 788 | P58: 29 | Q58: 116 | R58: 1510 | S58: 911 | T58: 69 | U58: 1917 | V58: 1174 | W58: 742 | X58: -407 | Y58: 116
A59: 2018 | B59: 46 | C59: 17 | D59: 1 | E59: 58 | F59: 公共 | G59: 052035 | H59: 秋田県 | I59: 横手市 | J59: 1692 | K59: 642 | L59: 769 | M59: 1612 | N59: 263 | O59: 843 | P59: 104 | Q59: 80 | R59: 1121 | S59: 598 | T59: 440 | U59: 1673 | V59: 260 | W59: 1413 | X59: -552 | Y59: 80
A60: 2018 | B60: 46 | C60: 17 | D60: 1 | E60: 59 | F60: 公共 | G60: 052043 | H60: 秋田県 | I60: 大館市 | J60: 1162 | K60: 469 | L60: 468 | M60: 1229 | N60: 211 | O60: 633 | P60: 53 | Q60: -67 | R60: 1357 | S60: 873 | T60: 158 | U60: 1870 | V60: 821 | W60: 1048 | X60: -513 | Y60: -67
A61: 2018 | B61: 46 | C61: 17 | D61: 1 | E61: 60 | F61: 公共 | G61: 052060 | H61: 秋田県 | I61: 男鹿市 | J61: 615 | K61: 194 | L61: 260 | M61: 593 | N61: 127 | O61: 357 | P61: 17 | Q61: 21 | R61: 660 | S61: 441 | T61: 97 | U61: 946 | V61: 293 | W61: 654 | X61: -286 | Y61: 21
A62: 2018 | B62: 46 | C62: 17 | D62: 1 | E62: 61 | F62: 公共 | G62: 052124 | H62: 秋田県 | I62: 大仙市 | J62: 1294 | K62: 315 | L62: 610 | M62: 1044 | N62: 166 | O62: 502 | P62: 58 | Q62: 250 | R62: 940 | S62: 505 | T62: 191 | U62: 1320 | V62: 590 | W62: 730 | X62: -380 | Y62: 250
A63: 2018 | B63: 46 | C63: 17 | D63: 1 | E63: 62 | F63: 公共 | G63: 062014 | H63: 山形県 | I63: 山形市 | J63: 7167 | K63: 3892 | L63: 1640 | M63: 7075 | N63: 1324 | O63: 4085 | P63: 235 | Q63: 92 | R63: 5395 | S63: 3224 | T63: 1401 | U63: 7939 | V63: 2251 | W63: 5688 | X63: -2544 | Y63: 92
A64: 2018 | B64: 46 | C64: 17 | D64: 1 | E64: 63 | F64: 公共 | G64: 062031 | H64: 山形県 | I64: 鶴岡市 | J64: 3884 | K64: 2092 | L64: 733 | M64: 3895 | N64: 555 | O64: 2422 | P64: 182 | Q64: -10 | R64: 3480 | S64: 1432 | T64: 944 | U64: 5785 | V64: 3332 | W64: 2452 | X64: -2305 | Y64: -10
A65: 2018 | B65: 46 | C65: 17 | D65: 1 | E65: 64 | F65: 公共 | G65: 062049 | H65: 山形県 | I65: 酒田市 | J65: 3729 | K65: 1488 | L65: 1875 | M65: 3660 | N65: 523 | O65: 2113 | P65: 139 | Q65: 69 | R65: 1394 | S65: 808 | T65: 0 | U65: 3176 | V65: 1351 | W65: 1825 | X65: -1782 | Y65: 69
A66: 2018 | B66: 46 | C66: 17 | D66: 1 | E66: 65 | F66: 公共 | G66: 062103 | H66: 山形県 | I66: 天童市 | J66: 1130 | K66: 874 | L66: 66 | M66: 1063 | N66: 149 | O66: 575 | P66: 17 | Q66: 67 | R66: 903 | S66: 530 | T66: 163 | U66: 1315 | V66: 692 | W66: 624 | X66: -412 | Y66: 67
A67: 2018 | B67: 46 | C67: 17 | D67: 1 | E67: 66 | F67: 公共 | G67: 062138 | H67: 山形県 | I67: 南陽市 | J67: 982 | K67: 345 | L67: 469 | M67: 962 | N67: 148 | O67: 548 | P67: 35 | Q67: 20 | R67: 645 | S67: 290 | T67: 58 | U67: 1042 | V67: 334 | W67: 708 | X67: -397 | Y67: 20
A68: 2018 | B68: 46 | C68: 17 | D68: 1 | E68: 67 | F68: 公共 | G68: 072010 | H68: 福島県 | I68: 福島市 | J68: 7315 | K68: 3204 | L68: 2391 | M68: 6638 | N68: 1017 | O68: 3849 | P68: 117 | Q68: 677 | R68: 2278 | S68: 806 | T68: 0 | U68: 5165 | V68: 1391 | W68: 3774 | X68: -2888 | Y68: 677
A69: 2018 | B69: 46 | C69: 17 | D69: 1 | E69: 68 | F69: 公共 | G69: 072036 | H69: 福島県 | I69: 郡山市 | J69: 7882 | K69: 3918 | L69: 2609 | M69: 7687 | N69: 1140 | O69: 3961 | P69: 268 | Q69: 194 | R69: 6863 | S69: 2966 | T69: 0 | U69: 8637 | V69: 3291 | W69: 5345 | X69: -1774 | Y69: 194
A70: 2018 | B70: 46 | C70: 17 | D70: 1 | E70: 69 | F70: 公共 | G70: 072044 | H70: 福島県 | I70: いわき市 | J70: 7854 | K70: 3087 | L70: 2835 | M70: 7810 | N70: 984 | O70: 4267 | P70: 190 | Q70: 44 | R70: 3653 | S70: 2095 | T70: 807 | U70: 6418 | V70: 2453 | W70: 3956 | X70: -2765 | Y70: 44
A71: 2018 | B71: 46 | C71: 17 | D71: 1 | E71: 70 | F71: 公共 | G71: 072109 | H71: 福島県 | I71: 二本松市 | J71: 550 | K71: 144 | L71: 304 | M71: 550 | N71: 76 | O71: 236 | P71: 37 | Q71: 0 | R71: 80 | S71: 64 | T71: 5 | U71: 328 | V71: 74 | W71: 254 | X71: -248 | Y71: 0
A72: 2018 | B72: 46 | C72: 17 | D72: 1 | E72: 71 | F72: 公共 | G72: 072125 | H72: 福島県 | I72: 南相馬市 | J72: 1621 | K72: 460 | L72: 561 | M72: 1498 | N72: 180 | O72: 900 | P72: 46 | Q72: 123 | R72: 913 | S72: 584 | T72: 0 | U72: 1441 | V72: 659 | W72: 782 | X72: -528 | Y72: 123
A73: 2018 | B73: 46 | C73: 17 | D73: 1 | E73: 72 | F73: 公共 | G73: 075213 | H73: 福島県 | I73: 三春町 | J73: 174 | K73: 70 | L73: 24 | M73: 212 | N73: 24 | O73: 134 | P73: 10 | Q73: -38 | R73: 95 | S73: 0 | T73: 0 | U73: 119 | V73: 0 | W73: 119 | X73: -24 | Y73: -38
A74: 2018 | B74: 46 | C74: 17 | D74: 1 | E74: 73 | F74: 公共 | G74: 082015 | H74: 茨城県 | I74: 水戸市 | J74: 8642 | K74: 3228 | L74: 3572 | M74: 8531 | N74: 1501 | O74: 5393 | P74: 188 | Q74: 111 | R74: 5601 | S74: 2749 | T74: 667 | U74: 9304 | V74: 3774 | W74: 5529 | X74: -3703 | Y74: 111
A75: 2018 | B75: 46 | C75: 17 | D75: 1 | E75: 74 | F75: 公共 | G75: 082023 | H75: 茨城県 | I75: 日立市 | J75: 3957 | K75: 2587 | L75: 107 | M75: 3553 | N75: 243 | O75: 2071 | P75: 102 | Q75: 405 | R75: 1215 | S75: 414 | T75: 278 | U75: 2518 | V75: 1163 | W75: 1355 | X75: -1303 | Y75: 405
A76: 2018 | B76: 46 | C76: 17 | D76: 1 | E76: 75 | F76: 公共 | G76: 082163 | H76: 茨城県 | I76: 笠間市 | J76: 1832 | K76: 579 | L76: 703 | M76: 1786 | N76: 255 | O76: 1049 | P76: 65 | Q76: 47 | R76: 1197 | S76: 744 | T76: 248 | U76: 1758 | V76: 566 | W76: 1192 | X76: -561 | Y76: 47
A77: 2018 | B77: 46 | C77: 17 | D77: 1 | E77: 76 | F77: 公共 | G77: 082228 | H77: 茨城県 | I77: 鹿嶋市 | J77: 1501 | K77: 523 | L77: 454 | M77: 1430 | N77: 152 | O77: 846 | P77: 40 | Q77: 71 | R77: 712 | S77: 410 | T77: 0 | U77: 1196 | V77: 708 | W77: 488 | X77: -484 | Y77: 71
A78: 2018 | B78: 46 | C78: 17 | D78: 1 | E78: 77 | F78: 公共 | G78: 082244 | H78: 茨城県 | I78: 守谷市 | J78: 1994 | K78: 1409 | L78: 47 | M78: 1810 | N78: 74 | O78: 867 | P78: 69 | Q78: 184 | R78: 110 | S78: 0 | T78: 17 | U78: 763 | V78: 320 | W78: 285 | X78: -653 | Y78: 184
A79: 2018 | B79: 46 | C79: 17 | D79: 1 | E79: 78 | F79: 公共 | G79: 089192 | H79: 茨城県 | I79: 取手地方広域下水道組合 | J79: 4160 | K79: 1085 | L79: 1781 | M79: 3941 | N79: 430 | O79: 2451 | P79: 285 | Q79: 219 | R79: 1680 | S79: 774 | T79: 109 | U79: 3153 | V79: 1464 | W79: 1685 | X79: -1472 | Y79: 219
A80: 2018 | B80: 46 | C80: 17 | D80: 1 | E80: 79 | F80: 公共 | G80: 089222 | H80: 茨城県 | I80: 日立・高萩広域下水道組合 | J80: 2260 | K80: 1165 | L80: 521 | M80: 2258 | N80: 238 | O80: 1343 | P80: 193 | Q80: 2 | R80: 946 | S80: 187 | T80: 0 | U80: 1856 | V80: 450 | W80: 1405 | X80: -910 | Y80: 2
A81: 2018 | B81: 46 | C81: 17 | D81: 1 | E81: 80 | F81: 公共 | G81: 092011 | H81: 栃木県 | I81: 宇都宮市 | J81: 12217 | K81: 6934 | L81: 2829 | M81: 11218 | N81: 1011 | O81: 6102 | P81: 449 | Q81: 999 | R81: 2920 | S81: 1115 | T81: 193 | U81: 7445 | V81: 2800 | W81: 4607 | X81: -4525 | Y81: 999
A82: 2018 | B82: 46 | C82: 17 | D82: 1 | E82: 81 | F82: 公共 | G82: 092037 | H82: 栃木県 | I82: 栃木市 | J82: 3428 | K82: 1175 | L82: 1709 | M82: 3198 | N82: 468 | O82: 1635 | P82: 137 | Q82: 230 | R82: 2042 | S82: 836 | T82: 605 | U82: 3254 | V82: 1549 | W82: 1704 | X82: -1212 | Y82: 230
A83: 2018 | B83: 46 | C83: 17 | D83: 1 | E83: 82 | F83: 公共 | G83: 093866 | H83: 栃木県 | I83: 高根沢町 | J83: 614 | K83: 160 | L83: 265 | M83: 590 | N83: 69 | O83: 311 | P83: 14 | Q83: 24 | R83: 626 | S83: 288 | T83: 0 | U83: 802 | V83: 589 | W83: 213 | X83: -177 | Y83: 24
A84: 2018 | B84: 46 | C84: 17 | D84: 1 | E84: 83 | F84: 公共 | G84: 102016 | H84: 群馬県 | I84: 前橋市 | J84: 7000 | K84: 3058 | L84: 2403 | M84: 6554 | N84: 771 | O84: 3100 | P84: 321 | Q84: 445 | R84: 3273 | S84: 1821 | T84: 453 | U84: 5676 | V84: 2548 | W84: 3128 | X84: -2403 | Y84: 445
A85: 2018 | B85: 46 | C85: 17 | D85: 1 | E85: 84 | F85: 公共 | G85: 102024 | H85: 群馬県 | I85: 高崎市 | J85: 8431 | K85: 3812 | L85: 3065 | M85: 6660 | N85: 849 | O85: 3410 | P85: 353 | Q85: 1771 | R85: 3333 | S85: 1830 | T85: 411 | U85: 6684 | V85: 3686 | W85: 2998 | X85: -3352 | Y85: 1771
A86: 2018 | B86: 46 | C86: 17 | D86: 1 | E86: 85 | F86: 公共 | G86: 102059 | H86: 群馬県 | I86: 太田市 | J86: 2769 | K86: 815 | L86: 1125 | M86: 2799 | N86: 397 | O86: 1512 | P86: 82 | Q86: -30 | R86: 2164 | S86: 881 | T86: 769 | U86: 2518 | V86: 1048 | W86: 1467 | X86: -354 | Y86: -30
A87: 2018 | B87: 46 | C87: 17 | D87: 1 | E87: 86 | F87: 公共 | G87: 111007 | H87: 埼玉県 | I87: さいたま市 | J87: 24471 | K87: 17013 | L87: 4376 | M87: 23264 | N87: 2979 | O87: 12653 | P87: 582 | Q87: 1207 | R87: 14750 | S87: 12354 | T87: 378 | U87: 25559 | V87: 13665 | W87: 11889 | X87: -10809 | Y87: 1207
A88: 2018 | B88: 46 | C88: 17 | D88: 1 | E88: 87 | F88: 公共 | G88: 112011 | H88: 埼玉県 | I88: 川越市 | J88: 6004 | K88: 3248 | L88: 1902 | M88: 5822 | N88: 354 | O88: 2721 | P88: 375 | Q88: 182 | R88: 692 | S88: 369 | T88: 186 | U88: 2410 | V88: 1185 | W88: 1225 | X88: -1718 | Y88: 182
A89: 2018 | B89: 46 | C89: 17 | D89: 1 | E89: 88 | F89: 公共 | G89: 112089 | H89: 埼玉県 | I89: 所沢市 | J89: 5703 | K89: 3178 | L89: 1306 | M89: 5539 | N89: 365 | O89: 2989 | P89: 354 | Q89: 164 | R89: 3059 | S89: 2241 | T89: 220 | U89: 4751 | V89: 3533 | W89: 1212 | X89: -1693 | Y89: 164
A90: 2018 | B90: 46 | C90: 17 | D90: 1 | E90: 89 | F90: 公共 | G90: 112101 | H90: 埼玉県 | I90: 加須市 | J90: 1686 | K90: 506 | L90: 620 | M90: 1611 | N90: 211 | O90: 1012 | P90: 41 | Q90: 75 | R90: 615 | S90: 356 | T90: 160 | U90: 1293 | V90: 268 | W90: 1023 | X90: -678 | Y90: 75
A91: 2018 | B91: 46 | C91: 17 | D91: 1 | E91: 90 | F91: 公共 | G91: 112119 | H91: 埼玉県 | I91: 本庄市 | J91: 1463 | K91: 605 | L91: 270 | M91: 1431 | N91: 127 | O91: 854 | P91: 53 | Q91: 32 | R91: 1334 | S91: 873 | T91: 223 | U91: 1628 | V91: 1116 | W91: 511 | X91: -294 | Y91: 32
A92: 2018 | B92: 46 | C92: 17 | D92: 1 | E92: 91 | F92: 公共 | G92: 112143 | H92: 埼玉県 | I92: 春日部市 | J92: 4337 | K92: 2457 | L92: 1144 | M92: 4119 | N92: 650 | O92: 2245 | P92: 89 | Q92: 218 | R92: 2695 | S92: 2077 | T92: 233 | U92: 4286 | V92: 1216 | W92: 3070 | X92: -1591 | Y92: 218
A93: 2018 | B93: 46 | C93: 17 | D93: 1 | E93: 92 | F93: 公共 | G93: 112151 | H93: 埼玉県 | I93: 狭山市 | J93: 3234 | K93: 1612 | L93: 883 | M93: 2955 | N93: 293 | O93: 1841 | P93: 90 | Q93: 279 | R93: 726 | S93: 401 | T93: 117 | U93: 1983 | V93: 893 | W93: 1090 | X93: -1257 | Y93: 279
A94: 2018 | B94: 46 | C94: 17 | D94: 1 | E94: 93 | F94: 公共 | G94: 112178 | H94: 埼玉県 | I94: 鴻巣市 | J94: 2177 | K94: 1037 | L94: 586 | M94: 2025 | N94: 238 | O94: 1205 | P94: 48 | Q94: 151 | R94: 1548 | S94: 702 | T94: 494 | U94: 2269 | V94: 1115 | W94: 1154 | X94: -721 | Y94: 151
A95: 2018 | B95: 46 | C95: 17 | D95: 1 | E95: 94 | F95: 公共 | G95: 112186 | H95: 埼玉県 | I95: 深谷市 | J95: 2286 | K95: 1183 | L95: 481 | M95: 2223 | N95: 289 | O95: 1326 | P95: 58 | Q95: 62 | R95: 1226 | S95: 869 | T95: 66 | U95: 2159 | V95: 1001 | W95: 1156 | X95: -932 | Y95: 62
A96: 2018 | B96: 46 | C96: 17 | D96: 1 | E96: 95 | F96: 公共 | G96: 112241 | H96: 埼玉県 | I96: 戸田市 | J96: 2647 | K96: 1367 | L96: 787 | M96: 2445 | N96: 159 | O96: 1068 | P96: 64 | Q96: 202 | R96: 1113 | S96: 889 | T96: 0 | U96: 1810 | V96: 1212 | W96: 598 | X96: -697 | Y96: 202
A97: 2018 | B97: 46 | C97: 17 | D97: 1 | E97: 96 | F97: 公共 | G97: 112259 | H97: 埼玉県 | I97: 入間市 | J97: 2335 | K97: 1361 | L97: 424 | M97: 2130 | N97: 179 | O97: 1311 | P97: 57 | Q97: 205 | R97: 243 | S97: 170 | T97: 66 | U97: 1105 | V97: 326 | W97: 778 | X97: -862 | Y97: 205
A98: 2018 | B98: 46 | C98: 17 | D98: 1 | E98: 97 | F98: 公共 | G98: 112283 | H98: 埼玉県 | I98: 志木市 | J98: 2003 | K98: 820 | L98: 438 | M98: 1753 | N98: 129 | O98: 868 | P98: 69 | Q98: 250 | R98: 507 | S98: 139 | T98: 262 | U98: 864 | V98: 251 | W98: 609 | X98: -356 | Y98: 250
A99: 2018 | B99: 46 | C99: 17 | D99: 1 | E99: 98 | F99: 公共 | G99: 112291 | H99: 埼玉県 | I99: 和光市 | J99: 1124 | K99: 609 | L99: 363 | M99: 959 | N99: 78 | O99: 450 | P99: 34 | Q99: 165 | R99: 249 | S99: 169 | T99: 18 | U99: 693 | V99: 304 | W99: 389 | X99: -444 | Y99: 165
A100: 2018 | B100: 46 | C100: 17 | D100: 1 | E100: 99 | F100: 公共 | G100: 112321 | H100: 埼玉県 | I100: 久喜市 | J100: 3644 | K100: 1306 | L100: 1288 | M100: 3513 | N100: 291 | O100: 1725 | P100: 108 | Q100: 131 | R100: 1914 | S100: 1395 | T100: 228 | U100: 2794 | V100: 1343 | W100: 1450 | X100: -881 | Y100: 131
A101: 2018 | B101: 46 | C101: 17 | D101: 1 | E101: 100 | F101: 公共 | G101: 112330 | H101: 埼玉県 | I101: 北本市 | J101: 1017 | K101: 517 | L101: 290 | M101: 962 | N101: 84 | O101: 499 | P101: 46 | Q101: 55 | R101: 283 | S101: 100 | T101: 151 | U101: 600 | V101: 142 | W101: 458 | X101: -317 | Y101: 55
A102: 2018 | B102: 46 | C102: 17 | D102: 1 | E102: 101 | F102: 公共 | G102: 112356 | H102: 埼玉県 | I102: 富士見市 | J102: 1552 | K102: 884 | L102: 392 | M102: 1264 | N102: 139 | O102: 651 | P102: 27 | Q102: 288 | R102: 382 | S102: 274 | T102: 33 | U102: 1021 | V102: 428 | W102: 592 | X102: -638 | Y102: 288
A103: 2018 | B103: 46 | C103: 17 | D103: 1 | E103: 102 | F103: 公共 | G103: 112429 | H103: 埼玉県 | I103: 日高市 | J103: 969 | K103: 618 | L103: 109 | M103: 939 | N103: 93 | O103: 470 | P103: 71 | Q103: 29 | R103: 653 | S103: 584 | T103: 45 | U103: 1050 | V103: 468 | W103: 582 | X103: -397 | Y103: 29
A104: 2018 | B104: 46 | C104: 17 | D104: 1 | E104: 103 | F104: 公共 | G104: 112453 | H104: 埼玉県 | I104: ふじみ野市 | J104: 1614 | K104: 968 | L104: 257 | M104: 1418 | N104: 58 | O104: 709 | P104: 55 | Q104: 195 | R104: 79 | S104: 54 | T104: 12 | U104: 397 | V104: 116 | W104: 281 | X104: -318 | Y104: 195
A105: 2018 | B105: 46 | C105: 17 | D105: 1 | E105: 104 | F105: 公共 | G105: 113859 | H105: 埼玉県 | I105: 上里町 | J105: 194 | K105: 61 | L105: 87 | M105: 194 | N105: 40 | O105: 110 | P105: 12 | Q105: 0 | R105: 83 | S105: 48 | T105: 15 | U105: 161 | V105: 73 | W105: 88 | X105: -78 | Y105: 0
A106: 2018 | B106: 46 | C106: 17 | D106: 1 | E106: 105 | F106: 公共 | G106: 121002 | H106: 千葉県 | I106: 千葉市 | J106: 27739 | K106: 13272 | L106: 7227 | M106: 26221 | N106: 3732 | O106: 14890 | P106: 646 | Q106: 1518 | R106: 14164 | S106: 10955 | T106: 81 | U106: 24814 | V106: 9575 | W106: 15237 | X106: -10650 | Y106: 1518
A107: 2018 | B107: 46 | C107: 17 | D107: 1 | E107: 106 | F107: 公共 | G107: 122033 | H107: 千葉県 | I107: 市川市 | J107: 7754 | K107: 4716 | L107: 981 | M107: 7835 | N107: 611 | O107: 3724 | P107: 287 | Q107: -81 | R107: 5585 | S107: 3456 | T107: 180 | U107: 7792 | V107: 5724 | W107: 2066 | X107: -2207 | Y107: -81
A108: 2018 | B108: 46 | C108: 17 | D108: 1 | E108: 107 | F108: 公共 | G108: 122041 | H108: 千葉県 | I108: 船橋市 | J108: 16844 | K108: 6938 | L108: 6441 | M108: 16844 | N108: 2277 | O108: 9389 | P108: 395 | Q108: 0 | R108: 10272 | S108: 5678 | T108: 560 | U108: 17240 | V108: 7596 | W108: 9616 | X108: -6969 | Y108: 0
A109: 2018 | B109: 46 | C109: 17 | D109: 1 | E109: 108 | F109: 公共 | G109: 122076 | H109: 千葉県 | I109: 松戸市 | J109: 11509 | K109: 6204 | L109: 1740 | M109: 11337 | N109: 1124 | O109: 6074 | P109: 284 | Q109: 172 | R109: 4794 | S109: 2047 | T109: 209 | U109: 7917 | V109: 3663 | W109: 4254 | X109: -3123 | Y109: 172
A110: 2018 | B110: 46 | C110: 17 | D110: 1 | E110: 109 | F110: 公共 | G110: 122122 | H110: 千葉県 | I110: 佐倉市 | J110: 3798 | K110: 2410 | L110: 213 | M110: 3136 | N110: 68 | O110: 1601 | P110: 164 | Q110: 662 | R110: 253 | S110: 8 | T110: 0 | U110: 1049 | V110: 778 | W110: 271 | X110: -796 | Y110: 662
A111: 2018 | B111: 46 | C111: 17 | D111: 1 | E111: 110 | F111: 公共 | G111: 122173 | H111: 千葉県 | I111: 柏市 | J111: 9369 | K111: 5454 | L111: 1394 | M111: 8978 | N111: 788 | O111: 4613 | P111: 203 | Q111: 391 | R111: 3316 | S111: 1488 | T111: 0 | U111: 5600 | V111: 2498 | W111: 3100 | X111: -2284 | Y111: 391
A112: 2018 | B112: 46 | C112: 17 | D112: 1 | E112: 111 | F112: 公共 | G112: 122203 | H112: 千葉県 | I112: 流山市 | J112: 3175 | K112: 1888 | L112: 429 | M112: 3099 | N112: 349 | O112: 1458 | P112: 116 | Q112: 76 | R112: 3271 | S112: 820 | T112: 0 | U112: 3591 | V112: 2502 | W112: 1088 | X112: -319 | Y112: 76
A113: 2018 | B113: 46 | C113: 17 | D113: 1 | E113: 112 | F113: 公共 | G113: 122211 | H113: 千葉県 | I113: 八千代市 | J113: 3309 | K113: 2196 | L113: 444 | M113: 3167 | N113: 169 | O113: 1445 | P113: 122 | Q113: 142 | R113: 1594 | S113: 661 | T113: 286 | U113: 2240 | V113: 1557 | W113: 610 | X113: -646 | Y113: 142
A114: 2018 | B114: 46 | C114: 17 | D114: 1 | E114: 113 | F114: 公共 | G114: 122289 | H114: 千葉県 | I114: 四街道市 | J114: 1859 | K114: 885 | L114: 222 | M114: 1856 | N114: 101 | O114: 1101 | P114: 53 | Q114: 2 | R114: 200 | S114: 91 | T114: 69 | U114: 581 | V114: 177 | W114: 405 | X114: -382 | Y114: 2
A115: 2018 | B115: 46 | C115: 17 | D115: 1 | E115: 114 | F115: 公共 | G115: 123226 | H115: 千葉県 | I115: 酒々井町 | J115: 267 | K115: 231 | L115: 3 | M115: 307 | N115: 17 | O115: 177 | P115: 4 | Q115: -40 | R115: 12 | S115: 3 | T115: 7 | U115: 87 | V115: 11 | W115: 73 | X115: -75 | Y115: -40
A116: 2018 | B116: 46 | C116: 17 | D116: 1 | E116: 115 | F116: 公共 | G116: 130001 | H116: 東京都 | I116: 東京都 | J116: 345137 | K116: 159195 | L116: 121599 | M116: 308757 | N116: 20909 | O116: 171270 | P116: 13313 | Q116: 36380 | R116: 181701 | S116: 87986 | T116: 0 | U116: 336547 | V116: 190319 | W116: 146228 | X116: -154845 | Y116: 36380
A117: 2018 | B117: 46 | C117: 17 | D117: 1 | E117: 116 | F117: 公共 | G117: 132217 | H117: 東京都 | I117: 清瀬市 | J117: 1052 | K117: 879 | L117: 23 | M117: 977 | N117: 57 | O117: 419 | P117: 40 | Q117: 74 | R117: 668 | S117: 406 | T117: 0 | U117: 1058 | V117: 685 | W117: 373 | X117: -390 | Y117: 74
A118: 2018 | B118: 46 | C118: 17 | D118: 1 | E118: 117 | F118: 公共 | G118: 132241 | H118: 東京都 | I118: 多摩市 | J118: 3438 | K118: 2148 | L118: 193 | M118: 2856 | N118: 25 | O118: 1484 | P118: 105 | Q118: 582 | R118: 164 | S118: 0 | T118: 162 | U118: 411 | V118: 271 | W118: 140 | X118: -246 | Y118: 582
A119: 2018 | B119: 46 | C119: 17 | D119: 1 | E119: 118 | F119: 公共 | G119: 141003 | H119: 神奈川県 | I119: 横浜市 | J119: 130952 | K119: 56177 | L119: 43337 | M119: 112118 | N119: 9219 | O119: 73906 | P119: 5652 | Q119: 18834 | R119: 69630 | S119: 55906 | T119: 0 | U119: 129197 | V119: 44323 | W119: 84870 | X119: -59567 | Y119: 18834
A120: 2018 | B120: 46 | C120: 17 | D120: 1 | E120: 119 | F120: 公共 | G120: 141305 | H120: 神奈川県 | I120: 川崎市 | J120: 41583 | K120: 22320 | L120: 11863 | M120: 37724 | N120: 4260 | O120: 22350 | P120: 2784 | Q120: 3858 | R120: 43360 | S120: 31462 | T120: 1627 | U120: 61800 | V120: 19077 | W120: 40219 | X120: -18441 | Y120: 3858
A121: 2018 | B121: 46 | C121: 17 | D121: 1 | E121: 120 | F121: 公共 | G121: 141500 | H121: 神奈川県 | I121: 相模原市 | J121: 15445 | K121: 8786 | L121: 4390 | M121: 14001 | N121: 1772 | O121: 8171 | P121: 396 | Q121: 1443 | R121: 6024 | S121: 4563 | T121: 271 | U121: 11976 | V121: 4780 | W121: 7188 | X121: -5952 | Y121: 1443
A122: 2018 | B122: 46 | C122: 17 | D122: 1 | E122: 121 | F122: 公共 | G122: 142018 | H122: 神奈川県 | I122: 横須賀市 | J122: 15136 | K122: 6951 | L122: 2444 | M122: 14319 | N122: 1198 | O122: 8373 | P122: 795 | Q122: 817 | R122: 9676 | S122: 5973 | T122: 1172 | U122: 13776 | V122: 5610 | W122: 8166 | X122: -4100 | Y122: 817
A123: 2018 | B123: 46 | C123: 17 | D123: 1 | E123: 122 | F123: 公共 | G123: 142034 | H123: 神奈川県 | I123: 平塚市 | J123: 7909 | K123: 3395 | L123: 2384 | M123: 6945 | N123: 941 | O123: 4249 | P123: 154 | Q123: 964 | R123: 3266 | S123: 1617 | T123: 906 | U123: 6028 | V123: 2261 | W123: 3767 | X123: -2762 | Y123: 964
A124: 2018 | B124: 46 | C124: 17 | D124: 1 | E124: 123 | F124: 公共 | G124: 142051 | H124: 神奈川県 | I124: 藤沢市 | J124: 12146 | K124: 5757 | L124: 4127 | M124: 11946 | N124: 1159 | O124: 5258 | P124: 512 | Q124: 201 | R124: 2815 | S124: 2138 | T124: 273 | U124: 6707 | V124: 1865 | W124: 4842 | X124: -3892 | Y124: 201
A125: 2018 | B125: 46 | C125: 17 | D125: 1 | E125: 124 | F125: 公共 | G125: 142069 | H125: 神奈川県 | I125: 小田原市 | J125: 6431 | K125: 3370 | L125: 1928 | M125: 6127 | N125: 830 | O125: 3282 | P125: 170 | Q125: 304 | R125: 2748 | S125: 1936 | T125: 322 | U125: 5008 | V125: 1566 | W125: 3441 | X125: -2261 | Y125: 304
A126: 2018 | B126: 46 | C126: 17 | D126: 1 | E126: 125 | F126: 公共 | G126: 142077 | H126: 神奈川県 | I126: 茅ヶ崎市 | J126: 5516 | K126: 2640 | L126: 1648 | M126: 4952 | N126: 629 | O126: 2639 | P126: 142 | Q126: 564 | R126: 1913 | S126: 1275 | T126: 413 | U126: 3733 | V126: 1406 | W126: 2327 | X126: -1820 | Y126: 564
A127: 2018 | B127: 46 | C127: 17 | D127: 1 | E127: 126 | F127: 公共 | G127: 142115 | H127: 神奈川県 | I127: 秦野市 | J127: 5411 | K127: 2111 | L127: 2063 | M127: 4546 | N127: 613 | O127: 2529 | P127: 211 | Q127: 865 | R127: 941 | S127: 690 | T127: 69 | U127: 3054 | V127: 962 | W127: 2092 | X127: -2113 | Y127: 865
A128: 2018 | B128: 46 | C128: 17 | D128: 1 | E128: 127 | F128: 公共 | G128: 142158 | H128: 神奈川県 | I128: 海老名市 | J128: 3051 | K128: 1792 | L128: 202 | M128: 2677 | N128: 243 | O128: 1610 | P128: 76 | Q128: 374 | R128: 1265 | S128: 978 | T128: 51 | U128: 2128 | V128: 926 | W128: 1202 | X128: -863 | Y128: 374
A129: 2018 | B129: 46 | C129: 17 | D129: 1 | E129: 128 | F129: 公共 | G129: 142166 | H129: 神奈川県 | I129: 座間市 | J129: 2571 | K129: 1613 | L129: 457 | M129: 2360 | N129: 345 | O129: 1357 | P129: 86 | Q129: 211 | R129: 722 | S129: 595 | T129: 95 | U129: 1844 | V129: 290 | W129: 1553 | X129: -1122 | Y129: 211
A130: 2018 | B130: 46 | C130: 17 | D130: 1 | E130: 129 | F130: 公共 | G130: 142174 | H130: 神奈川県 | I130: 南足柄市 | J130: 1088 | K130: 573 | L130: 226 | M130: 965 | N130: 135 | O130: 562 | P130: 20 | Q130: 123 | R130: 386 | S130: 218 | T130: 94 | U130: 717 | V130: 128 | W130: 589 | X130: -331 | Y130: 123
A131: 2018 | B131: 46 | C131: 17 | D131: 1 | E131: 130 | F131: 公共 | G131: 143014 | H131: 神奈川県 | I131: 葉山町 | J131: 1285 | K131: 238 | L131: 607 | M131: 1270 | N131: 143 | O131: 817 | P131: 50 | Q131: 15 | R131: 591 | S131: 218 | T131: 0 | U131: 1000 | V131: 479 | W131: 521 | X131: -409 | Y131: 15
A132: 2018 | B132: 46 | C132: 17 | D132: 1 | E132: 131 | F132: 公共 | G132: 143219 | H132: 神奈川県 | I132: 寒川町 | J132: 1250 | K132: 545 | L132: 390 | M132: 1247 | N132: 140 | O132: 763 | P132: 57 | Q132: 3 | R132: 451 | S132: 315 | T132: 78 | U132: 935 | V132: 375 | W132: 560 | X132: -484 | Y132: 3
A133: 2018 | B133: 46 | C133: 17 | D133: 1 | E133: 132 | F133: 公共 | G133: 143821 | H133: 神奈川県 | I133: 箱根町 | J133: 1630 | K133: 747 | L133: 243 | M133: 1393 | N133: 86 | O133: 931 | P133: 59 | Q133: 237 | R133: 477 | S133: 320 | T133: 77 | U133: 887 | V133: 397 | W133: 489 | X133: -410 | Y133: 237
A134: 2018 | B134: 46 | C134: 17 | D134: 1 | E134: 133 | F134: 公共 | G134: 143847 | H134: 神奈川県 | I134: 湯河原町 | J134: 893 | K134: 450 | L134: 110 | M134: 960 | N134: 64 | O134: 558 | P134: 56 | Q134: -66 | R134: 630 | S134: 214 | T134: 124 | U134: 807 | V134: 467 | W134: 340 | X134: -176 | Y134: -66
A135: 2018 | B135: 46 | C135: 17 | D135: 1 | E135: 134 | F135: 公共 | G135: 151009 | H135: 新潟県 | I135: 新潟市 | J135: 29896 | K135: 11995 | L135: 9454 | M135: 29092 | N135: 5270 | O135: 17825 | P135: 954 | Q135: 804 | R135: 22901 | S135: 15279 | T135: 2558 | U135: 34297 | V135: 15387 | W135: 18904 | X135: -11396 | Y135: 804
A136: 2018 | B136: 46 | C136: 17 | D136: 1 | E136: 135 | F136: 公共 | G136: 152021 | H136: 新潟県 | I136: 長岡市 | J136: 7616 | K136: 3340 | L136: 1869 | M136: 7561 | N136: 871 | O136: 4745 | P136: 154 | Q136: 55 | R136: 4211 | S136: 1393 | T136: 0 | U136: 6696 | V136: 2532 | W136: 4164 | X136: -2485 | Y136: 55
A137: 2018 | B137: 46 | C137: 17 | D137: 1 | E137: 136 | F137: 公共 | G137: 152056 | H137: 新潟県 | I137: 柏崎市 | J137: 3403 | K137: 1035 | L137: 1141 | M137: 3217 | N137: 331 | O137: 2107 | P137: 140 | Q137: 185 | R137: 3147 | S137: 1838 | T137: 375 | U137: 4247 | V137: 1937 | W137: 2310 | X137: -1101 | Y137: 185
A138: 2018 | B138: 46 | C138: 17 | D138: 1 | E138: 137 | F138: 公共 | G138: 152081 | H138: 新潟県 | I138: 小千谷市 | J138: 1403 | K138: 481 | L138: 684 | M138: 1035 | N138: 174 | O138: 570 | P138: 45 | Q138: 369 | R138: 345 | S138: 266 | T138: 33 | U138: 1124 | V138: 186 | W138: 937 | X138: -779 | Y138: 369
A139: 2018 | B139: 46 | C139: 17 | D139: 1 | E139: 138 | F139: 公共 | G139: 152111 | H139: 新潟県 | I139: 見附市 | J139: 1656 | K139: 582 | L139: 589 | M139: 1668 | N139: 193 | O139: 951 | P139: 44 | Q139: -12 | R139: 1772 | S139: 947 | T139: 214 | U139: 2256 | V139: 1406 | W139: 849 | X139: -484 | Y139: -12
A140: 2018 | B140: 46 | C140: 17 | D140: 1 | E140: 139 | F140: 公共 | G140: 152161 | H140: 新潟県 | I140: 糸魚川市 | J140: 1793 | K140: 613 | L140: 517 | M140: 1793 | N140: 231 | O140: 1113 | P140: 40 | Q140: 0 | R140: 1027 | S140: 496 | T140: 339 | U140: 1525 | V140: 447 | W140: 1078 | X140: -498 | Y140: 0
A141: 2018 | B141: 46 | C141: 17 | D141: 1 | E141: 140 | F141: 公共 | G141: 152170 | H141: 新潟県 | I141: 妙高市 | J141: 1012 | K141: 359 | L141: 414 | M141: 777 | N141: 86 | O141: 441 | P141: 18 | Q141: 235 | R141: 575 | S141: 283 | T141: 115 | U141: 929 | V141: 367 | W141: 515 | X141: -354 | Y141: 235
A142: 2018 | B142: 46 | C142: 17 | D142: 1 | E142: 141 | F142: 公共 | G142: 152251 | H142: 新潟県 | I142: 魚沼市 | J142: 1138 | K142: 497 | L142: 429 | M142: 1003 | N142: 147 | O142: 569 | P142: 23 | Q142: 135 | R142: 411 | S142: 64 | T142: 0 | U142: 887 | V142: 101 | W142: 786 | X142: -477 | Y142: 135
A143: 2018 | B143: 46 | C143: 17 | D143: 1 | E143: 142 | F143: 公共 | G143: 152277 | H143: 新潟県 | I143: 胎内市 | J143: 787 | K143: 221 | L143: 281 | M143: 656 | N143: 113 | O143: 427 | P143: 6 | Q143: 131 | R143: 620 | S143: 472 | T143: 24 | U143: 964 | V143: 231 | W143: 732 | X143: -344 | Y143: 131
A144: 2018 | B144: 46 | C144: 17 | D144: 1 | E144: 143 | F144: 公共 | G144: 153079 | H144: 新潟県 | I144: 聖籠町 | J144: 514 | K144: 159 | L144: 208 | M144: 480 | N144: 80 | O144: 297 | P144: 13 | Q144: 34 | R144: 86 | S144: 83 | T144: 0 | U144: 279 | V144: 40 | W144: 240 | X144: -193 | Y144: 34
A145: 2018 | B145: 46 | C145: 17 | D145: 1 | E145: 144 | F145: 公共 | G145: 162019 | H145: 富山県 | I145: 富山市 | J145: 13296 | K145: 6167 | L145: 4360 | M145: 11415 | N145: 1699 | O145: 7107 | P145: 256 | Q145: 1881 | R145: 7122 | S145: 3473 | T145: 1578 | U145: 12997 | V145: 5372 | W145: 7620 | X145: -5875 | Y145: 1881
A146: 2018 | B146: 46 | C146: 17 | D146: 1 | E146: 145 | F146: 公共 | G146: 162027 | H146: 富山県 | I146: 高岡市 | J146: 4345 | K146: 2503 | L146: 764 | M146: 3908 | N146: 547 | O146: 2045 | P146: 55 | Q146: 436 | R146: 2060 | S146: 1436 | T146: 0 | U146: 3795 | V146: 719 | W146: 3059 | X146: -1735 | Y146: 436
A147: 2018 | B147: 46 | C147: 17 | D147: 1 | E147: 146 | F147: 公共 | G147: 162060 | H147: 富山県 | I147: 滑川市 | J147: 824 | K147: 242 | L147: 376 | M147: 706 | N147: 122 | O147: 462 | P147: 22 | Q147: 118 | R147: 381 | S147: 273 | T147: 0 | U147: 717 | V147: 62 | W147: 655 | X147: -336 | Y147: 118
A148: 2018 | B148: 46 | C148: 17 | D148: 1 | E148: 147 | F148: 公共 | G148: 162078 | H148: 富山県 | I148: 黒部市 | J148: 1054 | K148: 282 | L148: 463 | M148: 1036 | N148: 127 | O148: 564 | P148: 25 | Q148: 17 | R148: 577 | S148: 310 | T148: 0 | U148: 952 | V148: 193 | W148: 759 | X148: -375 | Y148: 17
A149: 2018 | B149: 46 | C149: 17 | D149: 1 | E149: 148 | F149: 公共 | G149: 162108 | H149: 富山県 | I149: 南砺市 | J149: 1054 | K149: 350 | L149: 600 | M149: 701 | N149: 89 | O149: 415 | P149: 16 | Q149: 353 | R149: 237 | S149: 94 | T149: 141 | U149: 744 | V149: 57 | W149: 688 | X149: -507 | Y149: 353
A150: 2018 | B150: 46 | C150: 17 | D150: 1 | E150: 149 | F150: 公共 | G150: 162116 | H150: 富山県 | I150: 射水市 | J150: 2487 | K150: 926 | L150: 1076 | M150: 2375 | N150: 368 | O150: 1269 | P150: 67 | Q150: 113 | R150: 2587 | S150: 1221 | T150: 0 | U150: 3547 | V150: 2185 | W150: 1352 | X150: -959 | Y150: 113
A151: 2018 | B151: 46 | C151: 17 | D151: 1 | E151: 150 | F151: 公共 | G151: 169048 | H151: 富山県 | I151: 中新川広域行政事務組合 | J151: 1370 | K151: 437 | L151: 399 | M151: 1446 | N151: 264 | O151: 920 | P151: 34 | Q151: -77 | R151: 606 | S151: 33 | T151: 0 | U151: 1035 | V151: 80 | W151: 954 | X151: -429 | Y151: -77
A152: 2018 | B152: 46 | C152: 17 | D152: 1 | E152: 151 | F152: 公共 | G152: 172014 | H152: 石川県 | I152: 金沢市 | J152: 16497 | K152: 6992 | L152: 5247 | M152: 15395 | N152: 2335 | O152: 9528 | P152: 438 | Q152: 1103 | R152: 7189 | S152: 4548 | T152: 23 | U152: 13830 | V152: 4222 | W152: 9606 | X152: -6642 | Y152: 1103
A153: 2018 | B153: 46 | C153: 17 | D153: 1 | E153: 152 | F153: 公共 | G153: 172022 | H153: 石川県 | I153: 七尾市 | J153: 1382 | K153: 379 | L153: 644 | M153: 1394 | N153: 242 | O153: 845 | P153: 31 | Q153: -12 | R153: 745 | S153: 536 | T153: 79 | U153: 1233 | V153: 340 | W153: 893 | X153: -488 | Y153: -12
A154: 2018 | B154: 46 | C154: 17 | D154: 1 | E154: 153 | F154: 公共 | G154: 172031 | H154: 石川県 | I154: 小松市 | J154: 3574 | K154: 1025 | L154: 1804 | M154: 3588 | N154: 753 | O154: 2145 | P154: 69 | Q154: -14 | R154: 3154 | S154: 2328 | T154: 233 | U154: 4655 | V154: 1520 | W154: 3128 | X154: -1500 | Y154: -14
A155: 2018 | B155: 46 | C155: 17 | D155: 1 | E155: 154 | F155: 公共 | G155: 172049 | H155: 石川県 | I155: 輪島市 | J155: 586 | K155: 161 | L155: 233 | M155: 688 | N155: 117 | O155: 456 | P155: 16 | Q155: -102 | R155: 411 | S155: 293 | T155: 107 | U155: 642 | V155: 24 | W155: 619 | X155: -232 | Y155: -102
A156: 2018 | B156: 46 | C156: 17 | D156: 1 | E156: 155 | F156: 公共 | G156: 172065 | H156: 石川県 | I156: 加賀市 | J156: 1641 | K156: 567 | L156: 746 | M156: 1681 | N156: 254 | O156: 874 | P156: 32 | Q156: -40 | R156: 1201 | S156: 914 | T156: 138 | U156: 1775 | V156: 340 | W156: 1433 | X156: -574 | Y156: -40
A157: 2018 | B157: 46 | C157: 17 | D157: 1 | E157: 156 | F157: 公共 | G157: 172073 | H157: 石川県 | I157: 羽咋市 | J157: 659 | K157: 192 | L157: 343 | M157: 610 | N157: 136 | O157: 380 | P157: 13 | Q157: 50 | R157: 512 | S157: 352 | T157: 113 | U157: 824 | V157: 115 | W157: 709 | X157: -312 | Y157: 50
A158: 2018 | B158: 46 | C158: 17 | D158: 1 | E158: 157 | F158: 公共 | G158: 172090 | H158: 石川県 | I158: かほく市 | J158: 1543 | K158: 333 | L158: 784 | M158: 1484 | N158: 197 | O158: 1094 | P158: 0 | Q158: 59 | R158: 765 | S158: 350 | T158: 0 | U158: 1424 | V158: 404 | W158: 1021 | X158: -659 | Y158: 59
A159: 2018 | B159: 46 | C159: 17 | D159: 1 | E159: 158 | F159: 公共 | G159: 172103 | H159: 石川県 | I159: 白山市 | J159: 3496 | K159: 1445 | L159: 1263 | M159: 3538 | N159: 634 | O159: 2102 | P159: 64 | Q159: -42 | R159: 2650 | S159: 1701 | T159: 457 | U159: 3825 | V159: 1149 | W159: 2674 | X159: -1176 | Y159: -42
A160: 2018 | B160: 46 | C160: 17 | D160: 1 | E160: 159 | F160: 公共 | G160: 172111 | H160: 石川県 | I160: 能美市 | J160: 1631 | K160: 715 | L160: 490 | M160: 1558 | N160: 286 | O160: 847 | P160: 20 | Q160: 73 | R160: 1019 | S160: 637 | T160: 352 | U160: 1437 | V160: 90 | W160: 1347 | X160: -419 | Y160: 73
A161: 2018 | B161: 46 | C161: 17 | D161: 1 | E161: 160 | F161: 公共 | G161: 172120 | H161: 石川県 | I161: 野々市市 | J161: 1194 | K161: 719 | L161: 259 | M161: 1280 | N161: 223 | O161: 689 | P161: 43 | Q161: -86 | R161: 715 | S161: 408 | T161: 199 | U161: 1092 | V161: 189 | W161: 903 | X161: -377 | Y161: -86
A162: 2018 | B162: 46 | C162: 17 | D162: 1 | E162: 161 | F162: 公共 | G162: 173614 | H162: 石川県 | I162: 津幡町 | J162: 1573 | K162: 496 | L162: 461 | M162: 1487 | N162: 207 | O162: 866 | P162: 16 | Q162: 86 | R162: 852 | S162: 515 | T162: 150 | U162: 1406 | V162: 413 | W162: 993 | X162: -554 | Y162: 86
A163: 2018 | B163: 46 | C163: 17 | D163: 1 | E163: 162 | F163: 公共 | G163: 182010 | H163: 福井県 | I163: 福井市 | J163: 8428 | K163: 3570 | L163: 2233 | M163: 7855 | N163: 1043 | O163: 4483 | P163: 465 | Q163: 572 | R163: 5706 | S163: 3730 | T163: 554 | U163: 8885 | V163: 4765 | W163: 4103 | X163: -3179 | Y163: 572
A164: 2018 | B164: 46 | C164: 17 | D164: 1 | E164: 163 | F164: 公共 | G164: 182028 | H164: 福井県 | I164: 敦賀市 | J164: 2270 | K164: 876 | L164: 703 | M164: 2198 | N164: 291 | O164: 1386 | P164: 56 | Q164: 72 | R164: 1439 | S164: 736 | T164: 80 | U164: 2092 | V164: 649 | W164: 1444 | X164: -654 | Y164: 72
A165: 2018 | B165: 46 | C165: 17 | D165: 1 | E165: 164 | F165: 公共 | G165: 182079 | H165: 福井県 | I165: 鯖江市 | J165: 1946 | K165: 1095 | L165: 435 | M165: 1864 | N165: 314 | O165: 1173 | P165: 14 | Q165: 82 | R165: 1337 | S165: 693 | T165: 331 | U165: 2151 | V165: 627 | W165: 1524 | X165: -814 | Y165: 82
A166: 2018 | B166: 46 | C166: 17 | D166: 1 | E166: 165 | F166: 公共 | G166: 182087 | H166: 福井県 | I166: あわら市 | J166: 1175 | K166: 503 | L166: 382 | M166: 1177 | N166: 178 | O166: 644 | P166: 25 | Q166: -2 | R166: 676 | S166: 441 | T166: 219 | U166: 1120 | V166: 296 | W166: 824 | X166: -444 | Y166: -2
A167: 2018 | B167: 46 | C167: 17 | D167: 1 | E167: 166 | F167: 公共 | G167: 182109 | H167: 福井県 | I167: 坂井市 | J167: 2979 | K167: 1160 | L167: 925 | M167: 3021 | N167: 375 | O167: 1884 | P167: 31 | Q167: -42 | R167: 1276 | S167: 1024 | T167: 0 | U167: 2423 | V167: 419 | W167: 1953 | X167: -1146 | Y167: -42
A168: 2018 | B168: 46 | C168: 17 | D168: 1 | E168: 167 | F168: 公共 | G168: 188433 | H168: 福井県 | I168: 五領川公共下水道事務組合 | J168: 474 | K168: 127 | L168: 149 | M168: 423 | N168: 35 | O168: 226 | P168: 29 | Q168: 51 | R168: 173 | S168: 116 | T168: 3 | U168: 361 | V168: 175 | W168: 182 | X168: -187 | Y168: 51
A169: 2018 | B169: 46 | C169: 17 | D169: 1 | E169: 168 | F169: 公共 | G169: 192015 | H169: 山梨県 | I169: 甲府市 | J169: 6479 | K169: 2807 | L169: 1848 | M169: 5274 | N169: 683 | O169: 3313 | P169: 207 | Q169: 1205 | R169: 2110 | S169: 1042 | T169: 881 | U169: 4916 | V169: 986 | W169: 3754 | X169: -2806 | Y169: 1205
A170: 2018 | B170: 46 | C170: 17 | D170: 1 | E170: 169 | F170: 公共 | G170: 192058 | H170: 山梨県 | I170: 山梨市 | J170: 767 | K170: 283 | L170: 335 | M170: 770 | N170: 120 | O170: 364 | P170: 62 | Q170: -3 | R170: 659 | S170: 328 | T170: 145 | U170: 866 | V170: 385 | W170: 481 | X170: -207 | Y170: -3
A171: 2018 | B171: 46 | C171: 17 | D171: 1 | E171: 170 | F171: 公共 | G171: 192112 | H171: 山梨県 | I171: 笛吹市 | J171: 1934 | K171: 649 | L171: 997 | M171: 1887 | N171: 318 | O171: 1019 | P171: 42 | Q171: 46 | R171: 995 | S171: 687 | T171: 157 | U171: 1745 | V171: 490 | W171: 1256 | X171: -750 | Y171: 46
A172: 2018 | B172: 46 | C172: 17 | D172: 1 | E172: 171 | F172: 公共 | G172: 202011 | H172: 長野県 | I172: 長野市 | J172: 12351 | K172: 6780 | L172: 2708 | M172: 9862 | N172: 1599 | O172: 5408 | P172: 257 | Q172: 2490 | R172: 2939 | S172: 1200 | T172: 902 | U172: 8101 | V172: 2450 | W172: 5651 | X172: -5162 | Y172: 2490
A173: 2018 | B173: 46 | C173: 17 | D173: 1 | E173: 172 | F173: 公共 | G173: 202029 | H173: 長野県 | I173: 松本市 | J173: 5578 | K173: 4190 | L173: 138 | M173: 4705 | N173: 425 | O173: 2741 | P173: 219 | Q173: 874 | R173: 2136 | S173: 614 | T173: 855 | U173: 3798 | V173: 1442 | W173: 2356 | X173: -1661 | Y173: 874
A174: 2018 | B174: 46 | C174: 17 | D174: 1 | E174: 173 | F174: 公共 | G174: 202037 | H174: 長野県 | I174: 上田市 | J174: 4418 | K174: 1869 | L174: 1596 | M174: 3679 | N174: 616 | O174: 2325 | P174: 59 | Q174: 739 | R174: 583 | S174: 201 | T174: 212 | U174: 2838 | V174: 571 | W174: 2267 | X174: -2255 | Y174: 739
A175: 2018 | B175: 46 | C175: 17 | D175: 1 | E175: 174 | F175: 公共 | G175: 202045 | H175: 長野県 | I175: 岡谷市 | J175: 1695 | K175: 951 | L175: 318 | M175: 1417 | N175: 147 | O175: 779 | P175: 62 | Q175: 278 | R175: 657 | S175: 398 | T175: 162 | U175: 1299 | V175: 312 | W175: 988 | X175: -642 | Y175: 278
A176: 2018 | B176: 46 | C176: 17 | D176: 1 | E176: 175 | F176: 公共 | G176: 202053 | H176: 長野県 | I176: 飯田市 | J176: 3158 | K176: 1596 | L176: 562 | M176: 2705 | N176: 356 | O176: 1560 | P176: 125 | Q176: 454 | R176: 1024 | S176: 233 | T176: 634 | U176: 1873 | V176: 402 | W176: 1471 | X176: -849 | Y176: 454
A177: 2018 | B177: 46 | C177: 17 | D177: 1 | E177: 176 | F177: 公共 | G177: 202061 | H177: 長野県 | I177: 諏訪市 | J177: 2163 | K177: 1263 | L177: 587 | M177: 1829 | N177: 203 | O177: 1017 | P177: 75 | Q177: 334 | R177: 321 | S177: 128 | T177: 133 | U177: 1344 | V177: 302 | W177: 1042 | X177: -1022 | Y177: 334
A178: 2018 | B178: 46 | C178: 17 | D178: 1 | E178: 177 | F178: 公共 | G178: 202070 | H178: 長野県 | I178: 須坂市 | J178: 1650 | K178: 743 | L178: 568 | M178: 1348 | N178: 269 | O178: 724 | P178: 20 | Q178: 302 | R178: 891 | S178: 559 | T178: 306 | U178: 1425 | V178: 77 | W178: 1348 | X178: -534 | Y178: 302
A179: 2018 | B179: 46 | C179: 17 | D179: 1 | E179: 178 | F179: 公共 | G179: 202088 | H179: 長野県 | I179: 小諸市 | J179: 901 | K179: 363 | L179: 315 | M179: 866 | N179: 144 | O179: 532 | P179: 18 | Q179: 35 | R179: 470 | S179: 265 | T179: 108 | U179: 774 | V179: 138 | W179: 637 | X179: -304 | Y179: 35
A180: 2018 | B180: 46 | C180: 17 | D180: 1 | E180: 179 | F180: 公共 | G180: 202096 | H180: 長野県 | I180: 伊那市 | J180: 1432 | K180: 675 | L180: 380 | M180: 1232 | N180: 215 | O180: 727 | P180: 53 | Q180: 199 | R180: 1121 | S180: 896 | T180: 174 | U180: 1630 | V180: 153 | W180: 1478 | X180: -510 | Y180: 199
A181: 2018 | B181: 46 | C181: 17 | D181: 1 | E181: 180 | F181: 公共 | G181: 202100 | H181: 長野県 | I181: 駒ケ根市 | J181: 1035 | K181: 389 | L181: 398 | M181: 834 | N181: 120 | O181: 490 | P181: 30 | Q181: 202 | R181: 336 | S181: 271 | T181: 0 | U181: 725 | V181: 139 | W181: 586 | X181: -389 | Y181: 202
A182: 2018 | B182: 46 | C182: 17 | D182: 1 | E182: 181 | F182: 公共 | G182: 202118 | H182: 長野県 | I182: 中野市 | J182: 1285 | K182: 438 | L182: 453 | M182: 989 | N182: 120 | O182: 588 | P182: 41 | Q182: 295 | R182: 518 | S182: 293 | T182: 0 | U182: 897 | V182: 210 | W182: 687 | X182: -379 | Y182: 295
A183: 2018 | B183: 46 | C183: 17 | D183: 1 | E183: 182 | F183: 公共 | G183: 202126 | H183: 長野県 | I183: 大町市 | J183: 668 | K183: 253 | L183: 276 | M183: 648 | N183: 126 | O183: 337 | P183: 47 | Q183: 20 | R183: 357 | S183: 171 | T183: 85 | U183: 573 | V183: 133 | W183: 440 | X183: -216 | Y183: 20
A184: 2018 | B184: 46 | C184: 17 | D184: 1 | E184: 183 | F184: 公共 | G184: 202142 | H184: 長野県 | I184: 茅野市 | J184: 2029 | K184: 1158 | L184: 618 | M184: 1617 | N184: 161 | O184: 917 | P184: 33 | Q184: 412 | R184: 433 | S184: 204 | T184: 38 | U184: 1553 | V184: 470 | W184: 1083 | X184: -1120 | Y184: 412
A185: 2018 | B185: 46 | C185: 17 | D185: 1 | E185: 184 | F185: 公共 | G185: 202151 | H185: 長野県 | I185: 塩尻市 | J185: 2172 | K185: 1262 | L185: 259 | M185: 2057 | N185: 276 | O185: 1204 | P185: 64 | Q185: 115 | R185: 1251 | S185: 703 | T185: 285 | U185: 1996 | V185: 802 | W185: 1194 | X185: -744 | Y185: 115
A186: 2018 | B186: 46 | C186: 17 | D186: 1 | E186: 185 | F186: 公共 | G186: 202177 | H186: 長野県 | I186: 佐久市 | J186: 2556 | K186: 1584 | L186: 375 | M186: 2374 | N186: 322 | O186: 1217 | P186: 86 | Q186: 182 | R186: 929 | S186: 217 | T186: 0 | U186: 1722 | V186: 468 | W186: 1254 | X186: -793 | Y186: 182
A187: 2018 | B187: 46 | C187: 17 | D187: 1 | E187: 186 | F187: 公共 | G187: 202185 | H187: 長野県 | I187: 千曲市 | J187: 2740 | K187: 966 | L187: 1240 | M187: 2321 | N187: 517 | O187: 1285 | P187: 42 | Q187: 419 | R187: 971 | S187: 464 | T187: 222 | U187: 2127 | V187: 548 | W187: 1579 | X187: -1156 | Y187: 419
A188: 2018 | B188: 46 | C188: 17 | D188: 1 | E188: 187 | F188: 公共 | G188: 202193 | H188: 長野県 | I188: 東御市 | J188: 890 | K188: 297 | L188: 413 | M188: 791 | N188: 138 | O188: 442 | P188: 58 | Q188: 99 | R188: 673 | S188: 93 | T188: 46 | U188: 1033 | V188: 414 | W188: 619 | X188: -360 | Y188: 99
A189: 2018 | B189: 46 | C189: 17 | D189: 1 | E189: 188 | F189: 公共 | G189: 202207 | H189: 長野県 | I189: 安曇野市 | J189: 3780 | K189: 1435 | L189: 1570 | M189: 3162 | N189: 547 | O189: 1625 | P189: 72 | Q189: 618 | R189: 646 | S189: 386 | T189: 194 | U189: 2019 | V189: 84 | W189: 1935 | X189: -1373 | Y189: 618
A190: 2018 | B190: 46 | C190: 17 | D190: 1 | E190: 189 | F190: 公共 | G190: 203611 | H190: 長野県 | I190: 下諏訪町 | J190: 559 | K190: 421 | L190: 39 | M190: 566 | N190: 38 | O190: 278 | P190: 21 | Q190: -7 | R190: 508 | S190: 240 | T190: 61 | U190: 659 | V190: 450 | W190: 208 | X190: -151 | Y190: -7
A191: 2018 | B191: 46 | C191: 17 | D191: 1 | E191: 190 | F191: 公共 | G191: 203629 | H191: 長野県 | I191: 富士見町 | J191: 1195 | K191: 531 | L191: 429 | M191: 920 | N191: 134 | O191: 439 | P191: 22 | Q191: 275 | R191: 96 | S191: 0 | T191: 0 | U191: 631 | V191: 20 | W191: 605 | X191: -535 | Y191: 275
A192: 2018 | B192: 46 | C192: 17 | D192: 1 | E192: 191 | F192: 公共 | G192: 203831 | H192: 長野県 | I192: 箕輪町 | J192: 575 | K192: 245 | L192: 169 | M192: 574 | N192: 111 | O192: 357 | P192: 9 | Q192: 1 | R192: 411 | S192: 227 | T192: 140 | U192: 643 | V192: 119 | W192: 524 | X192: -232 | Y192: 1
A193: 2018 | B193: 46 | C193: 17 | D193: 1 | E193: 192 | F193: 公共 | G193: 203858 | H193: 長野県 | I193: 南箕輪村 | J193: 620 | K193: 269 | L193: 162 | M193: 606 | N193: 116 | O193: 372 | P193: 20 | Q193: 14 | R193: 215 | S193: 24 | T193: 148 | U193: 448 | V193: 59 | W193: 388 | X193: -233 | Y193: 14
A194: 2018 | B194: 46 | C194: 17 | D194: 1 | E194: 193 | F194: 公共 | G194: 203882 | H194: 長野県 | I194: 宮田村 | J194: 171 | K194: 115 | L194: 0 | M194: 218 | N194: 27 | O194: 114 | P194: 11 | Q194: -47 | R194: 185 | S194: 0 | T194: 0 | U194: 188 | V194: 22 | W194: 166 | X194: -2 | Y194: -47
A195: 2018 | B195: 46 | C195: 17 | D195: 1 | E195: 194 | F195: 公共 | G195: 212016 | H195: 岐阜県 | I195: 岐阜市 | J195: 8370 | K195: 5406 | L195: 1393 | M195: 7762 | N195: 1093 | O195: 3587 | P195: 633 | Q195: 608 | R195: 4089 | S195: 2716 | T195: 423 | U195: 7143 | V195: 3036 | W195: 4107 | X195: -3054 | Y195: 608
A196: 2018 | B196: 46 | C196: 17 | D196: 1 | E196: 195 | F196: 公共 | G196: 212083 | H196: 岐阜県 | I196: 瑞浪市 | J196: 985 | K196: 479 | L196: 190 | M196: 984 | N196: 109 | O196: 598 | P196: 90 | Q196: 1 | R196: 243 | S196: 32 | T196: 6 | U196: 534 | V196: 65 | W196: 470 | X196: -291 | Y196: 1
A197: 2018 | B197: 46 | C197: 17 | D197: 1 | E197: 196 | F197: 公共 | G197: 212113 | H197: 岐阜県 | I197: 美濃加茂市 | J197: 1840 | K197: 640 | L197: 687 | M197: 1742 | N197: 299 | O197: 930 | P197: 38 | Q197: 98 | R197: 1027 | S197: 731 | T197: 154 | U197: 1549 | V197: 277 | W197: 1272 | X197: -522 | Y197: 98
A198: 2018 | B198: 46 | C198: 17 | D198: 1 | E198: 197 | F198: 公共 | G198: 212148 | H198: 岐阜県 | I198: 可児市 | J198: 2786 | K198: 1280 | L198: 991 | M198: 2271 | N198: 337 | O198: 1155 | P198: 58 | Q198: 515 | R198: 821 | S198: 264 | T198: 0 | U198: 2029 | V198: 390 | W198: 1639 | X198: -1209 | Y198: 515
A199: 2018 | B199: 46 | C199: 17 | D199: 1 | E199: 198 | F199: 公共 | G199: 221007 | H199: 静岡県 | I199: 静岡市 | J199: 21411 | K199: 9617 | L199: 7182 | M199: 19922 | N199: 2649 | O199: 11111 | P199: 917 | Q199: 1488 | R199: 11811 | S199: 8532 | T199: 0 | U199: 19609 | V199: 8733 | W199: 10875 | X199: -7798 | Y199: 1488
A200: 2018 | B200: 46 | C200: 17 | D200: 1 | E200: 199 | F200: 公共 | G200: 221309 | H200: 静岡県 | I200: 浜松市 | J200: 19123 | K200: 9064 | L200: 4564 | M200: 16552 | N200: 2505 | O200: 11367 | P200: 361 | Q200: 2571 | R200: 8953 | S200: 5798 | T200: 0 | U200: 16381 | V200: 5522 | W200: 10859 | X200: -7428 | Y200: 2571
... 3440 more rows

Sheet R1公共
A13: 団体 コード | B13: 都道府県名 | C13: 団体名 | D13: 事業 コード | E13: 類型区分 | F13: 処理区域内人口別区分 | G13: 有収水量密度別 区分 | H13: 供用開始後年数別区分 | I13: 処理区域内 人口 | J13: 有収水量 密度 | K13: 供用開始 後年 | L13: 事業別 普及率 | M13: 進捗率 | N13: 一般家庭使用料 （1ヶ月20m3あたり） | O13: 処理区域内 人口密度 | P13: 施設利用率 | Q13: 有収率 | R13: 水洗化率 | S13: 使用料単価 | T13: 汚水処理原価 | U13: 汚水処理原価（分流式下水道等に要する経費控除前） | V13: 汚水処理原価（維持管理費） | W13: 汚水処理原価（資本費） | X13: 経費回収率 | Y13: 経費回収率 （分流式下水道等に要する経費控除前） | Z13: 経費回収率 （維持管理費） | AA13: 処理区域１人 あたりの管理運営費（汚水分） | AB13: 処理区域１人 あたりの維持管理費（汚水分） | AC13: 処理区域１人 あたりの資本費（汚水分） | AD13: 職員1人あたりの処理区域内人口 | AE13: 職員給与費 対営業収益比率 | AF13: 総収支比率 | AG13: 経常収支比率 | AH13: 事業別 資金不足比率 | AI13: 利子負担率 | AJ13: 自己資本 構成比率 | AK13: 固定資産対 長期資本比率 | AL13: 処理区域内人口 1人あたり企業債（地方債）残高
I14: 人 | J14: 千㎥/ｈa | K14: 年 | L14: ％ | M14: ％ | N14: 円/月 | O14: 人/ha | P14: ％ | Q14: ％ | R14: ％ | S14: 円/m3 | T14: 円/m3 | U14: 円/m3 | V14: 円/m3 | W14: 円/m3 | X14: ％ | Y14: ％ | Z14: ％ | AA14: 円/人 | AB14: 円/人 | AC14: 円/人 | AD14: 人/人 | AE14: ％ | AF14: ％ | AG14: ％ | AH14: ％ | AI14: ％ | AJ14: ％ | AK14: ％ | AL14: 千円/人
A16: 011002 | B16: 北海道 | C16: 札幌市 | D16: 1171 | E16: 政令市等 | F16: 政令市等 | G16: 政令市等 | H16: 政令市等 | I16: 1944569 | J16: 8.4 | K16: 59 | L16: 99.3 | M16: 104.8 | N16: 1371 | O16: 79 | P16: 64.1 | Q16: 74.7 | R16: 99.9 | S16: 93.5 | T16: 97.16 | U16: 97.16 | V16: 55.9 | W16: 41.26 | X16: 96.2 | Y16: 96.2 | Z16: 167.3 | AA16: 10234 | AB16: 5888 | AC16: 4346 | AD16: 4068 | AE16: 8 | AF16: 105.3 | AG16: 105.3 | AH16: 0 | AI16: 1.4 | AJ16: 57.7 | AK16: 101.6 | AL16: 121
A17: 041009 | B17: 宮城県 | C17: 仙台市 | D17: 1171 | E17: 政令市等 | F17: 政令市等 | G17: 政令市等 | H17: 政令市等 | I17: 1044565 | J17: 6.4 | K17: 56 | L17: 98.4 | M17: 106.9 | N17: 1917 | O17: 61 | P17: 75.7 | Q17: 84.1 | R17: 99.7 | S17: 148.35 | T17: 119.85 | U17: 119.85 | V17: 55.47 | W17: 64.37 | X17: 123.8 | Y17: 123.8 | Z17: 267.4 | AA17: 12485 | AB17: 5779 | AC17: 6706 | AD17: 4542 | AE17: 5 | AF17: 110.8 | AG17: 111 | AH17: 0 | AI17: 1.6 | AJ17: 68.8 | AK17: 101.4 | AL17: 174
A18: 111007 | B18: 埼玉県 | C18: さいたま市 | D18: 1171 | E18: 政令市等 | F18: 政令市等 | G18: 政令市等 | H18: 政令市等 | I18: 1234646 | J18: 9.5 | K18: 55 | L18: 93.6 | M18: 111.8 | N18: 2459 | O18: 100 | P18: 51 | Q18: 81.5 | R18: 97.3 | S18: 144.83 | T18: 137.4 | U18: 137.4 | V18: 59.06 | W18: 78.34 | X18: 105.4 | Y18: 105.4 | Z18: 245.2 | AA18: 13036 | AB18: 5603 | AC18: 7432 | AD18: 8882 | AE18: 2.8 | AF18: 104 | AG18: 104 | AH18: 0 | AI18: 1.5 | AJ18: 55.9 | AK18: 101.4 | AL18: 146
A19: 121002 | B19: 千葉県 | C19: 千葉市 | D19: 1171 | E19: 政令市等 | F19: 政令市等 | G19: 政令市等 | H19: 政令市等 | I19: 877594 | J19: 8.4 | K19: 57 | L19: 90.2 | M19: 96.5 | N19: 1998 | O19: 77 | P19: 59.2 | Q19: 81.4 | R19: 99.8 | S19: 138.97 | T19: 126.2 | U19: 126.2 | V19: 62.47 | W19: 63.73 | X19: 110.1 | Y19: 110.1 | Z19: 222.4 | AA19: 13699 | AB19: 6781 | AC19: 6918 | AD19: 6094 | AE19: 4 | AF19: 104.5 | AG19: 104.5 | AH19: 0 | AI19: 1.7 | AJ19: 51.4 | AK19: 103.5 | AL19: 238
A20: 130001 | B20: 東京都 | C20: 東京都 | D20: 1171 | E20: 政令市等 | F20: 政令市等 | G20: 政令市等 | H20: 政令市等 | I20: 9590025 | J20: 21.7 | K20: 68 | L20: 99.9 | M20: 110.3 | N20: 2068 | O20: 171 | P20: 55.8 | Q20: 94.9 | R20: 100 | S20: 129.62 | T20: 117.31 | U20: 117.31 | V20: 69.23 | W20: 48.08 | X20: 110.5 | Y20: 110.5 | Z20: 187.2 | AA20: 14945 | AB20: 8820 | AC20: 6125 | AD20: 4247 | AE20: 4.7 | AF20: 108.5 | AG20: 108.5 | AH20: 0 | AI20: 1.4 | AJ20: 73.3 | AK20: 101.1 | AL20: 135
A21: 141003 | B21: 神奈川県 | C21: 横浜市 | D21: 1171 | E21: 政令市等 | F21: 政令市等 | G21: 政令市等 | H21: 政令市等 | I21: 3759862 | J21: 12 | K21: 58 | L21: 100 | M21: 101.6 | N21: 2035 | O21: 120 | P21: 62.5 | Q21: 68.9 | R21: 99.7 | S21: 146.37 | T21: 110.43 | U21: 110.43 | V21: 55.02 | W21: 55.41 | X21: 132.6 | Y21: 132.6 | Z21: 266.1 | AA21: 11123 | AB21: 5541 | AC21: 5581 | AD21: 4519 | AE21: 6 | AF21: 114.6 | AG21: 114.6 | AH21: 0 | AI21: 1.2 | AJ21: 66 | AK21: 101 | AL21: 177
A22: 141305 | B22: 神奈川県 | C22: 川崎市 | D22: 1171 | E22: 政令市等 | F22: 政令市等 | G22: 政令市等 | H22: 政令市等 | I22: 1527586 | J22: 14.1 | K22: 89 | L22: 99.5 | M22: 104.2 | N22: 2156 | O22: 143 | P22: 49.8 | Q22: 84.3 | R22: 98.2 | S22: 148.5 | T22: 121.25 | U22: 121.25 | V22: 52.06 | W22: 69.19 | X22: 122.5 | Y22: 122.5 | Z22: 285.2 | AA22: 11993 | AB22: 5149 | AC22: 6843 | AD22: 3753 | AE22: 8 | AF22: 112.3 | AG22: 112.1 | AH22: 0 | AI22: 1.2 | AJ22: 52.7 | AK22: 102.9 | AL22: 198
A23: 141500 | B23: 神奈川県 | C23: 相模原市 | D23: 1171 | E23: 政令市等 | F23: 政令市等 | G23: 政令市等 | H23: 政令市等 | I23: 695457 | J23: 9.5 | K23: 52 | L23: 96.9 | M23: 100.1 | N23: 2036 | O23: 90 | P23: 0 | Q23: 89.5 | R23: 99.1 | S23: 117.98 | T23: 110.16 | U23: 138 | V23: 48.29 | W23: 61.87 | X23: 107.1 | Y23: 85.5 | Z23: 244.3 | AA23: 11624 | AB23: 5096 | AC23: 6528 | AD23: 7170 | AE23: 3.9 | AF23: 107.6 | AG23: 107.6 | AH23: 0 | AI23: 2 | AJ23: 66.4 | AK23: 101.4 | AL23: 115
A24: 151009 | B24: 新潟県 | C24: 新潟市 | D24: 1171 | E24: 政令市等 | F24: 政令市等 | G24: 政令市等 | H24: 政令市等 | I24: 657188 | J24: 5.8 | K24: 53 | L24: 83.6 | M24: 99.7 | N24: 3047 | O24: 55 | P24: 86.3 | Q24: 68.7 | R24: 91.9 | S24: 171.58 | T24: 179.37 | U24: 190.89 | V24: 60.84 | W24: 118.53 | X24: 95.7 | Y24: 89.9 | Z24: 282 | AA24: 18807 | AB24: 6379 | AC24: 12428 | AD24: 3441 | AE24: 4.8 | AF24: 99.8 | AG24: 102.1 | AH24: 0 | AI24: 1.6 | AJ24: 45.3 | AK24: 103.7 | AL24: 457
A25: 221007 | B25: 静岡県 | C25: 静岡市 | D25: 1171 | E25: 政令市等 | F25: 政令市等 | G25: 政令市等 | H25: 政令市等 | I25: 588248 | J25: 7.1 | K25: 60 | L25: 84.5 | M25: 100.8 | N25: 2770 | O25: 66 | P25: 68.7 | Q25: 49.6 | R25: 90.3 | S25: 151.03 | T25: 151.03 | U25: 177.32 | V25: 70.32 | W25: 80.71 | X25: 100 | Y25: 85.2 | Z25: 214.8 | AA25: 16336 | AB25: 7606 | AC25: 8730 | AD25: 3080 | AE25: 6.4 | AF25: 105.5 | AG25: 105.5 | AH25: 0 | AI25: 1.7 | AJ25: 59.7 | AK25: 99.6 | AL25: 247
A26: 221309 | B26: 静岡県 | C26: 浜松市 | D26: 1171 | E26: 政令市等 | F26: 政令市等 | G26: 政令市等 | H26: 政令市等 | I26: 577850 | J26: 5.7 | K26: 54 | L26: 72.2 | M26: 91.5 | N26: 2948 | O26: 49 | P26: 70.7 | Q26: 83.6 | R26: 97.6 | S26: 133.5 | T26: 119.84 | U26: 119.84 | V26: 26.3 | W26: 93.54 | X26: 111.4 | Y26: 111.4 | Z26: 507.5 | AA26: 13747 | AB26: 3017 | AC26: 10730 | AD26: 6642 | AE26: 3.7 | AF26: 116.6 | AG26: 116.1 | AH26: 0 | AI26: 2 | AJ26: 59.6 | AK26: 101.8 | AL26: 199
A27: 231002 | B27: 愛知県 | C27: 名古屋市 | D27: 1171 | E27: 政令市等 | F27: 政令市等 | G27: 政令市等 | H27: 政令市等 | I27: 2281700 | J27: 9.1 | K27: 108 | L27: 99.3 | M27: 100.1 | N27: 1804 | O27: 80 | P27: 54 | Q27: 65.9 | R27: 99.8 | S27: 120.05 | T27: 118.25 | U27: 118.25 | V27: 59.71 | W27: 58.54 | X27: 101.5 | Y27: 101.5 | Z27: 201.1 | AA27: 13361 | AB27: 6746 | AC27: 6615 | AD27: 2443 | AE27: 10 | AF27: 103.1 | AG27: 103.1 | AH27: 0 | AI27: 1.4 | AJ27: 56.5 | AK27: 99.8 | AL27: 194
A28: 261009 | B28: 京都府 | C28: 京都市 | D28: 1171 | E28: 政令市等 | F28: 政令市等 | G28: 政令市等 | H28: 政令市等 | I28: 1394900 | J28: 11.6 | K28: 86 | L28: 99.2 | M28: 106.2 | N28: 2013 | O28: 92 | P28: 56.7 | Q28: 59.5 | R28: 99.3 | S28: 121.41 | T28: 102.36 | U28: 102.36 | V28: 47.83 | W28: 54.52 | X28: 118.6 | Y28: 118.6 | Z28: 253.8 | AA28: 13005 | AB28: 6077 | AC28: 6927 | AD28: 2768 | AE28: 8.6 | AF28: 110.3 | AG28: 110.3 | AH28: 0 | AI28: 1.5 | AJ28: 59.4 | AK28: 102.8 | AL28: 192
A29: 271004 | B29: 大阪府 | C29: 大阪市 | D29: 1171 | E29: 政令市等 | F29: 政令市等 | G29: 政令市等 | H29: 政令市等 | I29: 2733975 | J29: 21.4 | K29: 80 | L29: 100 | M29: 99.5 | N29: 1276 | O29: 144 | P29: 55 | Q29: 74.4 | R29: 100 | S29: 93.74 | T29: 90.24 | U29: 90.24 | V29: 53.81 | W29: 36.43 | X29: 103.9 | Y29: 103.9 | Z29: 174.2 | AA29: 13463 | AB29: 8028 | AC29: 5435 | AD29: 7291 | AE29: 3.2 | AF29: 106.5 | AG29: 106.4 | AH29: 0 | AI29: 1.3 | AJ29: 58.4 | AK29: 99.9 | AL29: 163
A30: 271403 | B30: 大阪府 | C30: 堺市 | D30: 1171 | E30: 政令市等 | F30: 政令市等 | G30: 政令市等 | H30: 政令市等 | I30: 820528 | J30: 8.1 | K30: 60 | L30: 98.4 | M30: 102.6 | N30: 2821 | O30: 81 | P30: 65.7 | Q30: 83.9 | R30: 95.4 | S30: 177.03 | T30: 155.35 | U30: 155.35 | V30: 58.99 | W30: 96.36 | X30: 114 | Y30: 114 | Z30: 300.1 | AA30: 15585 | AB30: 5918 | AC30: 9667 | AD30: 3781 | AE30: 7.2 | AF30: 102 | AG30: 107.4 | AH30: 0 | AI30: 1.7 | AJ30: 48 | AK30: 102.2 | AL30: 301
A31: 281000 | B31: 兵庫県 | C31: 神戸市 | D31: 1171 | E31: 政令市等 | F31: 政令市等 | G31: 政令市等 | H31: 政令市等 | I31: 1494060 | J31: 9.9 | K31: 62 | L31: 97.7 | M31: 99.3 | N31: 1595 | O31: 88 | P31: 70 | Q31: 94.9 | R31: 99.9 | S31: 109.55 | T31: 115.84 | U31: 115.84 | V31: 48.45 | W31: 67.39 | X31: 94.6 | Y31: 94.6 | Z31: 226.1 | AA31: 13107 | AB31: 5482 | AC31: 7626 | AD31: 4555 | AE31: 10.4 | AF31: 99.9 | AG31: 100.7 | AH31: 0 | AI31: 1.6 | AJ31: 75.9 | AK31: 97.4 | AL31: 93
A32: 331007 | B32: 岡山県 | C32: 岡山市 | D32: 1171 | E32: 政令市等 | F32: 政令市等 | G32: 政令市等 | H32: 政令市等 | I32: 471145 | J32: 6.8 | K32: 58 | L32: 66.5 | M32: 84.1 | N32: 3011 | O32: 62 | P32: 222.7 | Q32: 86.8 | R32: 89.6 | S32: 182.45 | T32: 183.48 | U32: 211.67 | V32: 67.82 | W32: 115.66 | X32: 99.4 | Y32: 86.2 | Z32: 269 | AA32: 19975 | AB32: 7383 | AC32: 12591 | AD32: 3769 | AE32: 4.2 | AF32: 100 | AG32: 100 | AH32: 0 | AI32: 1.7 | AJ32: 41.1 | AK32: 105.5 | AL32: 421
A33: 341002 | B33: 広島県 | C33: 広島市 | D33: 1171 | E33: 政令市等 | F33: 政令市等 | G33: 政令市等 | H33: 政令市等 | I33: 1129910 | J33: 8.3 | K33: 59 | L33: 94.6 | M33: 106.5 | N33: 2260 | O33: 80 | P33: 63 | Q33: 85 | R33: 98 | S33: 166.32 | T33: 151.47 | U33: 151.47 | V33: 52.35 | W33: 99.12 | X33: 109.8 | Y33: 109.8 | Z33: 317.7 | AA33: 15682 | AB33: 5420 | AC33: 10262 | AD33: 2958 | AE33: 7.7 | AF33: 103.3 | AG33: 103.5 | AH33: 0 | AI33: 1.6 | AJ33: 48.2 | AK33: 105.5 | AL33: 351
A34: 401005 | B34: 福岡県 | C34: 北九州市 | D34: 1171 | E34: 政令市等 | F34: 政令市等 | G34: 政令市等 | H34: 政令市等 | I34: 933438 | J34: 5.9 | K34: 57 | L34: 98.6 | M34: 73.2 | N34: 2207 | O34: 59 | P34: 77 | Q34: 76 | R34: 99.7 | S34: 145.75 | T34: 134.88 | U34: 134.88 | V34: 61.66 | W34: 73.21 | X34: 108.1 | Y34: 108.1 | Z34: 236.4 | AA34: 13543 | AB34: 6192 | AC34: 7351 | AD34: 6223 | AE34: 4.8 | AF34: 106.1 | AG34: 106.2 | AH34: 0 | AI34: 1.4 | AJ34: 65.1 | AK34: 101.3 | AL34: 151
A35: 401307 | B35: 福岡県 | C35: 福岡市 | D35: 1171 | E35: 政令市等 | F35: 政令市等 | G35: 政令市等 | H35: 政令市等 | I35: 1550750 | J35: 9.2 | K35: 58 | L35: 99.7 | M35: 96.9 | N35: 2602 | O35: 91 | P35: 58.7 | Q35: 82.8 | R35: 99.7 | S35: 178.74 | T35: 134.29 | U35: 134.29 | V35: 61.65 | W35: 72.63 | X35: 133.1 | Y35: 133.1 | Z35: 289.9 | AA35: 13615 | AB35: 6251 | AC35: 7364 | AD35: 5660 | AE35: 2.6 | AF35: 117.2 | AG35: 117.3 | AH35: 0 | AI35: 1.6 | AJ35: 53.7 | AK35: 101.6 | AL35: 228
A36: 431001 | B36: 熊本県 | C36: 熊本市 | D36: 1171 | E36: 政令市等 | F36: 政令市等 | G36: 政令市等 | H36: 政令市等 | I36: 657885 | J36: 6 | K36: 60 | L36: 89.9 | M36: 98.7 | N36: 2346 | O36: 55 | P36: 69.3 | Q36: 84.1 | R36: 97.3 | S36: 144.75 | T36: 150 | U36: 154.27 | V36: 62.75 | W36: 87.25 | X36: 96.5 | Y36: 93.8 | Z36: 230.7 | AA36: 16371 | AB36: 6848 | AC36: 9522 | AD36: 4086 | AE36: 8.1 | AF36: 111.9 | AG36: 111.5 | AH36: 1 | AI36: 1.6 | AJ36: 52.4 | AK36: 99.1 | AL36: 204
B37: 団体数 | C37: 21 | E37: 政令市等 計 | M37: 102.5 | N37: 2226 | O37: 100 | P37: 59.8 | Q37: 79.8 | R37: 99 | S37: 131.9 | T37: 118.97 | U37: 120.49 | V37: 59.5 | W37: 59.47 | X37: 110.9 | Y37: 109.5 | Z37: 221.7 | AA37: 13679 | AB37: 6841 | AC37: 6838 | AD37: 4229 | AE37: 5.8 | AF37: 108 | AG37: 108.2 | AH37: 0 | AI37: 1.5 | AJ37: 62.6 | AK37: 101.4 | AL37: 180
A38: 112011 | B38: 埼玉県 | C38: 川越市 | D38: 1171 | E38: Aa1 | F38: A | G38: a | H38: 1 | I38: 311413 | J38: 8.7 | K38: 56 | L38: 88.1 | M38: 100.2 | N38: 1595 | O38: 82 | P38: 0 | Q38: 65.7 | R38: 98.1 | S38: 97.53 | T38: 112.19 | U38: 112.19 | V38: 58.47 | W38: 53.72 | X38: 86.9 | Y38: 86.9 | Z38: 166.8 | AA38: 11835 | AB38: 6168 | AC38: 5666 | AD38: 4718 | AE38: 9.2 | AF38: 100.3 | AG38: 100.2 | AH38: 0.4 | AI38: 2 | AJ38: 79.4 | AK38: 95.3 | AL38: 52
A39: 112038 | B39: 埼玉県 | C39: 川口市 | D39: 1171 | E39: Aa1 | F39: A | G39: a | H39: 1 | I39: 532753 | J39: 12.1 | K39: 61 | L39: 87.6 | M39: 104.8 | N39: 1998 | O39: 125 | P39: 0 | Q39: 91.9 | R39: 94.7 | S39: 113.71 | T39: 125.9 | U39: 125.9 | V39: 58.27 | W39: 67.63 | X39: 90.3 | Y39: 90.3 | Z39: 195.1 | AA39: 12204 | AB39: 5648 | AC39: 6555 | AD39: 6659 | AE39: 7 | AF39: 108.2 | AG39: 116.7 | AH39: 0 | AI39: 1.6 | AJ39: 60 | AK39: 101.2 | AL39: 102
A40: 112089 | B40: 埼玉県 | C40: 所沢市 | D40: 1171 | E40: Aa1 | F40: A | G40: a | H40: 1 | I40: 324981 | J40: 10 | K40: 52 | L40: 94.4 | M40: 102.1 | N40: 1639 | O40: 99 | P40: 0 | Q40: 95.8 | R40: 98.4 | S40: 98.71 | T40: 99.39 | U40: 99.39 | V40: 49.18 | W40: 50.21 | X40: 99.3 | Y40: 99.3 | Z40: 200.7 | AA40: 9987 | AB40: 4942 | AC40: 5045 | AD40: 4779 | AE40: 7.9 | AF40: 105.3 | AG40: 104.9 | AH40: 0 | AI40: 1.8 | AJ40: 77.1 | AK40: 98.2 | AL40: 59
A41: 112143 | B41: 埼玉県 | C41: 春日部市 | D41: 1171 | E41: Aa1 | F41: A | G41: a | H41: 1 | I41: 208783 | J41: 8.6 | K41: 33 | L41: 89.3 | M41: 95.6 | N41: 2376 | O41: 92 | P41: 0 | Q41: 86.5 | R41: 96.7 | S41: 125.88 | T41: 149.45 | U41: 149.45 | V41: 59.87 | W41: 89.58 | X41: 84.2 | Y41: 84.2 | Z41: 210.2 | AA41: 13932 | AB41: 5581 | AC41: 8351 | AD41: 14913 | AE41: 3 | AF41: 107.7 | AG41: 107.7 | AH41: 0 | AI41: 1.6 | AJ41: 45 | AK41: 103.4 | AL41: 171
A42: 112151 | B42: 埼玉県 | C42: 狭山市 | D42: 1171 | E42: Aa1 | F42: A | G42: a | H42: 1 | I42: 145210 | J42: 8.2 | K42: 46 | L42: 96.6 | M42: 98.3 | N42: 1727 | O42: 74 | P42: 0 | Q42: 77.5 | R42: 98.7 | S42: 106.51 | T42: 109.23 | U42: 109.23 | V42: 42.64 | W42: 66.59 | X42: 97.5 | Y42: 97.5 | Z42: 249.8 | AA42: 12142 | AB42: 4740 | AC42: 7402 | AD42: 6050 | AE42: 4.5 | AF42: 110.9 | AG42: 110.9 | AH42: 0 | AI42: 2.2 | AJ42: 77.3 | AK42: 98 | AL42: 81
A43: 112241 | B43: 埼玉県 | C43: 戸田市 | D43: 1171 | E43: Aa1 | F43: A | G43: a | H43: 1 | I43: 129405 | J43: 12.2 | K43: 47 | L43: 92 | M43: 112.7 | N43: 1023 | O43: 106 | P43: 0 | Q43: 78.2 | R43: 98.3 | S43: 87.9 | T43: 77.94 | U43: 77.94 | V43: 56.44 | W43: 21.5 | X43: 112.8 | Y43: 112.8 | Z43: 155.7 | AA43: 8976 | AB43: 6500 | AC43: 2476 | AD43: 10784 | AE43: 3.8 | AF43: 109.4 | AG43: 110 | AH43: 0 | AI43: 1.6 | AJ43: 57.3 | AK43: 99.7 | AL43: 71
A44: 112259 | B44: 埼玉県 | C44: 入間市 | D44: 1171 | E44: Aa1 | F44: A | G44: a | H44: 1 | I44: 130672 | J44: 8.4 | K44: 34 | L44: 88.6 | M44: 92.7 | N44: 1815 | O44: 83 | P44: 0 | Q44: 80 | R44: 97.5 | S44: 101.91 | T44: 110.75 | U44: 110.75 | V44: 45.51 | W44: 65.24 | X44: 92 | Y44: 92 | Z44: 223.9 | AA44: 11238 | AB44: 4618 | AC44: 6620 | AD44: 11879 | AE44: 3.5 | AF44: 108.4 | AG44: 108.4 | AH44: 0 | AI44: 2.4 | AJ44: 79.9 | AK44: 99.5 | AL44: 49
A45: 112356 | B45: 埼玉県 | C45: 富士見市 | D45: 1171 | E45: Aa1 | F45: A | G45: a | H45: 1 | I45: 105764 | J45: 11.8 | K45: 38 | L45: 94.5 | M45: 107 | N45: 1650 | O45: 126 | P45: 0 | Q45: 81.2 | R45: 99.7 | S45: 88.89 | T45: 85.83 | U45: 85.83 | V45: 47.53 | W45: 38.3 | X45: 103.6 | Y45: 103.6 | Z45: 187 | AA45: 8039 | AB45: 4452 | AC45: 3587 | AD45: 13221 | AE45: 2.8 | AF45: 110.1 | AG45: 110.1 | AH45: 0 | AI45: 2.1 | AJ45: 72.7 | AK45: 100.5 | AL45: 52
A46: 112453 | B46: 埼玉県 | C46: ふじみ野市 | D46: 1171 | E46: Aa1 | F46: A | G46: a | H46: 1 | I46: 107515 | J46: 13.5 | K46: 38 | L46: 93.9 | M46: 112.5 | N46: 1367 | O46: 116 | P46: 0 | Q46: 80.7 | R46: 97.3 | S46: 78.51 | T46: 70.65 | U46: 70.65 | V46: 47.39 | W46: 23.26 | X46: 111.1 | Y46: 111.1 | Z46: 165.7 | AA46: 8252 | AB46: 5535 | AC46: 2717 | AD46: 10752 | AE46: 4.8 | AF46: 112.8 | AG46: 112.8 | AH46: 0 | AI46: 1.8 | AJ46: 83.3 | AK46: 93.9 | AL46: 26
A47: 122033 | B47: 千葉県 | C47: 市川市 | D47: 1171 | E47: Aa1 | F47: A | G47: a | H47: 1 | I47: 370200 | J47: 14.2 | K47: 48 | L47: 75.3 | M47: 81.5 | N47: 2563 | O47: 158 | P47: 102 | Q47: 84.5 | R47: 92.7 | S47: 142.01 | T47: 137.57 | U47: 137.57 | V47: 85.07 | W47: 52.49 | X47: 103.2 | Y47: 103.2 | Z47: 166.9 | AA47: 12416 | AB47: 7678 | AC47: 4738 | AD47: 6856 | AE47: 5.5 | AF47: 103.1 | AG47: 103 | AH47: 0.9 | AI47: 1.4 | AJ47: 62.2 | AK47: 100.7 | AL47: 107
A48: 122041 | B48: 千葉県 | C48: 船橋市 | D48: 1171 | E48: Aa1 | F48: A | G48: a | H48: 1 | I48: 569142 | J48: 10.7 | K48: 59 | L48: 88.4 | M48: 102.4 | N48: 1974 | O48: 116 | P48: 93.3 | Q48: 75.8 | R48: 83.5 | S48: 133.6 | T48: 193.8 | U48: 221.49 | V48: 79.99 | W48: 113.81 | X48: 68.9 | Y48: 60.3 | Z48: 167 | AA48: 17757 | AB48: 7329 | AC48: 10428 | AD48: 6324 | AE48: 3.8 | AF48: 102.2 | AG48: 102.2 | AH48: 0 | AI48: 1.6 | AJ48: 54 | AK48: 104.1 | AL48: 227
A49: 122076 | B49: 千葉県 | C49: 松戸市 | D49: 1171 | E49: Aa1 | F49: A | G49: a | H49: 1 | I49: 431806 | J49: 10.4 | K49: 60 | L49: 86.5 | M49: 90.5 | N49: 2468 | O49: 110 | P49: 1139.3 | Q49: 79.9 | R49: 96 | S49: 152.14 | T49: 152.14 | U49: 187.12 | V49: 76.64 | W49: 75.5 | X49: 100 | Y49: 81.3 | Z49: 198.5 | AA49: 14443 | AB49: 7276 | AC49: 7168 | AD49: 8304 | AE49: 3.8 | AF49: 104.5 | AG49: 104.9 | AH49: 0 | AI49: 2 | AJ49: 65.3 | AK49: 102.1 | AL49: 116
A50: 122165 | B50: 千葉県 | C50: 習志野市 | D50: 1171 | E50: Aa1 | F50: A | G50: a | H50: 1 | I50: 165754 | J50: 11.4 | K50: 53 | L50: 95.2 | M50: 102.3 | N50: 2192 | O50: 109 | P50: 234.1 | Q50: 71.4 | R50: 97.5 | S50: 155.01 | T50: 138.72 | U50: 138.72 | V50: 71.14 | W50: 67.58 | X50: 111.7 | Y50: 111.7 | Z50: 217.9 | AA50: 14487 | AB50: 7429 | AC50: 7058 | AD50: 6139 | AE50: 6 | AF50: 106.3 | AG50: 106.8 | AH50: 5.4 | AI50: 2.1 | AJ50: 71.5 | AK50: 101.8 | AL50: 137
A51: 122173 | B51: 千葉県 | C51: 柏市 | D51: 1171 | E51: Aa1 | F51: A | G51: a | H51: 1 | I51: 383449 | J51: 8.1 | K51: 47 | L51: 90 | M51: 97.8 | N51: 2357 | O51: 83 | P51: 0 | Q51: 79.7 | R51: 91 | S51: 146.76 | T51: 150.6 | U51: 150.6 | V51: 81.9 | W51: 68.7 | X51: 97.5 | Y51: 97.5 | Z51: 179.2 | AA51: 14742 | AB51: 8017 | AC51: 6725 | AD51: 8917 | AE51: 3.5 | AF51: 104.8 | AG51: 104.9 | AH51: 0 | AI51: 2 | AJ51: 74.4 | AK51: 98.5 | AL51: 92
A52: 122203 | B52: 千葉県 | C52: 流山市 | D52: 1171 | E52: Aa1 | F52: A | G52: a | H52: 1 | I52: 178558 | J52: 8.7 | K52: 34 | L52: 90.8 | M52: 107.6 | N52: 2200 | O52: 97 | P52: 0 | Q52: 81.3 | R52: 93 | S52: 122.37 | T52: 123.57 | U52: 128.81 | V52: 71.93 | W52: 51.64 | X52: 99 | Y52: 95 | Z52: 170.1 | AA52: 11058 | AB52: 6436 | AC52: 4622 | AD52: 11160 | AE52: 4.2 | AF52: 109.4 | AG52: 109.4 | AH52: 0 | AI52: 1.8 | AJ52: 67 | AK52: 99.8 | AL52: 97
A53: 122211 | B53: 千葉県 | C53: 八千代市 | D53: 1171 | E53: Aa1 | F53: A | G53: a | H53: 1 | I53: 185057 | J53: 8.6 | K53: 52 | L53: 92.4 | M53: 86.2 | N53: 2101 | O53: 93 | P53: 0 | Q53: 85.2 | R53: 99.2 | S53: 126.24 | T53: 117 | U53: 117 | V53: 76.92 | W53: 40.08 | X53: 107.9 | Y53: 107.9 | Z53: 164.1 | AA53: 10898 | AB53: 7165 | AC53: 3733 | AD53: 8046 | AE53: 5 | AF53: 105.2 | AG53: 105.2 | AH53: 0 | AI53: 1.9 | AJ53: 79.3 | AK53: 97.7 | AL53: 44
A54: 132110 | B54: 東京都 | C54: 小平市 | D54: 1171 | E54: Aa1 | F54: A | G54: a | H54: 1 | I54: 194941 | J54: 9.7 | K54: 45 | L54: 100 | M54: 109.5 | N54: 1655 | O54: 95 | P54: 0 | Q54: 94.3 | R54: 99.8 | S54: 102.13 | T54: 81.23 | U54: 81.23 | V54: 60.21 | W54: 21.01 | X54: 125.7 | Y54: 125.7 | Z54: 169.6 | AA54: 8228 | AB54: 6100 | AC54: 2129 | AD54: 8123 | AE54: 3.2 | AF54: 111.8 | AG54: 112.1 | AH54: 0 | AI54: 1.6 | AJ54: 83.1 | AK54: 99.6 | AL54: 38
A55: 132241 | B55: 東京都 | C55: 多摩市 | D55: 1171 | E55: Aa1 | F55: A | G55: a | H55: 1 | I55: 148822 | J55: 7.8 | K55: 54 | L55: 100 | M55: 105.7 | N55: 2068 | O55: 74 | P55: 0 | Q55: 90.4 | R55: 99.8 | S55: 134.52 | T55: 91.88 | U55: 91.88 | V55: 72.54 | W55: 19.34 | X55: 146.4 | Y55: 146.4 | Z55: 185.4 | AA55: 9743 | AB55: 7693 | AC55: 2050 | AD55: 9921 | AE55: 4.1 | AF55: 120.9 | AG55: 120.9 | AH55: 0 | AI55: 3.3 | AJ55: 97.3 | AK55: 75.3 | AL55: 4
A56: 132292 | B56: 東京都 | C56: 西東京市 | D56: 1171 | E56: Aa1 | F56: A | G56: a | H56: 1 | I56: 205652 | J56: 12.5 | K56: 37 | L56: 100 | M56: 106.4 | N56: 1612 | O56: 130 | P56: 0 | Q56: 90.2 | R56: 97.4 | S56: 102.16 | T56: 86.48 | U56: 86.48 | V56: 56.89 | W56: 29.59 | X56: 118.1 | Y56: 118.1 | Z56: 179.6 | AA56: 8311 | AB56: 5467 | AC56: 2844 | AD56: 20565 | AE56: 3.3 | AF56: 107.5 | AG56: 109.4 | AH56: 3.3 | AI56: 1.8 | AJ56: 79.2 | AK56: 100.7 | AL56: 33
A57: 142034 | B57: 神奈川県 | C57: 平塚市 | D57: 1171 | E57: Aa1 | F57: A | G57: a | H57: 1 | I57: 250554 | J57: 8 | K57: 47 | L57: 97.6 | M57: 99.3 | N57: 2035 | O57: 71 | P57: 0 | Q57: 86 | R57: 97.8 | S57: 117.65 | T57: 98.61 | U57: 130.67 | V57: 57.19 | W57: 41.42 | X57: 119.3 | Y57: 90 | Z57: 205.7 | AA57: 11068 | AB57: 6419 | AC57: 4649 | AD57: 6772 | AE57: 3.3 | AF57: 107.1 | AG57: 107.1 | AH57: 0 | AI57: 2.3 | AJ57: 67.7 | AK57: 101.4 | AL57: 140
A58: 142051 | B58: 神奈川県 | C58: 藤沢市 | D58: 1171 | E58: Aa1 | F58: A | G58: a | H58: 1 | I58: 418087 | J58: 9.2 | K58: 61 | L58: 95.8 | M58: 95.9 | N58: 2203 | O58: 88 | P58: 65.3 | Q58: 76.4 | R58: 98.4 | S58: 131.56 | T58: 131.89 | U58: 150.67 | V58: 88.15 | W58: 43.74 | X58: 99.7 | Y58: 87.3 | Z58: 149.2 | AA58: 13832 | AB58: 9245 | AC58: 4587 | AD58: 5037 | AE58: 5.9 | AF58: 102.7 | AG58: 102.7 | AH58: 0 | AI58: 2.1 | AJ58: 69.1 | AK58: 102.1 | AL58: 114
A59: 142069 | B59: 神奈川県 | C59: 小田原市 | D59: 1171 | E59: Aa1 | F59: A | G59: a | H59: 1 | I59: 157700 | J59: 7.9 | K59: 54 | L59: 83 | M59: 103.1 | N59: 2636 | O59: 62 | P59: 0 | Q59: 61.3 | R59: 93.7 | S59: 168.51 | T59: 173.73 | U59: 221.95 | V59: 88.26 | W59: 85.47 | X59: 97 | Y59: 75.9 | Z59: 190.9 | AA59: 21865 | AB59: 11108 | AC59: 10757 | AD59: 4638 | AE59: 4 | AF59: 104.3 | AG59: 104.2 | AH59: 0 | AI59: 1.9 | AJ59: 55 | AK59: 101.5 | AL59: 254
A60: 142077 | B60: 神奈川県 | C60: 茅ヶ崎市 | D60: 1171 | E60: Aa1 | F60: A | G60: a | H60: 1 | I60: 233182 | J60: 10.6 | K60: 43 | L60: 95.6 | M60: 97.2 | N60: 1878 | O60: 105 | P60: 0 | Q60: 83.9 | R60: 98.6 | S60: 112.73 | T60: 94.76 | U60: 94.76 | V60: 54.23 | W60: 40.53 | X60: 119 | Y60: 119 | Z60: 207.9 | AA60: 9568 | AB60: 5476 | AC60: 4092 | AD60: 7287 | AE60: 3.3 | AF60: 109.5 | AG60: 109.5 | AH60: 0 | AI60: 1.9 | AJ60: 58.1 | AK60: 100.8 | AL60: 128
A61: 142158 | B61: 神奈川県 | C61: 海老名市 | D61: 1171 | E61: Aa1 | F61: A | G61: a | H61: 1 | I61: 129814 | J61: 12.5 | K61: 42 | L61: 96 | M61: 98.1 | N61: 1796 | O61: 99 | P61: 0 | Q61: 86.6 | R61: 98.2 | S61: 107.96 | T61: 94.62 | U61: 94.62 | V61: 52.68 | W61: 41.95 | X61: 114.1 | Y61: 114.1 | Z61: 204.9 | AA61: 12028 | AB61: 6696 | AC61: 5332 | AD61: 7212 | AE61: 4 | AF61: 109.7 | AG61: 109.7 | AH61: 3 | AI61: 1.7 | AJ61: 70.2 | AK61: 101.2 | AL61: 98
A62: 142166 | B62: 神奈川県 | C62: 座間市 | D62: 1171 | E62: Aa1 | F62: A | G62: a | H62: 1 | I62: 128358 | J62: 10.3 | K62: 42 | L62: 97.4 | M62: 108.1 | N62: 2634 | O62: 106 | P62: 0 | Q62: 94.9 | R62: 97.1 | S62: 140.39 | T62: 124.8 | U62: 124.8 | V62: 48.45 | W62: 76.35 | X62: 112.5 | Y62: 112.5 | Z62: 289.8 | AA62: 12137 | AB62: 4712 | AC62: 7425 | AD62: 8557 | AE62: 4 | AF62: 113.3 | AG62: 113.4 | AH62: 0 | AI62: 2.1 | AJ62: 62.6 | AK62: 103.4 | AL62: 111
A63: 222038 | B63: 静岡県 | C63: 沼津市 | D63: 1171 | E63: Aa1 | F63: A | G63: a | H63: 1 | I63: 108795 | J63: 7.5 | K63: 42 | L63: 54.7 | M63: 73.8 | N63: 2600 | O63: 64 | P63: 76.6 | Q63: 55.4 | R63: 88.7 | S63: 130.32 | T63: 179.3 | U63: 218.59 | V63: 93.72 | W63: 85.58 | X63: 72.7 | Y63: 59.6 | Z63: 139 | AA63: 20968 | AB63: 10960 | AC63: 10008 | AD63: 2940 | AE63: 8.5 | AF63: 107.9 | AG63: 107.9 | AH63: 0 | AI63: 1.7 | AJ63: 48.5 | AK63: 102.7 | AL63: 300
A64: 262048 | B64: 京都府 | C64: 宇治市 | D64: 1171 | E64: Aa1 | F64: A | G64: a | H64: 1 | I64: 176656 | J64: 8.7 | K64: 34 | L64: 95.2 | M64: 95.9 | N64: 3082 | O64: 94 | P64: 70.7 | Q64: 86.7 | R64: 87.6 | S64: 163.37 | T64: 182.1 | U64: 203.42 | V64: 74.83 | W64: 107.26 | X64: 89.7 | Y64: 80.3 | Z64: 218.3 | AA64: 16806 | AB64: 6906 | AC64: 9899 | AD64: 3397 | AE64: 7.2 | AF64: 100.3 | AG64: 100.4 | AH64: 0 | AI64: 1.6 | AJ64: 53.5 | AK64: 102.3 | AL64: 241
A65: 272035 | B65: 大阪府 | C65: 豊中市 | D65: 1171 | E65: Aa1 | F65: A | G65: a | H65: 1 | I65: 408491 | J65: 13.1 | K65: 55 | L65: 100 | M65: 84.7 | N65: 1421 | O65: 121 | P65: 67.1 | Q65: 67.9 | R65: 99.9 | S65: 84.12 | T65: 84.45 | U65: 84.45 | V65: 51.74 | W65: 32.71 | X65: 99.6 | Y65: 99.6 | Z65: 162.6 | AA65: 9078 | AB65: 5562 | AC65: 3516 | AD65: 4300 | AE65: 10.7 | AF65: 107.4 | AG65: 107.3 | AH65: 0 | AI65: 1.7 | AJ65: 69.4 | AK65: 97.6 | AL65: 65
A66: 272043 | B66: 大阪府 | C66: 池田市 | D66: 1171 | E66: Aa1 | F66: A | G66: a | H66: 1 | I66: 100076 | J66: 11.5 | K66: 52 | L66: 96.6 | M66: 109.9 | N66: 1353 | O66: 102 | P66: 58.6 | Q66: 64.7 | R66: 99.9 | S66: 92.35 | T66: 84.2 | U66: 84.2 | V66: 58.52 | W66: 25.68 | X66: 109.7 | Y66: 109.7 | Z66: 157.8 | AA66: 9505 | AB66: 6607 | AC66: 2899 | AD66: 3336 | AE66: 11 | AF66: 104.8 | AG66: 104.8 | AH66: 0 | AI66: 1.4 | AJ66: 67 | AK66: 96.1 | AL66: 92
A67: 272051 | B67: 大阪府 | C67: 吹田市 | D67: 1171 | E67: Aa1 | F67: A | G67: a | H67: 1 | I67: 373618 | J67: 12.4 | K67: 58 | L67: 99.9 | M67: 106.2 | N67: 1609 | O67: 107 | P67: 56.5 | Q67: 73.6 | R67: 99.6 | S67: 108.57 | T67: 87.05 | U67: 87.05 | V67: 52.55 | W67: 34.51 | X67: 124.7 | Y67: 124.7 | Z67: 206.6 | AA67: 10050 | AB67: 6067 | AC67: 3984 | AD67: 4151 | AE67: 8.2 | AF67: 112.4 | AG67: 112.4 | AH67: 0 | AI67: 2.1 | AJ67: 62.2 | AK67: 101.1 | AL67: 93
A68: 272078 | B68: 大阪府 | C68: 高槻市 | D68: 1171 | E68: Aa1 | F68: A | G68: a | H68: 1 | I68: 349197 | J68: 11 | K68: 51 | L68: 99.5 | M68: 113.7 | N68: 1965 | O68: 109 | P68: 0 | Q68: 78.7 | R68: 97.9 | S68: 125.81 | T68: 131.94 | U68: 131.94 | V68: 55.31 | W68: 76.64 | X68: 95.3 | Y68: 95.3 | Z68: 227.5 | AA68: 13393 | AB68: 5614 | AC68: 7779 | AD68: 9977 | AE68: 2.3 | AF68: 105.1 | AG68: 105.1 | AH68: 0 | AI68: 2.3 | AJ68: 69.3 | AK68: 102.4 | AL68: 111
A69: 272094 | B69: 大阪府 | C69: 守口市 | D69: 1171 | E69: Aa1 | F69: A | G69: a | H69: 1 | I69: 143785 | J69: 13.9 | K69: 54 | L69: 100 | M69: 101.2 | N69: 2055 | O69: 126 | P69: 56.4 | Q69: 62.5 | R69: 100 | S69: 134.69 | T69: 91.13 | U69: 91.13 | V69: 62.02 | W69: 29.1 | X69: 147.8 | Y69: 147.8 | Z69: 217.2 | AA69: 10112 | AB69: 6883 | AC69: 3229 | AD69: 4229 | AE69: 6.2 | AF69: 119.4 | AG69: 119.3 | AH69: 0 | AI69: 1.6 | AJ69: 63.9 | AK69: 95.2 | AL69: 97
A70: 272108 | B70: 大阪府 | C70: 枚方市 | D70: 1171 | E70: Aa1 | F70: A | G70: a | H70: 1 | I70: 386793 | J70: 11.4 | K70: 62 | L70: 96.7 | M70: 101.7 | N70: 2618 | O70: 112 | P70: 0 | Q70: 87.2 | R70: 97.3 | S70: 150.91 | T70: 150.91 | U70: 179.4 | V70: 56.13 | W70: 94.78 | X70: 100 | Y70: 84.1 | Z70: 268.9 | AA70: 15265 | AB70: 5678 | AC70: 9587 | AD70: 3334 | AE70: 7.9 | AF70: 117.2 | AG70: 115.2 | AH70: 0 | AI70: 1.8 | AJ70: 69.4 | AK70: 102 | AL70: 161
A71: 272116 | B71: 大阪府 | C71: 茨木市 | D71: 1171 | E71: Aa1 | F71: A | G71: a | H71: 1 | I71: 280479 | J71: 10.8 | K71: 50 | L71: 99.2 | M71: 95.1 | N71: 2035 | O71: 102 | P71: 0 | Q71: 71.2 | R71: 99 | S71: 119.05 | T71: 96.18 | U71: 96.18 | V71: 54.23 | W71: 41.95 | X71: 123.8 | Y71: 123.8 | Z71: 219.5 | AA71: 10219 | AB71: 5762 | AC71: 4457 | AD71: 10788 | AE71: 2.6 | AF71: 120.5 | AG71: 115.7 | AH71: 0 | AI71: 2.4 | AJ71: 70.3 | AK71: 102.2 | AL71: 87
A72: 272124 | B72: 大阪府 | C72: 八尾市 | D72: 1171 | E72: Aa1 | F72: A | G72: a | H72: 1 | I72: 238885 | J72: 9.8 | K72: 47 | L72: 89.8 | M72: 95.2 | N72: 2563 | O72: 87 | P72: 0 | Q72: 58.4 | R72: 91.3 | S72: 149.18 | T72: 132.68 | U72: 132.68 | V72: 59.28 | W72: 73.4 | X72: 112.4 | Y72: 112.4 | Z72: 251.7 | AA72: 14979 | AB72: 6692 | AC72: 8286 | AD72: 6286 | AE72: 2.5 | AF72: 105.7 | AG72: 105.5 | AH72: 0 | AI72: 1.7 | AJ72: 51.3 | AK72: 102.1 | AL72: 367
A73: 272159 | B73: 大阪府 | C73: 寝屋川市 | D73: 1171 | E73: Aa1 | F73: A | G73: a | H73: 1 | I73: 230554 | J73: 12.9 | K73: 48 | L73: 99.7 | M73: 117.3 | N73: 2406 | O73: 128 | P73: 0 | Q73: 66.8 | R73: 98.5 | S73: 137.31 | T73: 135.96 | U73: 135.96 | V73: 49.51 | W73: 86.45 | X73: 101 | Y73: 101 | Z73: 277.3 | AA73: 13733 | AB73: 5001 | AC73: 8732 | AD73: 12809 | AE73: 1.7 | AF73: 105 | AG73: 105 | AH73: 0 | AI73: 1.8 | AJ73: 42.5 | AK73: 104.3 | AL73: 203
A74: 272175 | B74: 大阪府 | C74: 松原市 | D74: 1171 | E74: Aa1 | F74: A | G74: a | H74: 1 | I74: 116877 | J74: 9.7 | K74: 35 | L74: 98 | M74: 111.1 | N74: 2868 | O74: 116 | P74: 0 | Q74: 82.6 | R74: 91.9 | S74: 154.66 | T74: 174.93 | U74: 190.27 | V74: 41.09 | W74: 133.83 | X74: 88.4 | Y74: 81.3 | Z74: 376.4 | AA74: 14572 | AB74: 3423 | AC74: 11149 | AD74: 14610 | AE74: 1.5 | AF74: 96.8 | AG74: 96.8 | AH74: 0 | AI74: 1.7 | AJ74: 38.1 | AK74: 106.9 | AL74: 340
A75: 272183 | B75: 大阪府 | C75: 大東市 | D75: 1171 | E75: Aa1 | F75: A | G75: a | H75: 1 | I75: 118852 | J75: 10.3 | K75: 48 | L75: 98.9 | M75: 99.4 | N75: 1970 | O75: 99 | P75: 0 | Q75: 64.2 | R75: 97.6 | S75: 119.76 | T75: 103.74 | U75: 103.74 | V75: 53.16 | W75: 50.58 | X75: 115.4 | Y75: 115.4 | Z75: 225.3 | AA75: 10738 | AB75: 5503 | AC75: 5236 | AD75: 6255 | AE75: 4.3 | AF75: 105.5 | AG75: 105.5 | AH75: 0 | AI75: 2.1 | AJ75: 57.7 | AK75: 102.5 | AL75: 208
A76: 272230 | B76: 大阪府 | C76: 門真市 | D76: 1171 | E76: Aa1 | F76: A | G76: a | H76: 1 | I76: 115596 | J76: 12.4 | K76: 48 | L76: 95.3 | M76: 106.2 | N76: 1782 | O76: 116 | P76: 0 | Q76: 66.8 | R76: 99.6 | S76: 102.61 | T76: 121.39 | U76: 121.39 | V76: 61.1 | W76: 60.28 | X76: 84.5 | Y76: 84.5 | Z76: 167.9 | AA76: 12974 | AB76: 6531 | AC76: 6443 | AD76: 5254 | AE76: 4 | AF76: 102.6 | AG76: 102.2 | AH76: 0 | AI76: 1.6 | AJ76: 38.7 | AK76: 104.4 | AL76: 348
A77: 272272 | B77: 大阪府 | C77: 東大阪市 | D77: 1171 | E77: Aa1 | F77: A | G77: a | H77: 1 | I77: 482004 | J77: 10.6 | K77: 52 | L77: 98.8 | M77: 98.8 | N77: 2087 | O77: 98 | P77: 0 | Q77: 56.6 | R77: 96.2 | S77: 124.53 | T77: 101.76 | U77: 101.76 | V77: 53.53 | W77: 48.23 | X77: 122.4 | Y77: 122.4 | Z77: 232.6 | AA77: 10945 | AB77: 5757 | AC77: 5188 | AD77: 5807 | AE77: 3.3 | AF77: 104.7 | AG77: 104.4 | AH77: 0 | AI77: 1.7 | AJ77: 38.4 | AK77: 102.4 | AL77: 286
A78: 282022 | B78: 兵庫県 | C78: 尼崎市 | D78: 1171 | E78: Aa1 | F78: A | G78: a | H78: 1 | I78: 463197 | J78: 13.5 | K78: 61 | L78: 100 | M78: 101.1 | N78: 1714 | O78: 114 | P78: 51.1 | Q78: 72 | R78: 99.6 | S78: 103.17 | T78: 74.94 | U78: 74.94 | V78: 49.95 | W78: 24.99 | X78: 137.7 | Y78: 137.7 | Z78: 206.6 | AA78: 8852 | AB78: 5900 | AC78: 2952 | AD78: 4679 | AE78: 5.8 | AF78: 115.8 | AG78: 115.2 | AH78: 0 | AI78: 1.8 | AJ78: 79.3 | AK78: 93.6 | AL78: 64
A79: 282031 | B79: 兵庫県 | C79: 明石市 | D79: 1171 | E79: Aa1 | F79: A | G79: a | H79: 1 | I79: 302415 | J79: 8.2 | K79: 52 | L79: 99.6 | M79: 120.2 | N79: 2197 | O79: 79 | P79: 67.4 | Q79: 82.8 | R79: 98.5 | S79: 148.65 | T79: 119.88 | U79: 142.63 | V79: 58.84 | W79: 61.04 | X79: 124 | Y79: 104.2 | Z79: 252.6 | AA79: 12454 | AB79: 6113 | AC79: 6341 | AD79: 5400 | AE79: 7.1 | AF79: 113.8 | AG79: 113.8 | AH79: 0 | AI79: 2.1 | AJ79: 60.7 | AK79: 100.6 | AL79: 145
A80: 282049 | B80: 兵庫県 | C80: 西宮市 | D80: 1171 | E80: Aa1 | F80: A | G80: a | H80: 1 | I80: 483490 | J80: 11 | K80: 60 | L80: 99.9 | M80: 93 | N80: 1777 | O80: 100 | P80: 49.9 | Q80: 91.6 | R80: 99.8 | S80: 101.14 | T80: 94.59 | U80: 103.22 | V80: 51.86 | W80: 42.72 | X80: 106.9 | Y80: 98 | Z80: 195 | AA80: 10391 | AB80: 5697 | AC80: 4693 | AD80: 6199 | AE80: 6.4 | AF80: 112.1 | AG80: 111.3 | AH80: 0 | AI80: 1.8 | AJ80: 67.6 | AK80: 101.7 | AL80: 121
A81: 282073 | B81: 兵庫県 | C81: 伊丹市 | D81: 1171 | E81: Aa1 | F81: A | G81: a | H81: 1 | I81: 203257 | J81: 12 | K81: 51 | L81: 100 | M81: 103.5 | N81: 1727 | O81: 100 | P81: 0 | Q81: 75.1 | R81: 99.7 | S81: 101.88 | T81: 81.57 | U81: 81.57 | V81: 36.74 | W81: 44.83 | X81: 124.9 | Y81: 124.9 | Z81: 277.3 | AA81: 9789 | AB81: 4409 | AC81: 5380 | AD81: 8469 | AE81: 3.8 | AF81: 111.9 | AG81: 112 | AH81: 0.1 | AI81: 1.9 | AJ81: 52.1 | AK81: 104.5 | AL81: 142
A82: 282146 | B82: 兵庫県 | C82: 宝塚市 | D82: 1171 | E82: Aa1 | F82: A | G82: a | H82: 1 | I82: 230846 | J82: 9.5 | K82: 46 | L82: 98.8 | M82: 100.2 | N82: 1848 | O82: 94 | P82: 0 | Q82: 86.8 | R82: 99.4 | S82: 97.23 | T82: 112.14 | U82: 112.14 | V82: 47.38 | W82: 64.76 | X82: 86.7 | Y82: 86.7 | Z82: 205.2 | AA82: 11262 | AB82: 4758 | AC82: 6504 | AD82: 10037 | AE82: 5.3 | AF82: 110.3 | AG82: 110.3 | AH82: 0 | AI82: 2 | AJ82: 72.7 | AK82: 102.8 | AL82: 88
A83: 282171 | B83: 兵庫県 | C83: 川西市 | D83: 1171 | E83: Aa1 | F83: A | G83: a | H83: 1 | I83: 156548 | J83: 8.3 | K83: 46 | L83: 99.7 | M83: 98.6 | N83: 2145 | O83: 88 | P83: 0 | Q83: 80 | R83: 99.3 | S83: 117.31 | T83: 80.63 | U83: 92.02 | V83: 54.4 | W83: 26.23 | X83: 145.5 | Y83: 127.5 | Z83: 215.6 | AA83: 7628 | AB83: 5146 | AC83: 2481 | AD83: 5591 | AE83: 10 | AF83: 117.8 | AG83: 117.9 | AH83: 0 | AI83: 1.7 | AJ83: 68.3 | AK83: 96.5 | AL83: 79
A84: 462012 | B84: 鹿児島県 | C84: 鹿児島市 | D84: 1171 | E84: Aa1 | F84: A | G84: a | H84: 1 | I84: 471100 | J84: 7.7 | K84: 65 | L84: 78.4 | M84: 95.4 | N84: 1837 | O84: 67 | P84: 74.1 | Q84: 90.4 | R84: 98.3 | S84: 107.08 | T84: 114.85 | U84: 124.54 | V84: 67.3 | W84: 47.55 | X84: 93.2 | Y84: 86 | Z84: 159.1 | AA84: 13252 | AB84: 7766 | AC84: 5486 | AD84: 3227 | AE84: 20.6 | AF84: 103.4 | AG84: 103.4 | AH84: 0 | AI84: 1.8 | AJ84: 67.6 | AK84: 95.3 | AL84: 56
A85: 472018 | B85: 沖縄県 | C85: 那覇市 | D85: 1171 | E85: Aa1 | F85: A | G85: a | H85: 1 | I85: 315542 | J85: 10.2 | K85: 51 | L85: 98.2 | M85: 100.7 | N85: 1489 | O85: 90 | P85: 0 | Q85: 100 | R85: 96.2 | S85: 96.12 | T85: 93.79 | U85: 93.79 | V85: 69.17 | W85: 24.62 | X85: 102.5 | Y85: 102.5 | Z85: 139 | AA85: 10668 | AB85: 7868 | AC85: 2800 | AD85: 5173 | AE85: 9.4 | AF85: 109.2 | AG85: 109.4 | AH85: 0 | AI85: 1.9 | AJ85: 73 | AK85: 93.3 | AL85: 42
A86: 112216 | B86: 埼玉県 | C86: 草加市 | D86: 2171 | E86: Aa1 | F86: A | G86: a | H86: 1 | I86: 244682 | J86: 9.8 | K86: 37 | L86: 97.9 | M86: 108.5 | N86: 1947 | O86: 100 | P86: 0 | Q86: 86.5 | R86: 94.1 | S86: 98.47 | T86: 150 | U86: 183.16 | V86: 60.41 | W86: 89.59 | X86: 65.6 | Y86: 53.8 | Z86: 163 | AA86: 14720 | AB86: 5928 | AC86: 8792 | AD86: 14393 | AE86: 2.7 | AF86: 167.1 | AG86: 66.7 | AH86: 0 | AI86: 0 | AJ86: 0 | AK86: 0 | AL86: 130
A87: 112224 | B87: 埼玉県 | C87: 越谷市 | D87: 2171 | E87: Aa1 | F87: A | G87: a | H87: 1 | I87: 289369 | J87: 9.9 | K87: 37 | L87: 84 | M87: 101.6 | N87: 2365 | O87: 104 | P87: 0 | Q87: 86 | R87: 96.2 | S87: 115.03 | T87: 125.36 | U87: 125.36 | V87: 60.82 | W87: 64.53 | X87: 91.8 | Y87: 91.8 | Z87: 189.1 | AA87: 11894 | AB87: 5771 | AC87: 6123 | AD87: 12057 | AE87: 3.3 | AF87: 189 | AG87: 72.4 | AH87: 0 | AI87: 0 | AJ87: 0 | AK87: 0 | AL87: 103
A88: 112275 | B88: 埼玉県 | C88: 朝霞市 | D88: 2171 | E88: Aa1 | F88: A | G88: a | H88: 1 | I88: 138870 | J88: 12.9 | K88: 38 | L88: 97.7 | M88: 117 | N88: 1155 | O88: 126 | P88: 0 | Q88: 80 | R88: 99 | S88: 55.7 | T88: 51.16 | U88: 51.16 | V88: 43.3 | W88: 7.85 | X88: 108.9 | Y88: 108.9 | Z88: 128.6 | AA88: 5230 | AB88: 4427 | AC88: 803 | AD88: 10682 | AE88: 7.2 | AF88: 124.6 | AG88: 104.3 | AH88: 0 | AI88: 0 | AJ88: 0 | AK88: 0 | AL88: 23
A89: 112305 | B89: 埼玉県 | C89: 新座市 | D89: 2171 | E89: Aa1 | F89: A | G89: a | H89: 1 | I89: 158864 | J89: 11.1 | K89: 38 | L89: 95.7 | M89: 112.2 | N89: 1639 | O89: 114 | P89: 0 | Q89: 93.3 | R89: 98.6 | S89: 88.51 | T89: 106.9 | U89: 106.9 | V89: 37.9 | W89: 69 | X89: 82.8 | Y89: 82.8 | Z89: 233.5 | AA89: 10488 | AB89: 3718 | AC89: 6770 | AD89: 11347 | AE89: 2.9 | AF89: 175.9 | AG89: 85.2 | AH89: 6 | AI89: 0 | AJ89: 0 | AK89: 0 | AL89: 87
A90: 112372 | B90: 埼玉県 | C90: 三郷市 | D90: 2171 | E90: Aa1 | F90: A | G90: a | H90: 1 | I90: 119462 | J90: 8.3 | K90: 37 | L90: 83.8 | M90: 97.3 | N90: 1595 | O90: 92 | P90: 0 | Q90: 82.3 | R90: 88.7 | S90: 77.18 | T90: 150 | U90: 201.33 | V90: 52.32 | W90: 97.68 | X90: 51.5 | Y90: 38.3 | Z90: 147.5 | AA90: 13583 | AB90: 4738 | AC90: 8845 | AD90: 7466 | AE90: 7.2 | AF90: 162.8 | AG90: 61.7 | AH90: 0 | AI90: 0 | AJ90: 0 | AK90: 0 | AL90: 232
A91: 122220 | B91: 千葉県 | C91: 我孫子市 | D91: 2171 | E91: Aa1 | F91: A | G91: a | H91: 1 | I91: 111207 | J91: 8.1 | K91: 50 | L91: 84.2 | M91: 83.6 | N91: 2178 | O91: 86 | P91: 0 | Q91: 76.6 | R91: 99 | S91: 131.65 | T91: 152.67 | U91: 167.27 | V91: 89.62 | W91: 63.06 | X91: 86.2 | Y91: 78.7 | Z91: 146.9 | AA91: 14400 | AB91: 8453 | AC91: 5948 | AD91: 7414 | AE91: 4.4 | AF91: 147.3 | AG91: 76.6 | AH91: 0 | AI91: 0 | AJ91: 0 | AK91: 0 | AL91: 111
